Workbook

Sheet SO2
A1: SO2 (tons)
C2: 1990 | D2: 1991 | E2: 1992 | F2: 1993 | G2: 1994 | H2: 1995 | I2: 1996 | J2: 1997 | K2: 1998 | L2: 1999 | M2: 2000 | N2: 2001 | O2: 2002 | P2: 2003 | Q2: 2004 | R2: 2005 | S2: 2006 | T2: 2007 | U2: 2008 | V2: 2009 | W2: 2010 | X2: 2011 | Y2: 2012 | Z2: 2013 | AA2: 2014 | AB2: 2015 | AC2: 2016 | AD2: 2017 | AE2: 2018 | AF2: 2019 | AG2: 2020 | AH2: 2021 | AI2: 2022 | AJ2: 2023 | AK2: 2024 | AL2: 2025 | AM2: 2026 | AN2: 2027 | AO2: 2028 | AP2: 2029 | AQ2: 2030 | AR2: 2031 | AS2: 2032 | AT2: 2033 | AU2: 2034 | AV2: 2035 | AW2: 2036 | AX2: 2037 | AY2: 2038 | AZ2: 2039 | BA2: 2040
A3: 1A1a | B3: Public power and district heating plants | C3: 125682.3344 | D3: 183985.7092 | E3: 135925.7543 | F3: 104383.1286 | G3: 106676.7694 | H3: 108332.3128 | I3: 142283.2647 | J3: 73815.87314 | K3: 53793.48031 | L3: 36279.77231 | M3: 11991.7291 | N3: 10277.29211 | O3: 9907.994677 | P3: 16885.53312 | Q3: 9648.527934 | R3: 7646.328082 | S3: 9794.033987 | T3: 8578.276568 | U3: 6255.327226 | V3: 4434.550731 | W3: 3605.87904 | X3: 2687.212523 | Y3: 2774.174884 | Z3: 3165.149154 | AA3: 2288.638685 | AB3: 2262.35436 | AC3: 2381.837684 | AD3: 2721.774109 | AE3: 2735.51988 | AF3: 2635.11916 | AG3: 2526.627705 | AH3: 2587.103446 | AI3: 2591.593485 | AJ3: 2842.401679 | AK3: 2810.20887 | AL3: 2743.575896 | AM3: 2752.728408 | AN3: 2900.944557 | AO3: 2902.321514 | AP3: 2884.181526 | AQ3: 2894.834889 | AR3: 2876.091662 | AS3: 2868.639005 | AT3: 2892.371764 | AU3: 2884.149634 | AV3: 2929.59481 | AW3: 3017.838064 | AX3: 3039.133044 | AY3: 3045.350272 | AZ3: 3086.487517 | BA3: 3141.878296
A4: 1A1b | B4: Petroleum refining plants | C4: 1162.148613 | D4: 1805.623066 | E4: 3148.653048 | F4: 3078.971987 | G4: 2667.63698 | H4: 2050.058047 | I4: 1141.540869 | J4: 1372.328128 | K4: 927.05049 | L4: 530.8662954 | M4: 582.507334 | N4: 596.531415 | O4: 917.899987 | P4: 481.5047979 | Q4: 411.5722435 | R4: 267.278919 | S4: 223.3113967 | T4: 414.9339649 | U4: 318.2111258 | V4: 253.9483198 | W4: 228.9870611 | X4: 316.5 | Y4: 258.0921673 | Z4: 293.2160575 | AA4: 164.98 | AB4: 224.732 | AC4: 177.45 | AD4: 159.3797374 | AE4: 159.3797374 | AF4: 159.3797374 | AG4: 159.3797374 | AH4: 159.3797374 | AI4: 159.3797374 | AJ4: 159.3797374 | AK4: 159.3797374 | AL4: 159.3797374 | AM4: 159.3797374 | AN4: 159.3797374 | AO4: 159.3797374 | AP4: 159.3797374 | AQ4: 159.3797374 | AR4: 159.3797374 | AS4: 159.3797374 | AT4: 159.3797374 | AU4: 159.3797374 | AV4: 159.3797374 | AW4: 159.3797374 | AX4: 159.3797374 | AY4: 159.3797374 | AZ4: 159.3797374 | BA4: 159.3797374
A5: 1A1c | B5: Oil and gas extraction | C5: 4.077382277 | D5: 4.172319159 | E5: 4.781039604 | F5: 4.831256411 | G5: 5.305881143 | H5: 5.587016888 | I5: 6.610882574 | J5: 8.605892866 | K5: 9.444083647 | L5: 10.27372419 | M5: 10.93579722 | N5: 10.6856693 | O5: 11.45859032 | P5: 11.45946236 | Q5: 11.82864199 | R5: 12.11672051 | S5: 12.39982402 | T5: 12.29398047 | U5: 12.60044214 | V5: 11.84040984 | W5: 11.67388379 | X5: 11.23334976 | Y5: 11.17227971 | Z5: 10.73109292 | AA5: 10.24087719 | AB5: 10.72516333 | AC5: 9.901427776 | AD5: 9.594381977 | AE5: 9.361022109 | AF5: 9.361022109 | AG5: 5.967345207 | AH5: 6.968384959 | AI5: 8.495034759 | AJ5: 8.689294889 | AK5: 8.655957765 | AL5: 8.707175455 | AM5: 8.975761137 | AN5: 9.093492838 | AO5: 9.279411582 | AP5: 9.551636884 | AQ5: 8.314357909 | AR5: 8.562670792 | AS5: 8.697014835 | AT5: 9.117471443 | AU5: 9.090356589 | AV5: 9.140306065 | AW5: 8.863429718 | AX5: 8.717212583 | AY5: 8.209612645 | AZ5: 8.039495649 | BA5: 7.738410669
A7: 1A2a-f i | B7: Combustion in manufacturing industry | C7: 15151.62144 | D7: 16849.76481 | E7: 14653.28823 | F7: 13637.11696 | G7: 12910.68568 | H7: 11560.63018 | I7: 11882.60677 | J7: 10403.01594 | K7: 9869.768342 | L7: 7796.66816 | M7: 6943.963001 | N7: 7212.9293 | O7: 5936.482602 | P7: 6401.920719 | Q7: 6812.282549 | R7: 6015.288877 | S7: 7137.860449 | T7: 6139.117574 | U7: 4487.103432 | V7: 3323.941903 | W7: 3528.407067 | X7: 3491.543855 | Y7: 2495.843174 | Z7: 2521.916489 | AA7: 2494.409726 | AB7: 2542.613138 | AC7: 2844.565226 | AD7: 3004.857668 | AE7: 2993.312042 | AF7: 2976.380095 | AG7: 2959.431475 | AH7: 3039.561873 | AI7: 3119.687455 | AJ7: 3199.808286 | AK7: 3278.87663 | AL7: 3357.944777 | AM7: 3452.485054 | AN7: 3547.093154 | AO7: 3640.84372 | AP7: 3734.349587 | AQ7: 3828.045472 | AR7: 3891.042525 | AS7: 3954.062036 | AT7: 4017.015664 | AU7: 4079.830602 | AV7: 4142.731633 | AW7: 4196.229077 | AX7: 4249.819158 | AY7: 4303.312389 | AZ7: 4356.201322 | BA7: 4408.970101
A8: 1A2f ii | B8: Industry - Other (mobile) | C8: 701.7447466 | D8: 699.7546008 | E8: 695.9730435 | F8: 691.932403 | G8: 689.4624112 | H8: 690.4777257 | I8: 172.7722857 | J8: 173.185481 | K8: 173.496195 | L8: 175.2248018 | M8: 180.0054358 | N8: 185.6624089 | O8: 189.9908385 | P8: 194.6344454 | Q8: 198.7962829 | R8: 20.78660531 | S8: 22.28412284 | T8: 23.98887463 | U8: 24.83413526 | V8: 18.55680889 | W8: 23.19409767 | X8: 4.474830802 | Y8: 4.32770677 | Z8: 4.231533492 | AA8: 3.912997587 | AB8: 3.931100551 | AC8: 3.893386067 | AD8: 3.816487553 | AE8: 3.756225573 | AF8: 3.745010661 | AG8: 3.741931938 | AH8: 3.806647248 | AI8: 3.849450426 | AJ8: 3.8764973 | AK8: 3.901598069 | AL8: 3.928785105 | AM8: 3.902567137 | AN8: 3.88200197 | AO8: 3.882509935 | AP8: 3.89314812 | AQ8: 3.899012325 | AR8: 3.895151689 | AS8: 3.892386766 | AT8: 3.891098697 | AU8: 3.88997767 | AV8: 3.888936456 | AW8: 3.887930011 | AX8: 3.88693537 | AY8: 3.88638464 | AZ8: 3.885919749 | BA8: 3.885457635
A10: 1A3a | B10: Civil Aviation (Domestic LTO) | C10: 30.82329233 | D10: 31.29155361 | E10: 31.55718707 | F10: 31.07020011 | G10: 31.1675695 | H10: 33.11051684 | I10: 36.02094711 | J10: 35.7480164 | K10: 29.59189472 | L10: 26.56818965 | M10: 23.95979406 | N10: 21.7525255 | O10: 21.57442897 | P10: 20.5044852 | Q10: 23.91924182 | R10: 22.73689135 | S10: 19.4176353 | T10: 19.39773956 | U10: 16.66320941 | V10: 16.28624769 | W10: 17.17324592 | X10: 15.94521895 | Y10: 15.15369864 | Z10: 14.26397419 | AA10: 12.35642417 | AB10: 11.87220528 | AC10: 12.40110083 | AD10: 12.51528389 | AE10: 12.62622909 | AF10: 12.73429654 | AG10: 12.7970217 | AH10: 12.88257594 | AI10: 12.97112808 | AJ10: 13.05703291 | AK10: 13.1438968 | AL10: 13.2307491 | AM10: 13.34327073 | AN10: 13.45880744 | AO10: 13.57265691 | AP10: 13.68664028 | AQ10: 13.8072869 | AR10: 13.81056649 | AS10: 13.81400224 | AT10: 13.81503664 | AU10: 13.81474466 | AV10: 13.8217955 | AW10: 13.82189643 | AX10: 13.82355062 | AY10: 13.82421406 | AZ10: 13.82405009 | BA10: 13.82924984
A11: 1A3a | B11: Civil Aviation (International LTO) | C11: 69.78770356 | D11: 69.84784957 | E11: 74.07585403 | F11: 77.37737898 | G11: 79.45293055 | H11: 84.32027573 | I11: 92.62391137 | J11: 99.27886748 | K11: 101.1293605 | L11: 104.4932821 | M11: 106.5650978 | N11: 104.054566 | O11: 97.03129847 | P11: 96.61574095 | Q11: 103.1240086 | R11: 102.6478986 | S11: 100.4656945 | T11: 98.89307225 | U11: 96.71783947 | V11: 82.03345222 | W11: 86.96156091 | X11: 88.91811608 | Y11: 90.52087171 | Z11: 92.31292785 | AA11: 94.72483491 | AB11: 96.04701666 | AC11: 103.4609721 | AD11: 104.0948019 | AE11: 104.6862306 | AF11: 105.2171326 | AG11: 105.6534037 | AH11: 106.2269828 | AI11: 106.8815677 | AJ11: 107.4419415 | AK11: 107.9847903 | AL11: 108.5141151 | AM11: 109.2160357 | AN11: 109.9875765 | AO11: 110.6709863 | AP11: 111.3281287 | AQ11: 112.1904773 | AR11: 112.2853412 | AS11: 112.3980093 | AT11: 112.4347236 | AU11: 112.4317144 | AV11: 112.7177605 | AW11: 112.7381159 | AX11: 112.843861 | AY11: 112.9212932 | AZ11: 112.974403 | BA11: 113.2578196
A12: 1A3b | B12: Road exhaust | C12: 5769.259111 | D12: 5905.477368 | E12: 3822.34411 | F12: 1570.837615 | G12: 1671.719307 | H12: 1684.359495 | I12: 1723.272128 | J12: 1746.51964 | K12: 1770.005233 | L12: 1090.597401 | M12: 354.7458452 | N12: 355.7657184 | O12: 360.2091006 | P12: 374.9603919 | Q12: 385.1732374 | R12: 77.69856744 | S12: 80.06752711 | T12: 83.82068598 | U12: 81.84715384 | V12: 77.38772265 | W12: 76.95696555 | X12: 75.00370969 | Y12: 71.54533855 | Z12: 70.3620956 | AA12: 71.71006083 | AB12: 73.10557353 | AC12: 74.3364401 | AD12: 74.59111997 | AE12: 74.61228567 | AF12: 75.15927909 | AG12: 75.64868964 | AH12: 76.00108166 | AI12: 76.4215718 | AJ12: 76.91132325 | AK12: 77.28126576 | AL12: 77.48483464 | AM12: 77.63446922 | AN12: 77.71302146 | AO12: 77.71159708 | AP12: 77.62346842 | AQ12: 77.43017142 | AR12: 77.10175579 | AS12: 76.59522437 | AT12: 75.9211791 | AU12: 75.06550855 | AV12: 74.08095441 | AW12: 73.05530034 | AX12: 72.02279621 | AY12: 70.99727426 | AZ12: 69.95829558 | BA12: 68.89305885
A13: 1A3b | B13: Road non-exhaust
A14: 1A3c | B14: Railways | C14: 375.6449878 | D14: 381.9320824 | E14: 262.62117 | F14: 104.84562 | G14: 95.027784 | H14: 95.862888 | I14: 95.13779409 | J14: 92.631696 | K14: 78.16284 | L14: 40.38303752 | M14: 7.21038566 | N14: 6.683686254 | O14: 6.662014501 | P14: 6.908982897 | Q14: 6.842620641 | R14: 1.4692104 | S14: 1.435308 | T14: 1.4405328 | U14: 1.4981568 | V14: 1.457064 | W14: 1.532916 | X14: 1.5784608 | Y14: 1.578108 | Z14: 1.568389337 | AA14: 1.595842094 | AB14: 1.571664389 | AC14: 1.60444324 | AD14: 1.396631362 | AE14: 1.389196689 | AF14: 1.381762016 | AG14: 1.374327344 | AH14: 1.366892671 | AI14: 1.359457998 | AJ14: 1.352023326 | AK14: 1.196596734 | AL14: 1.082110786 | AM14: 1.074105545 | AN14: 0.4421095927 | AO14: 0.4327146138 | AP14: 0.423319635 | AQ14: 0.4139246562 | AR14: 0.4139246562 | AS14: 0.4139246562 | AT14: 0.4139246562 | AU14: 0.4139246562 | AV14: 0.4139246562 | AW14: 0.4139246562 | AX14: 0.4139246562 | AY14: 0.4139246562 | AZ14: 0.4139246562 | BA14: 0.4139246562
A15: 1A3d | B15: Navigation | C15: 6358.531386 | D15: 6443.99506 | E15: 4455.249785 | F15: 4704.571101 | G15: 4446.324482 | H15: 4998.81289 | I15: 3884.696072 | J15: 3396.283943 | K15: 2664.044905 | L15: 2623.668276 | M15: 2551.448817 | N15: 2476.871023 | O15: 2695.502842 | P15: 3065.707281 | Q15: 3317.155077 | R15: 3281.482416 | S15: 3206.840811 | T15: 1992.768197 | U15: 1919.128787 | V15: 1926.155306 | W15: 1585.222034 | X15: 1507.426761 | Y15: 1437.653478 | Z15: 1462.13483 | AA15: 1240.171707 | AB15: 357.3128969 | AC15: 405.7596358 | AD15: 400.6678182 | AE15: 399.4647142 | AF15: 398.2616102 | AG15: 397.0585062 | AH15: 395.8554022 | AI15: 394.6522983 | AJ15: 393.4491943 | AK15: 392.2460903 | AL15: 391.0429863 | AM15: 389.8398823 | AN15: 388.6367783 | AO15: 387.4336743 | AP15: 386.2305703 | AQ15: 385.0274663 | AR15: 381.7086277 | AS15: 378.3897891 | AT15: 375.0709505 | AU15: 371.7521119 | AV15: 368.0520463 | AW15: 364.7332077 | AX15: 361.4143691 | AY15: 358.0955305 | AZ15: 354.7766919 | BA15: 351.4578533
A17: 1A4a i | B17: Commercial and institutional plants | C17: 1871.365636 | D17: 1658.989539 | E17: 1411.560594 | F17: 1361.998352 | G17: 1355.360097 | H17: 769.2385544 | I17: 744.0122675 | J17: 627.9043859 | K17: 409.3675677 | L17: 475.6505445 | M17: 339.1452371 | N17: 239.506927 | O17: 595.7267048 | P17: 363.2425027 | Q17: 261.420957 | R17: 258.8802156 | S17: 204.1680047 | T17: 191.5013765 | U17: 159.2186231 | V17: 122.2079675 | W17: 119.3933135 | X17: 100.2773505 | Y17: 150.4725011 | Z17: 119.779845 | AA17: 136.718812 | AB17: 96.6411255 | AC17: 103.4295961 | AD17: 95.15020387 | AE17: 93.00864656 | AF17: 90.76719736 | AG17: 88.53826793 | AH17: 87.61180629 | AI17: 86.69777017 | AJ17: 85.79535732 | AK17: 84.59046009 | AL17: 83.39255873 | AM17: 82.45488192 | AN17: 81.51868387 | AO17: 80.57861663 | AP17: 79.63625113 | AQ17: 78.68457406 | AR17: 77.75995221 | AS17: 76.83463104 | AT17: 75.90680495 | AU17: 74.97710471 | AV17: 74.04563529 | AW17: 73.31497464 | AX17: 72.58196266 | AY17: 71.84705755 | AZ17: 71.11086553 | BA17: 70.37348623
A18: 1A4a ii | B18: Commercial and institutional (mobile) | C18: 30.5315641 | D18: 30.39926814 | E18: 30.27144048 | F18: 30.15439904 | G18: 30.04336037 | H18: 29.93658516 | I18: 8.019526943 | J18: 8.015333531 | K18: 8.011596963 | L18: 8.008191008 | M18: 8.005095228 | N18: 8.112441524 | O18: 8.280263114 | P18: 8.514772405 | Q18: 8.834797087 | R18: 1.119417884 | S18: 1.18682658 | T18: 1.224418397 | U18: 1.234179863 | V18: 1.200395794 | W18: 1.14105587 | X18: 0.5745782088 | Y18: 0.5500716725 | Z18: 0.5408961131 | AA18: 0.5273855972 | AB18: 0.5203810026 | AC18: 0.5216846422 | AD18: 0.5231270279 | AE18: 0.5242357469 | AF18: 0.5238878058 | AG18: 0.5221882346 | AH18: 0.5231917973 | AI18: 0.5241934901 | AJ18: 0.5249876023 | AK18: 0.5257135386 | AL18: 0.5268199374 | AM18: 0.5268877316 | AN18: 0.5268877316 | AO18: 0.5268877316 | AP18: 0.5268877316 | AQ18: 0.5268877316 | AR18: 0.5268877316 | AS18: 0.5268877316 | AT18: 0.5268877316 | AU18: 0.5268877316 | AV18: 0.5268877316 | AW18: 0.5268877316 | AX18: 0.5268877316 | AY18: 0.5268877316 | AZ18: 0.5268877316 | BA18: 0.5268877316
A19: 1A4b i | B19: Residential plants | C19: 6162.46689 | D19: 6858.844385 | E19: 5663.834929 | F19: 6285.483883 | G19: 5472.109782 | H19: 2051.166091 | I19: 2066.822683 | J19: 1870.345521 | K19: 1725.068953 | L19: 1595.900054 | M19: 1270.155604 | N19: 1303.487761 | O19: 1285.505692 | P19: 1236.113633 | Q19: 1202.886908 | R19: 1243.387432 | S19: 1231.66357 | T19: 1214.707639 | U19: 1192.830126 | V19: 1136.873448 | W19: 1189.63098 | X19: 1076.538768 | Y19: 1038.753689 | Z19: 1003.291464 | AA19: 885.4701443 | AB19: 961.4737302 | AC19: 978.8536611 | AD19: 933.0933423 | AE19: 912.7347565 | AF19: 892.3761707 | AG19: 872.0175849 | AH19: 854.9290027 | AI19: 837.8404206 | AJ19: 820.7518384 | AK19: 803.6632563 | AL19: 786.5746741 | AM19: 769.6231393 | AN19: 752.6716045 | AO19: 735.7200697 | AP19: 718.7685348 | AQ19: 701.817 | AR19: 689.4835578 | AS19: 677.1501157 | AT19: 664.8166735 | AU19: 652.4832313 | AV19: 640.1497891 | AW19: 636.1357804 | AX19: 632.1217716 | AY19: 628.1077629 | AZ19: 624.0937541 | BA19: 620.0797454
A20: 1A4b ii | B20: Residential (mobile) | C20: 0.5826452533 | D20: 0.5874569813 | E20: 0.5902492207 | F20: 0.5955712422 | G20: 0.603541599 | H20: 0.6136473657 | I20: 0.6263575231 | J20: 0.6410424058 | K20: 0.6564125042 | L20: 0.6719772742 | M20: 0.6876079594 | N20: 0.7031695144 | O20: 0.7201746277 | P20: 0.739839295 | Q20: 0.7617185374 | R20: 0.157110542 | S20: 0.1649870532 | T20: 0.1748381065 | U20: 0.1819791879 | V20: 0.17768896 | W20: 0.1683368297 | X20: 0.1636018637 | Y20: 0.1610222384 | Z20: 0.1578233769 | AA20: 0.1540856745 | AB20: 0.1520257105 | AC20: 0.1520790505 | AD20: 0.1519522338 | AE20: 0.1516601146 | AF20: 0.1518053884 | AG20: 0.1522064772 | AH20: 0.1524259055 | AI20: 0.1523460417 | AJ20: 0.152330384 | AK20: 0.1523286004 | AL20: 0.1523282268 | AM20: 0.1523270912 | AN20: 0.1523259196 | AO20: 0.152325474 | AP20: 0.1523253479 | AQ20: 0.1523253134 | AR20: 0.1523253122 | AS20: 0.1523253122 | AT20: 0.1523253122 | AU20: 0.1523253122 | AV20: 0.1523253122 | AW20: 0.1523253122 | AX20: 0.1523253122 | AY20: 0.1523253122 | AZ20: 0.1523253122 | BA20: 0.1523253122
A21: 1A4c i | B21: Plants in agriculture, forestry and aquaculture | C21: 3061.848396 | D21: 3298.82703 | E21: 2796.537886 | F21: 2738.568844 | G21: 2880.197282 | H21: 2705.816751 | I21: 2835.983304 | J21: 2101.925299 | K21: 1856.565232 | L21: 1588.745163 | M21: 1455.924272 | N21: 1460.11807 | O21: 1191.890763 | P21: 1262.712575 | Q21: 1256.395769 | R21: 1446.708036 | S21: 1529.565986 | T21: 1533.705265 | U21: 1399.399193 | V21: 698.2912154 | W21: 1149.226647 | X21: 1039.58879 | Y21: 754.1750104 | Z21: 1033.913953 | AA21: 750.00226 | AB21: 556.0934036 | AC21: 525.7944035 | AD21: 533.3808002 | AE21: 541.5132631 | AF21: 549.3573806 | AG21: 557.2152549 | AH21: 567.2318317 | AI21: 577.2524544 | AJ21: 587.2768535 | AK21: 597.2333106 | AL21: 607.1910734 | AM21: 619.391904 | AN21: 631.807243 | AO21: 642.6584951 | AP21: 653.0787945 | AQ21: 663.9133753 | AR21: 675.0721266 | AS21: 686.3203816 | AT21: 697.477756 | AU21: 708.3862089 | AV21: 719.5128133 | AW21: 731.8714348 | AX21: 744.4893298 | AY21: 756.9553526 | AZ21: 768.1201212 | BA21: 779.0329686
A22: 1A4c ii | B22: Agriculture & forestry (mobile) | C22: 1561.056994 | D22: 1551.339015 | E22: 1485.159548 | F22: 1487.168913 | G22: 1407.227704 | H22: 1451.059515 | I22: 346.5775824 | J22: 353.4182605 | K22: 334.8964169 | L22: 333.8709238 | M22: 325.8538874 | N22: 329.94912 | O22: 331.5813639 | P22: 333.5395827 | Q22: 340.5294321 | R22: 34.59172644 | S22: 35.24331443 | T22: 35.86543589 | U22: 36.41626134 | V22: 35.50470085 | W22: 34.5806654 | X22: 6.966634524 | Y22: 6.802379346 | Z22: 6.761043821 | AA22: 6.421284866 | AB22: 6.678255804 | AC22: 6.756546325 | AD22: 6.702041829 | AE22: 6.639843183 | AF22: 6.529421593 | AG22: 6.411283939 | AH22: 6.42369137 | AI22: 6.45804138 | AJ22: 6.508361343 | AK22: 6.560710378 | AL22: 6.610595242 | AM22: 6.58601644 | AN22: 6.550444874 | AO22: 6.544382822 | AP22: 6.542325911 | AQ22: 6.532681979 | AR22: 6.524442104 | AS22: 6.512929832 | AT22: 6.50328658 | AU22: 6.501539001 | AV22: 6.493579909 | AW22: 6.465233927 | AX22: 6.429752212 | AY22: 6.398987943 | AZ22: 6.407134038 | BA22: 6.422905497
A23: 1A4c iii | B23: Fishing (mobile) | C23: 783.3667905 | D23: 812.450957 | E23: 744.9487335 | F23: 704.5388594 | G23: 712.9105185 | H23: 718.8437855 | I23: 671.8712915 | J23: 540.9689642 | K23: 563.6333304 | L23: 639.0286699 | M23: 802.7934121 | N23: 756.63624 | O23: 749.5533795 | P23: 701.0660156 | Q23: 593.45032 | R23: 593.74936 | S23: 595.778794 | T23: 548.181046 | U23: 246.16724 | V23: 237.60596 | W23: 235.80836 | X23: 221.86772 | Y23: 171.2728512 | Z23: 196.48796 | AA23: 179.957445 | AB23: 196.2893228 | AC23: 195.6612114 | AD23: 195.7294918 | AE23: 195.7977721 | AF23: 195.8660525 | AG23: 195.9343328 | AH23: 200.8735288 | AI23: 205.8127249 | AJ23: 210.7519209 | AK23: 215.691117 | AL23: 220.630313 | AM23: 225.498121 | AN23: 230.365929 | AO23: 235.2337369 | AP23: 240.1015449 | AQ23: 244.9693529 | AR23: 250.258984 | AS23: 255.5486151 | AT23: 260.8382462 | AU23: 266.1278772 | AV23: 271.4175083 | AW23: 277.2333164 | AX23: 283.0491244 | AY23: 288.8649324 | AZ23: 294.6807405 | BA23: 300.4965485
A25: 1A5b | B25: Other mobile (military and recreational crafts) | C25: 81.01680564 | D25: 242.5725899 | E25: 121.6369368 | F25: 118.8171158 | G25: 127.4663026 | H25: 131.1906506 | I25: 111.284916 | J25: 113.9271856 | K25: 128.9934787 | L25: 115.7792989 | M25: 101.1207491 | N25: 90.87483776 | O25: 103.0292353 | P25: 106.1861654 | Q25: 140.8863336 | R25: 150.9172675 | S25: 119.6498787 | T25: 134.0093493 | U25: 66.59544531 | V25: 72.52763167 | W25: 67.33298472 | X25: 84.51081438 | Y25: 63.61059896 | Z25: 71.69911609 | AA25: 69.73479523 | AB25: 64.32572606 | AC25: 63.02003691 | AD25: 62.28472649 | AE25: 62.28460281 | AF25: 62.28445445 | AG25: 62.28493385 | AH25: 62.28475076 | AI25: 62.28455606 | AJ25: 62.2843471 | AK25: 62.28414636 | AL25: 62.28395772 | AM25: 62.28377266 | AN25: 62.28359821 | AO25: 62.28343989 | AP25: 62.28331297 | AQ25: 62.28322887 | AR25: 62.28318456 | AS25: 62.28317875 | AT25: 62.2832188 | AU25: 62.28331342 | AV25: 62.28345687 | AW25: 62.28361829 | AX25: 62.28377297 | AY25: 62.28391891 | AZ25: 62.28405321 | BA25: 62.28417077
A27: 1B1 | B27: Fugitive emissions from solid fuels
A28: 1B2a | B28: Fugitive emissions from oil | C28: 3335.000025 | D28: 2713.000004 | E28: 3147.00004 | F28: 2526.000001 | G28: 4266 | H28: 3022.000018 | I28: 2614.000018 | J28: 1982 | K28: 1441.000039 | L28: 1359.00004 | M28: 981.0000139 | N28: 672 | O28: 332.000007 | P28: 246 | Q28: 119 | R28: 347.0000244 | S28: 755 | T28: 746 | U28: 931 | V28: 420.0000046 | W28: 981 | X28: 1149.6 | Y28: 881.2 | Z28: 517.0000161 | AA28: 397.4 | AB28: 406.200004 | AC28: 336.9 | AD28: 507.74 | AE28: 507.74 | AF28: 507.74 | AG28: 507.74 | AH28: 507.74 | AI28: 507.74 | AJ28: 507.74 | AK28: 507.74 | AL28: 507.74 | AM28: 507.74 | AN28: 507.74 | AO28: 507.74 | AP28: 507.74 | AQ28: 507.74 | AR28: 507.74 | AS28: 507.74 | AT28: 507.74 | AU28: 507.74 | AV28: 507.74 | AW28: 507.74 | AX28: 507.74 | AY28: 507.74 | AZ28: 507.74 | BA28: 507.74
A29: 1B2b | B29: Fugitive emissions from gas | C29: 0.037596676 | D29: 1.7069e-05 | E29: 0.00010946 | F29: 6.37e-07 | G29: 2.977e-06 | H29: 1.911e-06 | I29: 1.404e-06 | J29: 3.9e-08 | K29: 2.6806e-05 | L29: 8.957e-06 | M29: 0.00072787 | N29: NA | O29: 0.116547782 | P29: NA | Q29: NA | R29: 0.00926991 | S29: NA | T29: NA | U29: NA | V29: 7.9651e-05 | W29: NA | X29: NA | Y29: NA | Z29: 1.326e-06 | AA29: NA | AB29: 0.00037986 | AC29: NA | AD29: 0 | AE29: 0 | AF29: 0 | AG29: 0 | AH29: 0 | AI29: 0 | AJ29: 0 | AK29: 0 | AL29: 0 | AM29: 0 | AN29: 0 | AO29: 0 | AP29: 0 | AQ29: 0 | AR29: 0 | AS29: 0 | AT29: 0 | AU29: 0 | AV29: 0 | AW29: 0 | AX29: 0 | AY29: 0 | AZ29: 0 | BA29: 0
A30: 1B2c | B30: Fugitive emissions from venting and flaring | C30: 944.4111122 | D30: 929.019206 | E30: 938.1733988 | F30: 1192.6644 | G30: 676.5730136 | H30: 204.4854381 | I30: 220.4899763 | J30: 141.1708461 | K30: 72.60640507 | L30: 54.92161651 | M30: 54.259685 | N30: 49.5226083 | O30: 71.10076112 | P30: 99.04658724 | Q30: 56.61160668 | R30: 298.4076674 | S30: 259.4603369 | T30: 528.0132042 | U30: 437.6317017 | V30: 515.1217019 | W30: 327.5598088 | X30: 272.418712 | Y30: 175.4353934 | Z30: 166.8388715 | AA30: 399.1999821 | AB30: 126.7639819 | AC30: 128.0596747 | AD30: 199.1953712 | AE30: 199.1826296 | AF30: 199.2017421 | AG30: 198.7824032 | AH30: 198.8746756 | AI30: 199.0681153 | AJ30: 199.0913245 | AK30: 199.087502 | AL30: 199.0685265 | AM30: 199.0672524 | AN30: 199.0368658 | AO30: 199.0355916 | AP30: 199.0343175 | AQ30: 198.7464927 | AR30: 198.7452185 | AS30: 198.7439444 | AT30: 198.780621 | AU30: 198.7603715 | AV30: 198.7603715 | AW30: 198.7388477 | AX30: 198.7388477 | AY30: 198.7375735 | AZ30: 198.7375735 | BA30: 198.7362994
A32: 2A | B32: Mineral industry | C32: 2899.65254 | D32: 2457.40694 | E32: 2573.75815 | F32: 2561.41302 | G32: 3445.95399 | H32: 3092.98414 | I32: 3315.48165 | J32: 3668.26078 | K32: 3096.76356 | L32: 3094.31523 | M32: 3013.43575 | N32: 2306.31687 | O32: 2339.08446 | P32: 2140.69046 | Q32: 2674.56306 | R32: 2958.48229 | S32: 3705.19694 | T32: 3983.95706 | U32: 2597.98299 | V32: 1339.51863 | W32: 1430.79913 | X32: 1131.01209 | Y32: 1199.13575 | Z32: 1181.26562 | AA32: 628.84059 | AB32: 930.11412 | AC32: 1171.73923 | AD32: 1175.932265 | AE32: 1210.232036 | AF32: 1289.126777 | AG32: 1348.389577 | AH32: 1416.8574 | AI32: 1478.981891 | AJ32: 1506.4609 | AK32: 1536.130733 | AL32: 1568.202122 | AM32: 1582.364621 | AN32: 1586.260986 | AO32: 1600.578374 | AP32: 1608.987762 | AQ32: 1628.195518 | AR32: 1643.221294 | AS32: 1652.259548 | AT32: 1658.786537 | AU32: 1664.269123 | AV32: 1681.503351 | AW32: 1698.935292 | AX32: 1713.030103 | AY32: 1728.678392 | AZ32: 1744.024325 | BA32: 1769.800266
A33: 2B | B33: Chemical Industry | C33: 1073 | D33: 1029.385 | E33: 1143.042 | F33: 995.847 | G33: 1047 | H33: 1005 | I33: 836 | J33: 845 | K33: 620 | L33: 690 | M33: 621 | N33: 632 | O33: 594 | P33: 477 | Q33: 507 | R33: 615 | S33: 380 | T33: 96.5 | U33: 107.82 | V33: 113 | W33: 115.92 | X33: 193.04 | Y33: 229.9 | Z33: 170.5 | AA33: 140.524 | AB33: 156.28 | AC33: 35.802 | AD33: 26.91432506 | AE33: 26.91432506 | AF33: 26.91432506 | AG33: 26.91432506 | AH33: 26.91432506 | AI33: 26.91432506 | AJ33: 26.91432506 | AK33: 26.91432506 | AL33: 26.91432506 | AM33: 26.91432506 | AN33: 26.91432506 | AO33: 26.91432506 | AP33: 26.91432506 | AQ33: 26.91432506 | AR33: 26.91432506 | AS33: 26.91432506 | AT33: 26.91432506 | AU33: 26.91432506 | AV33: 26.91432506 | AW33: 26.91432506 | AX33: 26.91432506 | AY33: 26.91432506 | AZ33: 26.91432506 | BA33: 26.91432506
A34: 2C | B34: Metal industry | C34: 36.82626 | D34: 36.82626 | E34: 36.82626 | F34: 40.08756 | G34: 43.3488 | H34: 43.00722 | I34: 43.17936 | J34: 48.94986 | K34: 45.09042 | L34: 47.8521 | M34: 37.85886 | N34: 43.5192 | O34: 0 | P34: 0 | Q34: 0 | R34: 15
A35: 2D | B35: Non-energy products from fuels and solvent use
A36: 2G | B36: Other product manufacture and use | C36: 30.0022247 | D36: 27.45618885 | E36: 38.1321604 | F36: 29.8006649 | G36: 27.11671495 | H36: 35.0016004 | I36: 41.3608452 | J36: 50.62303465 | K36: 43.1340544 | L36: 51.5312759 | M36: 55.4033234 | N36: 45.6131051 | O36: 64.3980188 | P36: 78.40211525 | Q36: 71.4691737 | R36: 57.617763 | S36: 73.67127155 | T36: 50.38943895 | U36: 44.62663815 | V36: 50.3796411 | W36: 38.61866315 | X36: 33.6287352 | Y36: 54.3240908 | Z36: 55.34670035 | AA36: 45.21392335 | AB36: 67.63251805 | AC36: 34.7788325 | AD36: 51.15047471 | AE36: 51.04355881 | AF36: 50.93664291 | AG36: 50.82972701 | AH36: 50.72281111 | AI36: 50.61589521 | AJ36: 50.50897931 | AK36: 50.40206341 | AL36: 50.29514751 | AM36: 50.18823161 | AN36: 50.08131571 | AO36: 49.97439981 | AP36: 49.86748391 | AQ36: 49.76056801 | AR36: 49.65365211 | AS36: 49.54673621 | AT36: 49.43982031 | AU36: 49.33290441 | AV36: 49.22598851 | AW36: 49.11907261 | AX36: 49.01215671 | AY36: 48.90524081 | AZ36: 48.79832491 | BA36: 48.69140901
A37: 2H | B37: Other
A38: 2I | B38: Wood processing
A39: 2L | B39: Other production
A41: 3B1a | B41: Manure Management - Dairy cattle
A42: 3B1b | B42: Manure Management - Non-dairy cattle
A43: 3B2 | B43: Manure Management - Sheep
A44: 3B3 | B44: Manure Management - Swine
A45: 3B4d | B45: Manure Management - Goats
A46: 3B4e | B46: Manure Management - Horses
A47: 3B4g | B47: Manure Management - Poultry
A48: 3B4h | B48: Manure Management - Other (mainly mink)
A49: 3Da1 | B49: Inorganic N-fertilizers (includes also urea application)
A50: 3Da2a | B50: Animal manure applied to soils
A51: 3Da2b-c | B51: Sludge applied to soils
A52: 3Da3 | B52: Urine and dung deposited by grazing animals
A53: 3Dc | B53: Farm-level agricultural operations including storage, handling and transport of agricultural products
A54: 3De | B54: Cultivated crops
A55: 3F | B55: Field burning of agricultural residues | C55: 9.64898325 | D55: 10.03219087 | E55: 9.5919525 | F55: 10.47340463 | G55: 10.09989338 | H55: 11.43036225 | I55: 11.366217 | J55: 12.04909425 | K55: 15.16874513 | L55: 14.40944437 | M55: 14.19400125 | N55: 14.91652463 | O55: 12.40831912 | P55: 14.9168115 | Q55: 15.63916275 | R55: 15.86998238 | S55: 16.099425 | T55: 13.93030575 | U55: 12.90099825 | V55: 15.17717925 | W55: 11.067408 | X55: 10.954494 | Y55: 12.588993 | Z55: 13.6049895 | AA55: 13.3956855 | AB55: 11.77286805 | AC55: 11.6138475 | AD55: 12.36243622 | AE55: 12.30989109 | AF55: 12.20957766 | AG55: 12.10926423 | AH55: 11.99939714 | AI55: 11.95162884 | AJ55: 11.9134142 | AK55: 11.87042272 | AL55: 11.83220808 | AM55: 11.79399344 | AN55: 11.7557788 | AO55: 11.71756416 | AP55: 11.67934952 | AQ55: 11.64113488 | AR55: 11.64113488 | AS55: 11.64113488 | AT55: 11.64113488 | AU55: 11.64113488 | AV55: 11.64113488 | AW55: 11.64113488 | AX55: 11.64113488 | AY55: 11.64113488 | AZ55: 11.64113488 | BA55: 11.64113488
A56: 3I | B56: Agriculture other
A58: 5A | B58: Solid waste disposal on land
A59: 5B | B59: Biological treatment of waste
A60: 5C | B60: Waste incineration | C60: 4.88198525 | D60: 4.8626915 | E60: 4.96900125 | F60: 5.1824235 | G60: 5.1510655 | H60: 5.29074925 | I60: 5.2421405 | J60: 5.21766025 | K60: 5.1043001 | L60: 5.4082301 | M60: 5.46548395 | N60: 5.4872221 | O60: 5.57913895 | P60: 5.5360551 | Q60: 5.67621945 | R60: 5.91814175 | S60: 6.585888 | T60: 6.93722085 | U60: 7.0335475 | V60: 7.1044588 | W60: 7.2546667 | X60: 6.7650177 | Y60: 6.75972575 | Z60: 6.76329855 | AA60: 6.697068 | AB60: 6.8165495 | AC60: 6.996993 | AD60: 6.942629667 | AE60: 6.942629667 | AF60: 6.942629667 | AG60: 6.942629667 | AH60: 6.942629667 | AI60: 6.942629667 | AJ60: 6.942629667 | AK60: 6.942629667 | AL60: 6.942629667 | AM60: 6.942629667 | AN60: 6.942629667 | AO60: 6.942629667 | AP60: 6.942629667 | AQ60: 6.942629667 | AR60: 6.942629667 | AS60: 6.942629667 | AT60: 6.942629667 | AU60: 6.942629667 | AV60: 6.942629667 | AW60: 6.942629667 | AX60: 6.942629667 | AY60: 6.942629667 | AZ60: 6.942629667 | BA60: 6.942629667
A61: 5D | B61: Wastewater handling
A62: 5E | B62: Other | C62: 741.2090214 | D62: 764.7571443 | E62: 831.2873641 | F62: 731.5656539 | G62: 736.4248377 | H62: 849.4128055 | I62: 858.3240608 | J62: 793.3391701 | K62: 711.6663858 | L62: 763.1748684 | M62: 747.5583688 | N62: 736.24369 | O62: 713.3807308 | P62: 802.2104254 | Q62: 694.0812251 | R62: 720.9866721 | S62: 738.9454475 | T62: 793.8778182 | U62: 616.3666574 | V62: 583.1103214 | W62: 523.181357 | X62: 557.3604823 | Y62: 530.5688774 | Z62: 530.9900826 | AA62: 492.0519962 | AB62: 543.7744615 | AC62: 624.3929347 | AD62: 544.3556705 | AE62: 544.3556705 | AF62: 544.3556705 | AG62: 544.3556705 | AH62: 544.3556705 | AI62: 544.3556705 | AJ62: 544.3556705 | AK62: 544.3556705 | AL62: 544.3556705 | AM62: 544.3556705 | AN62: 544.3556705 | AO62: 544.3556705 | AP62: 544.3556705 | AQ62: 544.3556705 | AR62: 544.3556705 | AS62: 544.3556705 | AT62: 544.3556705 | AU62: 544.3556705 | AV62: 544.3556705 | AW62: 544.3556705 | AX62: 544.3556705 | AY62: 544.3556705 | AZ62: 544.3556705 | BA62: 544.3556705
B63: Total | C63: =SUM(C3:C62) -> 177932.8785 | D63: 238604.3238 | E63: 184051.6185 | F63: 149105.0432 | G63: 151517.1393 | H63: 145662.0097 | I63: 176049.1885 | J63: 104307.2272 | K63: 80493.90058 | L63: 59516.78311 | M63: 32586.93268 | N63: 29943.23621 | O63: 28543.16194 | P63: 35415.66697 | Q63: 28868.42852 | R63: 26211.63656 | S63: 30250.49743 | T63: 27243.90561 | U63: 21071.33709 | V63: 15493.95899 | W63: 15398.67125 | X63: 14085.10461 | Y63: 12435.77266 | Z63: 12710.82823 | AA63: 10535.05061 | AB63: 9715.793973 | AC63: 10239.68305 | AD63: 10844.2969 | AE63: 10865.48308 | AF63: 10812.02284 | AG63: 10726.81979 | AH63: 10933.59016 | AI63: 11078.88385 | AJ63: 11434.34025 | AK63: 11507.01982 | AL63: 11547.60412 | AM63: 11664.46306 | AN63: 11909.59552 | AO63: 12016.48503 | AP63: 12097.25928 | AQ63: 12216.51856 | AR63: 12275.56735 | AS63: 12339.75418 | AT63: 12432.53749 | AU63: 12491.21296 | AV63: 12615.48737 | AW63: =SUM(AW3:AW62) -> 12783.33123 | AX63: 12881.46438 | AY63: 12965.44282 | AZ63: 13082.47122 | BA63: 13223.89468
B66: Reduction since 2005 | S66: =($R$63-S63)/$R$63 -> -0.1540865582 | T66: -0.03938209045 | U66: 0.1961075365 | V66: 0.4088900572 | W66: 0.4125253793 | X66: 0.4626392526 | Y66: 0.5255629068 | Z66: 0.5150692634 | AA66: 0.598077343 | AB66: 0.6293327985 | AC66: 0.6093459093 | AD66: 0.5862792897 | AE66: 0.5854710156 | AF66: 0.587510577 | AG66: 0.5907611581 | AH66: 0.5828726629 | AI66: 0.5773295642 | AJ66: 0.5637685491 | AK66: 0.5609957511 | AL66: 0.5594474199 | AM66: 0.5549891349 | AN66: 0.5456370877 | AO66: 0.5415591467 | AP66: 0.5384775289 | AQ66: 0.5339276687 | AR66: 0.5316748988 | AS66: 0.5292261072 | AT66: 0.5256863318 | AU66: 0.5234478043 | AV66: 0.5187066119 | AW66: =($R$63-AW63)/$R$63 -> 0.5123032018 | AX66: 0.5085593244 | AY66: 0.5053554633 | AZ66: 0.5008907136 | BA66: 0.4954952679
A68: 1A3a | B68: Civil Aviation (Domestic Cruise) | C68: 48.32427757 | D68: 45.29903634 | E68: 44.96582931 | F68: 41.6875587 | G68: 43.54286273 | H68: 44.33960326 | I68: 46.73975474 | J68: 45.20136317 | K68: 41.6270982 | L68: 39.93648061 | M68: 37.14263599 | N68: 37.72624316 | O68: 31.97890133 | P68: 32.30518414 | Q68: 31.05416519 | R68: 32.96591364 | S68: 34.74383561 | T68: 38.94267327 | U68: 40.04577906 | V68: 37.89637425 | W68: 38.93299244 | X68: 37.08095934 | Y68: 32.32283451 | Z68: 31.36608781 | AA68: 31.18284089 | AB68: 28.87693064 | AC68: 32.90633245 | AD68: 30.42230024 | AE68: 30.6885907 | AF68: 30.94751084 | AG68: 31.0858275 | AH68: 31.27895868 | AI68: 31.4797817 | AJ68: 31.67320547 | AK68: 31.86879681 | AL68: 32.0639893 | AM68: 32.32087969 | AN68: 32.58531428 | AO68: 32.84479861 | AP68: 33.10419395 | AQ68: 33.38087841 | AR68: 33.37534916 | AS68: 33.37032052 | AT68: 33.35899063 | AU68: 33.34421265 | AV68: 33.34904601 | AW68: 33.33547043 | AX68: 33.32610383 | AY68: 33.31416877 | AZ68: 33.30008988 | BA68: 33.3003383
B69: Civil Aviation (International Cruise) | C69: 482.7926165 | D69: 438.2082105 | E69: 451.6705994 | F69: 440.1201421 | G69: 488.7950071 | H69: 497.7024542 | I69: 519.3001368 | J69: 529.2906229 | K69: 578.7993866 | L69: 615.7070277 | M69: 631.7159071 | N69: 649.4526178 | O69: 551.5634726 | P69: 578.075439 | Q69: 664.1633982 | R69: 706.4910874 | S69: 715.2221 | T69: 739.3043857 | U69: 743.5077113 | V69: 652.1795646 | W69: 679.5469561 | X69: 700.2471156 | Y69: 705.5687697 | Z69: 696.5159602 | AA69: 761.15156 | AB69: 742.3244866 | AC69: 766.1515874 | AD69: 803.0256328 | AE69: 807.5881314 | AF69: 811.6837049 | AG69: 815.049261 | AH69: 819.474061 | AI69: 824.5237704 | AJ69: 828.8467001 | AK69: 833.0344354 | AL69: 837.1178419 | AM69: 842.532716 | AN69: 848.4846657 | AO69: 853.7567407 | AP69: 858.826179 | AQ69: 865.4786538 | AR69: 866.2104692 | AS69: 867.0796319 | AT69: 867.3628598 | AU69: 867.3396455 | AV69: 869.5463105 | AW69: 869.7033398 | AX69: 870.5190967 | AY69: 871.116437 | AZ69: 871.5261456 | BA69: 873.712525
A70: 1A3d | B70: Navigation, international | C70: 41317.28414 | D70: 33276.56079 | E70: 30083.9967 | F70: 58492.07527 | G70: 58965.32408 | H70: 65049.07396 | I70: 61075.28492 | J70: 55822.39028 | K70: 46755.66618 | L70: 49281.33088 | M70: 55181.31682 | N70: 43829.30801 | O70: 30035.51865 | P70: 30974.53515 | Q70: 26531.20593 | R70: 34274.81608 | S70: 50408.89188 | T70: 25648.98117 | U70: 19322.39468 | V70: 7378.550714 | W70: 8197.209437 | X70: 8850.276251 | Y70: 5133.111792 | Z70: 7137.5255 | AA70: 8762.722078 | AB70: 1442.097986 | AC70: 1414.014132 | AD70: 1235.005893 | AE70: 1235.00543 | AF70: 1235.004967 | AG70: 1235.004504 | AH70: 1235.004041 | AI70: 1235.003578 | AJ70: 1235.003115 | AK70: 1235.002652 | AL70: 1235.002189 | AM70: 1235.001726 | AN70: 1235.001263 | AO70: 1235.0008 | AP70: 1235.000337 | AQ70: 1234.999874 | AR70: 1234.998597 | AS70: 1234.99732 | AT70: 1234.996043 | AU70: 1234.994766 | AV70: 1235.374715 | AW70: 1235.373438 | AX70: 1235.372161 | AY70: 1235.370884 | AZ70: 1235.369607 | BA70: 1235.36833

Sheet NOx
A1: NOx (tons)
C2: 1990 | D2: 1991 | E2: 1992 | F2: 1993 | G2: 1994 | H2: 1995 | I2: 1996 | J2: 1997 | K2: 1998 | L2: 1999 | M2: 2000 | N2: 2001 | O2: 2002 | P2: 2003 | Q2: 2004 | R2: 2005 | S2: 2006 | T2: 2007 | U2: 2008 | V2: 2009 | W2: 2010 | X2: 2011 | Y2: 2012 | Z2: 2013 | AA2: 2014 | AB2: 2015 | AC2: 2016 | AD2: 2017 | AE2: 2018 | AF2: 2019 | AG2: 2020 | AH2: 2021 | AI2: 2022 | AJ2: 2023 | AK2: 2024 | AL2: 2025 | AM2: 2026 | AN2: 2027 | AO2: 2028 | AP2: 2029 | AQ2: 2030 | AR2: 2031 | AS2: 2032 | AT2: 2033 | AU2: 2034 | AV2: 2035 | AW2: 2036 | AX2: 2037 | AY2: 2038 | AZ2: 2039 | BA2: 2040
A3: 1A1a | B3: Public power and district heating plants | C3: 90698.20005 | D3: 131997.4442 | E3: 91023.99588 | F3: 94167.4765 | G3: 98301.71956 | H3: 83479.47604 | I3: 120215.8566 | J3: 78833.03036 | K3: 64002.04879 | L3: 51875.79692 | M3: 42821.84507 | N3: 42690.33603 | O3: 44250.13332 | P3: 54978.94291 | Q3: 43401.31334 | R3: 37756.73226 | S3: 41972.65939 | T3: 33273.79625 | U3: 24432.09676 | V3: 20045.48379 | W3: 18992.81347 | X3: 16507.29768 | Y3: 14020.91133 | Z3: 13443.80629 | AA3: 10958.34159 | AB3: 10152.01271 | AC3: 11023.45305 | AD3: 11308.30672 | AE3: 10854.99738 | AF3: 10602.47386 | AG3: 10549.15513 | AH3: 10662.64271 | AI3: 10710.19729 | AJ3: 10985.21165 | AK3: 10833.89856 | AL3: 10626.132 | AM3: 10489.48273 | AN3: 10793.50643 | AO3: 10746.09025 | AP3: 10670.92847 | AQ3: 10651.15332 | AR3: 10558.83973 | AS3: 10461.90651 | AT3: 10495.48162 | AU3: 10442.81615 | AV3: 10457.8694 | AW3: 10624.85601 | AX3: 10664.13357 | AY3: 10601.04288 | AZ3: 10695.48743 | BA3: 10826.14866
A4: 1A1b | B4: Petroleum refining plants | C4: 1385.935705 | D4: 1568.770708 | E4: 1868.157375 | F4: 1948.343879 | G4: 1813.215665 | H4: 1835.516258 | I4: 2423.779332 | J4: 1683.396168 | K4: 1478.289841 | L4: 1680.809797 | M4: 1554.919652 | N4: 1867.334403 | O4: 1721.228673 | P4: 1731.44467 | Q4: 1671.699612 | R4: 1287.718856 | S4: 1521.693311 | T4: 1476.570623 | U4: 1365.831443 | V4: 1578.136556 | W4: 1543.527203 | X4: 1295 | Y4: 1353.425127 | Z4: 1082.537347 | AA4: 1082 | AB4: 1153.424 | AC4: 1067 | AD4: 1148.683749 | AE4: 1148.683749 | AF4: 1148.683749 | AG4: 1148.683749 | AH4: 1148.683749 | AI4: 1148.683749 | AJ4: 1148.683749 | AK4: 1148.683749 | AL4: 1148.683749 | AM4: 1148.683749 | AN4: 1148.683749 | AO4: 1148.683749 | AP4: 1148.683749 | AQ4: 1148.683749 | AR4: 1148.683749 | AS4: 1148.683749 | AT4: 1148.683749 | AU4: 1148.683749 | AV4: 1148.683749 | AW4: 1148.683749 | AX4: 1148.683749 | AY4: 1148.683749 | AZ4: 1148.683749 | BA4: 1148.683749
A5: 1A1c | B5: Oil and gas extraction | C5: 2370.571091 | D5: 2425.766953 | E5: 2779.674188 | F5: 2808.870007 | G5: 3084.814618 | H5: 3248.265633 | I5: 3795.381264 | J5: 4964.147015 | K5: 5484.606772 | L5: 5959.955925 | M5: 6304.193198 | N5: 6161.775854 | O5: 6605.750576 | P5: 6615.590368 | Q5: 6827.398401 | R5: 6998.923196 | S5: 7156.993282 | T5: 7094.143788 | U5: 7275.220658 | V5: 6836.532355 | W5: 6769.99198 | X5: 6057.963914 | Y5: 5616.215137 | Z5: 4987.327556 | AA5: 4648.389388 | AB5: 4936.975543 | AC5: 4676.6763 | AD5: 4551.75331 | AE5: 4441.043047 | AF5: 4441.043047 | AG5: 2831.019586 | AH5: 3305.931469 | AI5: 4030.202537 | AJ5: 4122.363157 | AK5: 4106.547405 | AL5: 4130.84603 | AM5: 4258.268074 | AN5: 4314.122184 | AO5: 4402.325495 | AP5: 4531.474242 | AQ5: 3944.486078 | AR5: 4062.290329 | AS5: 4126.025643 | AT5: 4325.49808 | AU5: 4312.634289 | AV5: 4336.331249 | AW5: 4204.975959 | AX5: 4135.60783 | AY5: 3894.792976 | AZ5: 3814.086308 | BA5: 3671.245992
A7: 1A2a-f i | B7: Combustion in manufacturing industry | C7: 13809.38423 | D7: 15737.69296 | E7: 15948.09844 | F7: 15844.7894 | G7: 15612.34014 | H7: 15580.78957 | I7: 16525.22738 | J7: 16799.95803 | K7: 16899.36255 | L7: 16030.31195 | M7: 16444.62395 | N7: 16242.01203 | O7: 14716.03739 | P7: 14070.2892 | Q7: 14120.01965 | R7: 13478.64524 | S7: 13291.92987 | T7: 11574.15058 | U7: 9980.316494 | V7: 7627.292668 | W7: 6374.38325 | X7: 5992.247207 | Y7: 5069.778248 | Z7: 4685.703055 | AA7: 4608.009239 | AB7: 5005.615746 | AC7: 5353.141358 | AD7: 4352.284098 | AE7: 4342.470793 | AF7: 4322.241412 | AG7: 4301.544574 | AH7: 4420.986893 | AI7: 4539.980906 | AJ7: 4658.369635 | AK7: 4773.317383 | AL7: 4888.742633 | AM7: 5002.445407 | AN7: 5116.834577 | AO7: 5225.569536 | AP7: 5331.957533 | AQ7: 5437.940819 | AR7: 5525.734706 | AS7: 5613.592718 | AT7: 5701.016887 | AU7: 5787.596706 | AV7: 5874.60424 | AW7: 5965.692169 | AX7: 6057.10181 | AY7: 6147.762377 | AZ7: 6234.806011 | BA7: 6320.969416
A8: 1A2f ii | B8: Industry - Other (mobile) | C8: 7864.335819 | D8: 7856.780611 | E8: 7832.425617 | F8: 7800.099267 | G8: 7788.460881 | H8: 7819.077664 | I8: 7831.828036 | J8: 7864.789668 | K8: 7912.17336 | L8: 7876.470763 | M8: 7861.930484 | N8: 7864.956112 | O8: 7803.97951 | P8: 7693.835849 | Q8: 7503.454479 | R8: 7413.948541 | S8: 7424.406825 | T8: 7392.784618 | U8: 7142.966813 | V8: 5225.935558 | W8: 6364.068752 | X8: 5921.403092 | Y8: 5534.499176 | Z8: 5222.21365 | AA8: 4663.2968 | AB8: 4375.988434 | AC8: 4009.277524 | AD8: 3629.860938 | AE8: 3290.602072 | AF8: 3009.321017 | AG8: 2781.43582 | AH8: 2618.357127 | AI8: 2469.927457 | AJ8: 2333.819229 | AK8: 2235.372823 | AL8: 2178.458827 | AM8: 2103.857142 | AN8: 2041.000163 | AO8: 2007.824647 | AP8: 1998.238952 | AQ8: 2000.854898 | AR8: 1982.360124 | AS8: 1966.110343 | AT8: 1955.600224 | AU8: 1947.959065 | AV8: 1945.388063 | AW8: 1942.901758 | AX8: 1940.463683 | AY8: 1939.424058 | AZ8: 1938.903503 | BA8: 1938.395617
A10: 1A3a | B10: Civil Aviation (Domestic LTO) | C10: 447.9413814 | D10: 443.0209228 | E10: 448.0805115 | F10: 440.4015704 | G10: 454.0312915 | H10: 484.6721276 | I10: 512.0759536 | J10: 500.2610829 | K10: 413.8040476 | L10: 378.9695196 | M10: 351.0268406 | N10: 312.8811658 | O10: 329.3727472 | P10: 318.9692243 | Q10: 399.5162581 | R10: 371.7751791 | S10: 305.8268221 | T10: 293.4180876 | U10: 232.3021692 | V10: 225.8184861 | W10: 235.3951792 | X10: 220.7780558 | Y10: 222.1670191 | Z10: 219.5715641 | AA10: 183.2417673 | AB10: 179.5220254 | AC10: 190.4324474 | AD10: 192.2143715 | AE10: 193.9494196 | AF10: 195.6437059 | AG10: 196.7367326 | AH10: 198.186593 | AI10: 199.6787915 | AJ10: 201.1391627 | AK10: 202.6157628 | AL10: 204.095581 | AM10: 205.9760441 | AN10: 207.900844 | AO10: 209.8075063 | AP10: 211.7200213 | AQ10: 213.7248707 | AR10: 213.8989097 | AS10: 214.0742385 | AT10: 214.2169368 | AU10: 214.3413153 | AV10: 214.5623244 | AW10: 214.6904721 | AX10: 214.838506 | AY10: 214.9727906 | AZ10: 215.0955816 | BA10: 215.2889428
A11: 1A3a | B11: Civil Aviation (International LTO) | C11: 904.7994791 | D11: 835.5045482 | E11: 879.1068798 | F11: 925.2509793 | G11: 926.7546415 | H11: 983.0168033 | I11: 1078.664495 | J11: 1165.854858 | K11: 1202.164078 | L11: 1254.938933 | M11: 1293.186137 | N11: 1255.147588 | O11: 1191.635838 | P11: 1229.78213 | Q11: 1298.820328 | R11: 1302.296809 | S11: 1287.250658 | T11: 1272.208641 | U11: 1195.962482 | V11: 1042.379904 | W11: 1103.354905 | X11: 1178.54029 | Y11: 1225.460491 | Z11: 1296.20501 | AA11: 1372.383487 | AB11: 1404.814837 | AC11: 1500.088734 | AD11: 1508.931724 | AE11: 1517.504924 | AF11: 1525.200744 | AG11: 1531.524819 | AH11: 1539.839274 | AI11: 1549.327971 | AJ11: 1557.451007 | AK11: 1565.320004 | AL11: 1572.992962 | AM11: 1583.167824 | AN11: 1594.351883 | AO11: 1604.258417 | AP11: 1613.784186 | AQ11: 1626.284572 | AR11: 1627.659695 | AS11: 1629.292903 | AT11: 1629.825104 | AU11: 1629.781483 | AV11: 1633.927935 | AW11: 1634.223002 | AX11: 1635.755856 | AY11: 1636.878293 | AZ11: 1637.64816 | BA11: 1641.756493
A12: 1A3b | B12: Road exhaust | C12: 111284.3505 | D12: 114059.3798 | E12: 112951.5696 | F12: 110567.0734 | G12: 110843.7928 | H12: 105681.4896 | I12: 101239.9723 | J12: 97455.40904 | K12: 93291.919 | L12: 89327.58128 | M12: 83978.38943 | N12: 81199.99174 | O12: 78069.579 | P12: 77327.44971 | Q12: 75513.63615 | R12: 71918.82844 | S12: 69904.32616 | T12: 68637.13303 | U12: 61626.69285 | V12: 54128.56191 | W12: 51858.55916 | X12: 49599.62698 | Y12: 45247.92347 | Z12: 41980.37211 | AA12: 40211.17985 | AB12: 37784.61505 | AC12: 35094.58118 | AD12: 31833.3531 | AE12: 29520.26719 | AF12: 27766.30097 | AG12: 26119.96788 | AH12: 24520.62722 | AI12: 22886.08049 | AJ12: 21385.9406 | AK12: 20006.55149 | AL12: 18739.49091 | AM12: 17593.16299 | AN12: 16529.64905 | AO12: 15542.10293 | AP12: 14628.40653 | AQ12: 13784.80467 | AR12: 13003.16963 | AS12: 12275.25374 | AT12: 11607.48874 | AU12: 10983.85917 | AV12: 10425.79016 | AW12: 9934.888121 | AX12: 9520.430218 | AY12: 9161.425722 | AZ12: 8854.094896 | BA12: 8576.848505
A13: 1A3b | B13: Road non-exhaust
A14: 1A3c | B14: Railways | C14: 4912.786442 | D14: 4994.978105 | E14: 5283.986405 | F14: 5484.57748 | G14: 4971.079217 | H14: 5014.795537 | I14: 4976.870997 | J14: 4845.820799 | K14: 4088.939683 | L14: 3729.877546 | M14: 3726.632212 | N14: 3396.172222 | O14: 3395.728295 | P14: 3539.840395 | Q14: 3478.383873 | R14: 3724.160897 | S14: 3542.191733 | T14: 3555.085999 | U14: 2919.967189 | V14: 2603.184173 | W14: 2817.859843 | X14: 2500.550246 | Y14: 2530.885372 | Z14: 2360.700421 | AA14: 2231.66548 | AB14: 2008.661166 | AC14: 2048.440818 | AD14: 1561.680647 | AE14: 1442.321632 | AF14: 1324.151201 | AG14: 1207.169354 | AH14: 1200.638953 | AI14: 1194.108552 | AJ14: 1187.578151 | AK14: 1051.055931 | AL14: 950.4947892 | AM14: 943.4632175 | AN14: 388.3362679 | AO14: 380.0839905 | AP14: 371.831713 | AQ14: 363.5794356 | AR14: 363.5794356 | AS14: 363.5794356 | AT14: 363.5794356 | AU14: 363.5794356 | AV14: 363.5794356 | AW14: 363.5794356 | AX14: 363.5794356 | AY14: 363.5794356 | AZ14: 363.5794356 | BA14: 363.5794356
A15: 1A3d | B15: Navigation | C15: 12366.80709 | D15: 13903.06726 | E15: 13515.57128 | F15: 11876.44621 | G15: 10821.86838 | H15: 11392.59375 | I15: 12655.89868 | J15: 11846.28139 | K15: 10625.59469 | L15: 8557.928186 | M15: 9884.4345 | N15: 10749.61953 | O15: 12493.13 | P15: 12536.17539 | Q15: 10809.14356 | R15: 12765.07317 | S15: 12105.71852 | T15: 10678.91956 | U15: 13767.99395 | V15: 13229.62102 | W15: 11638.15836 | X15: 11513.35431 | Y15: 12200.64785 | Z15: 12614.13028 | AA15: 10317.2675 | AB15: 11436.35863 | AC15: 12894.66482 | AD15: 12714.96963 | AE15: 12658.04 | AF15: 12593.67011 | AG15: 12522.11824 | AH15: 12262.0708 | AI15: 11997.92337 | AJ15: 11729.82153 | AK15: 11457.93645 | AL15: 11177.39521 | AM15: 10833.1279 | AN15: 10550.1821 | AO15: 10121.95854 | AP15: 9722.669421 | AQ15: 9465.506716 | AR15: 9160.79129 | AS15: 8861.759142 | AT15: 7846.817825 | AU15: 7559.213386 | AV15: 6992.314524 | AW15: 6716.190707 | AX15: 6445.852836 | AY15: 6181.321756 | AZ15: 5922.618413 | BA15: 5669.763852
A17: 1A4a i | B17: Commercial and institutional plants | C17: 1455.398214 | D17: 1389.068878 | E17: 1407.387694 | F17: 1470.644925 | G17: 1432.845332 | H17: 1575.236465 | I17: 1652.917147 | J17: 1676.328241 | K17: 1572.813504 | L17: 1632.185835 | M17: 1354.626115 | N17: 1239.545492 | O17: 1210.329547 | P17: 1377.066201 | Q17: 1118.946858 | R17: 1083.21512 | S17: 1056.802442 | T17: 943.7914383 | U17: 957.9113976 | V17: 942.1167836 | W17: 919.9831701 | X17: 757.4064168 | Y17: 796.7405281 | Z17: 791.8928839 | AA17: 673.2106773 | AB17: 683.0796103 | AC17: 718.7415989 | AD17: 747.6523077 | AE17: 734.9274752 | AF17: 721.9501015 | AG17: 709.9451936 | AH17: 712.5375061 | AI17: 717.1260048 | AJ17: 722.6173338 | AK17: 727.1328719 | AL17: 732.1918097 | AM17: 739.3049255 | AN17: 746.5329033 | AO17: 753.4603432 | AP17: 760.2092674 | AQ17: 766.2349212 | AR17: 772.0475753 | AS17: 777.8059103 | AT17: 783.3696776 | AU17: 788.7878706 | AV17: 794.0686433 | AW17: 801.6836591 | AX17: 809.1160364 | AY17: 816.4013662 | AZ17: 823.5867358 | BA17: 830.6798835
A18: 1A4a ii | B18: Commercial and institutional (mobile) | C18: 341.6467539 | D18: 344.4995657 | E18: 348.0107713 | F18: 350.6926242 | G18: 353.1495602 | H18: 355.3147167 | I18: 357.3109248 | J18: 359.2800907 | K18: 361.2443498 | L18: 351.1144769 | M18: 340.9646555 | N18: 331.9940014 | O18: 322.995714 | P18: 312.1221829 | Q18: 304.0880411 | R18: 298.7124316 | S18: 292.3221671 | T18: 276.17727 | U18: 254.7337173 | V18: 235.2942877 | W18: 212.8520713 | X18: 195.9586777 | Y18: 182.0482892 | Z18: 174.5768177 | AA18: 159.4593908 | AB18: 147.6051977 | AC18: 137.7399631 | AD18: 130.2705422 | AE18: 122.6026049 | AF18: 110.7124117 | AG18: 97.02837175 | AH18: 87.90379818 | AI18: 80.35466163 | AJ18: 73.85717012 | AK18: 69.50778872 | AL18: 69.55157824 | AM18: 69.55066749 | AN18: 69.55066527 | AO18: 69.55066527 | AP18: 69.55066527 | AQ18: 69.55066527 | AR18: 69.55066527 | AS18: 69.55066527 | AT18: 69.55066527 | AU18: 69.55066527 | AV18: 69.55066527 | AW18: 69.55066527 | AX18: 69.55066527 | AY18: 69.55066527 | AZ18: 69.55066527 | BA18: 69.55066527
A19: 1A4b i | B19: Residential plants | C19: 4812.940028 | D19: 5113.50499 | E19: 4782.575956 | F19: 5324.423124 | G19: 4929.497674 | H19: 4893.548701 | I19: 5137.974445 | J19: 4767.931628 | K19: 4613.433299 | L19: 4470.862964 | M19: 4261.066583 | N19: 4555.93779 | O19: 4424.868198 | P19: 4553.68684 | Q19: 4535.620498 | R19: 4733.115739 | S19: 4796.083915 | T19: 5010.877787 | U19: 4890.461548 | V19: 4852.490561 | W19: 5241.736299 | X19: 4608.357203 | Y19: 4383.98499 | Z19: 4377.604268 | AA19: 3982.576302 | AB19: 4415.881133 | AC19: 4573.400336 | AD19: 4459.66025 | AE19: 4375.513443 | AF19: 4291.803138 | AG19: 4211.059772 | AH19: 4132.48713 | AI19: 4050.213304 | AJ19: 3970.506169 | AK19: 3894.465255 | AL19: 3817.222553 | AM19: 3708.304123 | AN19: 3603.532005 | AO19: 3499.358922 | AP19: 3397.728365 | AQ19: 3299.537005 | AR19: 3234.020396 | AS19: 3170.683254 | AT19: 3106.461721 | AU19: 3041.355797 | AV19: 2978.060844 | AW19: 2953.721053 | AX19: 2929.381262 | AY19: 2905.041471 | AZ19: 2880.70168 | BA19: 2856.361889
A20: 1A4b ii | B20: Residential (mobile) | C20: 18.17617643 | D20: 19.24446696 | E20: 20.98077269 | F20: 22.46324436 | G20: 23.66794114 | H20: 24.69178312 | I20: 25.46758854 | J20: 26.03037859 | K20: 26.5084901 | L20: 26.96312992 | M20: 27.40608575 | N20: 27.90891958 | O20: 28.51923396 | P20: 29.21660065 | Q20: 29.96942494 | R20: 31.29391776 | S20: 34.2563215 | T20: 37.53212029 | U20: 40.10155131 | V20: 39.86815642 | W20: 38.28272177 | X20: 37.72345093 | Y20: 37.81879817 | Z20: 37.66130957 | AA20: 37.10876155 | AB20: 36.58544242 | AC20: 36.13606029 | AD20: 35.8456671 | AE20: 35.85049439 | AF20: 34.70645636 | AG20: 32.69073405 | AH20: 31.05835983 | AI20: 29.77613079 | AJ20: 28.76623533 | AK20: 28.18268106 | AL20: 27.96382936 | AM20: 27.88447254 | AN20: 27.84599341 | AO20: 27.82803238 | AP20: 27.82477074 | AQ20: 27.82405669 | AR20: 27.82402551 | AS20: 27.82402551 | AT20: 27.82402551 | AU20: 27.82402551 | AV20: 27.82402551 | AW20: 27.82402551 | AX20: 27.82402551 | AY20: 27.82402551 | AZ20: 27.82402551 | BA20: 27.82402551
A21: 1A4c i | B21: Plants in agriculture, forestry and aquaculture | C21: 1393.2286 | D21: 1505.98891 | E21: 1431.473929 | F21: 1362.203363 | G21: 1423.934453 | H21: 1592.357078 | I21: 1813.080638 | J21: 1803.41117 | K21: 1848.18755 | L21: 1777.294301 | M21: 1672.017419 | N21: 1538.249567 | O21: 1515.280998 | P21: 1492.775776 | Q21: 1452.327595 | R21: 1361.248374 | S21: 1182.310051 | T21: 1013.806676 | U21: 946.3069311 | V21: 857.7922594 | W21: 968.1055804 | X21: 868.27373 | Y21: 733.4433816 | Z21: 729.2902952 | AA21: 640.7248004 | AB21: 595.4721018 | AC21: 613.8565758 | AD21: 596.8411745 | AE21: 604.0224012 | AF21: 609.3638728 | AG21: 614.718549 | AH21: 628.6019967 | AI21: 642.4906176 | AJ21: 656.3684314 | AK21: 669.7205801 | AL21: 683.1563128 | AM21: 706.1647807 | AN21: 729.6876933 | AO21: 749.5994953 | AP21: 768.4490999 | AQ21: 788.1017944 | AR21: 811.636849 | AS21: 835.366856 | AT21: 858.8832008 | AU21: 881.8276305 | AV21: 905.2551076 | AW21: 935.4539821 | AX21: 966.233381 | AY21: 996.6638919 | AZ21: 1024.147049 | BA21: 1051.055374
A22: 1A4c ii | B22: Agriculture & forestry (mobile) | C22: 12677.2586 | D22: 12927.98288 | E22: 12624.97472 | F22: 12884.08259 | G22: 12459.18981 | H22: 13176.40085 | I22: 13138.22971 | J22: 13753.19517 | K22: 13272.6262 | L22: 13409.07447 | M22: 13206.55148 | N22: 13436.95008 | O22: 13176.30525 | P22: 12781.69223 | Q22: 12510.23594 | R22: 12087.82942 | S22: 11587.47508 | T22: 10968.1641 | U22: 10340.98413 | V22: 9607.927731 | W22: 8979.643736 | X22: 8328.859972 | Y22: 7704.410422 | Z22: 7160.418989 | AA22: 6339.888569 | AB22: 6057.581925 | AC22: 5661.036006 | AD22: 5160.261176 | AE22: 4701.569369 | AF22: 4226.724233 | AG22: 3769.934325 | AH22: 3396.326453 | AI22: 3135.882249 | AJ22: 2921.569888 | AK22: 2718.416032 | AL22: 2496.957886 | AM22: 2236.729251 | AN22: 1990.850964 | AO22: 1821.80307 | AP22: 1659.825272 | AQ22: 1492.1202 | AR22: 1348.587318 | AS22: 1250.689479 | AT22: 1177.921464 | AU22: 1114.19647 | AV22: 1045.139176 | AW22: 971.1127423 | AX22: 900.0419365 | AY22: 837.4243541 | AZ22: 809.2467495 | BA22: 786.2747937
A23: 1A4c iii | B23: Fishing (mobile) | C23: 8798.287732 | D23: 9288.222244 | E23: 8673.311428 | F23: 8358.196894 | G23: 8622.30862 | H23: 8868.336139 | I23: 8458.267411 | J23: 6952.38988 | K23: 7398.001208 | L23: 8570.281069 | M23: 10929.87182 | N23: 10443.7227 | O23: 10474.47782 | P23: 9904.636735 | Q23: 8464.180881 | R23: 8536.469663 | S23: 8620.469617 | T23: 7969.27854 | U23: 7179.017509 | V23: 6938.173265 | W23: 6913.082656 | X23: 6421.659421 | Y23: 4890.22831 | Z23: 5532.818366 | AA23: 4995.845582 | AB23: 5370.316632 | AC23: 5273.306987 | AD23: 5190.843837 | AE23: 5103.800699 | AF23: 5012.121927 | AG23: 4930.674711 | AH23: 4776.31715 | AI23: 4606.776853 | AJ23: 4420.448788 | AK23: 4217.525219 | AL23: 3998.245753 | AM23: 3761.708564 | AN23: 3510.652848 | AO23: 3245.044412 | AP23: 2964.848831 | AQ23: 2670.031438 | AR23: 2610.676039 | AS23: 2545.958386 | AT23: 2475.093462 | AU23: 2398.171424 | AV23: 2315.296699 | AW23: 2230.823566 | AX23: 2140.724787 | AY23: 2045.000363 | AZ23: 1943.650294 | BA23: 1836.674579
A25: 1A5b | B25: Other mobile (military and recreational crafts) | C25: 915.5160362 | D25: 2233.569648 | E25: 1451.914 | F25: 1775.650951 | G25: 1805.688627 | H25: 2274.735634 | I25: 1570.133791 | J25: 1825.598563 | K25: 2057.370026 | L25: 1819.655068 | M25: 1359.962528 | N25: 1550.047174 | O25: 1398.769548 | P25: 1503.748034 | Q25: 2317.375023 | R25: 2361.2802 | S25: 1647.221298 | T25: 1796.616706 | U25: 1514.022405 | V25: 1747.404583 | W25: 1457.799826 | X25: 1788.828086 | Y25: 1465.627515 | Z25: 1520.849313 | AA25: 1459.504495 | AB25: 1298.01538 | AC25: 1302.102116 | AD25: 1231.109019 | AE25: 1179.405181 | AF25: 1129.994624 | AG25: 1081.585659 | AH25: 1047.705365 | AI25: 1013.577548 | AJ25: 980.270699 | AK25: 948.1486687 | AL25: 917.1116434 | AM25: 886.9347637 | AN25: 861.2781192 | AO25: 836.1682405 | AP25: 811.56283 | AQ25: 787.464949 | AR25: 763.8467512 | AS25: 759.9687343 | AT25: 756.5809275 | AU25: 753.6023914 | AV25: 751.1003498 | AW25: 749.3754222 | AX25: 742.1695745 | AY25: 745.8977531 | AZ25: 746.2524295 | BA25: 745.3358219
A27: 1B1 | B27: Fugitive emissions from solid fuels
A28: 1B2a | B28: Fugitive emissions from oil | C28: 0.00237445596 | D28: 0.00037340709 | E28: 0.00382108725 | F28: 6.261069e-05 | G28: 1.31241e-05 | H28: 0.00172369248 | I28: 0.00171993975 | J28: 3.433545e-05 | K28: 0.00372562203 | L28: 0.00378898179 | M28: 0.00131241 | N28: NA | O28: 0.00066518892 | P28: NA | Q28: NA | R28: 0.00231036312 | S28: NA | T28: NA | U28: NA | V28: 0.00043117404 | W28: NA | X28: NA | Y28: NA | Z28: 0.00152740908 | AA28: NA | AB28: 0.00037884 | AC28: 0 | AD28: 0 | AE28: 0 | AF28: 0 | AG28: 0 | AH28: 0 | AI28: 0 | AJ28: 0 | AK28: 0 | AL28: 0 | AM28: 0 | AN28: 0 | AO28: 0 | AP28: 0 | AQ28: 0 | AR28: 0 | AS28: 0 | AT28: 0 | AU28: 0 | AV28: 0 | AW28: 0 | AX28: 0 | AY28: 0 | AZ28: 0 | BA28: 0
A29: 1B2b | B29: Fugitive emissions from gas | C29: 3.55722396 | D29: 0.00161499 | E29: 0.0103566 | F29: 6.027e-05 | G29: 0.00028167 | H29: 0.00018081 | I29: 0.00013284 | J29: 3.69e-06 | K29: 0.00253626 | L29: 0.00084747 | M29: 0.0688677 | N29: NA | O29: 11.02721322 | P29: NA | Q29: NA | R29: 0.8770761 | S29: NA | T29: NA | U29: NA | V29: 0.00753621 | W29: NA | X29: NA | Y29: NA | Z29: 0.00012546 | AA29: NA | AB29: 0.0359406 | AC29: NA | AD29: 0 | AE29: 0 | AF29: 0 | AG29: 0 | AH29: 0 | AI29: 0 | AJ29: 0 | AK29: 0 | AL29: 0 | AM29: 0 | AN29: 0 | AO29: 0 | AP29: 0 | AQ29: 0 | AR29: 0 | AS29: 0 | AT29: 0 | AU29: 0 | AV29: 0 | AW29: 0 | AX29: 0 | AY29: 0 | AZ29: 0 | BA29: 0
A30: 1B2c | B30: Fugitive emissions from venting and flaring | C30: 147.4637604 | D30: 288.5733871 | E30: 297.5482852 | F30: 259.1565894 | G30: 462.1128158 | H30: 201.3166372 | I30: 224.3745029 | J30: 312.6797074 | K30: 232.3839908 | L30: 487.7425167 | M30: 321.1752116 | N30: 342.1712309 | O30: 290.7190248 | P30: 298.64939 | Q30: 335.7475613 | R30: 256.9762025 | S30: 249.0594537 | T30: 260.5607006 | U30: 194.8174084 | V30: 128.1782052 | W30: 173.8302987 | X30: 156.9370264 | Y30: 146.4248932 | Z30: 126.7853624 | AA30: 150.1274544 | AB30: 123.9822142 | AC30: 135.2610816 | AD30: 130.4409974 | AE30: 129.2354388 | AF30: 131.0437766 | AG30: 91.36786296 | AH30: 100.0982547 | AI30: 118.4006266 | AJ30: 120.5965727 | AK30: 120.2349051 | AL30: 118.4395376 | AM30: 118.3189818 | AN30: 115.4439456 | AO30: 115.3233897 | AP30: 115.2028339 | AQ30: 87.97018122 | AR30: 87.84962536 | AS30: 87.72906951 | AT30: 91.1992486 | AU30: 89.28332527 | AV30: 89.28332527 | AW30: 87.24684609 | AX30: 87.24684609 | AY30: 87.12629024 | AZ30: 87.12629024 | BA30: 87.00573438
A32: 2A | B32: Mineral industry
A33: 2B | B33: Chemical Industry | C33: 835 | D33: 760.888 | E33: 671.548 | F33: 630.82 | G33: 635 | H33: 649 | I33: 543.2 | J33: 611 | K33: 471.8 | L33: 503.4 | M33: 451.575 | N33: 434.025 | O33: 428.5 | P33: 483.1 | Q33: 308.45 | R33: 36.45 | S33: 36.75 | T33: 17.5 | U33: 19.25 | V33: 18.5 | W33: 16.75 | X33: 20.75 | Y33: 19.47 | Z33: 20.25 | AA33: 23.2 | AB33: 23.1 | AC33: 23.2 | AD33: 23.86310457 | AE33: 24.4299505 | AF33: 24.99679643 | AG33: 25.56364236 | AH33: 26.13048829 | AI33: 26.69733422 | AJ33: 27.26418015 | AK33: 27.83102608 | AL33: 28.39787201 | AM33: 28.96471794 | AN33: 29.53156387 | AO33: 30.0984098 | AP33: 30.66525573 | AQ33: 31.23210166 | AR33: 31.79894759 | AS33: 32.36579351 | AT33: 32.93263944 | AU33: 33.49948537 | AV33: 34.0663313 | AW33: 34.63317723 | AX33: 35.20002316 | AY33: 35.76686909 | AZ33: 36.33371502 | BA33: 36.90056095
A34: 2C | B34: Metal industry | C34: 79.79023 | D34: 79.79023 | E34: 79.79023 | F34: 86.85638 | G34: 93.9224 | H34: 93.18231 | I34: 93.55528 | J34: 106.05803 | K34: 97.69591 | L34: 103.67955 | M34: 82.02753 | N34: 94.2916 | O34: 0 | P34: 0 | Q34: 0 | R34: 32.5
A35: 2D | B35: Non-energy products from fuels and solvent use
A36: 2G | B36: Other product manufacture and use | C36: 45.1438633 | D36: 40.90869625 | E36: 51.01591815 | F36: 42.6193148 | G36: 39.3295041 | H36: 45.19020505 | I36: 51.0594258 | J36: 61.0036947 | K36: 51.6266472 | L36: 54.80013105 | M36: 61.2259769 | N36: 52.8904533 | O36: 69.25988685 | P36: 81.12670575 | Q36: 70.1471016 | R36: 63.8568541 | S36: 78.3940903 | T36: 55.1741511 | U36: 49.57380905 | V36: 53.0869601 | W36: 41.6795724 | X36: 36.8809512 | Y36: 58.4756078 | Z36: 58.2605511 | AA36: 47.7039711 | AB36: 65.7237833 | AC36: 36.327092 | AD36: 51.91845496 | AE36: 51.44064966 | AF36: 50.96284436 | AG36: 50.48503906 | AH36: 50.00723376 | AI36: 49.52942846 | AJ36: 49.05162316 | AK36: 48.57381786 | AL36: 48.09601256 | AM36: 47.61820726 | AN36: 47.14040196 | AO36: 46.66259666 | AP36: 46.18479136 | AQ36: 45.70698606 | AR36: 45.22918076 | AS36: 44.75137546 | AT36: 44.27357016 | AU36: 43.79576486 | AV36: 43.31795956 | AW36: 42.84015426 | AX36: 42.36234896 | AY36: 41.88454366 | AZ36: 41.40673836 | BA36: 40.92893306
A37: 2H | B37: Other
A38: 2I | B38: Wood processing
A39: 2L | B39: Other production
A41: 3B1a | B41: Manure Management - Dairy cattle | C41: 71.60467925 | D41: 69.34415263 | E41: 65.60260798 | F41: 64.8378222 | G41: 62.47579113 | H41: 61.69127398 | I41: 60.58318502 | J41: 59.77716441 | K41: 61.47135833 | L41: 58.81959463 | M41: 42.0596828 | N41: 37.03976602 | O41: 32.10025956 | P41: 26.01195678 | Q41: 22.05005858 | R41: 22.67003075 | S41: 22.55774177 | T41: 22.22388313 | U41: 20.83424695 | V41: 19.45406901 | W41: 19.65645658 | X41: 17.6288824 | Y41: 17.83544521 | Z41: 17.85147459 | AA41: 17.09887485 | AB41: 17.19681731 | AC41: 17.92197812 | AD41: 16.32510027 | AE41: 14.70179447 | AF41: 13.08323297 | AG41: 11.40197708 | AH41: 11.02592401 | AI41: 10.70303313 | AJ41: 10.35723733 | AK41: 10.02420347 | AL41: 9.685759989 | AM41: 9.326440179 | AN41: 8.977853733 | AO41: 8.623857656 | AP41: 8.264451989 | AQ41: 7.9251606 | AR41: 7.9251606 | AS41: 7.9251606 | AT41: 7.9251606 | AU41: 7.9251606 | AV41: 7.9251606 | AW41: 7.9251606 | AX41: 7.9251606 | AY41: 7.9251606 | AZ41: 7.9251606 | BA41: 7.9251606
A42: 3B1b | B42: Manure Management - Non-dairy cattle | C42: 125.9307945 | D42: 128.5415783 | E42: 131.9946313 | F42: 132.0702069 | G42: 127.4785874 | H42: 128.2113413 | I42: 129.5995819 | J42: 124.697886 | K42: 120.2453314 | L42: 115.4422826 | M42: 113.9495149 | N42: 117.4228328 | O42: 110.8422208 | P42: 104.8807417 | Q42: 102.7904195 | R42: 94.39390391 | S42: 91.0569812 | T42: 94.31131506 | U42: 93.10001074 | V42: 90.12387064 | W42: 91.36792374 | X42: 90.73413383 | Y42: 88.77533538 | Z42: 89.54724021 | AA42: 87.94218102 | AB42: 85.59884648 | AC42: 86.72712835 | AD42: 86.47939537 | AE42: 87.21958869 | AF42: 87.70657538 | AG42: 88.32675174 | AH42: 87.91581607 | AI42: 87.37066559 | AJ42: 86.94609037 | AK42: 86.38729928 | AL42: 85.94908565 | AM42: 85.37665535 | AN42: 84.92480146 | AO42: 84.33873264 | AP42: 83.74584384 | AQ42: 83.27353093 | AR42: 83.27353093 | AS42: 83.27353093 | AT42: 83.27353093 | AU42: 83.27353093 | AV42: 83.27353093 | AW42: 83.27353093 | AX42: 83.27353093 | AY42: 83.27353093 | AZ42: 83.27353093 | BA42: 83.27353093
A43: 3B2 | B43: Manure Management - Sheep | C43: 1.4094584 | D43: 1.633 | E43: 1.5705688 | F43: 1.3534488 | G43: 1.2263048 | H43: 1.237492 | I43: 1.4421184 | J43: 1.470988 | K43: 1.547470667 | L43: 1.620886667 | M43: 1.711920667 | N43: 1.818625333 | O43: 1.800915333 | P43: 1.855502 | Q43: 1.904384667 | R43: 1.936048 | S43: 1.958649333 | T43: 1.898067333 | U43: 1.801498 | V43: 1.771322 | W43: 1.702030667 | X43: 1.434096 | Y43: 1.385121333 | Z43: 1.355574 | AA43: 1.348612667 | AB43: 1.289518 | AC43: 1.265178914 | AD43: 1.301103187 | AE43: 1.301103187 | AF43: 1.301103187 | AG43: 1.301103187 | AH43: 1.301103187 | AI43: 1.301103187 | AJ43: 1.301103187 | AK43: 1.301103187 | AL43: 1.301103187 | AM43: 1.301103187 | AN43: 1.301103187 | AO43: 1.301103187 | AP43: 1.301103187 | AQ43: 1.301103187 | AR43: 1.301103187 | AS43: 1.301103187 | AT43: 1.301103187 | AU43: 1.301103187 | AV43: 1.301103187 | AW43: 1.301103187 | AX43: 1.301103187 | AY43: 1.301103187 | AZ43: 1.301103187 | BA43: 1.301103187
A44: 3B3 | B44: Manure Management - Swine | C44: 230.5599495 | D44: 216.0103602 | E44: 209.7597716 | F44: 216.1891019 | G44: 192.7098378 | H44: 184.8939182 | I44: 170.4524205 | J44: 167.3682206 | K44: 161.651675 | L44: 143.7774995 | M44: 149.3700179 | N44: 152.0821614 | O44: 153.8454593 | P44: 157.8524971 | Q44: 156.3008406 | R44: 131.0135347 | S44: 113.2003863 | T44: 98.20089837 | U44: 76.12847715 | V44: 62.3970229 | W44: 64.94901367 | X44: 53.78978301 | Y44: 49.3439048 | Z44: 48.85735878 | AA44: 48.59800166 | AB44: 44.90796844 | AC44: 42.73364413 | AD44: 43.19781744 | AE44: 43.73530863 | AF44: 44.14774142 | AG44: 44.60359257 | AH44: 44.82032234 | AI44: 44.96900919 | AJ44: 45.04911358 | AK44: 45.14635021 | AL44: 45.1629372 | AM44: 45.10683838 | AN44: 45.04831094 | AO44: 44.94189268 | AP44: 44.80873241 | AQ44: 44.6250786 | AR44: 44.6250786 | AS44: 44.6250786 | AT44: 44.6250786 | AU44: 44.6250786 | AV44: 44.6250786 | AW44: 44.6250786 | AX44: 44.6250786 | AY44: 44.6250786 | AZ44: 44.6250786 | BA44: 44.6250786
A45: 3B4d | B45: Manure Management - Goats | C45: 0.05748083333 | D45: 0.05671033333 | E45: 0.05593983333 | F45: 0.05516933333 | G45: 0.05439883333 | H45: 0.05362833333 | I45: 0.05285783333 | J45: 0.05208733333 | K45: 0.059455 | L45: 0.06201566667 | M45: 0.064883 | N45: 0.072427 | O45: 0.07076333333 | P45: 0.07703466667 | Q45: 0.08260066667 | R45: 0.08769133333 | S45: 0.09315766667 | T45: 0.097221 | U45: 0.1084526667 | V45: 0.120198 | W45: 0.1225823333 | X45: 0.09627033333 | Y45: 0.098371 | Z45: 0.09939066667 | AA45: 0.09130233333 | AB45: 0.08618866667 | AC45: 0.07909186333 | AD45: 0.08552763133 | AE45: 0.08552763133 | AF45: 0.08552763133 | AG45: 0.08552763133 | AH45: 0.08552763133 | AI45: 0.08552763133 | AJ45: 0.08552763133 | AK45: 0.08552763133 | AL45: 0.08552763133 | AM45: 0.08552763133 | AN45: 0.08552763133 | AO45: 0.08552763133 | AP45: 0.08552763133 | AQ45: 0.08552763133 | AR45: 0.08552763133 | AS45: 0.08552763133 | AT45: 0.08552763133 | AU45: 0.08552763133 | AV45: 0.08552763133 | AW45: 0.08552763133 | AX45: 0.08552763133 | AY45: 0.08552763133 | AZ45: 0.08552763133 | BA45: 0.08552763133
A46: 3B4e | B46: Manure Management - Horses | C46: 27.117 | D46: 27.4183 | E46: 27.7196 | F46: 28.0209 | G46: 28.3222 | H46: 28.6235 | I46: 28.9248 | J46: 29.2261 | K46: 29.5274 | L46: 29.8287 | M46: 30.13 | N46: 31.13433333 | O46: 32.13866667 | P46: 33.143 | Q46: 34.14733333 | R46: 35.15166667 | S46: 36.156 | T46: 37.16033333 | U46: 38.16466667 | V46: 35.65383333 | W46: 33.143 | X46: 31.13433333 | Y46: 31.13433333 | Z46: 30.13 | AA46: 30.13 | AB46: 31.13433333 | AC46: 31.13433333 | AD46: 31.13433333 | AE46: 31.13433333 | AF46: 31.13433333 | AG46: 31.13433333 | AH46: 31.13433333 | AI46: 31.13433333 | AJ46: 31.13433333 | AK46: 31.13433333 | AL46: 31.13433333 | AM46: 31.13433333 | AN46: 31.13433333 | AO46: 31.13433333 | AP46: 31.13433333 | AQ46: 31.13433333 | AR46: 31.13433333 | AS46: 31.13433333 | AT46: 31.13433333 | AU46: 31.13433333 | AV46: 31.13433333 | AW46: 31.13433333 | AX46: 31.13433333 | AY46: 31.13433333 | AZ46: 31.13433333 | BA46: 31.13433333
A47: 3B4g | B47: Manure Management - Poultry | C47: 21.24640976 | D47: 21.97247473 | E47: 25.60856476 | F47: 28.45205383 | G47: 26.56691617 | H47: 27.10366192 | I47: 26.33120493 | J47: 26.64051553 | K47: 26.72185001 | L47: 29.30656781 | M47: 30.67266131 | N47: 30.27825721 | O47: 29.62972375 | P47: 24.13310866 | Q47: 23.56405971 | R47: 24.89587245 | S47: 25.09105338 | T47: 23.45966693 | U47: 20.7702651 | V47: 28.52265962 | W47: 25.71519701 | X47: 24.55233966 | Y47: 24.92742316 | Z47: 24.50170907 | AA47: 22.46208582 | AB47: 20.66751616 | AC47: 22.12347859 | AD47: 23.23991941 | AE47: 23.64251135 | AF47: 23.91383345 | AG47: 24.09204947 | AH47: 24.28439803 | AI47: 24.42538212 | AJ47: 24.52927217 | AK47: 24.57965932 | AL47: 24.59348684 | AM47: 24.57075478 | AN47: 24.5305445 | AO47: 24.4537754 | AP47: 24.37807512 | AQ47: 24.28382762 | AR47: 24.28382762 | AS47: 24.28382762 | AT47: 24.28382762 | AU47: 24.28382762 | AV47: 24.28382762 | AW47: 24.28382762 | AX47: 24.28382762 | AY47: 24.28382762 | AZ47: 24.28382762 | BA47: 24.28382762
A48: 3B4h | B48: Manure Management - Other (mainly mink) | C48: 0.6943638667 | D48: 0.6475472133 | E48: 0.7002411333 | F48: 0.47144756 | G48: 0.5606897067 | H48: 0.5673155467 | I48: 0.58832712 | J48: 0.6784420431 | K48: 0.7191486667 | L48: 0.6405972267 | M48: 0.67432872 | N48: 0.70664464 | O48: 0.74260192 | P48: 0.7239915467 | Q48: 0.75776352 | R48: 0.7826571867 | S48: 0.8304309467 | T48: 0.86989404 | U48: 0.86172812 | V48: 0.8344461333 | W48: 0.82777276 | X48: 0.8453809497 | Y48: 0.9040358533 | Z48: 0.8639439995 | AA48: 0.9155661379 | AB48: 0.9374753101 | AC48: 0.8990742752 | AD48: 1.001001193 | AE48: 1.024252682 | AF48: 1.047680916 | AG48: 1.071285895 | AH48: 1.089890639 | AI48: 1.108495383 | AJ48: 1.127100127 | AK48: 1.14570487 | AL48: 1.164309614 | AM48: 1.182914358 | AN48: 1.201519102 | AO48: 1.220123846 | AP48: 1.238728589 | AQ48: 1.257333333 | AR48: 1.257333333 | AS48: 1.257333333 | AT48: 1.257333333 | AU48: 1.257333333 | AV48: 1.257333333 | AW48: 1.257333333 | AX48: 1.257333333 | AY48: 1.257333333 | AZ48: 1.257333333 | BA48: 1.257333333
A49: 3Da1 | B49: Inorganic N-fertilizers (includes also urea application) | C49: 15962.61333 | D49: 15743.34667 | E49: 14730.73333 | F49: 13271.61333 | G49: 13004.50667 | H49: 12593.88 | I49: 11595.02067 | J49: 11465.65333 | K49: 11290.24 | L49: 10473.93013 | M49: 10025.03147 | N49: 9316.162267 | O49: 8404.012933 | P49: 8021.731467 | Q49: 8241.8752 | R49: 8222.579733 | S49: 7644.632667 | T49: 7757.9736 | U49: 8786.6532 | V49: 8381.9268 | W49: 7929.1212 | X49: 8156.680133 | Y49: 7903.088267 | Z49: 7965.399867 | AA49: 8129.411333 | AB49: 8408.7172 | AC49: 9668.902533 | AD49: 10365.33333 | AE49: 10714.964 | AF49: 10789.116 | AG49: 10900.344 | AH49: 10974.496 | AI49: 10974.496 | AJ49: 10974.496 | AK49: 10974.496 | AL49: 10974.496 | AM49: 10974.496 | AN49: 10974.496 | AO49: 10974.496 | AP49: 10974.496 | AQ49: 10974.496 | AR49: 10974.496 | AS49: 10974.496 | AT49: 10974.496 | AU49: 10974.496 | AV49: 10974.496 | AW49: 10974.496 | AX49: 10974.496 | AY49: 10974.496 | AZ49: 10974.496 | BA49: 10974.496
A50: 3Da2a | B50: Animal manure applied to soils | C50: 8535.90495 | D50: 8493.84288 | E50: 8508.095895 | F50: 8558.962496 | G50: 8225.651643 | H50: 7976.016351 | I50: 7961.561782 | J50: 7908.621785 | K50: 8064.025482 | L50: 7967.59213 | M50: 7822.856569 | N50: 8037.767208 | O50: 8232.91311 | P50: 8218.644793 | Q50: 8389.385329 | R50: 8468.918286 | S50: 8189.005982 | T50: 8662.407215 | U50: 8474.817083 | V50: 8270.094836 | W50: 8297.383995 | X50: 8272.719392 | Y50: 8221.757122 | Z50: 8276.213284 | AA50: 8316.03674 | AB50: 8328.664711 | AC50: 8375.810358 | AD50: 8455.809658 | AE50: 8551.547091 | AF50: 8643.767894 | AG50: 8736.715502 | AH50: 8794.813804 | AI50: 8860.207234 | AJ50: 8914.133063 | AK50: 8979.982373 | AL50: 9038.263909 | AM50: 9078.87439 | AN50: 9126.740629 | AO50: 9171.589836 | AP50: 9216.103292 | AQ50: 9271.414192 | AR50: 9271.414192 | AS50: 9271.414192 | AT50: 9271.414192 | AU50: 9271.414192 | AV50: 9271.414192 | AW50: 9271.414192 | AX50: 9271.414192 | AY50: 9271.414192 | AZ50: 9271.414192 | BA50: 9271.414192
A51: 3Da2b-c | B51: Sludge applied to soils | C51: 185.76 | D51: 237.56 | E51: 274.8 | F51: 378.16 | G51: 357.84 | H51: 365.4 | I51: 367 | J51: 339.48 | K51: 354.4 | L51: 321.32 | M51: 350.88 | N51: 431.68 | O51: 385.8 | P51: 318.68 | Q51: 250.52 | R51: 202.76 | S51: 237.2 | T51: 249.12 | U51: 289.56 | V51: 300.6 | W51: 280.92 | X51: 286.2 | Y51: 323.88 | Z51: 335.84 | AA51: 339 | AB51: 339.72 | AC51: 356.16 | AD51: 332.7006823 | AE51: 331.2865758 | AF51: 328.5869181 | AG51: 325.8872603 | AH51: 322.9304922 | AI51: 321.6449409 | AJ51: 320.6164999 | AK51: 319.4595037 | AL51: 318.4310626 | AM51: 317.4026216 | AN51: 316.3741805 | AO51: 315.3457394 | AP51: 314.3172984 | AQ51: 313.2888573 | AR51: 313.2888573 | AS51: 313.2888573 | AT51: 313.2888573 | AU51: 313.2888573 | AV51: 313.2888573 | AW51: 313.2888573 | AX51: 313.2888573 | AY51: 313.2888573 | AZ51: 313.2888573 | BA51: 313.2888573
A52: 3Da3 | B52: Urine and dung deposited by grazing animals
A53: 3Dc | B53: Farm-level agricultural operations including storage, handling and transport of agricultural products
A54: 3De | B54: Cultivated crops | C54: NE | D54: NE | E54: NE | F54: NE | G54: NE | H54: NE | I54: NE | J54: NE | K54: NE | L54: NE | M54: NE | N54: NE | O54: NE | P54: NE | Q54: NE | R54: NE | S54: NE | T54: NE | U54: NE | V54: NE | W54: NE | X54: NE | Y54: NE | Z54: NE | AA54: NE | AB54: NE | AC54: NE | AD54: NE | AE54: NE | AF54: NE | AG54: NE | AH54: NE | AI54: NE | AJ54: NE | AK54: NE | AL54: NE | AM54: NE | AN54: NE | AO54: NE | AP54: NE | AQ54: NE | AR54: NE | AS54: NE | AT54: NE | AU54: NE | AV54: NE | AW54: NE | AX54: NE | AY54: NE | AZ54: NE | BA54: NE
A55: 3F | B55: Field burning of agricultural residues | C55: 77.191866 | D55: 80.257527 | E55: 76.73562 | F55: 83.787237 | G55: 80.799147 | H55: 91.442898 | I55: 90.929736 | J55: 96.392754 | K55: 121.349961 | L55: 115.275555 | M55: 113.55201 | N55: 119.332197 | O55: 99.266553 | P55: 119.334492 | Q55: 125.113302 | R55: 126.959859 | S55: 128.7954 | T55: 111.442446 | U55: 103.207986 | V55: 121.417434 | W55: 88.539264 | X55: 87.635952 | Y55: 100.711944 | Z55: 108.839916 | AA55: 107.165484 | AB55: 94.1829444 | AC55: 92.91078 | AD55: 98.89948977 | AE55: 98.47912873 | AF55: 97.67662128 | AG55: 96.87411382 | AH55: 95.99517709 | AI55: 95.61303069 | AJ55: 95.30731356 | AK55: 94.9633818 | AL55: 94.65766467 | AM55: 94.35194755 | AN55: 94.04623042 | AO55: 93.7405133 | AP55: 93.43479617 | AQ55: 93.12907905 | AR55: 93.12907905 | AS55: 93.12907905 | AT55: 93.12907905 | AU55: 93.12907905 | AV55: 93.12907905 | AW55: 93.12907905 | AX55: 93.12907905 | AY55: 93.12907905 | AZ55: 93.12907905 | BA55: 93.12907905
A56: 3I | B56: Agriculture other
A58: 5A | B58: Solid waste disposal on land
A59: 5B | B59: Biological treatment of waste
A60: 5C | B60: Waste incineration | C60: 35.721375 | D60: 35.58017 | E60: 36.358015 | F60: 37.91961 | G60: 37.69013 | H60: 38.712175 | I60: 38.35647 | J60: 38.177315 | K60: 37.34780472 | L60: 39.57126552 | M60: 39.98996164 | N60: 40.14899352 | O60: 40.82155924 | P60: 40.50627912 | Q60: 41.53153004 | R60: 43.3010962 | S60: 48.1859392 | T60: 50.75614332 | U60: 51.4608036 | V60: 51.97966496 | W60: 53.07840424 | X60: 49.49632504 | Y60: 49.4575442 | Z60: 49.48397236 | AA60: 48.999312 | AB60: 49.873698 | AC60: 51.193804 | AD60: 50.79612133 | AE60: 50.79612133 | AF60: 50.79612133 | AG60: 50.79612133 | AH60: 50.79612133 | AI60: 50.79612133 | AJ60: 50.79612133 | AK60: 50.79612133 | AL60: 50.79612133 | AM60: 50.79612133 | AN60: 50.79612133 | AO60: 50.79612133 | AP60: 50.79612133 | AQ60: 50.79612133 | AR60: 50.79612133 | AS60: 50.79612133 | AT60: 50.79612133 | AU60: 50.79612133 | AV60: 50.79612133 | AW60: 50.79612133 | AX60: 50.79612133 | AY60: 50.79612133 | AZ60: 50.79612133 | BA60: 50.79612133
A61: 5D | B61: Wastewater handling
A62: 5E | B62: Other | C62: 45.7021829 | D62: 47.05574222 | E62: 50.77585922 | F62: 45.36087598 | G62: 45.54652944 | H62: 51.87793114 | I62: 52.42984618 | J62: 48.78571316 | K62: 44.25098615 | L62: 47.12542461 | M62: 46.28476209 | N62: 45.63569551 | O62: 44.35706192 | P62: 49.3216282 | Q62: 43.24415606 | R62: 44.81677512 | S62: 45.89175525 | T62: 48.61082319 | U62: 42.95064809 | V62: 40.4720645 | W62: 36.05847124 | X62: 35.96664808 | Y62: 32.63301023 | Z62: 34.05880673 | AA62: 30.93590635 | AB62: 32.31591478 | AC62: 36.5352108 | AD62: 33.29576978 | AE62: 33.29576978 | AF62: 33.29576978 | AG62: 33.29576978 | AH62: 33.29576978 | AI62: 33.29576978 | AJ62: 33.29576978 | AK62: 33.29576978 | AL62: 33.29576978 | AM62: 33.29576978 | AN62: 33.29576978 | AO62: 33.29576978 | AP62: 33.29576978 | AQ62: 33.29576978 | AR62: 33.29576978 | AS62: 33.29576978 | AT62: 33.29576978 | AU62: 33.29576978 | AV62: 33.29576978 | AW62: 33.29576978 | AX62: 33.29576978 | AY62: 33.29576978 | AZ62: 33.29576978 | BA62: 33.29576978
B63: Total | C63: =SUM(C3:C62) -> 302890.0352 | D63: 352917.9171 | E63: 308511.7227 | F63: 307278.3926 | G63: 309090.1531 | H63: 290818.7169 | I63: 324844.4008 | J63: 278520.8773 | K63: 257716.1582 | L63: 239224.0116 | M63: 227056.9498 | N63: 224149.2421 | O63: 221495.9703 | P63: 229977.037 | Q63: 213903.7416 | R63: 205322.1971 | S63: 204678.7972 | T63: 190756.2222 | U63: 174326.9503 | V63: 155369.1554 | W63: 149584.4433 | X63: 141117.3104 | Y63: 130286.5178 | Z63: 125406.0196 | AA63: =SUM(AA3:AA62) -> 115965.2605 | AB63: =SUM(AB3:AB62) -> 114710.661 | AC63: 115153.2606 | AD63: 110100.3441 | AE63: 106455.891 | AF63: 103418.7694 | AG63: 99150.33913 | AH63: 97341.1232 | AI63: 95734.08651 | AJ63: 93870.86951 | AK63: 91503.83573 | AL63: 89263.68455 | AM63: 87240.41995 | AN63: 85209.56728 | AO63: 83418.96597 | AP63: 81759.14688 | AQ63: 79633.09934 | AR63: 78380.38089 | AS63: 77193.27789 | AT63: 75642.60511 | AU63: 74562.66552 | AV63: 73376.32013 | AW63: =SUM(AW3:AW62) -> 72585.25258 | AX63: 71806.60429 | AY63: 70828.77154 | AZ63: 70245.13578 | BA63: 69671.57884
B65: Total excluding categories 3B and 3D | C65: =SUM(C3:C39,C55:C62) -> 277727.1368 | D65: =SUM(D3:D39,D55:D62) -> 327977.5435 | E65: 284535.0815 | F65: 284598.2066 | G65: 287062.7601 | H65: 269451.0384 | I65: 304502.8439 | J65: 258397.2108 | K65: 237605.549 | L65: 220081.6712 | M65: 208489.5488 | N65: 205993.0776 | O65: 204112.0736 | P65: 213069.3029 | Q65: 196680.3636 | R65: 188117.0076 | S65: 188317.0141 | T65: 173808.5001 | U65: 156524.1506 | V65: 138177.6564 | W65: 132839.5342 | X65: 124181.4956 | Y65: 113623.3885 | Z65: 108615.3598 | AA65: 98972.22581 | AB65: =SUM(AB3:AB39,AB55:AB62) -> 97431.74044 | AC65: 96549.50384 | AD65: 90743.73619 | AE65: 86655.24894 | AF65: 83454.87851 | AG65: 78985.37575 | AH65: 77047.22559 | AI65: 75376.64079 | AJ65: 73461.09417 | AK65: 71030.09368 | AL65: 68733.41703 | AM65: 66671.56237 | AN65: 64594.75247 | AO65: 62761.43505 | AP65: 61059.27349 | AQ65: 58880.0144 | AR65: =SUM(AR3:AR39,AR55:AR62) -> 57627.29594 | AS65: =SUM(AS3:AS39,AS55:AS62) -> 56440.19294 | AT65: =SUM(AT3:AT39,AT55:AT62) -> 54889.52017 | AU65: =SUM(AU3:AU39,AU55:AU62) -> 53809.58057 | AV65: =SUM(AV3:AV39,AV55:AV62) -> 52623.23518 | AW65: =SUM(AW3:AW39,AW55:AW62) -> 51832.16764 | AX65: 51053.51935 | AY65: 50075.6866 | AZ65: 49492.05083 | BA65: 48918.49389
B66: Reduction since 2005 | S66: =($R$63-S63)/$R$63 -> 0.003133610981 | T66: 0.07094203692 | U66: 0.1509590645 | V66: 0.2432909951 | W66: 0.2714648222 | X66: 0.3127030959 | Y66: 0.3654533232 | Z66: 0.3892232724 | AA66: 0.4352034891 | AB66: =($R$63-AB63)/$R$63 -> 0.441313883 | AC66: =($R$65-AC65)/$R$65 -> 0.4867582413 | AD66: 0.463767943 | AE66: 0.4815178653 | AF66: 0.4963098445 | AG66: 0.5170987816 | AH66: 0.525910376 | AI66: 0.5337372779 | AJ66: 0.5428118788 | AK66: 0.554340266 | AL66: 0.5652506849 | AM66: 0.5751047807 | AN66: 0.5849958334 | AO66: 0.5937167673 | AP66: 0.6018007402 | AQ66: 0.6121554294 | AR66: =($R$63-AR63)/$R$63 -> 0.6182566619 | AS66: =($R$63-AS63)/$R$63 -> 0.6240383213 | AT66: =($R$63-AT63)/$R$63 -> 0.6315907087 | AU66: =($R$63-AU63)/$R$63 -> 0.63685044 | AV66: =($R$63-AV63)/$R$63 -> 0.6426284095 | AW66: =($R$63-AW63)/$R$63 -> 0.6464812201 | AX66: 0.6502735441 | AY66: 0.6550359749 | AZ66: 0.657878511 | BA66: 0.6606719593
A68: 1A3a | B68: Civil Aviation (Domestic Cruise) | C68: 648.8643026 | D68: 608.4772461 | E68: 604.464014 | F68: 560.7393459 | G68: 584.2021485 | H68: 594.8739693 | I68: 625.5558596 | J68: 601.4109003 | K68: 548.9522165 | L68: 525.1739894 | M68: 488.5776113 | N68: 495.9323228 | O68: 395.4932831 | P68: 402.3250762 | Q68: 345.5180043 | R68: 372.8543233 | S68: 410.2384604 | T68: 487.321247 | U68: 531.6908992 | V68: 523.5105017 | W68: 563.6203526 | X68: 548.9602157 | Y68: 489.6328931 | Z68: 497.8112944 | AA68: 506.6347976 | AB68: 470.9177441 | AC68: 534.2237597 | AD68: 498.513274 | AE68: 502.8768273 | AF68: 507.1196073 | AG68: 509.3861253 | AH68: 512.5508583 | AI68: 515.8416332 | AJ68: 519.0111606 | AK68: 522.2162069 | AL68: 525.4147173 | AM68: 529.624237 | AN68: 533.9573792 | AO68: 538.2094042 | AP68: 542.4599711 | AQ68: 546.9938451 | AR68: 546.9032404 | AS68: 546.8208388 | AT68: 546.6351823 | AU68: 546.3930237 | AV68: 546.4722253 | AW68: 546.2497698 | AX68: 546.0962846 | AY68: 545.9007115 | AZ68: 545.6700085 | BA68: 545.6740792
B69: Civil Aviation (International Cruise) | C69: 6507.888291 | D69: 5907.111308 | E69: 6088.70254 | F69: 5931.215989 | G69: 6586.864593 | H69: 6705.026325 | I69: 6991.964395 | J69: 7124.935537 | K69: 7792.08482 | L69: 8292.015342 | M69: 8507.627016 | N69: 8750.524296 | O69: 7812.893707 | P69: 8283.808139 | Q69: 9493.353966 | R69: 10152.82756 | S69: 10308.81277 | T69: 10718.77985 | U69: 10919.54756 | V69: 9669.741001 | W69: 10091.78329 | X69: 10516.02424 | Y69: 10810.13234 | Z69: 11180.98908 | AA69: 12562.73938 | AB69: 12235.16619 | AC69: 12626.74791 | AD69: 13030.47757 | AE69: 13104.51199 | AF69: 13170.96974 | AG69: 13225.5817 | AH69: 13297.38172 | AI69: 13379.32198 | AJ69: 13449.46898 | AK69: 13517.42221 | AL69: 13583.68253 | AM69: 13671.54822 | AN69: 13768.12888 | AO69: 13853.6774 | AP69: 13935.93779 | AQ69: 14043.88568 | AR69: 14055.76065 | AS69: 14069.86432 | AT69: 14074.46018 | AU69: 14074.08348 | AV69: 14109.89044 | AW69: 14112.43851 | AX69: 14125.67557 | AY69: 14135.36845 | AZ69: 14142.01668 | BA69: 14177.49446
A70: 1A3d | B70: Navigation, international | C70: 60638.35445 | D70: 53937.1302 | E70: 55806.16159 | F70: 87850.79052 | G70: 99294.74423 | H70: 105111.6881 | I70: 100507.2312 | J70: 93238.52628 | K70: 92360.37778 | L70: 89138.28261 | M70: 91634.47536 | N70: 75420.44053 | O70: 60374.64846 | P70: 65329.51913 | Q70: 53427.75034 | R70: 56530.82482 | S70: 78002.75592 | T70: 83546.21706 | U70: 70391.38041 | V70: 35645.51845 | W70: 51051.90466 | X70: 52486.08175 | Y70: 36486.83334 | Z70: 46311.36843 | AA70: 55475.91675 | AB70: 54352.63678 | AC70: 54461.61304 | AD70: 45928.78827 | AE70: 45815.38972 | AF70: 45663.17413 | AG70: 45470.92137 | AH70: 44271.66195 | AI70: 43042.98418 | AJ70: 41785.24848 | AK70: 40498.95375 | AL70: 39184.74646 | AM70: 37843.42911 | AN70: 36475.96783 | AO70: 35083.49902 | AP70: 33667.33468 | AQ70: 32423.74022 | AR70: 31177.09056 | AS70: 29927.39983 | AT70: 28674.65686 | AU70: 27418.8504 | AV70: 26169.18756 | AW70: 24906.78003 | AX70: 23641.27383 | AY70: 22372.65749 | AZ70: 21100.91949 | BA70: 19826.04824

Sheet NMVOC
A1: NMVOC (tons)
C2: 1990 | D2: 1991 | E2: 1992 | F2: 1993 | G2: 1994 | H2: 1995 | I2: 1996 | J2: 1997 | K2: 1998 | L2: 1999 | M2: 2000 | N2: 2001 | O2: 2002 | P2: 2003 | Q2: 2004 | R2: 2005 | S2: 2006 | T2: 2007 | U2: 2008 | V2: 2009 | W2: 2010 | X2: 2011 | Y2: 2012 | Z2: 2013 | AA2: 2014 | AB2: 2015 | AC2: 2016 | AD2: 2017 | AE2: 2018 | AF2: 2019 | AG2: 2020 | AH2: 2021 | AI2: 2022 | AJ2: 2023 | AK2: 2024 | AL2: 2025 | AM2: 2026 | AN2: 2027 | AO2: 2028 | AP2: 2029 | AQ2: 2030 | AR2: 2031 | AS2: 2032 | AT2: 2033 | AU2: 2034 | AV2: 2035 | AW2: 2036 | AX2: 2037 | AY2: 2038 | AZ2: 2039 | BA2: 2040
A3: 1A1a | B3: Public power and district heating plants | C3: 389.3975484 | D3: 542.8418139 | E3: 583.0463483 | F3: 953.4888176 | G3: 1685.565719 | H3: 2842.129527 | I3: 3646.179717 | J3: 3427.350211 | K3: 3711.741877 | L3: 3711.342634 | M3: 3519.21886 | N3: 3629.772552 | O3: 3462.457189 | P3: 3245.571771 | Q3: 3051.570469 | R3: 2573.487224 | S3: 2474.227791 | T3: 2055.300513 | U3: 2149.588971 | V3: 1902.640391 | W3: 2370.821029 | X3: 1986.335862 | Y3: 1419.686363 | Z3: 1277.893649 | AA3: 923.3126911 | AB3: 775.6152833 | AC3: 918.6551936 | AD3: 1585.125517 | AE3: 1209.59923 | AF3: 1262.389164 | AG3: 1255.056165 | AH3: 1201.939205 | AI3: 1178.030337 | AJ3: 1193.179926 | AK3: 1135.89524 | AL3: 1075.387206 | AM3: 1044.58545 | AN3: 1043.699664 | AO3: 1018.814569 | AP3: 988.072265 | AQ3: 958.3426036 | AR3: 929.9295821 | AS3: 909.9596541 | AT3: 889.0768864 | AU3: 867.2811847 | AV3: 838.2678901 | AW3: 871.0276022 | AX3: 879.5483346 | AY3: 898.6798371 | AZ3: 920.2792127 | BA3: 943.4834368
A4: 1A1b | B4: Petroleum refining plants | C4: 22.85531672 | D4: 25.45206003 | E4: 29.83071142 | F4: 29.4756065 | G4: 30.62430538 | H4: 34.57940938 | I4: 35.11534062 | J4: 27.35496321 | K4: 23.82205575 | L4: 24.51918979 | M4: 24.8216637 | N4: 25.3763359 | O4: 24.409872 | P4: 25.26507312 | Q4: 24.71914222 | R4: 23.07620641 | S4: 23.99415821 | T4: 24.17998168 | U4: 21.75048784 | V4: 22.63851281 | W4: 21.02431922 | X4: 20.35327808 | Y4: 22.64492541 | Z4: 22.16996553 | AA4: 22.59663374 | AB4: 24.07236266 | AC4: 21.35290186 | AD4: 22.04459447 | AE4: 22.04459447 | AF4: 22.04459447 | AG4: 22.04459447 | AH4: 22.04459447 | AI4: 22.04459447 | AJ4: 22.04459447 | AK4: 22.04459447 | AL4: 22.04459447 | AM4: 22.04459447 | AN4: 22.04459447 | AO4: 22.04459447 | AP4: 22.04459447 | AQ4: 22.04459447 | AR4: 22.04459447 | AS4: 22.04459447 | AT4: 22.04459447 | AU4: 22.04459447 | AV4: 22.04459447 | AW4: 22.04459447 | AX4: 22.04459447 | AY4: 22.04459447 | AZ4: 22.04459447 | BA4: 22.04459447
A5: 1A1c | B5: Oil and gas extraction | C5: 13.27519811 | D5: 13.58429494 | E5: 15.56617545 | F5: 15.72967204 | G5: 17.27496186 | H5: 18.19028754 | I5: 21.45202123 | J5: 27.95240429 | K5: 31.00127672 | L5: 33.69641338 | M5: 35.60492118 | N5: 34.79055121 | O5: 39.97182668 | P5: 39.97486869 | Q5: 44.01355159 | R5: 45.08547166 | S5: 46.13888006 | T5: 45.7450436 | U5: 46.88536612 | V5: 44.05733896 | W5: 43.43770712 | X5: 41.74239677 | Y5: 41.56723021 | Z5: 39.91289428 | AA5: 38.06991471 | AB5: 39.873279 | AC5: 36.84252196 | AD5: 35.70002596 | AE5: 34.83171017 | AF5: 34.83171017 | AG5: 22.20407519 | AH5: 25.92887427 | AI5: 31.60943166 | AJ5: 32.33226005 | AK5: 32.20821494 | AL5: 32.39879239 | AM5: 33.39818098 | AN5: 33.83625242 | AO5: 34.5280431 | AP5: 35.54097445 | AQ5: 30.93714571 | AR5: 31.86110062 | AS5: 32.36098543 | AT5: 33.92547514 | AU5: 33.82458266 | AV5: 34.01044117 | AW5: 32.9802036 | AX5: 32.43613984 | AY5: 30.54739589 | AZ5: 29.91440241 | BA5: 28.79408621
A7: 1A2a-f i | B7: Combustion in manufacturing industry | C7: 1948.322859 | D7: 1940.277616 | E7: 1952.343993 | F7: 1992.721053 | G7: 1671.36983 | H7: 1601.419229 | I7: 1605.675439 | J7: 1535.739903 | K7: 1520.057691 | L7: 1274.093179 | M7: 1236.479682 | N7: 1183.966342 | O7: 979.698702 | P7: 1010.360549 | Q7: 1005.983266 | R7: 921.4004973 | S7: 954.7479505 | T7: 1080.549145 | U7: 1348.9158 | V7: 1222.61814 | W7: 1160.448693 | X7: 1297.821236 | Y7: 890.4325813 | Z7: 710.3828462 | AA7: 597.7006241 | AB7: 859.3300526 | AC7: 812.3097707 | AD7: 1211.289222 | AE7: 1207.431039 | AF7: 1206.148035 | AG7: 1204.867603 | AH7: 1247.306411 | AI7: 1289.746501 | AJ7: 1332.186431 | AK7: 1375.121114 | AL7: 1418.063412 | AM7: 1442.206451 | AN7: 1466.355189 | AO7: 1490.46656 | AP7: 1514.561639 | AQ7: 1538.652003 | AR7: 1573.229983 | AS7: 1607.809007 | AT7: 1642.38586 | AU7: 1676.957887 | AV7: 1711.53331 | AW7: 1751.276829 | AX7: 1791.023008 | AY7: 1830.764951 | AZ7: 1870.484152 | BA7: 1910.198316
A8: 1A2f ii | B8: Industry - Other (mobile) | C8: 2099.586902 | D8: 2052.244763 | E8: 1990.205981 | F8: 1928.422607 | G8: 1873.302379 | H8: 1830.438265 | I8: 1791.323147 | J8: 1762.461698 | K8: 1739.059068 | L8: 1690.345324 | M8: 1636.08995 | N8: 1592.52121 | O8: 1543.284249 | P8: 1496.768452 | Q8: 1440.980334 | R8: 1398.494043 | S8: 1368.708251 | T8: 1342.454128 | U8: 1290.419741 | V8: 951.4827692 | W8: 1173.007782 | X8: 1111.993461 | Y8: 1054.602597 | Z8: 1001.84137 | AA8: 917.0973004 | AB8: 877.5248174 | AC8: 831.7732315 | AD8: 778.7676131 | AE8: 730.7159956 | AF8: 687.8156238 | AG8: 652.7039586 | AH8: 627.7794365 | AI8: 606.2583557 | AJ8: 586.4296515 | AK8: 570.2318078 | AL8: 557.6040863 | AM8: 542.6467389 | AN8: 528.0619637 | AO8: 517.4219569 | AP8: 513.8623282 | AQ8: 513.0542669 | AR8: 508.9929171 | AS8: 506.2967298 | AT8: 505.0962141 | AU8: 504.5132677 | AV8: 503.9668796 | AW8: 503.443925 | AX8: 502.9346491 | AY8: 502.4373578 | AZ8: 502.0394659 | BA8: 501.6438556
A10: 1A3a | B10: Civil Aviation (Domestic LTO) | C10: 158.1800272 | D10: 168.5926344 | E10: 156.036449 | F10: 144.1372214 | G10: 171.9388264 | H10: 188.5303342 | I10: 178.422392 | J10: 170.800215 | K10: 154.8505583 | L10: 150.877069 | M10: 143.2354834 | N10: 139.7359152 | O10: 136.1249475 | P10: 129.9696751 | Q10: 136.5181187 | R10: 135.3101217 | S10: 128.4038459 | T10: 134.0619967 | U10: 119.4187784 | V10: 101.3500395 | W10: 97.15916223 | X10: 82.22242195 | Y10: 88.22521517 | Z10: 91.50377482 | AA10: 58.70289416 | AB10: 62.83298652 | AC10: 68.5902801 | AD10: 69.28444369 | AE10: 69.96694571 | AF10: 70.64106027 | AG10: 71.27302783 | AH10: 72.04502645 | AI10: 72.82548618 | AJ10: 73.61068161 | AK10: 74.4044785 | AL10: 75.20566773 | AM10: 76.16302792 | AN10: 77.13275386 | AO10: 78.11021264 | AP10: 79.09674834 | AQ10: 80.09820915 | AR10: 80.38791133 | AS10: 80.67604391 | AT10: 80.96021525 | AU10: 81.24154752 | AV10: 81.52808383 | AW10: 81.80661731 | AX10: 82.08503429 | AY10: 82.36118756 | AZ10: 82.6354261 | BA10: 82.91343104
A11: 1A3a | B11: Civil Aviation (International LTO) | C11: 107.4276075 | D11: 160.3459818 | E11: 152.4062375 | F11: 141.560022 | G11: 120.1343981 | H11: 121.6182195 | I11: 122.7337301 | J11: 126.3144111 | K11: 119.8143424 | L11: 111.3093605 | M11: 106.2364224 | N11: 105.3371729 | O11: 83.14630617 | P11: 77.41798021 | Q11: 72.66366707 | R11: 74.9500351 | S11: 64.59653938 | T11: 61.26349592 | U11: 75.39833431 | V11: 56.04427732 | W11: 59.2605937 | X11: 70.51533268 | Y11: 65.47937651 | Z11: 70.56620621 | AA11: 73.79305655 | AB11: 77.25600568 | AC11: 74.29021743 | AD11: 73.93953367 | AE11: 74.35963112 | AF11: 74.73673588 | AG11: 75.04662343 | AH11: 75.45404212 | AI11: 75.91900008 | AJ11: 76.31703895 | AK11: 76.70262962 | AL11: 77.07861409 | AM11: 77.57719503 | AN11: 78.12522782 | AO11: 78.61066035 | AP11: 79.07743487 | AQ11: 79.68996935 | AR11: 79.75735211 | AS11: 79.8373813 | AT11: 79.86345984 | AU11: 79.86132235 | AV11: 80.06450365 | AW11: 80.0789623 | AX11: 80.15407408 | AY11: 80.2090749 | AZ11: 80.2467993 | BA11: 80.44811277
A12: 1A3b | B12: Road exhaust | C12: 49676.0113 | D12: 52252.2291 | E12: 51632.31839 | F12: 51412.51367 | G12: 49337.05786 | H12: 47501.14628 | I12: 46559.39386 | J12: 43158.08421 | K12: 40842.26424 | L12: 36652.74939 | M12: 33489.35506 | N12: 31377.70794 | O12: 28677.46554 | P12: 27075.67294 | Q12: 23795.76598 | R12: 22101.15714 | S12: 19567.18182 | T12: 17777.66314 | U12: 15840.40675 | V12: 13868.18606 | W12: 12790.80699 | X12: 10610.7823 | Y12: 9427.78656 | Z12: 8357.328784 | AA12: 7253.356392 | AB12: 6717.133991 | AC12: 6001.349697 | AD12: 5608.958064 | AE12: 5049.627426 | AF12: 4634.360262 | AG12: 4318.636445 | AH12: 4079.643996 | AI12: 3893.849477 | AJ12: 3751.645584 | AK12: 3647.876552 | AL12: 3568.405491 | AM12: 3510.381981 | AN12: 3466.273104 | AO12: 3433.00777 | AP12: 3406.006438 | AQ12: 3382.760187 | AR12: 3367.95495 | AS12: 3353.527733 | AT12: 3339.015757 | AU12: 3324.115155 | AV12: 3312.997965 | AW12: 3298.699379 | AX12: 3281.537508 | AY12: 3262.255771 | AZ12: 3240.216057 | BA12: 3205.897801
A13: 1A3b | B13: Road non-exhaust | C13: 29575.27092 | D13: 29874.48866 | E13: 30060.35421 | F13: 27901.75985 | G13: 27221.1831 | H13: 24626.77726 | I13: 21420.25822 | J13: 20164.18132 | K13: 17217.53891 | L13: 15230.70515 | M13: 10300.21623 | N13: 8878.684057 | O13: 7978.907281 | P13: 6825.714127 | Q13: 5838.540345 | R13: 4958.326883 | S13: 4166.770498 | T13: 3449.1689 | U13: 2774.059971 | V13: 2371.042576 | W13: 1905.87675 | X13: 1767.87797 | Y13: 1534.106182 | Z13: 1476.212792 | AA13: 1526.973819 | AB13: 1403.529104 | AC13: 1394.49173 | AD13: 1341.453513 | AE13: 1305.37772 | AF13: 1285.73538 | AG13: 1266.146131 | AH13: 1253.426197 | AI13: 1244.572412 | AJ13: 1239.434591 | AK13: 1236.490316 | AL13: 1234.522652 | AM13: 1234.036414 | AN13: 1234.016543 | AO13: 1234.353385 | AP13: 1234.325613 | AQ13: 1233.820592 | AR13: 1232.459743 | AS13: 1230.104972 | AT13: 1226.741079 | AU13: 1221.795515 | AV13: 1215.230273 | AW13: 1207.900392 | AX13: 1199.705072 | AY13: 1190.931329 | AZ13: 1181.355337 | BA13: 1165.334726
A14: 1A3c | B14: Railways | C14: 320.5432081 | D14: 325.905388 | E14: 344.7624888 | F14: 357.8504451 | G14: 324.3464929 | H14: 327.1988762 | I14: 324.7244332 | J14: 316.1739009 | K14: 266.7899233 | L14: 275.6843508 | M14: 252.8436095 | N14: 248.0317686 | O14: 242.989029 | P14: 223.0127313 | Q14: 217.4884778 | R14: 235.2432288 | S14: 229.7205565 | T14: 230.5567839 | U14: 204.5387514 | V14: 173.8677627 | W14: 189.1009776 | X14: 175.247458 | Y14: 190.1168358 | Z14: 164.4554323 | AA14: 160.7719069 | AB14: 138.4970431 | AC14: 131.949733 | AD14: 77.47158397 | AE14: 54.37989056 | AF14: 31.53094622 | AG14: 8.924750938 | AH14: 8.876470881 | AI14: 8.828190825 | AJ14: 8.779910768 | AK14: 7.770585275 | AL14: 7.02712443 | AM14: 6.975139159 | AN14: 2.871017607 | AO14: 2.810007509 | AP14: 2.748997411 | AQ14: 2.687987313 | AR14: 2.687987313 | AS14: 2.687987313 | AT14: 2.687987313 | AU14: 2.687987313 | AV14: 2.687987313 | AW14: 2.687987313 | AX14: 2.687987313 | AY14: 2.687987313 | AZ14: 2.687987313 | BA14: 2.687987313
A15: 1A3d | B15: Navigation | C15: 480.9280897 | D15: 547.5652336 | E15: 554.9626069 | F15: 498.2585895 | G15: 464.7414411 | H15: 488.1622949 | I15: 559.3250218 | J15: 543.4616516 | K15: 472.3079984 | L15: 389.8385084 | M15: 433.1136326 | N15: 460.3380411 | O15: 513.1615499 | P15: 509.417 | Q15: 452.671602 | R15: 522.8890132 | S15: 496.2176167 | T15: 444.0657948 | U15: 553.1675953 | V15: 532.7685426 | W15: 474.4277729 | X15: 462.33773 | Y15: 453.1810674 | Z15: 436.6821019 | AA15: 345.498566 | AB15: 397.7999162 | AC15: 455.2068143 | AD15: 450.9296645 | AE15: 451.4013464 | AF15: 451.7556579 | AG15: 452.0001194 | AH15: 452.1277635 | AI15: 452.1315465 | AJ15: 452.0043891 | AK15: 451.7392216 | AL15: 451.3566719 | AM15: 451.0552919 | AN15: 450.3637256 | AO15: 460.0074677 | AP15: 459.0321888 | AQ15: 457.8004681 | AR15: 453.7269885 | AS15: 449.6438619 | AT15: 445.5510537 | AU15: 441.4485296 | AV15: 437.3778922 | AW15: 433.2558812 | AX15: 429.1240496 | AY15: 424.9823621 | AZ15: 420.8307834 | BA15: 416.6692778
A17: 1A4a i | B17: Commercial and institutional plants | C17: 357.3169808 | D17: 321.314239 | E17: 310.3978444 | F17: 331.6283785 | G17: 338.0819225 | H17: 345.6910633 | I17: 363.0883371 | J17: 359.946867 | K17: 354.2290802 | L17: 364.7433465 | M17: 337.0337932 | N17: 311.5039947 | O17: 297.3819057 | P17: 284.7992029 | Q17: 268.3157641 | R17: 244.9806778 | S17: 235.7648041 | T17: 215.9188403 | U17: 220.1425182 | V17: 220.4290677 | W17: 223.1073388 | X17: 183.2254208 | Y17: 177.0617486 | Z17: 168.459162 | AA17: 147.8748324 | AB17: 159.0387369 | AC17: 168.0436414 | AD17: 153.9604222 | AE17: 150.0647351 | AF17: 146.1679145 | AG17: 142.3467949 | AH17: 144.3264239 | AI17: 146.3811841 | AJ17: 148.5062244 | AK17: 150.6108813 | AL17: 152.7578388 | AM17: 155.7591171 | AN17: 158.7693368 | AO17: 161.7561613 | AP17: 164.7290894 | AQ17: 167.645715 | AR17: 171.7580667 | AS17: 175.8661899 | AT17: 179.9591671 | AU17: 184.0408123 | AV17: 188.11176 | AW17: 193.8686275 | AX17: 199.6112776 | AY17: 205.3424809 | AZ17: 211.0659028 | BA17: 216.7821458
A18: 1A4a ii | B18: Commercial and institutional (mobile) | C18: 489.8979438 | D18: 475.1985933 | E18: 459.4062029 | F18: 470.3593033 | G18: 490.1671835 | H18: 514.914211 | I18: 542.6273104 | J18: 571.6546389 | K18: 601.6910242 | L18: 630.9615299 | M18: 661.023722 | N18: 813.5482811 | O18: 943.3101227 | P18: 1029.249981 | Q18: 1132.674071 | R18: 1233.653375 | S18: 1483.812574 | T18: 1566.757429 | U18: 1405.439714 | V18: 1100.125908 | W18: 928.3863585 | X18: 905.3245096 | Y18: 809.7033843 | Z18: 762.8033873 | AA18: 746.9312318 | AB18: 727.9185725 | AC18: 744.9514995 | AD18: 750.212433 | AE18: 745.9207934 | AF18: 728.6215002 | AG18: 697.550144 | AH18: 675.171267 | AI18: 658.1947948 | AJ18: 650.0930258 | AK18: 648.0024279 | AL18: 647.329484 | AM18: 647.2311688 | AN18: 647.2311532 | AO18: 647.2311532 | AP18: 647.2311532 | AQ18: 647.2311532 | AR18: 647.2311532 | AS18: 647.2311532 | AT18: 647.2311532 | AU18: 647.2311532 | AV18: 647.2311532 | AW18: 647.2311532 | AX18: 647.2311532 | AY18: 647.2311532 | AZ18: 647.2311532 | BA18: 647.2311532
A19: 1A4b i | B19: Residential plants | C19: 12236.34066 | D19: 13625.17195 | E19: 13464.59683 | F19: 14225.37424 | G19: 13401.04352 | H19: 13008.16412 | I19: 13075.1423 | J19: 12721.11953 | K19: 11290.39493 | L19: 10727.15037 | M19: 11781.40147 | N19: 12257.34224 | O19: 12013.15554 | P19: 13272.47983 | Q19: 13726.79418 | R19: 14953.92916 | S19: 15402.1129 | T19: 18277.16272 | U19: 16911.80661 | V19: 15735.09183 | W19: 16061.128 | X19: 14048.11691 | Y19: 13133.76153 | Z19: 12772.80106 | AA19: 11369.14052 | AB19: 12615.22997 | AC19: 12502.04636 | AD19: 12137.77978 | AE19: 11661.25004 | AF19: 11196.14299 | AG19: 10757.613 | AH19: 10337.80119 | AI19: 10052.29147 | AJ19: 9818.702886 | AK19: 9584.470297 | AL19: 9353.305314 | AM19: 9112.478766 | AN19: 8876.3597 | AO19: 8644.658065 | AP19: 8410.762724 | AQ19: 8178.027589 | AR19: 7947.610108 | AS19: 7720.435395 | AT19: 7490.817928 | AU19: 7264.738027 | AV19: 7036.804967 | AW19: 6996.749127 | AX19: 6956.693288 | AY19: 6916.637449 | AZ19: 6876.581609 | BA19: 6836.52577
A20: 1A4b ii | B20: Residential (mobile) | C20: 1197.051068 | D20: 1207.309309 | E20: 1194.784116 | F20: 1186.177569 | G20: 1183.27567 | H20: 1185.20448 | I20: 1197.970539 | J20: 1219.037258 | K20: 1242.203965 | L20: 1266.282927 | M20: 1290.668982 | N20: 1308.977881 | O20: 1322.269796 | P20: 1337.239056 | Q20: 1354.93798 | R20: 1370.143639 | S20: 1428.658916 | T20: 1476.776048 | U20: 1451.54889 | V20: 1306.592559 | W20: 1190.997938 | X20: 1102.564752 | Y20: 1046.177237 | Z20: 1005.074467 | AA20: 981.7529485 | AB20: 961.8594256 | AC20: 947.5488277 | AD20: 949.452707 | AE20: 949.5200175 | AF20: 943.6534782 | AG20: 933.1518546 | AH20: 921.8279685 | AI20: 911.9985618 | AJ20: 904.6152628 | AK20: 899.0987689 | AL20: 895.4106518 | AM20: 892.2755677 | AN20: 889.1381406 | AO20: 886.1690023 | AP20: 886.124379 | AQ20: 886.1122587 | AR20: 886.1115035 | AS20: 886.1115035 | AT20: 886.1115035 | AU20: 886.1115035 | AV20: 886.1115035 | AW20: 886.1115035 | AX20: 886.1115035 | AY20: 886.1115035 | AZ20: 886.1115035 | BA20: 886.1115035
A21: 1A4c i | B21: Plants in agriculture, forestry and aquaculture | C21: 2369.035593 | D21: 2415.656094 | E21: 2366.320863 | F21: 2217.205403 | G21: 2120.372967 | H21: 2083.147393 | I21: 2040.745216 | J21: 2183.52795 | K21: 2201.913978 | L21: 2051.741178 | M21: 1873.561412 | N21: 1754.69269 | O21: 1718.893797 | P21: 1697.19098 | Q21: 1698.432274 | R21: 1652.043053 | S21: 1574.434223 | T21: 1513.983546 | U21: 1467.842829 | V21: 1351.581546 | W21: 1445.152896 | X21: 1394.209916 | Y21: 1318.512335 | Z21: 1371.525626 | AA21: 1307.372992 | AB21: 1283.656577 | AC21: 1289.801536 | AD21: 1293.210768 | AE21: 1296.278753 | AF21: 1299.271606 | AG21: 1302.246827 | AH21: 1309.435229 | AI21: 1316.618813 | AJ21: 1323.79345 | AK21: 1330.924159 | AL21: 1338.07662 | AM21: 1349.406209 | AN21: 1360.975822 | AO21: 1370.799697 | AP21: 1380.12065 | AQ21: 1389.855617 | AR21: 1401.231362 | AS21: 1412.703025 | AT21: 1424.071969 | AU21: 1435.164094 | AV21: 1446.492899 | AW21: 1460.918365 | AX21: 1475.629927 | AY21: 1490.175275 | AZ21: 1503.290043 | BA21: 1516.128452
A22: 1A4c ii | B22: Agriculture & forestry (mobile) | C22: 5893.7011 | D22: 5515.625391 | E22: 5068.285386 | F22: 4747.264312 | G22: 4422.705764 | H22: 4300.487618 | I22: 3947.770261 | J22: 3787.230753 | K22: 3487.650842 | L22: 3300.568079 | M22: 3083.544419 | N22: 2926.426585 | O22: 2724.164084 | P22: 2526.51816 | Q22: 2342.309417 | R22: 2264.995945 | S22: 2238.972546 | T22: 2215.473326 | U22: 2166.11201 | V22: 2050.033717 | W22: 1923.717356 | X22: 1781.952788 | Y22: 1661.328684 | Z22: 1538.79134 | AA22: 1398.944907 | AB22: 1314.275571 | AC22: 1234.753649 | AD22: 1192.566988 | AE22: 1154.358958 | AF22: 1114.426614 | AG22: 1076.321975 | AH22: 1054.944315 | AI22: 1038.541833 | AJ22: 1026.342446 | AK22: 1013.050457 | AL22: 996.9225931 | AM22: 975.9282674 | AN22: 954.7742788 | AO22: 940.2171645 | AP22: 926.5368621 | AQ22: 911.9182633 | AR22: 900.3153847 | AS22: 895.5283235 | AT22: 891.7482387 | AU22: 888.9766408 | AV22: 886.0289381 | AW22: 882.0467297 | AX22: 877.192858 | AY22: 872.9247368 | AZ22: 871.3383415 | BA22: 870.2505281
A23: 1A4c iii | B23: Fishing (mobile) | C23: 410.8402219 | D23: 429.0123592 | E23: 396.197657 | F23: 377.5370297 | G23: 385.0557402 | H23: 391.4994482 | I23: 369.1259563 | J23: 299.9486311 | K23: 315.5458049 | L23: 361.4050436 | M23: 458.8970177 | N23: 436.9211535 | O23: 436.988137 | P23: 412.3852541 | Q23: 351.9741742 | R23: 354.8100656 | S23: 358.4325743 | T23: 331.756105 | U23: 299.4680829 | V23: 290.2530345 | W23: 288.9771083 | X23: 272.6967093 | Y23: 211.0788891 | Z23: 242.8884711 | AA23: 223.199023 | AB23: 244.3436972 | AC23: 244.5207705 | AD23: 245.4862141 | AE23: 246.367598 | AF23: 247.1595015 | AG23: 247.8567001 | AH23: 254.7346348 | AI23: 261.6470765 | AJ23: 268.4853058 | AK23: 275.2405499 | AL23: 281.9041883 | AM23: 288.3767771 | AN23: 294.8611752 | AO23: 301.3574441 | AP23: 307.8656452 | AQ23: 314.3858407 | AR23: 321.4599287 | AS23: 328.5471025 | AT23: 335.572276 | AU23: 342.5305254 | AV23: 349.41691 | AW23: 356.9040529 | AX23: 364.3911958 | AY23: 371.8783387 | AZ23: 379.3654816 | BA23: 386.8526246
A25: 1A5b | B25: Other mobile (military and recreational crafts) | C25: 1166.809381 | D25: 1305.169277 | E25: 1260.512907 | F25: 1326.501207 | G25: 1354.398316 | H25: 1415.315301 | I25: 1388.979058 | J25: 1422.902947 | K25: 1445.166441 | L25: 1438.229149 | M25: 1374.976942 | N25: 1350.023736 | O25: 1304.951119 | P25: 1254.900628 | Q25: 1245.57552 | R25: 1146.911416 | S25: 962.9626001 | T25: 863.3458801 | U25: 729.4611381 | V25: 650.1158144 | W25: 553.3459599 | X25: 501.2139283 | Y25: 416.162497 | Z25: 374.768668 | AA25: 339.2171139 | AB25: 304.1110888 | AC25: 296.1977947 | AD25: 282.9914909 | AE25: 272.2042919 | AF25: 261.5272359 | AG25: 250.9328903 | AH25: 244.1892419 | AI25: 237.5000612 | AJ25: 230.8540955 | AK25: 224.2499919 | AL25: 217.6811475 | AM25: 211.1399089 | AN25: 207.8908768 | AO25: 204.6580337 | AP25: 201.4390509 | AQ25: 198.2297924 | AR25: 195.0294855 | AS25: 195.0318119 | AT25: 195.0396203 | AU25: 195.0517893 | AV25: 195.0679646 | AW25: 195.0557567 | AX25: 195.3079549 | AY25: 195.1151038 | AZ25: 195.0893295 | BA25: 195.1242172
A27: 1B1 | B27: Fugitive emissions from solid fuels
A28: 1B2a | B28: Fugitive emissions from oil | C28: 11337.12412 | D28: 11130.36994 | E28: 11489.33668 | F28: 10715.98283 | G28: 10743.92056 | H28: 10721.72146 | I28: 10995.72107 | J28: 10133.58951 | K28: 10318.83239 | L28: 12893.33508 | M28: 15868.73231 | N28: 14422.86962 | O28: 15037.71451 | P28: 15014.27286 | Q28: 15994.04068 | R28: 15120.33144 | S28: 15307.13345 | T28: 14223.25093 | U28: 13553.73196 | V28: 11658.13833 | W28: 9946.795315 | X28: 9515.400557 | Y28: 9584.975688 | Z28: 8592.7797 | AA28: 8737.19481 | AB28: 8610.738916 | AC28: 8380.290722 | AD28: 8461.719595 | AE28: 8355.625154 | AF28: 8189.964706 | AG28: 7775.221543 | AH28: 7780.684108 | AI28: 8041.505398 | AJ28: 8405.837779 | AK28: 8282.274288 | AL28: 8350.267553 | AM28: 8403.925962 | AN28: 8386.195717 | AO28: 8375.43157 | AP28: 8426.427165 | AQ28: 8421.878742 | AR28: 8345.473054 | AS28: 8163.663694 | AT28: 8033.584658 | AU28: 7916.358257 | AV28: 7811.607286 | AW28: 7674.472415 | AX28: 7538.13182 | AY28: 7360.61577 | AZ28: 7238.562392 | BA28: 7092.055808
A29: 1B2b | B29: Fugitive emissions from gas | C29: 623.6648596 | D29: 733.4303851 | E29: 719.179913 | F29: 749.1286526 | G29: 733.8207829 | H29: 849.1666126 | I29: 859.5561718 | J29: 1049.633936 | K29: 1110.386916 | L29: 1156.193494 | M29: 1167.302228 | N29: 1177.59173 | O29: 1137.162334 | P29: 1048.274095 | Q29: 1150.794526 | R29: 1192.576489 | S29: 1123.937518 | T29: 1015.735166 | U29: 966.6626981 | V29: 840.7487416 | W29: 800.4718026 | X29: 697.6905012 | Y29: 570.1102819 | Z29: 476.762225 | AA29: 497.7505483 | AB29: 473.0219196 | AC29: 463.8397852 | AD29: 403.6064769 | AE29: 402.9353905 | AF29: 306.7074029 | AG29: 171.0001923 | AH29: 159.7781898 | AI29: 372.8098756 | AJ29: 399.3330972 | AK29: 400.2526179 | AL29: 472.9431237 | AM29: 476.0851818 | AN29: 420.0768636 | AO29: 386.7827404 | AP29: 416.9415905 | AQ29: 416.3858358 | AR29: 382.2202205 | AS29: 341.3343208 | AT29: 327.0611163 | AU29: 320.333252 | AV29: 287.1484394 | AW29: 276.2447067 | AX29: 257.4963795 | AY29: 239.5429728 | AZ29: 224.2531481 | BA29: 211.8649919
A30: 1B2c | B30: Fugitive emissions from venting and flaring | C30: 210.0966767 | D30: 379.8941403 | E30: 390.6921139 | F30: 344.541177 | G30: 359.9348851 | H30: 288.294341 | I30: 323.6551843 | J30: 419.4670041 | K30: 316.1821422 | L30: 615.3547469 | M30: 422.8874585 | N30: 440.8324606 | O30: 383.7540327 | P30: 386.81765 | Q30: 437.6320897 | R30: 321.3839836 | S30: 319.808775 | T30: 330.3468962 | U30: 266.1396896 | V30: 179.9306097 | W30: 225.334873 | X30: 164.2683288 | Y30: 157.8745506 | Z30: 169.4755303 | AA30: 172.5638214 | AB30: 159.4799043 | AC30: 176.2294538 | AD30: 157.0242275 | AE30: 155.5736367 | AF30: 157.7495228 | AG30: 110.0093991 | AH30: 120.5142606 | AI30: 142.5366269 | AJ30: 145.1789034 | AK30: 144.7437262 | AL30: 142.5834467 | AM30: 142.4383876 | AN30: 138.9789944 | AO30: 138.8339353 | AP30: 138.6888763 | AQ30: 105.9211316 | AR30: 105.7760725 | AS30: 105.6310135 | AT30: 109.8065135 | AU30: 107.5011749 | AV30: 107.5011749 | AW30: 105.0507772 | AX30: 105.0507772 | AY30: 104.9057181 | AZ30: 104.9057181 | BA30: 104.760659
A32: 2A | B32: Mineral industry | C32: 83.31327 | D32: 83.31327 | E32: 83.31327 | F32: 83.31327 | G32: 83.31327 | H32: 83.47653 | I32: 82.00143 | J32: 79.49106 | K32: 82.1205 | L32: 89.478 | M32: 87.7491 | N32: 81.24705 | O32: 74.4086 | P32: 76.3002 | Q32: 86.7825 | R32: 81.30825 | S32: 90.27225 | T32: 94.9 | U32: 84.58 | V32: 72.1 | W32: 59.9 | X32: 65.28 | Y32: 61.546 | Z32: 48.36482 | AA32: 55.45064 | AB32: 60.12189 | AC32: 71.6787018 | AD32: 71.93520195 | AE32: 74.03341884 | AF32: 78.85964001 | AG32: 82.48491809 | AH32: 86.67329423 | AI32: 90.47363033 | AJ32: 92.15460133 | AK32: 93.96959147 | AL32: 95.93149174 | AM32: 96.79785306 | AN32: 97.03620508 | AO32: 97.91204137 | AP32: 98.42646817 | AQ32: 99.60146254 | AR32: 100.520633 | AS32: 101.0735294 | AT32: 101.4728043 | AU32: 101.80819 | AV32: 102.862458 | AW32: 103.9288206 | AX32: 104.7910412 | AY32: 105.7482926 | AZ32: 106.687048 | BA32: 108.2638374
A33: 2B | B33: Chemical Industry | C33: 466.01 | D33: 219.6075 | E33: 143.82375 | F33: 119.98 | G33: 136.555 | H33: 145.6175 | I33: 201.88 | J33: 130.05 | K33: 134.06 | L33: 145.01 | M33: 91.995 | N33: 71.808 | O33: 46.022 | P33: 44.7545 | Q33: 48.485 | R33: 43.752 | S33: 41.5575 | T33: 41.008 | U33: 42.3735 | V33: 35.882 | W33: 33.4 | X33: 40.24 | Y33: 44.43 | Z33: 42.807 | AA33: 59.964 | AB33: 45.77 | AC33: 40.578 | AD33: 29.17625587 | AE33: 29.17625587 | AF33: 29.17625587 | AG33: 29.17625587 | AH33: 29.17625587 | AI33: 29.17625587 | AJ33: 29.17625587 | AK33: 29.17625587 | AL33: 29.17625587 | AM33: 29.17625587 | AN33: 29.17625587 | AO33: 29.17625587 | AP33: 29.17625587 | AQ33: 29.17625587 | AR33: 29.17625587 | AS33: 29.17625587 | AT33: 29.17625587 | AU33: 29.17625587 | AV33: 29.17625587 | AW33: 29.17625587 | AX33: 29.17625587 | AY33: 29.17625587 | AZ33: 29.17625587 | BA33: 29.17625587
A34: 2C | B34: Metal industry | C34: 28.233466 | D34: 28.233466 | E34: 28.233466 | F34: 30.733796 | G34: 33.23408 | H34: 32.972202 | I34: 33.104176 | J34: 37.528226 | K34: 34.569322 | L34: 36.68661 | M34: 29.025126 | N34: 33.36472 | O34: 0 | P34: 3.280207 | Q34: 3.539718 | R34: 14.533002 | S34: 4.051887 | T34: 4.629625 | U34: 4.367216 | V34: 2.120181 | W34: 3.569146 | X34: 3.909262 | Y34: 2.974678 | Z34: 3.598196 | AA34: 3.683708 | AB34: 3.989391 | AC34: 4.217346 | AD34: 4.209586243 | AE34: 4.136085638 | AF34: 4.322773607 | AG34: 4.489051886 | AH34: 4.581909758 | AI34: 4.700888898 | AJ34: 4.801890484 | AK34: 4.888725378 | AL34: 4.961770537 | AM34: 4.990325793 | AN34: 5.028175616 | AO34: 5.084054944 | AP34: 5.134873579 | AQ34: 5.230456037 | AR34: 5.308373956 | AS34: 5.377950381 | AT34: 5.441991162 | AU34: 5.499024176 | AV34: 5.597872389 | AW34: 5.692719102 | AX34: 5.767356923 | AY34: 5.850769567 | AZ34: 5.93008528 | BA34: 6.055724891
A35: 2D | B35: Non-energy products from fuels and solvent use | C35: 38454.99195 | D35: 43394.72205 | E35: 45949.74435 | F35: 39958.10417 | G35: 47507.62211 | H35: 45692.24539 | I35: 49915.03969 | J35: 45205.75777 | K35: 42012.24897 | L35: 41195.33453 | M35: 41636.27036 | N35: 36864.03755 | O35: 36647.6629 | P35: 32897.83627 | Q35: 32678.03762 | R35: 31878.37413 | S35: 31074.82891 | T35: 27927.02561 | U35: 28249.83121 | V35: 28034.60316 | W35: 27720.01923 | X35: 27082.01244 | Y35: 26968.85437 | Z35: 29606.43879 | AA35: 24762.77012 | AB35: 26825.69075 | AC35: 25322.14198 | AD35: 25744.511 | AE35: 25744.511 | AF35: 25744.511 | AG35: 25744.511 | AH35: 25744.511 | AI35: 25744.511 | AJ35: 25744.511 | AK35: 25744.511 | AL35: 25744.511 | AM35: 25744.511 | AN35: 25744.511 | AO35: 25744.511 | AP35: 25744.511 | AQ35: 25744.511 | AR35: 25744.511 | AS35: 25744.511 | AT35: 25744.511 | AU35: 25744.511 | AV35: 25744.511 | AW35: 25744.511 | AX35: 25744.511 | AY35: 25744.511 | AZ35: 25744.511 | BA35: 25744.511
A36: 2G | B36: Other product manufacture and use | C36: 84.6830957 | D36: 77.85995205 | E36: 88.28373775 | F36: 78.2180768 | G36: 74.4345103 | H36: 80.01392305 | I36: 84.7179762 | J36: 95.2516981 | K36: 85.3056376 | L36: 88.00940705 | M36: 94.6196585 | N36: 85.1840969 | O36: 101.1628848 | P36: 114.0146007 | Q36: 101.7455148 | R36: 94.7102637 | S36: 109.3081085 | T36: 84.6321813 | U36: 78.45491805 | V36: 80.9168085 | W36: 69.193697 | X36: 62.12766 | Y36: 83.891867 | Z36: 84.1261325 | AA36: 69.5091565 | AB36: 86.7038035 | AC36: 57.319814 | AD36: 72.604529 | AE36: 71.3212729 | AF36: 70.0380168 | AG36: 68.7547607 | AH36: 67.4715046 | AI36: 66.1882485 | AJ36: 64.9049924 | AK36: 63.6217363 | AL36: 62.3384802 | AM36: 61.0552241 | AN36: 59.771968 | AO36: 58.4887119 | AP36: 57.2054558 | AQ36: 55.9221997 | AR36: 54.6389436 | AS36: 53.3556875 | AT36: 52.0724314 | AU36: 50.7891753 | AV36: 49.5059192 | AW36: 48.2226631 | AX36: 46.939407 | AY36: 45.6561509 | AZ36: 44.3728948 | BA36: 43.0896387
A37: 2H | B37: Other | C37: 3314.829102 | D37: 3379.156287 | E37: 3313.356133 | F37: 3306.017952 | G37: 3239.148835 | H37: 3359.616865 | I37: 3201.227191 | J37: 3409.960775 | K37: 3499.415311 | L37: 3005.495534 | M37: 3080.803111 | N37: 3227.495339 | O37: 3116.2938 | P37: 3086.903162 | Q37: 3084.26575 | R37: 3072.443429 | S37: 3052.325917 | T37: 2933.055377 | U37: 2904.706936 | V37: 2849.781796 | W37: 2777.797573 | X37: 2696.136451 | Y37: 2684.23781 | Z37: 2629.956445 | AA37: 2564.167285 | AB37: 2496.308915 | AC37: 2439.39944 | AD37: 2555.811367 | AE37: 2555.811367 | AF37: 2555.811367 | AG37: 2555.811367 | AH37: 2555.811367 | AI37: 2555.811367 | AJ37: 2555.811367 | AK37: 2555.811367 | AL37: 2555.811367 | AM37: 2555.811367 | AN37: 2555.811367 | AO37: 2555.811367 | AP37: 2555.811367 | AQ37: 2555.811367 | AR37: 2555.811367 | AS37: 2555.811367 | AT37: 2555.811367 | AU37: 2555.811367 | AV37: 2555.811367 | AW37: 2555.811367 | AX37: 2555.811367 | AY37: 2555.811367 | AZ37: 2555.811367 | BA37: 2555.811367
A38: 2I | B38: Wood processing
A39: 2L | B39: Other production
A41: 3B1a | B41: Manure Management - Dairy cattle | C41: 12391.37782 | D41: 12202.68891 | E41: 11713.70718 | F41: 11749.5926 | G41: 11510.14481 | H41: 11558.13967 | I41: 11528.06251 | J41: 11029.66954 | K41: 11008.36259 | L41: 10533.4815 | M41: 10456.49541 | N41: 10256.42069 | O41: 10030.08651 | P41: 9948.158382 | Q41: 9511.250172 | R41: 9631.965243 | S41: 9497.597109 | T41: 9517.252807 | U41: 9736.310993 | V41: 9826.174579 | W41: 9914.712544 | X41: 9860.724665 | Y41: 10246.02191 | Z41: 10161.41038 | AA41: 9817.502639 | AB41: 9789.112496 | AC41: 9974.737872 | AD41: 10111.23317 | AE41: 10179.64892 | AF41: 10265.86609 | AG41: 10316.96802 | AH41: 10334.63406 | AI41: 10405.29821 | AJ41: 10458.29633 | AK41: 10528.96049 | AL41: 10599.62464 | AM41: 10652.62275 | AN41: 10723.28695 | AO41: 10793.95109 | AP41: 10864.61526 | AQ41: 10970.61152 | AR41: 10970.61152 | AS41: 10970.61152 | AT41: 10970.61152 | AU41: 10970.61152 | AV41: 10970.61152 | AW41: 10970.61152 | AX41: 10970.61152 | AY41: 10970.61152 | AZ41: 10970.61152 | BA41: 10970.61152
A42: 3B1b | B42: Manure Management - Non-dairy cattle | C42: 11290.98637 | D42: 11126.98004 | E42: 11140.62807 | F42: 10944.84902 | G42: 10316.63396 | H42: 10128.10694 | I42: 10094.75703 | J42: 9612.325309 | K42: 9327.709695 | L42: 8920.391343 | M42: 8767.143835 | N42: 9124.208964 | O42: 8554.917376 | P42: 8235.950536 | Q42: 8032.401014 | R42: 7510.540091 | S42: 7424.82782 | T42: 7810.421546 | U42: 7748.769981 | V42: 7559.223643 | W42: 7622.142419 | X42: 7695.276053 | Y42: 7680.703721 | Z42: 7816.06792 | AA42: 7617.537968 | AB42: 7518.723712 | AC42: 7552.964687 | AD42: 7524.248849 | AE42: 7560.489623 | AF42: 7585.43156 | AG42: 7616.022861 | AH42: 7646.614227 | AI42: 7671.556233 | AJ42: 7702.147589 | AK42: 7727.089526 | AL42: 7757.680939 | AM42: 7782.622851 | AN42: 7813.214176 | AO42: 7838.156176 | AP42: 7863.098157 | AQ42: 7893.689507 | AR42: 7893.689507 | AS42: 7893.689507 | AT42: 7893.689507 | AU42: 7893.689507 | AV42: 7893.689507 | AW42: 7893.689507 | AX42: 7893.689507 | AY42: 7893.689507 | AZ42: 7893.689507 | BA42: 7893.689507
A43: 3B2 | B43: Manure Management - Sheep | C43: 36.60982149 | D43: 42.41617808 | E43: 40.79456578 | F43: 35.15500632 | G43: 31.85251854 | H43: 32.14309923 | I43: 37.45814505 | J43: 38.20801529 | K43: 40.19460586 | L43: 42.10154164 | M43: 44.46609422 | N43: 47.23768279 | O43: 46.77767636 | P43: 48.1955317 | Q43: 49.46522912 | R43: 50.28766488 | S43: 50.87472071 | T43: 49.30114025 | U43: 46.79281077 | V43: 46.00900759 | W43: 44.20920751 | X43: 37.24976811 | Y43: 35.97768104 | Z43: 35.2102071 | AA43: 35.02939071 | AB43: 33.49444282 | AC43: 32.86224993 | AD43: 33.79536098 | AE43: 33.79536098 | AF43: 33.79536098 | AG43: 33.79536098 | AH43: 33.79536098 | AI43: 33.79536098 | AJ43: 33.79536098 | AK43: 33.79536098 | AL43: 33.79536098 | AM43: 33.79536098 | AN43: 33.79536098 | AO43: 33.79536098 | AP43: 33.79536098 | AQ43: 33.79536098 | AR43: 33.79536098 | AS43: 33.79536098 | AT43: 33.79536098 | AU43: 33.79536098 | AV43: 33.79536098 | AW43: 33.79536098 | AX43: 33.79536098 | AY43: 33.79536098 | AZ43: 33.79536098 | BA43: 33.79536098
A44: 3B3 | B44: Manure Management - Swine | C44: 6275.5888 | D44: 6455.255378 | E44: 6903.574864 | F44: 7556.04472 | G44: 7139.645174 | H44: 7247.714162 | I44: 7104.07173 | J44: 7461.894226 | K44: 7872.859932 | L44: 7574.55349 | M44: 7762.102547 | N44: 8189.67357 | O44: 8277.846612 | P44: 8419.602432 | Q44: 8584.772852 | R44: 8745.300758 | S44: 8623.083953 | T44: 8853.371554 | U44: 8215.475162 | V44: 8047.649606 | W44: 8523.02164 | X44: 8340.342518 | Y44: 7940.094796 | Z44: 7761.118763 | AA44: 7973.68796 | AB44: 8091.495859 | AC44: 7964.698783 | AD44: 7989.546875 | AE44: 8016.296466 | AF44: 8026.309838 | AG44: 8051.449449 | AH44: 8059.899811 | AI44: 8052.348757 | AJ44: 8037.983782 | AK44: 8034.63858 | AL44: 8017.747303 | AM44: 7988.459215 | AN44: 7959.885456 | AO44: 7927.393302 | AP44: 7892.864734 | AQ44: 7854.265315 | AR44: 7854.265315 | AS44: 7854.265315 | AT44: 7854.265315 | AU44: 7854.265315 | AV44: 7854.265315 | AW44: 7854.265315 | AX44: 7854.265315 | AY44: 7854.265315 | AZ44: 7854.265315 | BA44: 7854.265315
A45: 3B4d | B45: Manure Management - Goats | C45: 4.232081986 | D45: 4.175353178 | E45: 4.11862437 | F45: 4.061895562 | G45: 4.005166753 | H45: 3.948437945 | I45: 3.891709137 | J45: 3.834980329 | K45: 4.377431918 | L45: 4.565963479 | M45: 4.777073671 | N45: 5.332507973 | O45: 5.210018904 | P45: 5.67175189 | Q45: 6.081554027 | R45: 6.456359288 | S45: 6.85882337 | T45: 7.157990219 | U45: 7.984932548 | V45: 8.849694082 | W45: 9.025242932 | X45: 7.087996466 | Y45: 7.242660082 | Z45: 7.317734027 | AA45: 6.722222658 | AB45: 6.345724 | AC45: 5.823214986 | AD45: 6.297054634 | AE45: 6.297054634 | AF45: 6.297054634 | AG45: 6.297054634 | AH45: 6.297054634 | AI45: 6.297054634 | AJ45: 6.297054634 | AK45: 6.297054634 | AL45: 6.297054634 | AM45: 6.297054634 | AN45: 6.297054634 | AO45: 6.297054634 | AP45: 6.297054634 | AQ45: 6.297054634 | AR45: 6.297054634 | AS45: 6.297054634 | AT45: 6.297054634 | AU45: 6.297054634 | AV45: 6.297054634 | AW45: 6.297054634 | AX45: 6.297054634 | AY45: 6.297054634 | AZ45: 6.297054634 | BA45: 6.297054634
A46: 3B4e | B46: Manure Management - Horses | C46: 813.78 | D46: 822.822 | E46: 831.864 | F46: 840.906 | G46: 849.948 | H46: 858.99 | I46: 868.032 | J46: 877.074 | K46: 886.116 | L46: 895.158 | M46: 904.2 | N46: 934.34 | O46: 964.48 | P46: 994.62 | Q46: 1024.76 | R46: 1054.9 | S46: 1085.04 | T46: 1115.18 | U46: 1145.32 | V46: 1069.97 | W46: 994.62 | X46: 934.34 | Y46: 934.34 | Z46: 904.2 | AA46: 904.2 | AB46: 934.34 | AC46: 934.34 | AD46: 934.34 | AE46: 934.34 | AF46: 934.34 | AG46: 934.34 | AH46: 934.34 | AI46: 934.34 | AJ46: 934.34 | AK46: 934.34 | AL46: 934.34 | AM46: 934.34 | AN46: 934.34 | AO46: 934.34 | AP46: 934.34 | AQ46: 934.34 | AR46: 934.34 | AS46: 934.34 | AT46: 934.34 | AU46: 934.34 | AV46: 934.34 | AW46: 934.34 | AX46: 934.34 | AY46: 934.34 | AZ46: 934.34 | BA46: 934.34
A47: 3B4g | B47: Manure Management - Poultry | C47: 2801.869355 | D47: 2771.824409 | E47: 3130.763675 | F47: 3297.912468 | G47: 3376.555475 | H47: 3324.249288 | I47: 3299.021497 | J47: 3224.503034 | K47: 3128.198428 | L47: 3341.785732 | M47: 3415.416581 | N47: 3361.40866 | O47: 3298.23656 | P47: 2956.496761 | Q47: 2901.205076 | R47: 3040.767578 | S47: 2863.982381 | T47: 2771.803474 | U47: 2700.746425 | V47: 3166.325001 | W47: 3088.463229 | X47: 3080.356532 | Y47: 3096.205666 | Z47: 3094.651394 | AA47: 2938.692096 | AB47: 2839.634447 | AC47: 3007.920878 | AD47: 3069.760225 | AE47: 3101.59609 | AF47: 3121.217646 | AG47: 3133.463411 | AH47: 3138.79039 | AI47: 3143.187525 | AJ47: 3143.896738 | AK47: 3141.375109 | AL47: 3135.740776 | AM47: 3126.993788 | AN47: 3117.553325 | AO47: 3105.000272 | AP47: 3093.597669 | AQ47: 3080.351106 | AR47: 3080.351106 | AS47: 3080.351106 | AT47: 3080.351106 | AU47: 3080.351106 | AV47: 3080.351106 | AW47: 3080.351106 | AX47: 3080.351106 | AY47: 3080.351106 | AZ47: 3080.351106 | BA47: 3080.351106
A48: 3B4h | B48: Manure Management - Other (mainly mink) | C48: 4395.32043 | D48: 4099.001547 | E48: 4432.519695 | F48: 2984.405589 | G48: 3549.250176 | H48: 3591.187422 | I48: 3724.176978 | J48: 4294.54567 | K48: 4552.19205 | L48: 4055.012664 | M48: 4268.511018 | N48: 4473.078786 | O48: 4700.631123 | P48: 4582.829967 | Q48: 4796.584488 | R48: 4954.141923 | S48: 5256.518667 | T48: 5506.299036 | U48: 5454.607473 | V48: 5281.92723 | W48: 5239.689669 | X48: 5351.073541 | Y48: 5722.280463 | Z48: 6061.989064 | AA48: 6420.602223 | AB48: 6577.162797 | AC48: 6309.849303 | AD48: 6336.019913 | AE48: 6483.186675 | AF48: 6631.472118 | AG48: 6780.876241 | AH48: 6898.632136 | AI48: 7016.388031 | AJ48: 7134.143927 | AK48: 7251.89982 | AL48: 7369.655717 | AM48: 7487.41161 | AN48: 7605.167505 | AO48: 7722.9234 | AP48: 7840.679295 | AQ48: 7958.43519 | AR48: 7958.43519 | AS48: 7958.43519 | AT48: 7958.43519 | AU48: 7958.43519 | AV48: 7958.43519 | AW48: 7958.43519 | AX48: 7958.43519 | AY48: 7958.43519 | AZ48: 7958.43519 | BA48: 7958.43519
A49: 3Da1 | B49: Inorganic N-fertilizers (includes also urea application)
A50: 3Da2a | B50: Animal manure applied to soils
A51: 3Da2b-c | B51: Sludge applied to soils
A52: 3Da3 | B52: Urine and dung deposited by grazing animals
A53: 3Dc | B53: Farm-level agricultural operations including storage, handling and transport of agricultural products
A54: 3De | B54: Cultivated crops | C54: 1988.71 | D54: 1801.97 | E54: 1404.14 | F54: 1545.39 | G54: 1429.56 | H54: 1569.51 | I54: 1402.65 | J54: 1559.49 | K54: 1637.42 | L54: 1481.19 | M54: 1482.79 | N54: 1454.38 | O54: 1372.22 | P54: 1441.22 | Q54: 1546.76 | R54: 1423.42 | S54: 1477.55 | T54: 1516.72 | U54: 1669.94 | V54: 1698.39 | W54: 1510.38 | X54: 1499.85 | Y54: 1663.09 | Z54: 1827.67 | AA54: 1944.84 | AB54: 2106.03 | AC54: 1741.12 | AD54: 1822.387174 | AE54: 1814.641325 | AF54: 1799.853794 | AG54: 1785.066262 | AH54: 1768.870395 | AI54: 1761.828713 | AJ54: 1756.195368 | AK54: 1749.857855 | AL54: 1744.22451 | AM54: 1738.591164 | AN54: 1732.957819 | AO54: 1727.324474 | AP54: 1721.691129 | AQ54: 1716.057784 | AR54: 1716.057784 | AS54: 1716.057784 | AT54: 1716.057784 | AU54: 1716.057784 | AV54: 1716.057784 | AW54: 1716.057784 | AX54: 1716.057784 | AY54: 1716.057784 | AZ54: 1716.057784 | BA54: 1716.057784
A55: 3F | B55: Field burning of agricultural residues | C55: 202.6286482 | D55: 210.6760084 | E55: 201.4310025 | F55: 219.9414971 | G55: 212.0977609 | H55: 240.0376073 | I55: 238.690557 | J55: 253.0309793 | K55: 318.5436476 | L55: 302.5983319 | M55: 298.0740263 | N55: 313.2470171 | O55: 260.5747016 | P55: 313.2530415 | Q55: 328.4224177 | R55: 333.2696299 | S55: 338.087925 | T55: 292.5364208 | U55: 270.9209632 | V55: 318.7207643 | W55: 232.415568 | X55: 230.044374 | Y55: 264.368853 | Z55: 285.7047795 | AA55: 281.3093955 | AB55: 247.230229 | AC55: 243.8907975 | AD55: 259.6111607 | AE55: 258.5077129 | AF55: 256.4011309 | AG55: 254.2945488 | AH55: 251.9873399 | AI55: 250.9842056 | AJ55: 250.1816981 | AK55: 249.2788772 | AL55: 248.4763698 | AM55: 247.6738623 | AN55: 246.8713549 | AO55: 246.0688474 | AP55: 245.26634 | AQ55: 244.4638325 | AR55: 244.4638325 | AS55: 244.4638325 | AT55: 244.4638325 | AU55: 244.4638325 | AV55: 244.4638325 | AW55: 244.4638325 | AX55: 244.4638325 | AY55: 244.4638325 | AZ55: 244.4638325 | BA55: 244.4638325
A56: 3I | B56: Agriculture other
A58: 5A | B58: Solid waste disposal on land | C58: NE | D58: NE | E58: NE | F58: NE | G58: NE | H58: NE | I58: NE | J58: NE | K58: NE | L58: NE | M58: NE | N58: NE | O58: NE | P58: NE | Q58: NE | R58: NE | S58: NE | T58: NE | U58: NE | V58: NE | W58: NE | X58: NE | Y58: NE | Z58: NE | AA58: NE | AB58: NE | AC58: NE | AD58: NE | AE58: NE | AF58: NE | AG58: NE | AH58: NE | AI58: NE | AJ58: NE | AK58: NE | AL58: NE | AM58: NE | AN58: NE | AO58: NE | AP58: NE | AQ58: NE | AR58: NE | AS58: NE | AT58: NE | AU58: NE | AV58: NE | AW58: NE | AX58: NE | AY58: NE | AZ58: NE | BA58: NE
A59: 5B | B59: Biological treatment of waste | C59: NE | D59: NE | E59: NE | F59: NE | G59: NE | H59: NE | I59: NE | J59: NE | K59: NE | L59: NE | M59: NE | N59: NE | O59: NE | P59: NE | Q59: NE | R59: NE | S59: NE | T59: NE | U59: NE | V59: NE | W59: NE | X59: NE | Y59: NE | Z59: NE | AA59: NE | AB59: NE | AC59: NE | AD59: NE | AE59: NE | AF59: NE | AG59: NE | AH59: NE | AI59: NE | AJ59: NE | AK59: NE | AL59: NE | AM59: NE | AN59: NE | AO59: NE | AP59: NE | AQ59: NE | AR59: NE | AS59: NE | AT59: NE | AU59: NE | AV59: NE | AW59: NE | AX59: NE | AY59: NE | AZ59: NE | BA59: NE
A60: 5C | B60: Waste incineration | C60: 0.832883 | D60: 0.848658 | E60: 0.878915 | F60: 0.921522 | G60: 0.935906 | H60: 0.970011 | I60: 0.982406 | J60: 0.997583 | K60: 1.0109 | L60: 1.286507 | M60: 1.428303 | N60: 1.446811 | O60: 1.455447 | P60: 1.469181 | Q60: 1.682455 | R60: 2.054554 | S60: 2.768729 | T60: 3.111378 | U60: 3.219844 | V60: 3.229064 | W60: 3.44409 | X60: 2.973464 | Y60: 3.007017 | Z60: 2.842697 | AA60: 2.861916 | AB60: 2.800094 | AC60: 2.943296 | AD60: 2.880629333 | AE60: 2.880629333 | AF60: 2.880629333 | AG60: 2.880629333 | AH60: 2.880629333 | AI60: 2.880629333 | AJ60: 2.880629333 | AK60: 2.880629333 | AL60: 2.880629333 | AM60: 2.880629333 | AN60: 2.880629333 | AO60: 2.880629333 | AP60: 2.880629333 | AQ60: 2.880629333 | AR60: 2.880629333 | AS60: 2.880629333 | AT60: 2.880629333 | AU60: 2.880629333 | AV60: 2.880629333 | AW60: 2.880629333 | AX60: 2.880629333 | AY60: 2.880629333 | AZ60: 2.880629333 | BA60: 2.880629333
A61: 5D | B61: Wastewater handling | C61: NE | D61: NE | E61: NE | F61: NE | G61: NE | H61: NE | I61: NE | J61: NE | K61: NE | L61: NE | M61: NE | N61: NE | O61: NE | P61: NE | Q61: NE | R61: NE | S61: NE | T61: NE | U61: NE | V61: NE | W61: NE | X61: NE | Y61: NE | Z61: NE | AA61: NE | AB61: NE | AC61: NE | AD61: NE | AE61: NE | AF61: NE | AG61: NE | AH61: NE | AI61: NE | AJ61: NE | AK61: NE | AL61: NE | AM61: NE | AN61: NE | AO61: NE | AP61: NE | AQ61: NE | AR61: NE | AS61: NE | AT61: NE | AU61: NE | AV61: NE | AW61: NE | AX61: NE | AY61: NE | AZ61: NE | BA61: NE
A62: 5E | B62: Other | C62: 215.4837982 | D62: 221.9159436 | E62: 239.6591914 | F62: 213.7281822 | G62: 214.6697402 | H62: 244.8672138 | I62: 247.4643705 | J62: 230.0912402 | K62: 208.4369773 | L62: 222.1489602 | M62: 218.1218802 | N62: 215.0338729 | O62: 208.9297515 | P62: 232.6203968 | Q62: 203.6428617 | R62: 211.1072012 | S62: 216.1932646 | T62: 229.3689881 | U62: 197.8617753 | V62: 187.3280899 | W62: 168.6277632 | X62: 168.5554381 | Y62: 154.1605511 | Z62: 160.3264988 | AA62: 146.5476132 | AB62: 153.6850041 | AC62: 172.3394493 | AD62: 157.4118233 | AE62: 157.4118233 | AF62: 157.4118233 | AG62: 157.4118233 | AH62: 157.4118233 | AI62: 157.4118233 | AJ62: 157.4118233 | AK62: 157.4118233 | AL62: 157.4118233 | AM62: 157.4118233 | AN62: 157.4118233 | AO62: 157.4118233 | AP62: 157.4118233 | AQ62: 157.4118233 | AR62: 157.4118233 | AS62: 157.4118233 | AT62: 157.4118233 | AU62: 157.4118233 | AV62: 157.4118233 | AW62: 157.4118233 | AX62: 157.4118233 | AY62: 157.4118233 | AZ62: 157.4118233 | BA62: 157.4118233
B63: Total | C63: =SUM(C3:C62) -> 203933.1585 | D63: =SUM(D3:D62) -> 212385.1462 | E63: 214242.3786 | F63: 205036.8934 | G63: 208159.9231 | H63: 202877.6023 | I63: 203436.2141 | J63: 192971.638 | K63: 183616.5875 | L63: 176285.4136 | M63: 172141.2344 | N63: 163615.9376 | O63: 158708.2778 | P63: 152326.4498 | Q63: 148774.2798 | R63: 144994.5112 | S63: 141172.4668 | T63: 137433.2909 | U63: 132425.1708 | V63: 124918.9382 | W63: 121887.4177 | X63: 115351.4739 | Y63: 111868.0038 | Z63: 111658.8803 | AA63: 103444.8949 | AB63: =SUM(AB3:AB62) -> 106045.7788 | AC63: 103073.862 | AD63: 104008.7551 | AE63: 102627.916 | AF63: 101657.3777 | AG63: 100371.2478 | AH63: 99792.35741 | AI63: 99983.01896 | AJ63: 100198.6379 | AK63: 99893.20673 | AL63: 99868.88176 | AM63: 99747.55791 | AN63: 99563.02852 | AO63: 99414.59606 | AP63: 99388.03928 | AQ63: 99280.33183 | AR63: =SUM(AR3:AR62) -> 98929.81515 | AS63: =SUM(AS3:AS62) -> 98488.9374 | AT63: =SUM(AT3:AT62) -> 98129.4377 | AU63: =SUM(AU3:AU62) -> 97784.00294 | AV63: =SUM(AV3:AV62) -> 97421.29681 | AW63: =SUM(AW3:AW62) -> 97299.79754 | AX63: 97145.72414 | AY63: 96957.73531 | AZ63: 96829.61662 | BA63: 96663.31043
B64: Total including adjustments | R64: =SUM(R3:R39,R54:R62) -> 110000.1516 | S64: =SUM(S3:S39,S54:S62) -> 106363.6833 | T64: 101802.5034 | U64: 97369.16305 | V64: 89912.80943 | W64: 86451.53379 | X64: 80045.02286 | Y64: 76205.13691 | Z64: 75816.91481 | AA64: 67730.92038 | AB64: 70255.46929 | AC64: 67290.66496 | AD64: 68003.51361 | AE64: 66312.26579 | AF64: 65052.64808 | AG64: 63498.03544 | AH64: 62739.35437 | AI64: 62719.80779 | AJ64: 62747.73716 | AK64: 62234.81078 | AL64: 62013.99997 | AM64: 61735.01528 | AN64: 61369.48869 | AO64: 61052.7394 | AP64: 60858.75175 | AQ64: 60548.54678 | AR64: 60198.03009 | AS64: 59757.15234 | AT64: 59397.65265 | AU64: 59052.21789 | AV64: 58689.51176 | AW64: =SUM(AW3:AW39,AW54:AW62) -> 58568.01249 | AX64: 58413.93909 | AY64: 58225.95026 | AZ64: 58097.83156 | BA64: 57931.52537
B65: Total excluding categories 3B and 3D | C65: =SUM(C3:C39,C55:C62) -> 163934.6838 | D65: =SUM(D3:D39,D55:D62) -> 173058.0124 | E65: 174640.2679 | F65: 166078.5761 | G65: 169952.3278 | H65: 164563.6133 | I65: 165374.0925 | J65: 154870.0932 | K65: 145159.1567 | L65: 139437.1734 | M65: 135035.3318 | N65: 125769.8567 | O65: 121457.8719 | P65: 115693.7044 | Q65: 112320.9995 | R65: 108576.7316 | S65: 104886.1333 | T65: 100285.7834 | U65: 95699.22305 | V65: 88214.41943 | W65: 84941.15379 | X65: 78545.17286 | Y65: 74542.04691 | Z65: 73989.24481 | AA65: 65786.08038 | AB65: =SUM(AB3:AB39,AB55:AB62) -> 68149.43929 | AC65: 65549.54496 | AD65: 66181.12643 | AE65: 64497.62447 | AF65: 63252.79429 | AG65: 61712.96917 | AH65: 60970.48397 | AI65: 60957.97908 | AJ65: 60991.5418 | AK65: 60484.95293 | AL65: 60269.77546 | AM65: 59996.42412 | AN65: 59636.53087 | AO65: 59325.41493 | AP65: 59137.06062 | AQ65: 58832.48899 | AR65: =SUM(AR3:AR39,AR55:AR62) -> 58481.97231 | AS65: =SUM(AS3:AS39,AS55:AS62) -> 58041.09456 | AT65: =SUM(AT3:AT39,AT55:AT62) -> 57681.59486 | AU65: =SUM(AU3:AU39,AU55:AU62) -> 57336.1601 | AV65: =SUM(AV3:AV39,AV55:AV62) -> 56973.45398 | AW65: =SUM(AW3:AW39,AW55:AW62) -> 56851.9547 | AX65: 56697.8813 | AY65: 56509.89247 | AZ65: 56381.77378 | BA65: 56215.46759
B66: Reduction since 2005 | S66: =($R$63-S63)/$R$63 -> 0.02635992491 | T66: 0.05214832056 | U66: 0.08668838738 | V66: 0.1384574687 | W66: 0.1593652977 | X66: 0.2044424786 | Y66: 0.2284673199 | Z66: 0.2299096058 | AA66: 0.2865599254 | AB66: =($R$63-AB63)/$R$63 -> 0.2686221161 | AC66: =($R$65-AC65)/$R$65 -> 0.3962836786 | AD66: 0.2826710873 | AE66: 0.2921944759 | AF66: 0.2988880964 | AG66: 0.3077582936 | AH66: 0.3117507925 | AI66: 0.3104358355 | AJ66: 0.3089487517 | AK66: 0.3110552537 | AL66: 0.3112230184 | AM66: 0.3120597663 | AN66: 0.313332431 | AO66: 0.3143561418 | AP66: 0.314539299 | AQ66: 0.3152821371 | AR66: =($R$63-AR63)/$R$63 -> 0.317699585 | AS66: =($R$63-AS63)/$R$63 -> 0.3207402363 | AT66: =($R$63-AT63)/$R$63 -> 0.3232196384 | AU66: =($R$63-AU63)/$R$63 -> 0.3256020373 | AV66: =($R$63-AV63)/$R$63 -> 0.3281035536 | AW66: =($R$63-AW63)/$R$63 -> 0.3289415113 | AX66: 0.3300041267 | AY66: 0.3313006505 | AZ66: 0.3321842611 | BA66: 0.3333312438
A68: 1A3a | B68: Civil Aviation (Domestic Cruise) | C68: 11.97846184 | D68: 11.18375677 | E68: 11.1211181 | F68: 10.26921888 | G68: 10.74771756 | H68: 10.85888398 | I68: 11.40251512 | J68: 10.7703177 | K68: 9.567485619 | L68: 8.912509004 | M68: 8.14664422 | N68: 8.283907815 | O68: 8.920134833 | P68: 10.10661287 | Q68: 14.33014133 | R68: 13.10499409 | S68: 10.68177043 | T68: 8.846886613 | U68: 6.160323249 | V68: 6.512578844 | W68: 6.903486434 | X68: 6.49922694 | Y68: 7.564348879 | Z68: 8.20450796 | AA68: 7.732851043 | AB68: 7.046852897 | AC68: 7.896927743 | AD68: 7.37792167 | AE68: 7.442501604 | AF68: 7.505294112 | AG68: 7.538838238 | AH68: 7.585675812 | AI68: 7.634378787 | AJ68: 7.681287316 | AK68: 7.728721521 | AL68: 7.776058996 | AM68: 7.838359256 | AN68: 7.902489109 | AO68: 7.965418442 | AP68: 8.028326195 | AQ68: 8.09542685 | AR68: 8.094085913 | AS68: 8.092866382 | AT68: 8.090118693 | AU68: 8.086534783 | AV68: 8.087706955 | AW68: 8.084414647 | AX68: 8.082143089 | AY68: 8.079248636 | AZ68: 8.075834266 | BA68: 8.075894512
B69: Civil Aviation (International Cruise) | C69: 114.4378363 | D69: 103.8261484 | E69: 106.9912204 | F69: 104.6324807 | G69: 116.2701684 | H69: 118.7855447 | I69: 124.792604 | J69: 127.5201408 | K69: 139.30043 | L69: 147.5346906 | M69: 151.3680463 | N69: 159.3835853 | O69: 113.0283954 | P69: 121.327798 | Q69: 123.6572708 | R69: 134.4701521 | S69: 139.0346669 | T69: 136.4636792 | U69: 119.7025202 | V69: 105.8610666 | W69: 113.9288085 | X69: 131.6734416 | Y69: 125.3241571 | Z69: 123.9050396 | AA69: 130.0283523 | AB69: 123.8828399 | AC69: 129.2074561 | AD69: 133.1739057 | AE69: 133.9305513 | AF69: 134.6097619 | AG69: 135.1679062 | AH69: 135.9017158 | AI69: 136.7391605 | AJ69: 137.4560759 | AK69: 138.1505706 | AL69: 138.8277634 | AM69: 139.725767 | AN69: 140.7128394 | AO69: 141.5871612 | AP69: 142.4278777 | AQ69: 143.5311252 | AR69: 143.6524896 | AS69: 143.7966317 | AT69: 143.8436022 | AU69: 143.8397524 | AV69: 144.2057061 | AW69: 144.2317478 | AX69: 144.3670331 | AY69: 144.4660961 | AZ69: 144.5340423 | BA69: 144.8966318
A70: 1A3d | B70: Navigation, international | C70: 2059.888317 | D70: 1838.455097 | E70: 1928.112482 | F70: 2933.277555 | G70: 3318.028853 | H70: 3500.527981 | I70: 3343.399124 | J70: 3082.1604 | K70: 3101.772607 | L70: 2928.586216 | M70: 2939.861963 | N70: 2432.211019 | O70: 1988.875975 | P70: 2129.259449 | Q70: 1730.28927 | R70: 1791.649658 | S70: 2417.707258 | T70: 2562.380664 | U70: 2195.192631 | V70: 1159.470105 | W70: 1627.689232 | X70: 1668.117257 | Y70: 1198.645374 | Z70: 1510.340526 | AA70: 1814.568841 | AB70: 1852.188696 | AC70: 1846.279 | AD70: 1603.88394 | AE70: 1614.035849 | AF70: 1623.758502 | AG70: 1633.010136 | AH70: 1641.747589 | AI70: 1649.926457 | AJ70: 1657.50128 | AK70: 1664.425756 | AL70: 1670.652991 | AM70: 1676.135781 | AN70: 1680.826922 | AO70: 1684.679557 | AP70: 1687.647545 | AQ70: 1689.685862 | AR70: 1691.727971 | AS70: 1693.775041 | AT70: 1695.827092 | AU70: 1697.884142 | AV70: 1700.490344 | AW70: 1702.558132 | AX70: 1704.630976 | AY70: 1706.708895 | AZ70: 1708.791907 | BA70: 1710.880031

Sheet NH3
A1: NH3 (tons)
C2: 1990 | D2: 1991 | E2: 1992 | F2: 1993 | G2: 1994 | H2: 1995 | I2: 1996 | J2: 1997 | K2: 1998 | L2: 1999 | M2: 2000 | N2: 2001 | O2: 2002 | P2: 2003 | Q2: 2004 | R2: 2005 | S2: 2006 | T2: 2007 | U2: 2008 | V2: 2009 | W2: 2010 | X2: 2011 | Y2: 2012 | Z2: 2013 | AA2: 2014 | AB2: 2015 | AC2: 2016 | AD2: 2017 | AE2: 2018 | AF2: 2019 | AG2: 2020 | AH2: 2021 | AI2: 2022 | AJ2: 2023 | AK2: 2024 | AL2: 2025 | AM2: 2026 | AN2: 2027 | AO2: 2028 | AP2: 2029 | AQ2: 2030 | AR2: 2031 | AS2: 2032 | AT2: 2033 | AU2: 2034 | AV2: 2035 | AW2: 2036 | AX2: 2037 | AY2: 2038 | AZ2: 2039 | BA2: 2040
A3: 1A1a | B3: Public power and district heating plants | C3: 0.2871 | D3: 1.03327 | E3: 1.61762 | F3: 2.44557 | G3: 2.836240496 | H3: 3.058763593 | I3: 4.144778653 | J3: 6.063738716 | K3: 6.155215213 | L3: 8.01071217 | M3: 8.651451672 | N3: 9.06235906 | O3: 9.644456935 | P3: 9.790664391 | Q3: 10.18278363 | R3: 10.27665833 | S3: 10.54969198 | T3: 11.24966729 | U3: 11.77526519 | V3: 10.94372083 | W3: 10.59998065 | X3: 14.10432611 | Y3: 14.70263984 | Z3: 15.70204011 | AA3: 14.36006683 | AB3: 15.40347699 | AC3: 15.17695146 | AD3: 9.78499702 | AE3: 9.84130952 | AF3: 9.806781178 | AG3: 9.735105281 | AH3: 9.721215486 | AI3: 9.723862039 | AJ3: 9.731121619 | AK3: 9.751344678 | AL3: 9.755698169 | AM3: 9.761829212 | AN3: 9.758878336 | AO3: 9.755044027 | AP3: 9.753945749 | AQ3: 9.76274115 | AR3: 9.752309443 | AS3: 9.742049243 | AT3: 9.734449392 | AU3: 9.713478119 | AV3: 9.701000219 | AW3: 9.695676736 | AX3: 9.696205416 | AY3: 9.095605188 | AZ3: 9.086027369 | BA3: 9.074201246
A4: !A1b | B4: Petroleum refining plants | C4: NA | D4: NA | E4: NA | F4: NA | G4: NA | H4: NA | I4: NA | J4: NA | K4: NA | L4: NA | M4: NA | N4: NA | O4: NA | P4: NA | Q4: NA | R4: NA | S4: NA | T4: NA | U4: NA | V4: NA | W4: NA | X4: NA | Y4: NA | Z4: NA | AA4: NA | AB4: NA | AC4: NA | AD4: NA | AE4: NA | AF4: NA | AG4: NA | AH4: NA | AI4: NA | AJ4: NA | AK4: NA | AL4: NA | AM4: NA | AN4: NA | AO4: NA | AP4: NA | AQ4: NA | AR4: NA | AS4: NA | AT4: NA | AU4: NA | AV4: NA | AW4: NA | AX4: NA | AY4: NA | AZ4: NA | BA4: NA
A5: 1A1c | B5: Oil and gas extraction | C5: NA | D5: NA | E5: NA | F5: NA | G5: NA | H5: NA | I5: NA | J5: NA | K5: NA | L5: NA | M5: NA | N5: NA | O5: NA | P5: NA | Q5: NA | R5: NA | S5: NA | T5: NA | U5: NA | V5: NA | W5: NA | X5: NA | Y5: NA | Z5: NA | AA5: NA | AB5: NA | AC5: NA | AD5: NA | AE5: NA | AF5: NA | AG5: NA | AH5: NA | AI5: NA | AJ5: NA | AK5: NA | AL5: NA | AM5: NA | AN5: NA | AO5: NA | AP5: NA | AQ5: NA | AR5: NA | AS5: NA | AT5: NA | AU5: NA | AV5: NA | AW5: NA | AX5: NA | AY5: NA | AZ5: NA | BA5: NA
A7: 1A2a-f i | B7: Combustion in manufacturing industry | C7: 213.9984979 | D7: 210.5435805 | E7: 212.7703669 | F7: 215.4034579 | G7: 178.9719174 | H7: 169.0259763 | I7: 170.9642348 | J7: 168.4983497 | K7: 171.1986432 | L7: 170.9801148 | M7: 179.009484 | N7: 184.428788 | O7: 137.3338162 | P7: 141.2752467 | Q7: 141.6298303 | R7: 148.3981793 | S7: 173.9417221 | T7: 175.3651882 | U7: 235.987239 | V7: 228.5136396 | W7: 236.4722122 | X7: 271.9155926 | Y7: 217.0657456 | Z7: 202.9523876 | AA7: 184.392109 | AB7: 244.9881835 | AC7: 231.6095661 | AD7: 220.7556287 | AE7: 221.8965514 | AF7: 223.0374742 | AG7: 224.1783969 | AH7: 234.3053187 | AI7: 244.4322405 | AJ7: 254.5591623 | AK7: 264.686084 | AL7: 274.8130058 | AM7: 280.1909541 | AN7: 285.5689025 | AO7: 290.9468508 | AP7: 296.3247991 | AQ7: 301.7027474 | AR7: 311.3530581 | AS7: 321.0033687 | AT7: 330.6536794 | AU7: 340.3039901 | AV7: 349.9543008 | AW7: 360.7625989 | AX7: 371.5708971 | AY7: 382.3791952 | AZ7: 393.1874934 | BA7: 403.9957915
A8: 1A2f ii | B8: Industry - Other (mobile) | C8: 1.455405432 | D8: 1.455733275 | E8: 1.453009375 | F8: 1.447958348 | G8: 1.446832725 | H8: 1.453726623 | I8: 1.456585127 | J8: 1.461891261 | K8: 1.471277871 | L8: 1.486406345 | M8: 1.523724498 | N8: 1.567626059 | O8: 1.603231306 | P8: 1.637779262 | Q8: 1.666834799 | R8: 1.727318835 | S8: 1.840253395 | T8: 1.98427025 | U8: 2.057805438 | V8: 1.563851893 | W8: 1.956417296 | X8: 1.881583487 | Y8: 1.843293936 | Z8: 1.830308555 | AA8: 1.728442693 | AB8: 1.755913864 | AC8: 1.760536237 | AD8: 1.741837238 | AE8: 1.725900139 | AF8: 1.729135185 | AG8: 1.736239507 | AH8: 1.769544857 | AI8: 1.791559685 | AJ8: 1.805806605 | AK8: 1.820931059 | AL8: 1.834134244 | AM8: 1.825089882 | AN8: 1.816364415 | AO8: 1.817335533 | AP8: 1.824501031 | AQ8: 1.833352871 | AR8: 1.833163313 | AS8: 1.833039496 | AT8: 1.832963825 | AU8: 1.832928795 | AV8: 1.832917988 | AW8: 1.832915628 | AX8: 1.832914344 | AY8: 1.832913285 | AZ8: 1.832912517 | BA8: 1.832911959
A10: 1A3a | B10: Civil Aviation (Domestic LTO) | C10: 0.1817430231 | D10: 0.1685263314 | E10: 0.1632492452 | F10: 0.1573562167 | G10: 0.1941449412 | H10: 0.2118733284 | I10: 0.1942746362 | J10: 0.1847140367 | K10: 0.1656868875 | L10: 0.1642887788 | M10: 0.1622406042 | N10: 0.1591424 | O10: 0.1573136 | P10: 0.1483696 | Q10: 0.1545168 | R10: 0.153638003 | S10: 0.147528912 | T10: 0.1574305152 | U10: 0.1400156352 | V10: 0.1174258616 | W10: 0.1100620416 | X10: 0.0919008096 | Y10: 0.1004092224 | Z10: 0.1037926848 | AA10: 0.062196 | AB10: 0.068166816 | AC10: 0.0751825248 | AD10: 0.07595675366 | AE10: 0.07671953185 | AF10: 0.07747472155 | AG10: 0.07822819061 | AH10: 0.07913808331 | AI10: 0.08005551927 | AJ10: 0.080982277 | AK10: 0.08191916572 | AL10: 0.08286574678 | AM10: 0.08398653436 | AN10: 0.08511995724 | AO10: 0.08626549402 | AP10: 0.08742275721 | AQ10: 0.08859170518 | AR10: 0.08896714147 | AS10: 0.08934033859 | AT10: 0.08971118066 | AU10: 0.09007986948 | AV10: 0.09044671418 | AW10: 0.09081127531 | AX10: 0.09117385251 | AY10: 0.09153463403 | AZ10: 0.0918938842 | BA10: 0.09225174144
A11: 1A3a | B11: Civil Aviation (International LTO) | C11: 0.058034993 | D11: 0.05513048464 | E11: 0.05354112279 | F11: 0.05401066329 | G11: 0.01816731483 | H11: 0.02073971163 | I11: 0.01495270776 | J11: 0.01714930094 | K11: 0.01711959571 | L11: 0.01473618768 | M11: 0.013928951 | N11: 0.013504 | O11: 0.013352 | P11: 0.0125936 | Q11: 0.0131152 | R11: 0.01389493456 | S11: 0.0025873536 | T11: 0.0011941632 | U11: 0.0133845792 | V11: 0.006169944548 | W11: 0.0011941632 | X11: 0.0061698432 | Y11: 0.0014429472 | Z11: 0.0029356512 | AA11: 0.0047766528 | AB11: 0.0110957664 | AC11: 0.0010448928 | AD11: 0 | AE11: 0 | AF11: 0 | AG11: 0 | AH11: 0 | AI11: 0 | AJ11: 0 | AK11: 0 | AL11: 0 | AM11: 0 | AN11: 0 | AO11: 0 | AP11: 0 | AQ11: 0 | AR11: 0 | AS11: 0 | AT11: 0 | AU11: 0 | AV11: 0 | AW11: 0 | AX11: 0 | AY11: 0 | AZ11: 0 | BA11: 0
A12: 1A3b | B12: Road exhaust | C12: 72.7445418 | D12: 163.898663 | E12: 355.73635 | F12: 544.2698406 | G12: 821.6167261 | H12: 1091.586564 | I12: 1350.177435 | J12: 1699.536581 | K12: 2061.28901 | L12: 2353.057954 | M12: 2549.190472 | N12: 2579.263444 | O12: 2609.553773 | P12: 2597.622985 | Q12: 2579.985732 | R12: 2449.018904 | S12: 2351.150416 | T12: 2279.386583 | U12: 2119.753659 | V12: 1985.429745 | W12: 1819.167314 | X12: 1678.556866 | Y12: 1493.3734 | Z12: 1335.976206 | AA12: 1224.875159 | AB12: 1107.363059 | AC12: 994.8947196 | AD12: 901.7402928 | AE12: 808.5619773 | AF12: 741.6761467 | AG12: 683.7979203 | AH12: 640.454459 | AI12: 606.1389194 | AJ12: 580.3235682 | AK12: 560.3741448 | AL12: 546.4671779 | AM12: 536.5985346 | AN12: 531.0675264 | AO12: 528.0364079 | AP12: 527.4999449 | AQ12: 527.9548673 | AR12: 529.2945309 | AS12: 530.5202099 | AT12: 531.637673 | AU12: 532.0526097 | AV12: 531.8314659 | AW12: 530.9146195 | AX12: 529.4260364 | AY12: 527.4022761 | AZ12: 524.6972243 | BA12: 521.070842
A13: 1A3b | B13: Road non-exhaust
A14: 1A3c | B14: Railways | C14: 0.8178040054 | D14: 0.8314683317 | E14: 0.8795860668 | F14: 0.9129788099 | G14: 0.8275036284 | H14: 0.8347820029 | I14: 0.8284692026 | J14: 0.8066560232 | K14: 0.6806633382 | L14: 0.6270658 | M14: 0.615746 | N14: 0.5707674 | O14: 0.5689166952 | P14: 0.5900070792 | Q14: 0.5843399352 | R14: 0.6273528408 | S14: 0.612876516 | T14: 0.6151075056 | U14: 0.6397129536 | V14: 0.622166328 | W14: 0.654555132 | X14: 0.6740027616 | Y14: 0.673852116 | Z14: 0.669702247 | AA14: 0.6814245741 | AB14: 0.6711006943 | AC14: 0.6850972635 | AD14: 0.5963615915 | AE14: 0.5931869863 | AF14: 0.590012381 | AG14: 0.5868377758 | AH14: 0.5836631706 | AI14: 0.5804885653 | AJ14: 0.5773139601 | AK14: 0.5109468053 | AL14: 0.4620613056 | AM14: 0.4586430678 | AN14: 0.1887807961 | AO14: 0.1847691401 | AP14: 0.1807574841 | AQ14: 0.1767458282 | AR14: 0.1767458282 | AS14: 0.1767458282 | AT14: 0.1767458282 | AU14: 0.1767458282 | AV14: 0.1767458282 | AW14: 0.1767458282 | AX14: 0.1767458282 | AY14: 0.1767458282 | AZ14: 0.1767458282 | BA14: 0.1767458282
A15: 1A3d | B15: Navigation | C15: NA | D15: NA | E15: NA | F15: NA | G15: NA | H15: NA | I15: NA | J15: NA | K15: NA | L15: NA | M15: NA | N15: NA | O15: NA | P15: NA | Q15: NA | R15: NA | S15: NA | T15: NA | U15: NA | V15: NA | W15: NA | X15: NA | Y15: NA | Z15: NA | AA15: NA | AB15: NA | AC15: NA | AD15: 0 | AE15: 0 | AF15: 0 | AG15: 0 | AH15: 0 | AI15: 0 | AJ15: 0 | AK15: 0 | AL15: 0 | AM15: 0 | AN15: 0 | AO15: 0 | AP15: 0 | AQ15: 0 | AR15: 0 | AS15: 0 | AT15: 0 | AU15: 0 | AV15: 0 | AW15: 0 | AX15: 0 | AY15: 0 | AZ15: 0 | BA15: 0
A17: 1A4a i | B17: Commercial and institutional plants | C17: 7.5660375 | D17: 7.5660375 | E17: 7.5660375 | F17: 7.5660375 | G17: 7.99792 | H17: 10.102295 | I17: 16.629095 | J17: 17.442355 | K17: 18.23371851 | L17: 23.75551783 | M17: 28.70924707 | N17: 24.61792992 | O17: 24.87874593 | P17: 25.17882358 | Q17: 25.20471798 | R17: 30.20251378 | S17: 35.209755 | T17: 37.31683933 | U17: 39.3939 | V17: 37.79855148 | W17: 36.2362104 | X17: 34.16102213 | Y17: 32.3792321 | Z17: 36.03449395 | AA17: 39.8988998 | AB17: 46.22667312 | AC17: 58.58227326 | AD17: 51.64095243 | AE17: 50.55447556 | AF17: 49.4679987 | AG17: 48.38152183 | AH17: 50.71671975 | AI17: 53.05191767 | AJ17: 55.38711559 | AK17: 57.72231351 | AL17: 60.05751143 | AM17: 62.8884579 | AN17: 65.71940438 | AO17: 68.55035085 | AP17: 71.38129733 | AQ17: 74.2122438 | AR17: 78.24666252 | AS17: 82.28108125 | AT17: 86.31549997 | AU17: 90.34991869 | AV17: 94.38433741 | AW17: 99.69045923 | AX17: 104.996581 | AY17: 110.3027029 | AZ17: 115.6088247 | BA17: 120.9149465
A18: 1A4a ii | B18: Commercial and institutional (mobile) | C18: 0.08012960585 | D18: 0.08046396762 | E18: 0.08108931231 | F18: 0.08192728743 | G18: 0.08292666047 | H18: 0.08400534812 | I18: 0.08511205215 | J18: 0.08623523121 | K18: 0.08737015045 | L18: 0.0885160572 | M18: 0.08967295145 | N18: 0.09373544792 | O18: 0.1003396283 | P18: 0.10981629 | Q18: 0.1228079133 | R18: 0.1365281546 | S18: 0.1508712309 | T18: 0.1602230001 | U18: 0.164486317 | V18: 0.1601714434 | W18: 0.1500998742 | X18: 0.1452601231 | Y18: 0.1406362909 | Z18: 0.1391421215 | AA18: 0.13502714 | AB18: 0.1346729171 | AC18: 0.1355807985 | AD18: 0.1360440066 | AE18: 0.1362228612 | AF18: 0.1359275557 | AG18: 0.1352549808 | AH18: 0.1357500637 | AI18: 0.1362050716 | AJ18: 0.136565488 | AK18: 0.1368917032 | AL18: 0.1373879277 | AM18: 0.1374183335 | AN18: 0.1374183335 | AO18: 0.1374183335 | AP18: 0.1374183335 | AQ18: 0.1374183335 | AR18: 0.1374183335 | AS18: 0.1374183335 | AT18: 0.1374183335 | AU18: 0.1374183335 | AV18: 0.1374183335 | AW18: 0.1374183335 | AX18: 0.1374183335 | AY18: 0.1374183335 | AZ18: 0.1374183335 | BA18: 0.1374183335
A19: 1A4b i | B19: Residential plants | C19: 952.0480193 | D19: 1046.072033 | E19: 1062.262333 | F19: 1109.577922 | G19: 1060.538393 | H19: 1041.780853 | I19: 1054.722321 | J19: 1054.639359 | K19: 943.2652713 | L19: 912.3942744 | M19: 1033.699525 | N19: 1102.798947 | O19: 1106.922977 | P19: 1247.599535 | Q19: 1318.194962 | R19: 1474.916124 | S19: 1560.680549 | T19: 1884.457988 | U19: 1787.518316 | V19: 1708.354643 | W19: 1779.853259 | X19: 1593.4935 | Y19: 1524.680958 | Z19: 1530.654444 | AA19: 1422.07704 | AB19: 1617.930043 | AC19: 1652.473143 | AD19: 1644.404602 | AE19: 1611.525739 | AF19: 1582.858983 | AG19: 1550.631679 | AH19: 1523.197851 | AI19: 1495.983137 | AJ19: 1472.644372 | AK19: 1445.813109 | AL19: 1419.200961 | AM19: 1388.970801 | AN19: 1358.547275 | AO19: 1327.930381 | AP19: 1297.120119 | AQ19: 1266.11649 | AR19: 1236.866247 | AS19: 1207.763404 | AT19: 1181.650719 | AU19: 1152.768973 | AV19: 1126.729988 | AW19: 1120.522149 | AX19: 1114.314311 | AY19: 1108.106472 | AZ19: 1101.898634 | BA19: 1095.690796
A20: 1A4b ii | B20: Residential (mobile) | C20: 0.0201707139 | D20: 0.02041567658 | E20: 0.02073337781 | F20: 0.021116796 | G20: 0.02155774481 | H20: 0.0220472568 | I20: 0.02257672475 | J20: 0.02312528934 | K20: 0.02367777122 | L20: 0.02423175856 | M20: 0.02478554281 | N20: 0.02536723717 | O20: 0.0260357164 | P20: 0.0268080081 | Q20: 0.02766050349 | R20: 0.02861561314 | S20: 0.03014420181 | T20: 0.03204337489 | U20: 0.03378374423 | V20: 0.03355023971 | W20: 0.03218982598 | X20: 0.03163928965 | Y20: 0.03141395895 | Z20: 0.03089987752 | AA20: 0.03017786652 | AB20: 0.0297909773 | AC20: 0.02984198411 | AD20: 0.02983886908 | AE20: 0.02977815513 | AF20: 0.02980043363 | AG20: 0.02987467793 | AH20: 0.02990975693 | AI20: 0.02988825141 | AJ20: 0.02988369157 | AK20: 0.02988257618 | AL20: 0.02988224095 | AM20: 0.02988196833 | AN20: 0.02988172764 | AO20: 0.02988163536 | AP20: 0.02988160889 | AQ20: 0.02988160162 | AR20: 0.02988160137 | AS20: 0.02988160137 | AT20: 0.02988160137 | AU20: 0.02988160137 | AV20: 0.02988160137 | AW20: 0.02988160137 | AX20: 0.02988160137 | AY20: 0.02988160137 | AZ20: 0.02988160137 | BA20: 0.02988160137
A21: 1A4c i | B21: Plants in agriculture, forestry and aquaculture | C21: 240.61275 | D21: 240.61275 | E21: 240.61275 | F21: 224.2054458 | G21: 208.8888867 | H21: 193.1748658 | I21: 173.1944164 | J21: 186.0869482 | K21: 185.5112413 | L21: 170.4450506 | M21: 152.237379 | N21: 141.7491682 | O21: 141.770755 | P21: 140.4652517 | Q21: 139.84936 | R21: 139.56649 | S21: 139.015523 | T21: 139.4063039 | U21: 140.5940815 | V21: 143.5216604 | W21: 143.1410178 | X21: 144.1884025 | Y21: 144.2920664 | Z21: 144.0990311 | AA21: 143.925065 | AB21: 146.661432 | AC21: 148.1251627 | AD21: 153.9020736 | AE21: 154.7674404 | AF21: 155.6328073 | AG21: 156.4981741 | AH21: 159.9617476 | AI21: 163.425321 | AJ21: 166.8888945 | AK21: 170.352468 | AL21: 173.8160414 | AM21: 178.0626722 | AN21: 182.3093029 | AO21: 186.5559336 | AP21: 190.8025643 | AQ21: 195.0491951 | AR21: 200.2495761 | AS21: 205.4499572 | AT21: 210.6503382 | AU21: 215.8507193 | AV21: 221.0511003 | AW21: 227.6590358 | AX21: 234.2669713 | AY21: 240.8749069 | AZ21: 247.4828424 | BA21: 254.0907779
A22: 1A4c ii | B22: Agriculture & forestry (mobile) | C22: 2.872935165 | D22: 2.865500512 | E22: 2.759367652 | F22: 2.777203159 | G22: 2.649396708 | H22: 2.750957214 | I22: 2.652773153 | J22: 2.730882086 | K22: 2.619916165 | L22: 2.644811395 | M22: 2.627440331 | N22: 2.707043667 | O22: 2.771152466 | P22: 2.841701076 | Q22: 2.953176549 | R22: 3.062014564 | S22: 3.252635658 | T22: 3.434327759 | U22: 3.585078027 | V22: 3.600787242 | W22: 3.594850024 | X22: 3.578651495 | Y22: 3.492513476 | Z22: 3.449726072 | AA22: 3.272075798 | AB22: 3.340889189 | AC22: 3.342398985 | AD22: 3.335865723 | AE22: 3.323695707 | AF22: 3.289169787 | AG22: 3.249221124 | AH22: 3.262505109 | AI22: 3.283421345 | AJ22: 3.310472901 | AK22: 3.33902653 | AL22: 3.367253684 | AM22: 3.363011313 | AN22: 3.353806407 | AO22: 3.355776816 | AP22: 3.359639434 | AQ22: 3.360410265 | AR22: 3.360375779 | AS22: 3.358708203 | AT22: 3.35756572 | AU22: 3.360403965 | AV22: 3.360942145 | AW22: 3.351178566 | AX22: 3.336196944 | AY22: 3.322778346 | AZ22: 3.326645961 | BA22: 3.333944845
A23: 1A4c iii | B23: Fishing (mobile) | C23: NA | D23: NA | E23: NA | F23: NA | G23: NA | H23: NA | I23: NA | J23: NA | K23: NA | L23: NA | M23: NA | N23: NA | O23: NA | P23: NA | Q23: NA | R23: NA | S23: NA | T23: NA | U23: NA | V23: NA | W23: NA | X23: NA | Y23: NA | Z23: NA | AA23: NA | AB23: NA | AC23: NA | AD23: 0 | AE23: 0 | AF23: 0 | AG23: 0 | AH23: 0 | AI23: 0 | AJ23: 0 | AK23: 0 | AL23: 0 | AM23: 0 | AN23: 0 | AO23: 0 | AP23: 0 | AQ23: 0 | AR23: 0 | AS23: 0 | AT23: 0 | AU23: 0 | AV23: 0 | AW23: 0 | AX23: 0 | AY23: 0 | AZ23: 0 | BA23: 0
A25: 1A5b | B25: Other mobile (military and recreational crafts) | C25: 0.1361267738 | D25: 0.6186592175 | E25: 0.4202230927 | F25: 0.4028893072 | G25: 0.3718963954 | H25: 0.703879973 | I25: 0.3741142046 | J25: 0.5772868412 | K25: 0.648779563 | L25: 1.374804995 | M25: 0.3268958791 | N25: 0.4805911384 | O25: 0.3450931067 | P25: 0.5246506107 | Q25: 0.9182659171 | R25: 0.8718653431 | S25: 0.6259885435 | T25: 0.6501138321 | U25: 0.7962466338 | V25: 0.9406200176 | W25: 0.6543052238 | X25: 0.7747177612 | Y25: 0.7696421679 | Z25: 0.8451246304 | AA25: 0.8395553403 | AB25: 0.6683395675 | AC25: 0.8105127436 | AD25: 0.8225522882 | AE25: 0.8284557672 | AF25: 0.8355148548 | AG25: 0.8425860834 | AH25: 0.8493709768 | AI25: 0.8558166311 | AJ25: 0.8620125953 | AK25: 0.8685315186 | AL25: 0.8755178163 | AM25: 0.8823184746 | AN25: 0.8891461563 | AO25: 0.8959133541 | AP25: 0.9027509885 | AQ25: 0.9095558614 | AR25: 0.9163223274 | AS25: 0.9229500653 | AT25: 0.929419666 | AU25: 0.9354580083 | AV25: 0.941247805 | AW25: 0.957448904 | AX25: 1.030908109 | AY25: 0.9564251556 | AZ25: 0.9459549452 | BA25: 0.9844387709
A27: 1B1 | B27: Fugitive emissions from solid fuels
A28: 1B2a | B28: Fugitive emissions from oil
A29: 1B2b | B29: Fugitive emissions from gas
A30: 1B2c | B30: Fugitive emissions from venting and flaring
A32: 2A | B32: Mineral industry | C32: 554.7034 | D32: 554.7034 | E32: 554.7034 | F32: 554.7034 | G32: 554.7034 | H32: 554.3082 | I32: 496.8641 | J32: 559.3607 | K32: 564.9 | L32: 568.9 | M32: 506 | N32: 444.286 | O32: 406.8 | P32: 395.8 | Q32: 501 | R32: 468.7 | S32: 475.8 | T32: 472 | U32: 355.686 | V32: 340.688 | W32: 311.165 | X32: 303.165 | Y32: 339.417 | Z32: 282.744 | AA32: 305.908 | AB32: 387.3252 | AC32: 253.814 | AD32: 254.722266 | AE32: 262.1520438 | AF32: 279.2416738 | AG32: 292.0787692 | AH32: 306.9097926 | AI32: 320.3667677 | AJ32: 326.3190794 | AK32: 332.7459523 | AL32: 339.6930334 | AM32: 342.7608154 | AN32: 343.604819 | AO32: 346.7061518 | AP32: 348.5277351 | AQ32: 352.6883855 | AR32: 355.9431645 | AS32: 357.9009683 | AT32: 359.3147991 | AU32: 360.5023987 | AV32: 364.2355574 | AW32: 368.0115433 | AX32: 371.064663 | AY32: 374.4542865 | AZ32: 377.7784158 | BA32: 383.3618208
A33: 2B | B33: Chemical Industry | C33: 27 | D33: 38 | E33: 52 | F33: 67 | G33: 110 | H33: 82 | I33: 75 | J33: 50 | K33: 25 | L33: 33 | M33: 27 | N33: 101 | O33: 93 | P33: 113 | Q33: 101 | R33: 79 | S33: 88 | T33: 107 | U33: 111 | V33: 165 | W33: 123 | X33: 20.3 | Y33: 17.799 | Z33: 21 | AA33: 18 | AB33: 19.3 | AC33: 16 | AD33: 18.25397145 | AE33: 18.68757762 | AF33: 19.1211838 | AG33: 19.55478997 | AH33: 19.98839614 | AI33: 20.42200231 | AJ33: 20.85560848 | AK33: 21.28921465 | AL33: 21.72282082 | AM33: 22.156427 | AN33: 22.59003317 | AO33: 23.02363934 | AP33: 23.45724551 | AQ33: 23.89085168 | AR33: 24.32445785 | AS33: 24.75806402 | AT33: 25.1916702 | AU33: 25.62527637 | AV33: 26.05888254 | AW33: 26.49248871 | AX33: 26.92609488 | AY33: 27.35970105 | AZ33: 27.79330722 | BA33: 28.2269134
A34: 2C | B34: Metal industry
A35: 2D | B35: Non-energy products from fuels and solvent use
A36: 2G | B36: Other product manufacture and use | C36: 55.15706827 | D36: 51.6756862 | E36: 52.47446637 | F36: 49.88273008 | G36: 49.22991953 | H36: 49.3936266 | I36: 47.92825902 | J36: 48.84236201 | K36: 48.23861666 | L36: 48.78479391 | M36: 48.61840435 | N36: 46.51804279 | O36: 46.82901009 | P36: 48.98748438 | Q36: 47.78195508 | R36: 44.88060057 | S36: 45.61019575 | T36: 42.99109713 | U36: 41.99771411 | V36: 41.03901495 | W36: 40.2622678 | X36: 36.8169783 | Y36: 37.3142557 | Z36: 38.24001325 | AA36: 32.20013315 | AB36: 32.35463585 | AC36: 30.9891874 | AD36: 31.04186227 | AE36: 29.94139787 | AF36: 28.84093347 | AG36: 27.74046907 | AH36: 26.64000467 | AI36: 25.53954027 | AJ36: 24.43907587 | AK36: 23.33861147 | AL36: 22.23814707 | AM36: 21.13768267 | AN36: 20.03721827 | AO36: 18.93675387 | AP36: 17.83628947 | AQ36: 16.73582507 | AR36: 15.63536067 | AS36: 14.53489627 | AT36: 13.43443187 | AU36: 12.33396747 | AV36: 11.23350307 | AW36: 10.13303867 | AX36: 9.03257427 | AY36: 7.93210987 | AZ36: 6.83164547 | BA36: 5.73118107
A37: 2H | B37: Other
A38: 2I | B38: Wood processing
A39: 2L | B39: Other production | C39: 40.048722 | D39: 52.730244 | E39: 52.527825 | F39: 55.934739 | G39: 51.542379 | H39: 49.558068 | I39: 49.141701 | J39: 47.291391 | K39: 49.478499 | L39: 49.447503 | M39: 45.116757 | N39: 44.799615 | O39: 59.275125 | P39: 56.624778 | Q39: 53.595675 | R39: 49.869918 | S39: 46.970658 | T39: 49.067424 | U39: 45.989559 | V39: 37.603251 | W39: 35.416521 | X39: 34.298397 | Y39: 29.753514 | Z39: 25.374951 | AA39: 25.209576 | AB39: 30.243213 | AC39: 31.012065 | AD39: 28.3186638 | AE39: 28.3186638 | AF39: 28.3186638 | AG39: 28.3186638 | AH39: 28.3186638 | AI39: 28.3186638 | AJ39: 28.3186638 | AK39: 28.3186638 | AL39: 28.3186638 | AM39: 28.3186638 | AN39: 28.3186638 | AO39: 28.3186638 | AP39: 28.3186638 | AQ39: 28.3186638 | AR39: 28.3186638 | AS39: 28.3186638 | AT39: 28.3186638 | AU39: 28.3186638 | AV39: 28.3186638 | AW39: 28.3186638 | AX39: 28.3186638 | AY39: 28.3186638 | AZ39: 28.3186638 | BA39: 28.3186638
A41: 3B1a | B41: Manure Management - Dairy cattle | C41: 7904.978796 | D41: 7765.58779 | E41: 7437.664188 | F41: 7443.660496 | G41: 7276.214639 | H41: 7285.708828 | I41: 7295.180472 | J41: 7223.540544 | K41: 7453.655135 | L41: 7137.60697 | M41: 7304.462064 | N41: 7349.876538 | O41: 7440.311653 | P41: 7879.113874 | Q41: 7815.12199 | R41: 7617.797251 | S41: 7645.11566 | T41: 6998.354615 | U41: 7257.427989 | V41: 7238.802473 | W41: 7305.515951 | X41: 7526.446327 | Y41: 7561.820568 | Z41: 7465.661671 | AA41: 7272.169087 | AB41: 7235.494483 | AC41: 7747.100811 | AD41: 7248.012015 | AE41: 7294.792174 | AF41: 7353.814865 | AG41: 7387.162813 | AH41: 7351.866449 | AI41: 7352.720296 | AJ41: 7339.355768 | AK41: 7336.632493 | AL41: 7332.043821 | AM41: 7313.204459 | AN41: 7304.690336 | AO41: 7294.258394 | AP41: 7281.885775 | AQ41: 7291.031187 | AR41: 7291.031187 | AS41: 7291.031187 | AT41: 7291.031187 | AU41: 7291.031187 | AV41: 7291.031187 | AW41: 7291.031187 | AX41: 7291.031187 | AY41: 7291.031187 | AZ41: 7291.031187 | BA41: 7291.031187
A42: 3B1b | B42: Manure Management - Non-dairy cattle | C42: 4715.792812 | D42: 4714.973318 | E42: 4750.658747 | F42: 4572.752218 | G42: 4269.335782 | H42: 4189.64925 | I42: 4148.481509 | J42: 4008.522729 | K42: 3849.945781 | L42: 3819.363246 | M42: 4385.104984 | N42: 4541.872067 | O42: 4427.228273 | P42: 4312.866802 | Q42: 4449.262059 | R42: 2830.725236 | S42: 2981.530627 | T42: 3594.206335 | U42: 3628.684767 | V42: 3481.635513 | W42: 3390.70742 | X42: 3481.274099 | Y42: 3465.233497 | Z42: 3545.678175 | AA42: 3465.437858 | AB42: 3422.306865 | AC42: 3423.585729 | AD42: 3373.623249 | AE42: 3365.991916 | AF42: 3353.312169 | AG42: 3342.707475 | AH42: 3358.300468 | AI42: 3371.498499 | AJ42: 3387.103288 | AK42: 3400.31309 | AL42: 3415.929705 | AM42: 3429.151296 | AN42: 3444.779673 | AO42: 3458.013105 | AP42: 3471.252426 | AQ42: 3486.898515 | AR42: 3486.898515 | AS42: 3486.898515 | AT42: 3486.898515 | AU42: 3486.898515 | AV42: 3486.898515 | AW42: 3486.898515 | AX42: 3486.898515 | AY42: 3486.898515 | AZ42: 3486.898515 | BA42: 3486.898515
A43: 3B2 | B43: Manure Management - Sheep | C43: 101.152445 | D43: 117.1953302 | E43: 112.7148372 | F43: 97.13281021 | G43: 88.00808084 | H43: 88.81095138 | I43: 103.4963516 | J43: 105.568233 | K43: 111.057156 | L43: 116.325994 | M43: 122.859221 | N43: 130.517083 | O43: 129.2460914 | P43: 133.1636066 | Q43: 136.6717636 | R43: 138.9441425 | S43: 140.5661699 | T43: 122.7231828 | U43: 116.4793074 | V43: 114.5282202 | W43: 110.0480562 | X43: 92.72422659 | Y43: 89.55767561 | Z43: 87.64723612 | AA43: 87.19713777 | AB43: 83.37625879 | AC43: 81.80256945 | AD43: 84.1063553 | AE43: 84.1063553 | AF43: 84.1063553 | AG43: 84.1063553 | AH43: 84.1063553 | AI43: 84.1063553 | AJ43: 84.1063553 | AK43: 84.1063553 | AL43: 84.1063553 | AM43: 84.1063553 | AN43: 84.1063553 | AO43: 84.1063553 | AP43: 84.1063553 | AQ43: 84.1063553 | AR43: 84.1063553 | AS43: 84.1063553 | AT43: 84.1063553 | AU43: 84.1063553 | AV43: 84.1063553 | AW43: 84.1063553 | AX43: 84.1063553 | AY43: 84.1063553 | AZ43: 84.1063553 | BA43: 84.1063553
A44: 3B3 | B44: Manure Management - Swine | C44: 28915.32787 | D44: 28803.658 | E44: 29421.33007 | F44: 30150.20457 | G44: 28124.94057 | H44: 26197.0717 | I44: 25878.80544 | J44: 26308.95871 | K44: 27548.69411 | L44: 26536.42189 | M44: 25034.13999 | N44: 25960.02892 | O44: 26683.80874 | P44: 25673.71565 | Q44: 26502.65437 | R44: 24801.01068 | S44: 22533.01606 | T44: 20544.76994 | U44: 19151.4053 | V44: 17973.70776 | W44: 17658.0041 | X44: 17482.21665 | Y44: 16310.42842 | Z44: 15785.85222 | AA44: 15980.41197 | AB44: 15672.87623 | AC44: 15064.54318 | AD44: 14958.40356 | AE44: 14621.53194 | AF44: 14264.51061 | AG44: 13962.56961 | AH44: 13887.30297 | AI44: 13776.5536 | AJ44: 13636.32822 | AK44: 13531.65973 | AL44: 13390.89471 | AM44: 13209.67528 | AN44: 13031.28439 | AO44: 12847.6905 | AP44: 12662.42414 | AQ44: 12471.73962 | AR44: 12471.73962 | AS44: 12471.73962 | AT44: 12471.73962 | AU44: 12471.73962 | AV44: 12471.73962 | AW44: 12471.73962 | AX44: 12471.73962 | AY44: 12471.73962 | AZ44: 12471.73962 | BA44: 12471.73962
A45: 3B4d | B45: Manure Management - Goats | C45: 8.147552324 | D45: 8.038338718 | E45: 7.929125113 | F45: 7.819911507 | G45: 7.710697901 | H45: 7.601484295 | I45: 7.49227069 | J45: 7.383057084 | K45: 8.427378229 | L45: 8.790336879 | M45: 9.19676363 | N45: 10.26607893 | O45: 10.03026448 | P45: 10.91918716 | Q45: 11.70813321 | R45: 12.04111321 | S45: 12.71881132 | T45: 11.87875622 | U45: 13.84176743 | V45: 15.35186631 | W45: 15.68135474 | X45: 12.33638186 | Y45: 12.69745013 | Z45: 12.82408444 | AA45: 11.8170786 | AB45: 11.14996476 | AC45: 10.22452129 | AD45: 11.06077293 | AE45: 11.06077293 | AF45: 11.06077293 | AG45: 11.06077293 | AH45: 11.06077293 | AI45: 11.06077293 | AJ45: 11.06077293 | AK45: 11.06077293 | AL45: 11.06077293 | AM45: 11.06077293 | AN45: 11.06077293 | AO45: 11.06077293 | AP45: 11.06077293 | AQ45: 11.06077293 | AR45: 11.06077293 | AS45: 11.06077293 | AT45: 11.06077293 | AU45: 11.06077293 | AV45: 11.06077293 | AW45: 11.06077293 | AX45: 11.06077293 | AY45: 11.06077293 | AZ45: 11.06077293 | BA45: 11.06077293
A46: 3B4e | B46: Manure Management - Horses | C46: 720.3304205 | D46: 713.7447769 | E46: 706.7459057 | F46: 699.5230489 | G46: 691.8747884 | H46: 683.9076549 | I46: 691.1066829 | J46: 698.3057108 | K46: 705.5047388 | L46: 723.6470234 | M46: 725.3534196 | N46: 749.531867 | O46: 773.7103143 | P46: 797.8647187 | Q46: 822.0424375 | R46: 846.2201563 | S46: 870.397875 | T46: 803.3514991 | U46: 825.0637018 | V46: 770.7831951 | W46: 716.5026884 | X46: 673.078283 | Y46: 673.078283 | Z46: 651.3660804 | AA46: 651.3660804 | AB46: 673.078283 | AC46: 673.078283 | AD46: 673.0729895 | AE46: 673.0729895 | AF46: 673.0729895 | AG46: 673.0729895 | AH46: 673.0729895 | AI46: 673.0729895 | AJ46: 673.0729895 | AK46: 673.0729895 | AL46: 673.0729895 | AM46: 673.0729895 | AN46: 673.0729895 | AO46: 673.0729895 | AP46: 673.0729895 | AQ46: 673.0729895 | AR46: 673.0729895 | AS46: 673.0729895 | AT46: 673.0729895 | AU46: 673.0729895 | AV46: 673.0729895 | AW46: 673.0729895 | AX46: 673.0729895 | AY46: 673.0729895 | AZ46: 673.0729895 | BA46: 673.0729895
A47: 3B4g | B47: Manure Management - Poultry | C47: 3440.399889 | D47: 3523.371222 | E47: 3789.629625 | F47: 4032.9641 | G47: 4435.409077 | H47: 4333.136016 | I47: 4234.810782 | J47: 4280.456619 | K47: 4237.21856 | L47: 4421.533776 | M47: 4461.115561 | N47: 4524.984649 | O47: 4502.990288 | P47: 4577.405503 | Q47: 4801.967444 | R47: 4727.544682 | S47: 4122.057154 | T47: 3631.503513 | U47: 3741.924747 | V47: 3524.566348 | W47: 3629.387372 | X47: 3488.440411 | Y47: 3304.124692 | Z47: 2396.93345 | AA47: 2299.614843 | AB47: 2237.618995 | AC47: 2384.693311 | AD47: 2246.946743 | AE47: 2252.586209 | AF47: 2155.985878 | AG47: 1980.104116 | AH47: 1981.880066 | AI47: 1986.084172 | AJ47: 1986.659574 | AK47: 1985.643923 | AL47: 1981.932461 | AM47: 1975.508904 | AN47: 1969.191429 | AO47: 1960.126074 | AP47: 1952.996729 | AQ47: 1943.996432 | AR47: 1943.996432 | AS47: 1943.996432 | AT47: 1943.996432 | AU47: 1943.996432 | AV47: 1943.996432 | AW47: 1943.996432 | AX47: 1943.996432 | AY47: 1943.996432 | AZ47: 1943.996432 | BA47: 1943.996432
A48: 3B4h | B48: Manure Management - Other (mainly mink) | C48: 5176.607721 | D48: 4753.159743 | E48: 5106.469118 | F48: 3399.00142 | G48: 3999.320714 | H48: 4006.02095 | I48: 4156.346066 | J48: 4785.385421 | K48: 5061.179204 | L48: 4492.872606 | M48: 4700.796846 | N48: 4899.483353 | O48: 5137.124226 | P48: 5001.445205 | Q48: 5737.81816 | R48: 6249.20721 | S48: 6362.885885 | T48: 6291.709065 | U48: 6434.423522 | V48: 6560.207782 | W48: 6920.213065 | X48: 6840.374855 | Y48: 7066.745293 | Z48: 5782.86414 | AA48: 6004.084776 | AB48: 6354.66501 | AC48: 6173.96011 | AD48: 5751.279408 | AE48: 5629.905716 | AF48: 5500.373007 | AG48: 5362.68128 | AH48: 5424.953151 | AI48: 5486.171429 | AJ48: 5546.336114 | AK48: 5605.447206 | AL48: 5663.504708 | AM48: 5720.508615 | AN48: 5776.458931 | AO48: 5831.355655 | AP48: 5885.198786 | AQ48: 5937.988325 | AR48: 5937.988325 | AS48: 5937.988325 | AT48: 5937.988325 | AU48: 5937.988325 | AV48: 5937.988325 | AW48: 5937.988325 | AX48: 5937.988325 | AY48: 5937.988325 | AZ48: 5937.988325 | BA48: 5937.988325
A49: 3Da1 | B49: Inorganic N-fertilizers (includes also urea application) | C49: 16211.59464 | D49: 15101.22143 | E49: 13447.97143 | F49: 13018.96429 | G49: 13047.13571 | H49: 11793.50714 | I49: 10552.60307 | J49: 10384.57143 | K49: 9773.421429 | L49: 8991.151857 | M49: 8056.114214 | N49: 7451.322214 | O49: 6900.113 | P49: 6599.383 | Q49: 6735.974357 | R49: 6517.133357 | S49: 6092.557143 | T49: 6291.867571 | U49: 6639.980214 | V49: 4777.245286 | W49: 5771.781714 | X49: 5777.034714 | Y49: 5591.397143 | Z49: 5767.643429 | AA49: 6159.050214 | AB49: 6428.006 | AC49: 7179.005286 | AD49: 7824.289467 | AE49: 8078.301298 | AF49: 8096.378269 | AG49: 8208.68452 | AH49: 8257.995568 | AI49: 8257.995568 | AJ49: 8257.995568 | AK49: 8257.995568 | AL49: 8257.995568 | AM49: 8257.995568 | AN49: 8257.995568 | AO49: 8257.995568 | AP49: 8257.995568 | AQ49: 8257.995568 | AR49: 8257.995568 | AS49: 8257.995568 | AT49: 8257.995568 | AU49: 8257.995568 | AV49: 8257.995568 | AW49: 8257.995568 | AX49: 8257.995568 | AY49: 8257.995568 | AZ49: 8257.995568 | BA49: 8257.995568
A50: 3Da2a | B50: Animal manure applied to soils | C50: 36733.59543 | D50: 35544.39752 | E50: 34454.33347 | F50: 33489.4345 | G50: 31610.86002 | H50: 29654.25234 | I50: 29050.2389 | J50: 28088.96124 | K50: 27865.28581 | L50: 26613.55071 | M50: 25554.80824 | N50: 23682.2826 | O50: 22542.85716 | P50: 22934.3512 | Q50: 20709.21532 | R50: 20905.87135 | S50: 20416.35506 | T50: 21858.10109 | U50: 21060.76329 | V50: 20719.11786 | W50: 20745.11245 | X50: 19679.6394 | Y50: 19475.8705 | Z50: 19439.8963 | AA50: 19523.66851 | AB50: 19601.65928 | AC50: 19671.41644 | AD50: 19528.68881 | AE50: 19619.20855 | AF50: 19674.56928 | AG50: 19684.60629 | AH50: 19776.97831 | AI50: 19884.68206 | AJ50: 19963.70567 | AK50: 20070.88577 | AL50: 20158.24521 | AM50: 20202.13704 | AN50: 20261.75691 | AO50: 20313.49815 | AP50: 20363.27068 | AQ50: 20436.76131 | AR50: 20436.76131 | AS50: 20436.76131 | AT50: 20436.76131 | AU50: 20436.76131 | AV50: 20436.76131 | AW50: 20436.76131 | AX50: 20436.76131 | AY50: 20436.76131 | AZ50: 20436.76131 | BA50: 20436.76131
A51: 3Da2b-c | B51: Sludge applied to soils | C51: 527.27 | D51: 635.47 | E51: 741.95 | F51: 1003.07 | G51: 937.98 | H51: 962.55 | I51: 961.25 | J51: 877.61 | K51: 896.3 | L51: 826.09 | M51: 883.01 | N51: 1039.26 | O51: 951.6 | P51: 794.91 | Q51: 634.79 | R51: 541.02 | S51: 628.05 | T51: 670.09 | U51: 769.12 | V51: 779.35 | W51: 742.94 | X51: 756.45 | Y51: 834.81 | Z51: 861.68 | AA51: 884.65 | AB51: 881.34 | AC51: 911.82 | AD51: 858.7801174 | AE51: 855.1299701 | AF51: 848.161507 | AG51: 841.1930439 | AH51: 833.5609177 | AI51: 830.2426019 | AJ51: 827.5879493 | AK51: 824.6014651 | AL51: 821.9468125 | AM51: 819.2921599 | AN51: 816.6375073 | AO51: 813.9828547 | AP51: 811.3282021 | AQ51: 808.6735495 | AR51: 808.6735495 | AS51: 808.6735495 | AT51: 808.6735495 | AU51: 808.6735495 | AV51: 808.6735495 | AW51: 808.6735495 | AX51: 808.6735495 | AY51: 808.6735495 | AZ51: 808.6735495 | BA51: 808.6735495
A52: 3Da3 | B52: Urine and dung deposited by grazing animals | C52: 2887.829752 | D52: 2951.255926 | E52: 2955.108013 | F52: 3008.704284 | G52: 2945.648588 | H52: 2997.715877 | I52: 3024.193263 | J52: 2964.56337 | K52: 2962.688354 | L52: 2915.343889 | M52: 2919.391136 | N52: 2968.17225 | O52: 2859.858535 | P52: 2562.076374 | Q52: 2360.033754 | R52: 2210.020648 | S52: 2091.640129 | T52: 1985.059668 | U52: 1991.574396 | V52: 1902.523539 | W52: 1869.767907 | X52: 1805.057724 | Y52: 1832.507619 | Z52: 1853.805677 | AA52: 1838.119807 | AB52: 1792.201143 | AC52: 1790.442646 | AD52: 1688.319841 | AE52: 1680.131252 | AF52: 1662.895239 | AG52: 1646.239552 | AH52: 1651.529693 | AI52: 1654.407588 | AJ52: 1660.467504 | AK52: 1663.342513 | AL52: 1669.77933 | AM52: 1672.294264 | AN52: 1678.767208 | AO52: 1681.672359 | AP52: 1684.625642 | AQ52: 1691.874499 | AR52: 1691.874499 | AS52: 1691.874499 | AT52: 1691.874499 | AU52: 1691.874499 | AV52: 1691.874499 | AW52: 1691.874499 | AX52: 1691.874499 | AY52: 1691.874499 | AZ52: 1691.874499 | BA52: 1691.874499
A53: 3Dc | B53: Farm-level agricultural operations including storage, handling and transport of agricultural products
A54: 3De | B54: Cultivated crops | C54: 5922.650643 | D54: 5884.517821 | E54: 5850.608893 | F54: 5768.599071 | G54: 5357.174786 | H54: 5283.176214 | I54: 5312.85275 | J54: 5436.236321 | K54: 5406.915571 | L54: 5252.79175 | M54: 5211.712464 | N54: 5253.567071 | O54: 5255.7285 | P54: 5243.123607 | Q54: 5274.004107 | R54: 5336.918679 | S54: 5337.604143 | T54: 5257.608821 | U54: 5414.677893 | V54: 5409.014464 | W54: 5407.035179 | X54: 5419.133107 | Y54: 5400.583071 | Z54: 5374.923393 | AA54: 5452.381464 | AB54: 5400.050607 | AC54: 5406.978107 | AD54: 5307.522135 | AE54: 5284.963115 | AF54: 5241.895895 | AG54: 5198.828676 | AH54: 5151.659816 | AI54: 5131.151616 | AJ54: 5114.745056 | AK54: 5096.287676 | AL54: 5079.881116 | AM54: 5063.474556 | AN54: 5047.067996 | AO54: 5030.661436 | AP54: 5014.254877 | AQ54: 4997.848317 | AR54: 4997.848317 | AS54: 4997.848317 | AT54: 4997.848317 | AU54: 4997.848317 | AV54: 4997.848317 | AW54: 4997.848317 | AX54: 4997.848317 | AY54: 4997.848317 | AZ54: 4997.848317 | BA54: 4997.848317
A55: 3F | B55: Field burning of agricultural residues | C55: 77.191866 | D55: 80.257527 | E55: 76.73562 | F55: 83.787237 | G55: 80.799147 | H55: 91.442898 | I55: 90.929736 | J55: 96.392754 | K55: 121.349961 | L55: 115.275555 | M55: 113.55201 | N55: 119.332197 | O55: 99.266553 | P55: 119.334492 | Q55: 125.113302 | R55: 126.959859 | S55: 128.7954 | T55: 111.442446 | U55: 103.207986 | V55: 121.417434 | W55: 88.539264 | X55: 87.635952 | Y55: 100.711944 | Z55: 108.839916 | AA55: 107.165484 | AB55: 94.1829444 | AC55: 92.91078 | AD55: 98.89948977 | AE55: 98.47912873 | AF55: 97.67662128 | AG55: 96.87411382 | AH55: 95.99517709 | AI55: 95.61303069 | AJ55: 95.30731356 | AK55: 94.9633818 | AL55: 94.65766467 | AM55: 94.35194755 | AN55: 94.04623042 | AO55: 93.7405133 | AP55: 93.43479617 | AQ55: 93.12907905 | AR55: 93.12907905 | AS55: 93.12907905 | AT55: 93.12907905 | AU55: 93.12907905 | AV55: 93.12907905 | AW55: 93.12907905 | AX55: 93.12907905 | AY55: 93.12907905 | AZ55: 93.12907905 | BA55: 93.12907905
A56: 3I | B56: Agriculture other | C56: 10210.2 | D56: 8659.302143 | E56: 7687.545714 | F56: 7591.35 | G56: 8116.552857 | H56: 6646.902857 | I56: 5069.995 | J56: 4485.000714 | K56: 3705.004286 | L56: 2079.998571 | M56: 2471.302143 | N56: 1621.095714 | O56: 941.8485714 | P56: 804.0514286 | Q56: 526.5021429 | R56: 260.0028571 | S56: 157.8571429 | T56: 157.8571429 | U56: 157.8571429 | V56: 157.8571429 | W56: 157.8571429 | X56: 157.8571429 | Y56: 157.8571429 | Z56: 157.8571429 | AA56: 157.8571429 | AB56: 157.8571429 | AC56: 157.8571429 | AD56: 154.9554399 | AE56: 154.2968194 | AF56: 153.039453 | AG56: 151.7820866 | AH56: 150.4049711 | AI56: 149.8062251 | AJ56: 149.3272284 | AK56: 148.7883571 | AL56: 148.3093604 | AM56: 147.8303637 | AN56: 147.3513669 | AO56: 146.8723702 | AP56: 146.3933735 | AQ56: 145.9143768 | AR56: 145.9143768 | AS56: 145.9143768 | AT56: 145.9143768 | AU56: 145.9143768 | AV56: 145.9143768 | AW56: 145.9143768 | AX56: 145.9143768 | AY56: 145.9143768 | AZ56: 145.9143768 | BA56: 145.9143768
A58: 5A | B58: Solid waste disposal on land | C58: NE | D58: NE | E58: NE | F58: NE | G58: NE | H58: NE | I58: NE | J58: NE | K58: NE | L58: NE | M58: NE | N58: NE | O58: NE | P58: NE | Q58: NE | R58: NE | S58: NE | T58: NE | U58: NE | V58: NE | W58: NE | X58: NE | Y58: NE | Z58: NE | AA58: NE | AB58: NE | AC58: NE | AD58: NE | AE58: NE | AF58: NE | AG58: NE | AH58: NE | AI58: NE | AJ58: NE | AK58: NE | AL58: NE | AM58: NE | AN58: NE | AO58: NE | AP58: NE | AQ58: NE | AR58: NE | AS58: NE | AT58: NE | AU58: NE | AV58: NE | AW58: NE | AX58: NE | AY58: NE | AZ58: NE | BA58: NE
A59: 5B | B59: Biological treatment of waste | C59: 206.83028 | D59: 228.666657 | E59: 250.359555 | F59: 272.172431 | G59: 293.892316 | H59: 273.578787 | I59: 323.098468 | J59: 375.89876 | K59: 405.736674 | L59: 485.896537 | M59: 539.986292 | N59: 508.168623 | O59: 589.668426 | P59: 607.396531 | Q59: 494.373395 | R59: 528.055987 | S59: 563.976643 | T59: 632.563196 | U59: 580.613694 | V59: 624.925967 | W59: 602.437169 | X59: 579.840801 | Y59: 578.5452812 | Z59: 598.537666 | AA59: 751.3493747 | AB59: 771.9393458 | AC59: 1160.012644 | AD59: 896.4949046 | AE59: 897.7850506 | AF59: 899.2518196 | AG59: 900.0221596 | AH59: 900.4729126 | AI59: 900.5790946 | AJ59: 900.6849296 | AK59: 900.6849296 | AL59: 900.6849296 | AM59: 900.6849296 | AN59: 900.6849296 | AO59: 900.6849296 | AP59: 900.6849296 | AQ59: 900.6849296 | AR59: 900.6849296 | AS59: 900.6849296 | AT59: 900.6849296 | AU59: 900.6849296 | AV59: 900.6849296 | AW59: 900.6849296 | AX59: 900.6849296 | AY59: 900.6849296 | AZ59: 900.6849296 | BA59: 900.6849296
A60: 5C | B60: Waste incineration | C60: 0.285 | D60: 0.304 | E60: 0.323 | F60: 0.342 | G60: 0.361 | H60: 0.38 | I60: 0.399 | J60: 0.418 | K60: 0.445854 | L60: 0.699789 | M60: 0.842498 | N60: 0.859389 | O60: 0.857318 | P60: 0.877059 | Q60: 1.085128 | R60: 1.448465 | S60: 2.121065 | T60: 2.439999 | U60: 2.54277 | V60: 2.543872 | W60: 2.752568 | X60: 2.315378 | Y60: 2.35144 | Z60: 2.177552 | AA60: 2.2059 | AB60: 2.1261 | AC60: 2.2553 | AD60: 2.195766667 | AE60: 2.195766667 | AF60: 2.195766667 | AG60: 2.195766667 | AH60: 2.195766667 | AI60: 2.195766667 | AJ60: 2.195766667 | AK60: 2.195766667 | AL60: 2.195766667 | AM60: 2.195766667 | AN60: 2.195766667 | AO60: 2.195766667 | AP60: 2.195766667 | AQ60: 2.195766667 | AR60: 2.195766667 | AS60: 2.195766667 | AT60: 2.195766667 | AU60: 2.195766667 | AV60: 2.195766667 | AW60: 2.195766667 | AX60: 2.195766667 | AY60: 2.195766667 | AZ60: 2.195766667 | BA60: 2.195766667
A61: 5D | B61: Wastewater handling | C61: NE | D61: NE | E61: NE | F61: NE | G61: NE | H61: NE | I61: NE | J61: NE | K61: NE | L61: NE | M61: NE | N61: NE | O61: NE | P61: NE | Q61: NE | R61: NE | S61: NE | T61: NE | U61: NE | V61: NE | W61: NE | X61: NE | Y61: NE | Z61: NE | AA61: NE | AB61: NE | AC61: NE | AD61: NE | AE61: NE | AF61: NE | AG61: NE | AH61: NE | AI61: NE | AJ61: NE | AK61: NE | AL61: NE | AM61: NE | AN61: NE | AO61: NE | AP61: NE | AQ61: NE | AR61: NE | AS61: NE | AT61: NE | AU61: NE | AV61: NE | AW61: NE | AX61: NE | AY61: NE | AZ61: NE | BA61: NE
A62: 5E | B62: Other | C62: NE | D62: NE | E62: NE | F62: NE | G62: NE | H62: NE | I62: NE | J62: NE | K62: NE | L62: NE | M62: NE | N62: NE | O62: NE | P62: NE | Q62: NE | R62: NE | S62: NE | T62: NE | U62: NE | V62: NE | W62: NE | X62: NE | Y62: NE | Z62: NE | AA62: NE | AB62: NE | AC62: NE | AD62: NE | AE62: NE | AF62: NE | AG62: NE | AH62: NE | AI62: NE | AJ62: NE | AK62: NE | AL62: NE | AM62: NE | AN62: NE | AO62: NE | AP62: NE | AQ62: NE | AR62: NE | AS62: NE | AT62: NE | AU62: NE | AV62: NE | AW62: NE | AX62: NE | AY62: NE | AZ62: NE | BA62: NE
B63: Total | C63: =SUM(C3:C62) -> 125929.9736 | D63: 121858.0531 | E63: 119396.1793 | F63: 117476.327 | G63: 114335.157 | H63: 107745.4842 | I63: 104345.675 | J63: 103971.4233 | K63: 104191.8147 | L63: 98882.56128 | M63: 97077.365 | N63: 95494.76269 | O63: 93887.84201 | P63: 92834.23474 | Q63: 92063.20359 | R63: 88552.37229 | S63: 85020.83636 | T63: 84170.80264 | U63: 82786.71473 | V63: 78879.51569 | W63: 79676.75085 | X63: 78000.03946 | Y63: 76316.15103 | Z63: 73534.03733 | AA63: 74066.14645 | AB63: =SUM(AB3:AB62) -> 74474.40455 | AC63: =SUM(AC3:AC62) -> 75371.20413 | AD63: 74027.95483 | AE63: 73806.50016 | AF63: 73196.99018 | AG63: 72581.46536 | AH63: 72600.26041 | AI63: 72622.10148 | AJ63: 72582.30977 | AK63: 72608.86202 | AL63: 72589.11344 | AM63: 72454.17245 | AN63: 72355.1709 | AO63: 72236.25532 | AP63: 72113.72679 | AQ63: 72037.93956 | AR63: 72031.4985 | AS63: 72023.79234 | AT63: 72018.42722 | AU63: 72009.35451 | AV63: 72005.03999 | AW63: =SUM(AW3:AW62) -> 72023.74827 | AX63: 72041.21983 | AY63: 72057.74521 | AZ63: 72074.19613 | BA63: 72092.03512
B64: Total including adjustments | R64: =R63-R54-R49+R73 -> 79822.35743 | S64: =S63-S54-S49+S73 -> 76874.77004 | T64: 76042.09078 | U64: 74381.04481 | V64: 72542.32054 | W64: 72130.05354 | X64: 70889.71709 | Y64: 69322.48521 | Z64: 66041.55824 | AA64: 66155.13136 | AB64: 66844.5935 | AC64: 67123.12858 | AD64: 65867.88763 | AE64: 65582.68091 | AF64: 65033.72827 | AG64: 64402.31506 | AH64: 64454.53502 | AI64: 64496.88429 | AJ64: 64473.49914 | AK64: 64518.50876 | AL64: 64515.16675 | AM64: 64396.63232 | AN64: 64314.03733 | AO64: 64211.52831 | AP64: 64105.40633 | AQ64: 64046.02567 | AR64: 64039.58461 | AS64: 64031.87845 | AT64: 64026.51333 | AU64: 64017.44061 | AV64: 64013.1261 | AW64: 64031.83438 | AX64: 64049.30594 | AY64: 64065.83132 | AZ64: 64082.28223 | BA64: 64100.12123
B66: Reduction since 2005 | S66: =($R$63-S63)/$R$63 -> 0.03988076031 | T66: 0.04947998044 | U66: 0.06511014234 | V66: 0.109233173 | W66: 0.1002301939 | X66: 0.1191648802 | Y66: 0.138180615 | Z66: 0.1695983357 | AA66: 0.1635893593 | AB66: 0.1589790017 | AC66: 0.1488516662 | AD66: 0.1640206477 | AE66: 0.1665214805 | AF66: 0.1734045256 | AG66: 0.180355495 | AH66: 0.1801432471 | AI66: 0.1798966013 | AJ66: 0.1803459592 | AK66: 0.1800461113 | AL66: 0.180269127 | AM66: 0.1817929822 | AN66: 0.1829109822 | AO66: 0.1842538663 | AP66: 0.1856375508 | AQ66: 0.1864933971 | AR66: 0.1865661344 | AS66: 0.1866531582 | AT66: 0.1867137451 | AU66: 0.1868162011 | AV66: 0.1868649238 | AW66: =($R$63-AW63)/$R$63 -> 0.1866536559 | AX66: 0.1864563538 | AY66: 0.1862697368 | AZ66: 0.1860839607 | BA66: 0.1858825094
A68: 1A3a | B68: Civil Aviation (Domestic Cruise)
B69: Civil Aviation (International Cruise)
A70: 1A3d | B70: Navigation, international
B73: NH3 emission from mineral fertiliser - 2009 GB EFs | R73: 3124.037179 | S73: 3284.094971 | T73: 3420.764529 | U73: 3648.988193 | V73: 3849.064593 | W73: 3632.119579 | X73: 4085.84545 | Y73: 3998.314393 | Z73: 3650.087729 | AA73: 3700.416593 | AB73: 4198.245564 | AC73: 4337.90785 | AD73: 4971.744399 | AE73: 5139.445162 | AF73: 5175.012257 | AG73: 5228.362899 | AH73: 5263.929993 | AI73: 5263.929993 | AJ73: 5263.929993 | AK73: 5263.929993 | AL73: 5263.929993 | AM73: 5263.929993 | AN73: 5263.929993 | AO73: 5263.929993 | AP73: 5263.929993 | AQ73: 5263.929993 | AR73: 5263.929993 | AS73: 5263.929993 | AT73: 5263.929993 | AU73: 5263.929993 | AV73: 5263.929993 | AW73: 5263.929993 | AX73: 5263.929993 | AY73: 5263.929993 | AZ73: 5263.929993 | BA73: 5263.929993

Sheet TSP
A1: TSP (tons)
C2: 1990 | D2: 1991 | E2: 1992 | F2: 1993 | G2: 1994 | H2: 1995 | I2: 1996 | J2: 1997 | K2: 1998 | L2: 1999 | M2: 2000 | N2: 2001 | O2: 2002 | P2: 2003 | Q2: 2004 | R2: 2005 | S2: 2006 | T2: 2007 | U2: 2008 | V2: 2009 | W2: 2010 | X2: 2011 | Y2: 2012 | Z2: 2013 | AA2: 2014 | AB2: 2015 | AC2: 2016 | AD2: 2017 | AE2: 2018 | AF2: 2019 | AG2: 2020 | AH2: 2021 | AI2: 2022 | AJ2: 2023 | AK2: 2024 | AL2: 2025 | AM2: 2026 | AN2: 2027 | AO2: 2028 | AP2: 2029 | AQ2: 2030 | AR2: 2031 | AS2: 2032 | AT2: 2033 | AU2: 2034 | AV2: 2035 | AW2: 2036 | AX2: 2037 | AY2: 2038 | AZ2: 2039 | BA2: 2040
A3: 1A1a | B3: Public power and district heating plants | C3: 979.2202803 | D3: 1253.719309 | E3: 1098.033734 | F3: 1137.912462 | G3: 1232.304273 | H3: 1157.104073 | I3: 1529.823865 | J3: 1215.77851 | K3: 1095.855366 | L3: 980.9206197 | M3: 1021.592515 | N3: 1145.992501 | O3: 1220.226592 | P3: 1322.810756 | Q3: 1355.925992 | R3: 1172.254005 | S3: 984.1657757 | T3: 1022.397547 | U3: 905.914595 | V3: 857.7352283 | W3: 777.8695967 | X3: 736.4754018 | Y3: 738.0830908 | Z3: 914.8296497 | AA3: 729.1335022 | AB3: 605.5301252 | AC3: 687.8112929 | AD3: 899.2396276 | AE3: 919.0956329 | AF3: 903.0187181 | AG3: 883.9609229 | AH3: 901.5642594 | AI3: 899.0447241 | AJ3: 965.6715804 | AK3: 955.4440068 | AL3: 935.6039929 | AM3: 925.1668206 | AN3: 965.6080091 | AO3: 964.6638134 | AP3: 959.3579192 | AQ3: 959.5651228 | AR3: 953.0747772 | AS3: 948.9946203 | AT3: 954.2719772 | AU3: 950.6512308 | AV3: 957.2560586 | AW3: 972.9727409 | AX3: 978.9729383 | AY3: 985.622733 | AZ3: 996.3760713 | BA3: 1010.108248
A4: !A1b | B4: Petroleum refining plants | C4: 135.35066 | D4: 174.1668235 | E4: 252.4700616 | F4: 251.1403641 | G4: 248.8840288 | H4: 209.5997732 | I4: 219.1718883 | J4: 165.6270198 | K4: 131.297385 | L4: 133.094125 | M4: 143.93109 | N4: 150.92359 | O4: 144.117 | P4: 128.1420832 | Q4: 133.0819758 | R4: 111.2774428 | S4: 111.5954256 | T4: 120.7206149 | U4: 115.0442261 | V4: 111.2113763 | W4: 94.13720209 | X4: 93.84836245 | Y4: 114.7792506 | Z4: 106.7568883 | AA4: 96.15560604 | AB4: 112.0518107 | AC4: 97.39134615 | AD4: 99.837365 | AE4: 99.837365 | AF4: 99.837365 | AG4: 99.837365 | AH4: 99.837365 | AI4: 99.837365 | AJ4: 99.837365 | AK4: 99.837365 | AL4: 99.837365 | AM4: 99.837365 | AN4: 99.837365 | AO4: 99.837365 | AP4: 99.837365 | AQ4: 99.837365 | AR4: 99.837365 | AS4: 99.837365 | AT4: 99.837365 | AU4: 99.837365 | AV4: 99.837365 | AW4: 99.837365 | AX4: 99.837365 | AY4: 99.837365 | AZ4: 99.837365 | BA4: 99.837365
A5: 1A1c | B5: Oil and gas extraction | C5: 0.9482284365 | D5: 0.9703067811 | E5: 1.111869675 | F5: 1.123548003 | G5: 1.233925847 | H5: 1.299306253 | I5: 1.532287231 | J5: 1.996600306 | K5: 2.214376909 | L5: 2.40688667 | M5: 2.543208655 | N5: 2.485039372 | O5: 2.664788446 | P5: 2.664991246 | Q5: 2.750846974 | R5: 2.817841978 | S5: 2.883680004 | T5: 2.859065225 | U5: 2.930335382 | V5: 2.753583685 | W5: 2.714856695 | X5: 2.612177687 | Y5: 2.598188068 | Z5: 2.495534562 | AA5: 2.381453608 | AB5: 2.494083887 | AC5: 2.302657622 | AD5: 2.231251623 | AE5: 2.176981886 | AF5: 2.176981886 | AG5: 1.387754699 | AH5: 1.620554642 | AI5: 1.975589479 | AJ5: 2.020766253 | AK5: 2.013013434 | AL5: 2.024924525 | AM5: 2.087386311 | AN5: 2.114765776 | AO5: 2.158002694 | AP5: 2.221310903 | AQ5: 1.933571607 | AR5: 1.991318789 | AS5: 2.02256159 | AT5: 2.120342196 | AU5: 2.114036416 | AV5: 2.125652573 | AW5: 2.061262725 | AX5: 2.02725874 | AY5: 1.909212243 | AZ5: 1.869650151 | BA5: 1.799630388
A7: 1A2a-f i | B7: Combustion in manufacturing industry | C7: 636.6054898 | D7: 696.538201 | E7: 675.8157668 | F7: 665.2383614 | G7: 625.86576 | H7: 583.7621596 | I7: 606.1747114 | J7: 621.6344239 | K7: 633.7788053 | L7: 579.0456199 | M7: 755.3658854 | N7: 768.7902954 | O7: 578.4462113 | P7: 502.5446509 | Q7: 511.1820429 | R7: 423.1116868 | S7: 507.9250673 | T7: 466.0589093 | U7: 449.2402172 | V7: 330.7742911 | W7: 317.2457585 | X7: 328.4758196 | Y7: 296.9240642 | Z7: 296.8913551 | AA7: 261.1746563 | AB7: 270.5124267 | AC7: 278.8538998 | AD7: 279.9352291 | AE7: 280.0984577 | AF7: 279.9270793 | AG7: 279.753463 | AH7: 290.596197 | AI7: 301.4384049 | AJ7: 312.2797761 | AK7: 323.053887 | AL7: 333.82966 | AM7: 343.8334051 | AN7: 353.8526964 | AO7: 363.6843676 | AP7: 373.4613605 | AQ7: 383.2772505 | AR7: 393.128508 | AS7: 402.984708 | AT7: 412.8266474 | AU7: 422.6384998 | AV7: 432.469133 | AW7: 442.4974562 | AX7: 452.5456988 | AY7: 462.5726761 | AZ7: 472.4680804 | BA7: 482.3371678
A8: 1A2f ii | B8: Industry - Other (mobile) | C8: 1276.516482 | D8: 1236.301056 | E8: 1184.162779 | F8: 1132.888134 | G8: 1086.579889 | H8: 1048.768943 | I8: 1011.516357 | J8: 981.3922131 | K8: 952.8893443 | L8: 915.5301991 | M8: 876.1827922 | N8: 847.8006737 | O8: 812.2286626 | P8: 778.5754567 | Q8: 738.3933046 | R8: 705.9725201 | S8: 679.3256091 | T8: 656.0444044 | U8: 623.6960782 | V8: 448.2888406 | W8: 545.1316181 | X8: 508.0944593 | Y8: 471.853888 | Z8: 435.6703194 | AA8: 377.161145 | AB8: 350.080914 | AC8: 317.5698264 | AD8: 279.8816712 | AE8: 245.3203203 | AF8: 211.8215203 | AG8: 182.2142984 | AH8: 160.7492001 | AI8: 142.222042 | AJ8: 124.7644133 | AK8: 109.2739217 | AL8: 98.27823569 | AM8: 86.58209838 | AN8: 75.07405423 | AO8: 65.55088156 | AP8: 58.98056432 | AQ8: 52.62677749 | AR8: 46.00360466 | AS8: 41.67196422 | AT8: 39.88412596 | AU8: 39.10958979 | AV8: 38.37631083 | AW8: 37.66749983 | AX8: 36.96998798 | AY8: 36.17939604 | AZ8: 35.61227378 | BA8: 35.07172177
A10: 1A3a | B10: Civil Aviation (Domestic LTO) | C10: 3.61497726 | D10: 4.248959138 | E10: 3.849103696 | F10: 3.458784344 | G10: 3.623698887 | H10: 3.889878623 | I10: 4.032386859 | J10: 3.950348993 | K10: 3.348241246 | L10: 3.157123992 | M10: 2.871200587 | N10: 2.613921926 | O10: 2.489070183 | P10: 2.273283293 | Q10: 2.599995916 | R10: 2.549925692 | S10: 2.253346137 | T10: 2.342924051 | U10: 2.024204651 | V10: 1.91309146 | W10: 1.85860068 | X10: 1.650083039 | Y10: 1.74131969 | Z10: 1.764417511 | AA10: 1.407435438 | AB10: 1.336913152 | AC10: 1.419892665 | AD10: 1.433380623 | AE10: 1.446539187 | AF10: 1.459418072 | AG10: 1.468485813 | AH10: 1.480258487 | AI10: 1.492320687 | AJ10: 1.504207987 | AK10: 1.516226909 | AL10: 1.528293839 | AM10: 1.543393752 | AN10: 1.558810363 | AO10: 1.574146696 | AP10: 1.589553516 | AQ10: 1.60557817 | AR10: 1.607750412 | AS10: 1.609924434 | AT10: 1.611885176 | AU10: 1.613723805 | AV10: 1.616168891 | AW10: 1.618019612 | AX10: 1.619990564 | AY10: 1.621869358 | AZ10: 1.623671025 | BA10: 1.625915461
A11: 1A3a | B11: Civil Aviation (International LTO) | C11: 7.886802359 | D11: 10.51664218 | E11: 10.44666271 | F11: 9.982953067 | G11: 10.10776417 | H11: 10.8559725 | I11: 11.69673991 | J11: 12.07467083 | K11: 11.81040333 | L11: 11.2710057 | M11: 11.37372337 | N11: 11.24071921 | O11: 10.28334842 | P11: 10.25844389 | Q11: 11.26043909 | R11: 11.13200102 | S11: 11.20365553 | T11: 11.26668375 | U11: 11.55764237 | V11: 9.83924065 | W11: 10.26132968 | X11: 9.860745176 | Y11: 10.09525615 | Z11: 10.86204373 | AA11: 11.69962975 | AB11: 11.86654388 | AC11: 12.60503501 | AD11: 12.67751325 | AE11: 12.74954226 | AF11: 12.81419983 | AG11: 12.86733248 | AH11: 12.93718761 | AI11: 13.0169083 | AJ11: 13.08515519 | AK11: 13.15126774 | AL11: 13.21573323 | AM11: 13.30121884 | AN11: 13.39518336 | AO11: 13.47841458 | AP11: 13.55844673 | AQ11: 13.66347058 | AR11: 13.67502388 | AS11: 13.68874551 | AT11: 13.69321688 | AU11: 13.69285039 | AV11: 13.72768742 | AW11: 13.73016647 | AX11: 13.74304497 | AY11: 13.7524753 | AZ11: 13.75894344 | BA11: 13.79346021
A12: 1A3b | B12: Road exhaust | C12: 3962.512021 | D12: 4193.489163 | E12: 4048.711652 | F12: 4086.574497 | G12: 4214.587853 | H12: 4096.328097 | I12: 3997.289141 | J12: 3671.509526 | K12: 3398.088674 | L12: 3171.925553 | M12: 2913.821947 | N12: 2731.133804 | O12: 2515.783194 | P12: 2482.953052 | Q12: 2371.375611 | R12: 2292.76292 | S12: 2252.396626 | T12: 2180.719511 | U12: 1916.143394 | V12: 1634.656744 | W12: 1529.5327 | X12: 1363.295255 | Y12: 1225.133973 | Z12: 1084.536551 | AA12: 949.3649541 | AB12: 846.3111582 | AC12: 728.6992313 | AD12: 615.4975222 | AE12: 529.0887902 | AF12: 459.6685181 | AG12: 399.6563322 | AH12: 348.1217853 | AI12: 304.5882072 | AJ12: 267.9447228 | AK12: 237.5705346 | AL12: 213.0222449 | AM12: 193.851548 | AN12: 179.2834836 | AO12: 168.2108546 | AP12: 160.1458026 | AQ12: 154.0751343 | AR12: 149.7775675 | AS12: 146.2424272 | AT12: 143.349335 | AU12: 140.5771393 | AV12: 138.0168744 | AW12: 135.6086402 | AX12: 133.3440231 | AY12: 131.1720259 | AZ12: 129.0249917 | BA12: 126.7320383
A13: 1A3b | B13: Road non-exhaust | C13: 1817.499736 | D13: 1891.269289 | E13: 1923.524758 | F13: 1941.470346 | G13: 2053.888375 | H13: 2090.012032 | I13: 2131.834661 | J13: 2196.413643 | K13: 2249.731128 | L13: 2297.283569 | M13: 2279.656841 | N13: 2287.961125 | O13: 2319.030232 | P13: 2414.570295 | Q13: 2492.333722 | R13: 2502.92491 | S13: 2589.338404 | T13: 2730.090406 | U13: 2674.72503 | V13: 2539.434817 | W13: 2547.307782 | X13: 2591.87292 | Y13: 2532.737879 | Z13: 2503.178238 | AA13: 2577.845343 | AB13: 2633.992656 | AC13: 2691.384277 | AD13: 2719.839314 | AE13: 2742.213855 | AF13: 2788.291099 | AG13: 2831.158847 | AH13: 2875.956208 | AI13: 2924.084757 | AJ13: 2975.840111 | AK13: 3023.752345 | AL13: 3066.501563 | AM13: 3108.766156 | AN13: 3150.862256 | AO13: 3192.687656 | AP13: 3234.430692 | AQ13: 3275.583224 | AR13: 3316.210015 | AS13: 3355.898145 | AT13: 3394.948645 | AU13: 3433.667833 | AV13: 3474.411688 | AW13: 3521.119367 | AX13: 3576.320376 | AY13: 3641.605892 | AZ13: 3718.393356 | BA13: 3806.857075
A14: 1A3c | B14: Railways | C14: 201.5576574 | D14: 205.1841316 | E14: 216.9239989 | F14: 225.1324769 | G14: 204.0075604 | H14: 205.7843524 | I14: 204.2243082 | J14: 198.8187063 | K14: 167.750622 | L14: 146.2719477 | M14: 140.5712174 | N14: 125.3582558 | O14: 123.811099 | P14: 118.5964897 | Q14: 114.7678625 | R14: 123.7601514 | S14: 119.557145 | T14: 119.9923562 | U14: 101.1974495 | V14: 84.39545816 | W14: 94.91049414 | X14: 77.51031758 | Y14: 81.67987091 | Z14: 70.31873593 | AA14: 61.32821167 | AB14: 49.00474757 | AC14: 47.95680845 | AD14: 26.51672451 | AE14: 17.90566475 | AF14: 9.385263088 | AG14: 0.9555195169 | AH14: 0.950350461 | AI14: 0.9451814051 | AJ14: 0.9400123492 | AK14: 0.8319499267 | AL14: 0.7523520361 | AM14: 0.7467862852 | AN14: 0.3073826234 | AO14: 0.3008506384 | AP14: 0.2943186534 | AQ14: 0.2877866684 | AR14: 0.2877866684 | AS14: 0.2877866684 | AT14: 0.2877866684 | AU14: 0.2877866684 | AV14: 0.2877866684 | AW14: 0.2877866684 | AX14: 0.2877866684 | AY14: 0.2877866684 | AZ14: 0.2877866684 | BA14: 0.2877866684
A15: 1A3d | B15: Navigation | C15: 810.4380226 | D15: 861.0281613 | E15: 679.4009799 | F15: 648.2978563 | G15: 596.1474546 | H15: 647.803328 | I15: 561.4253195 | J15: 502.7763812 | K15: 437.3713136 | L15: 422.4171038 | M15: 432.0714664 | N15: 438.5714014 | O15: 502.3891226 | P15: 556.2939258 | Q15: 548.5912691 | R15: 566.6265961 | S15: 561.6242997 | T15: 438.5316847 | U15: 479.3135961 | V15: 479.2626446 | W15: 433.4772961 | X15: 417.3506699 | Y15: 408.704767 | Z15: 419.4215746 | AA15: 354.9450877 | AB15: 283.742141 | AC15: 295.5582558 | AD15: 294.867305 | AE15: 295.9720398 | AF15: 296.9898027 | AG15: 297.9209928 | AH15: 298.7590794 | AI15: 299.4974013 | AJ15: 300.1292005 | AK15: 300.6476606 | AL15: 301.0590425 | AM15: 301.4531968 | AN15: 301.6045745 | AO15: 302.4284037 | AP15: 302.3178643 | AQ15: 302.0170606 | AR15: 300.6019463 | AS15: 299.1826372 | AT15: 297.7591187 | AU15: 296.3313756 | AV15: 295.6190608 | AW15: 294.1828472 | AX15: 292.7423639 | AY15: 291.2975957 | AZ15: 289.8485273 | BA15: 288.3951433
A17: 1A4a i | B17: Commercial and institutional plants | C17: 120.6369236 | D17: 113.7164795 | E17: 103.0228609 | F17: 102.3406904 | G17: 100.1749796 | H17: 102.2811777 | I17: 128.8367826 | J17: 130.6641251 | K17: 119.9608643 | L17: 146.1369582 | M17: 163.8358515 | N17: 136.9150382 | O17: 163.4189156 | P17: 155.4200828 | Q17: 134.1936567 | R17: 156.1632921 | S17: 161.6380315 | T17: 167.5486978 | U17: 177.1972637 | V17: 167.0792812 | W17: 159.9756928 | X17: 148.0045527 | Y17: 144.4723182 | Z17: 156.9533244 | AA17: 170.3596324 | AB17: 194.8058079 | AC17: 247.1960454 | AD17: 214.6566628 | AE17: 210.0334373 | AF17: 205.4040759 | AG17: 200.777626 | AH17: 209.4351998 | AI17: 218.0956632 | AJ17: 226.7588298 | AK17: 235.4029354 | AL17: 244.0486679 | AM17: 254.6340788 | AN17: 265.2198335 | AO17: 275.8046884 | AP17: 286.3890088 | AQ17: 296.9711638 | AR17: 312.1355397 | AS17: 327.2997531 | AT17: 342.4633839 | AU17: 357.6265788 | AV17: 372.7893623 | AW17: 392.8313036 | AX17: 412.872698 | AY17: 432.9136522 | AZ17: 452.954307 | BA17: 472.9946858
A18: 1A4a ii | B18: Commercial and institutional (mobile) | C18: 44.64080954 | D18: 42.47749411 | E18: 40.3516562 | F18: 38.55638644 | G18: 36.78318483 | H18: 34.95197655 | I18: 33.04875655 | J18: 31.07213007 | K18: 29.02171499 | L18: 26.17767805 | M18: 23.22728177 | N18: 24.44770653 | O18: 25.10033208 | P18: 25.08319175 | Q18: 25.17363037 | R18: 25.16812075 | S18: 27.00403056 | T18: 26.78122651 | U18: 24.50030854 | V18: 23.10892366 | W18: 22.15153986 | X18: 22.10687435 | Y18: 19.637542 | Z18: 18.08865871 | AA18: 16.91468686 | AB18: 16.41193459 | AC18: 16.77717485 | AD18: 16.26512297 | AE18: 15.0898236 | AF18: 14.11136912 | AG18: 13.22464415 | AH18: 12.56972334 | AI18: 12.54429493 | AJ18: 12.5158089 | AK18: 12.4853462 | AL18: 12.45523187 | AM18: 12.41787062 | AN18: 12.37882353 | AO18: 12.338455 | AP18: 12.31405844 | AQ18: 12.31405844 | AR18: 12.31405844 | AS18: 12.31405844 | AT18: 12.31405844 | AU18: 12.31405844 | AV18: 12.31405844 | AW18: 12.31405844 | AX18: 12.31405844 | AY18: 12.31405844 | AZ18: 12.31405844 | BA18: 12.31405844
A19: 1A4b i | B19: Residential plants | C19: 11582.54919 | D19: 12892.7033 | E19: 12943.12144 | F19: 13746.26675 | G19: 13043.24762 | H19: 12795.20647 | I19: 13080.66358 | J19: 12731.12577 | K19: 11079.74942 | L19: 10598.94656 | M19: 12095.67678 | N19: 12724.00546 | O19: 12523.75886 | P19: 14056.64371 | Q19: 14677.58953 | R19: 16251.56378 | S19: 16896.22201 | T19: 20334.23938 | U19: 18714.39622 | V19: 17275.19082 | W19: 17533.00915 | X19: 15419.12242 | Y19: 14537.2369 | Z19: 14314.44447 | AA19: 12891.25339 | AB19: 14538.22237 | AC19: 14536.33438 | AD19: 14225.82057 | AE19: 13743.79919 | AF19: 13265.21065 | AG19: 12809.29113 | AH19: 12367.04837 | AI19: 11999.50277 | AJ19: 11652.50061 | AK19: 11310.97632 | AL19: 10974.92989 | AM19: 10619.64071 | AN19: 10269.18573 | AO19: 9920.3077 | AP19: 9576.457227 | AQ19: 9234.57045 | AR19: 8897.328373 | AS19: 8564.097567 | AT19: 8235.099131 | AU19: 7905.016039 | AV19: 7579.902309 | AW19: 7537.500397 | AX19: 7495.098485 | AY19: 7452.696573 | AZ19: 7410.294661 | BA19: 7367.892749
A20: 1A4b ii | B20: Residential (mobile) | C20: 8.303528406 | D20: 8.464290924 | E20: 8.277359399 | F20: 8.153717363 | G20: 8.108657024 | H20: 8.133002885 | I20: 8.314942263 | J20: 8.606793333 | K20: 8.919246058 | L20: 9.241993658 | M20: 9.567177906 | N20: 9.785602577 | O20: 9.912927168 | P20: 10.06236419 | Q20: 10.25171299 | R20: 10.47444398 | S20: 10.90846433 | T20: 11.45546081 | U20: 11.84750069 | V20: 11.68462683 | W20: 11.33827431 | X20: 11.32189452 | Y20: 11.22427969 | Z20: 10.93739101 | AA20: 10.84973458 | AB20: 10.91067269 | AC20: 11.41519412 | AD20: 11.87891845 | AE20: 11.90349615 | AF20: 11.88643631 | AG20: 11.83035259 | AH20: 11.66085906 | AI20: 11.53791111 | AJ20: 11.51217761 | AK20: 11.4971403 | AL20: 11.4908574 | AM20: 11.48972027 | AN20: 11.4896765 | AO20: 11.48966545 | AP20: 11.48966274 | AQ20: 11.48966195 | AR20: 11.48966193 | AS20: 11.48966193 | AT20: 11.48966193 | AU20: 11.48966193 | AV20: 11.48966193 | AW20: 11.48966193 | AX20: 11.48966193 | AY20: 11.48966193 | AZ20: 11.48966193 | BA20: 11.48966193
A21: 1A4c i | B21: Plants in agriculture, forestry and aquaculture | C21: 1632.179122 | D21: 1610.763418 | E21: 1595.57002 | F21: 1494.486253 | G21: 1401.325573 | H21: 1291.210631 | I21: 1175.982644 | J21: 1244.553743 | K21: 1212.721607 | L21: 1105.25339 | M21: 987.6059775 | N21: 925.370327 | O21: 913.36691 | P21: 908.616098 | Q21: 906.239611 | R21: 907.361209 | S21: 907.3665153 | T21: 901.4173238 | U21: 903.0158355 | V21: 889.8285256 | W21: 911.2386803 | X21: 900.80675 | Y21: 889.2023671 | Z21: 896.6778025 | AA21: 884.4400798 | AB21: 894.1038877 | AC21: 900.7897594 | AD21: 932.5933848 | AE21: 936.2341939 | AF21: 939.8544794 | AG21: 943.4755414 | AH21: 957.1953267 | AI21: 970.9153439 | AJ21: 984.635535 | AK21: 998.3506397 | AL21: 1012.066042 | AM21: 1029.397999 | AN21: 1046.776331 | AO21: 1063.814133 | AP21: 1080.757707 | AQ21: 1097.790691 | AR21: 1118.539842 | AS21: 1139.308396 | AT21: 1160.057139 | AU21: 1180.751712 | AV21: 1201.49365 | AW21: 1227.850861 | AX21: 1254.264615 | AY21: 1280.645529 | AZ21: 1306.743729 | BA21: 1332.787325
A22: 1A4c ii | B22: Agriculture & forestry (mobile) | C22: 2698.095584 | D22: 2597.276212 | E22: 2433.815224 | F22: 2386.421461 | G22: 2199.378373 | H22: 2183.073325 | I22: 1924.699999 | J22: 1850.973026 | K22: 1683.980965 | L22: 1600.983735 | M22: 1494.92232 | N22: 1427.500559 | O22: 1343.538763 | P22: 1265.874563 | Q22: 1193.970765 | R22: 1120.240675 | S22: 1051.633295 | T22: 978.2303886 | U22: 908.0481953 | V22: 837.5045896 | W22: 771.6865518 | X22: 710.9097638 | Y22: 643.1486744 | Z22: 575.3441005 | AA22: 491.4368985 | AB22: 448.1191966 | AC22: 403.83025 | AD22: 357.8104705 | AE22: 314.7259579 | AF22: 274.5729114 | AG22: 236.6579005 | AH22: 216.6715152 | AI22: 199.2524846 | AJ22: 185.5462969 | AK22: 172.3426065 | AL22: 157.2236646 | AM22: 140.0100626 | AN22: 124.8725343 | AO22: 114.2111093 | AP22: 103.4477313 | AQ22: 92.19300769 | AR22: 83.50946236 | AS22: 78.40728317 | AT22: 73.90803908 | AU22: 70.20903223 | AV22: 66.34101197 | AW22: 61.62725642 | AX22: 55.68861097 | AY22: 50.28209275 | AZ22: 47.54140801 | BA22: 45.17580986
A23: 1A4c iii | B23: Fishing (mobile) | C23: 182.5098692 | D23: 190.6701189 | E23: 176.1702501 | F23: 167.9564873 | G23: 171.3903835 | H23: 174.3528382 | I23: 164.481559 | J23: 133.7347799 | K23: 140.77489 | L23: 161.3366769 | M23: 204.9941285 | N23: 195.2985909 | O23: 195.4417625 | P23: 184.5370738 | Q23: 157.5812077 | R23: 158.9213598 | S23: 160.6073296 | T23: 148.7052977 | U23: 114.9120403 | V23: 111.4846399 | W23: 111.0774827 | X23: 104.8917874 | Y23: 81.24161226 | Z23: 93.55030954 | AA23: 86.0331048 | AB23: 94.26228733 | AC23: 94.41541717 | AD23: 94.86573855 | AE23: 95.27619653 | AF23: 95.64422053 | AG23: 95.96733291 | AH23: 98.68521362 | AI23: 101.4194584 | AJ23: 104.1185098 | AK23: 106.7782073 | AL23: 109.3944629 | AM23: 111.9279778 | AN23: 114.4670929 | AO23: 117.0118375 | AP23: 119.5622406 | AQ23: 122.1183318 | AR23: 124.8906497 | AS23: 127.6691733 | AT23: 130.4182946 | AU23: 133.1356787 | AV23: 135.8189826 | AW23: 138.7292486 | AX23: 141.6395145 | AY23: 144.5497804 | AZ23: 147.4600464 | BA23: 150.3703123
A25: 1A5b | B25: Other mobile (military and recreational crafts) | C25: 104.2190983 | D25: 209.9555385 | E25: 169.6049392 | F25: 171.5436662 | G25: 167.9790305 | H25: 233.3503481 | I25: 170.605606 | J25: 202.3024215 | K25: 210.8002319 | L25: 186.0416766 | M25: 160.9945749 | N25: 181.1789572 | O25: 166.0612458 | P25: 171.1422689 | Q25: 193.9068109 | R25: 181.5373493 | S25: 152.9432748 | T25: 143.8847887 | U25: 131.9553411 | V25: 130.9652578 | W25: 114.8830075 | X25: 113.8358675 | Y25: 104.3044887 | Z25: 98.80461931 | AA25: 93.12387128 | AB25: 87.02980175 | AC25: 84.8476848 | AD25: 78.11285618 | AE25: 71.72740319 | AF25: 65.44736552 | AG25: 59.23942631 | AH25: 55.57491073 | AI25: 51.96823822 | AJ25: 48.40998018 | AK25: 44.89910054 | AL25: 41.4309562 | AM25: 37.99848417 | AN25: 34.59628068 | AO25: 31.21712934 | AP25: 27.85789693 | AQ25: 24.51241333 | AR25: 21.17863935 | AS25: 21.15914243 | AT25: 21.14581008 | AU25: 21.13558848 | AV25: 21.12815285 | AW25: 21.12449969 | AX25: 21.13490754 | AY25: 21.11407402 | AZ25: 21.12013773 | BA25: 21.11797705
A27: 1B1 | B27: Fugitive emissions from solid fuels | C27: 1538.26365 | D27: 1921.54005 | E27: 1791.28065 | F27: 1570.01595 | G27: 1765.8684 | H27: 1951.31145 | I27: 1970.0265 | J27: 2021.1042 | K27: 1210.67295 | L27: 1067.5632 | M27: 962.2602 | N27: 1038.6441 | O27: 939.37005 | P27: 1427.18535 | Q27: 1139.1384 | R27: 904.7763 | S27: 1303.2252 | T27: 1218.4815 | U27: 1135.4922 | V27: 1006.6257 | W27: 685.5552 | X27: 920.4291 | Y27: 596.6787 | Z27: 742.7673 | AA27: 679.93665 | AB27: 413.61525 | AC27: 436.3581 | AD27: 393.2877345 | AE27: 370.1373377 | AF27: 321.0329084 | AG27: 317.321034 | AH27: 339.867783 | AI27: 343.0245141 | AJ27: 486.8235729 | AK27: 470.1751425 | AL27: 433.4791897 | AM27: 444.0444288 | AN27: 532.4289165 | AO27: 537.2382827 | AP27: 531.7408993 | AQ27: 538.6810502 | AR27: 536.0298322 | AS27: 539.2954011 | AT27: 559.5299484 | AU27: 562.1211394 | AV27: 574.2276805 | AW27: 622.9828921 | AX27: 636.355632 | AY27: 647.3555481 | AZ27: 672.0847837 | BA27: 703.322566
A28: 1B2a | B28: Fugitive emissions from oil | C28: 8.1078984e-05 | D28: 1.2750486e-05 | E28: 0.00013047615 | F28: 2.137926e-06 | G28: 4.4814e-07 | H28: 5.8857792e-05 | I28: 5.872965e-05 | J28: 1.17243e-06 | K28: 0.000127216362 | L28: 0.000129379866 | M28: 4.4814e-05 | N28: 0 | O28: 2.2713768e-05 | P28: 0 | Q28: 0 | R28: 7.8890448e-05 | S28: 0 | T28: 0 | U28: 0 | V28: 1.4723016e-05 | W28: 0 | X28: 0 | Y28: 0 | Z28: 5.2155432e-05 | AA28: 0 | AB28: 1.2936e-05 | AC28: 0 | AD28: 0 | AE28: 0 | AF28: 0 | AG28: 0 | AH28: 0 | AI28: 0 | AJ28: 0 | AK28: 0 | AL28: 0 | AM28: 0 | AN28: 0 | AO28: 0 | AP28: 0 | AQ28: 0 | AR28: 0 | AS28: 0 | AT28: 0 | AU28: 0 | AV28: 0 | AW28: 0 | AX28: 0 | AY28: 0 | AZ28: 0 | BA28: 0
A29: 1B2b | B29: Fugitive emissions from gas | C29: 0.121466184 | D29: 5.5146e-05 | E29: 0.00035364 | F29: 2.058e-06 | G29: 9.618e-06 | H29: 6.174e-06 | I29: 4.536e-06 | J29: 1.26e-07 | K29: 8.6604e-05 | L29: 2.8938e-05 | M29: 0.00235158 | N29: NA | O29: 0.376538988 | P29: NA | Q29: NA | R29: 0.02994894 | S29: NA | T29: NA | U29: NA | V29: 0.000257334 | W29: NA | X29: NA | Y29: NA | Z29: 4.284e-06 | AA29: NA | AB29: 0.00122724 | AC29: NA | AD29: 0 | AE29: 0 | AF29: 0 | AG29: 0 | AH29: 0 | AI29: 0 | AJ29: 0 | AK29: 0 | AL29: 0 | AM29: 0 | AN29: 0 | AO29: 0 | AP29: 0 | AQ29: 0 | AR29: 0 | AS29: 0 | AT29: 0 | AU29: 0 | AV29: 0 | AW29: 0 | AX29: 0 | AY29: 0 | AZ29: 0 | BA29: 0
A30: 1B2c | B30: Fugitive emissions from venting and flaring | C30: 4.942621087 | D30: 9.760995936 | E30: 10.06745628 | F30: 8.756503791 | G30: 8.69978464 | H30: 6.78033066 | I30: 7.441363085 | J30: 10.48094122 | K30: 7.752942395 | L30: 16.51167974 | M30: 10.83037912 | N30: 11.57731523 | O30: 9.730894552 | P30: 10.06371512 | Q30: 11.30474112 | R30: 8.14611553 | S30: 7.990112465 | T30: 8.18092042 | U30: 6.034728926 | V30: 3.887596806 | W30: 5.348139945 | X30: 3.586659923 | Y30: 3.394597507 | Z30: 3.939237072 | AA30: 3.938814935 | AB30: 3.983156647 | AC30: 4.339451755 | AD30: 3.67911977 | AE30: 3.637954356 | AF30: 3.699702477 | AG30: 2.344915181 | AH30: 2.643026117 | AI30: 3.267985159 | AJ30: 3.342968683 | AK30: 3.330619059 | AL30: 3.269313828 | AM30: 3.265197286 | AN30: 3.167025319 | AO30: 3.162908777 | AP30: 3.158792236 | AQ30: 2.22889678 | AR30: 2.224780238 | AS30: 2.220663697 | AT30: 2.339157617 | AU30: 2.273735845 | AV30: 2.273735845 | AW30: 2.204197531 | AX30: 2.204197531 | AY30: 2.20008099 | AZ30: 2.20008099 | BA30: 2.195964449
A32: 2A | B32: Mineral industry | C32: 5257.145153 | D32: 4810.993173 | E32: 4811.832088 | F32: 4455.475849 | G32: 4552.297992 | H32: 5110.599129 | I32: 6039.855339 | J32: 7019.414706 | K32: 6784.164039 | L32: 7834.967714 | M32: 7233.995186 | N32: 7248.630279 | O32: 6607.693975 | P32: 6494.704619 | Q32: 7042.796881 | R32: 7372.204448 | S32: 8548.544335 | T32: 8293.990643 | U32: 7807.263864 | V32: 6296.497776 | W32: 6108.955744 | X32: 5080.775256 | Y32: 5891.356874 | Z32: 5039.595184 | AA32: 5431.069778 | AB32: 5593.680008 | AC32: 5373.980696 | AD32: 5394.384487 | AE32: 5552.050057 | AF32: 5913.225905 | AG32: 6183.575732 | AH32: 6495.863889 | AI32: 6779.238371 | AJ32: 6904.607311 | AK32: 7039.959503 | AL32: 7186.256157 | AM32: 7250.857719 | AN32: 7268.647088 | AO32: 7333.969832 | AP32: 7372.347242 | AQ32: 7459.993371 | AR32: 7528.558584 | AS32: 7569.814033 | AT32: 7599.614205 | AU32: 7624.647723 | AV32: 7703.295635 | AW32: 7782.843015 | AX32: 7847.160913 | AY32: 7918.567993 | AZ32: 7988.593998 | BA32: 8106.20972
A33: 2B | B33: Chemical Industry | C33: 399.2 | D33: 367.044 | E33: 326.268 | F33: 308.966 | G33: 313.876 | H33: 350.68 | I33: 365.3 | J33: 333.8 | K33: 208.8 | L33: 407 | M33: 385.8 | N33: 369.8 | O33: 333.8 | P33: 336.8 | Q33: 207 | R33: 28.8 | S33: 15 | T33: 31.3 | U33: 32.5 | V33: 20 | W33: 32.5 | X33: 8.5 | Y33: 7.5 | Z33: 13 | AA33: 14 | AB33: 7 | AC33: 13 | AD33: 11.73441869 | AE33: 12.01315892 | AF33: 12.29189916 | AG33: 12.5706394 | AH33: 12.84937964 | AI33: 13.12811988 | AJ33: 13.40686012 | AK33: 13.68560036 | AL33: 13.9643406 | AM33: 14.24308083 | AN33: 14.52182107 | AO33: 14.80056131 | AP33: 15.07930155 | AQ33: 15.35804179 | AR33: 15.63678203 | AS33: 15.91552227 | AT33: 16.19426251 | AU33: 16.47300274 | AV33: 16.75174298 | AW33: 17.03048322 | AX33: 17.30922346 | AY33: 17.5879637 | AZ33: 17.86670394 | BA33: 18.14544418
A34: 2C | B34: Metal industry | C34: 303.63995 | D34: 266.15195 | E34: 262.86195 | F34: 249.3832 | G34: 288.7732 | H34: 309.1592 | I34: 272.26107 | J34: 299.33795 | K34: 274.11511 | L34: 259.61711 | M34: 261.97039 | N34: 255.51073 | O34: 223.578605 | P34: 227.4868038 | Q34: 245.5008857 | R34: 237.2531181 | S34: 189.8587465 | T34: 176.9521851 | U34: 176.2592082 | V34: 110.4938681 | W34: 177.5608156 | X34: 200.5844796 | Y34: 184.8520712 | Z34: 186.5980234 | AA34: 227.5428532 | AB34: 199.2828584 | AC34: 202.6878599 | AD34: 200.4525296 | AE34: 196.9525699 | AF34: 205.8422977 | AG34: 213.7601546 | AH34: 218.1818707 | AI34: 223.8474322 | AJ34: 228.6569366 | AK34: 232.7918499 | AL34: 236.2701221 | AM34: 237.6298693 | AN34: 239.4322062 | AO34: 242.0930741 | AP34: 244.5129613 | AQ34: 249.0644171 | AR34: 252.7747209 | AS34: 256.0878186 | AT34: 259.1373194 | AU34: 261.8531235 | AV34: 266.5600883 | AW34: 271.0765093 | AX34: 274.6306211 | AY34: 278.6025733 | AZ34: 282.3794375 | BA34: 288.3621579
A35: 2D | B35: Non-energy products from fuels and solvent use | C35: 141.8122348 | D35: 146.2592836 | E35: 128.1544132 | F35: 140.9728788 | G35: 129.8174936 | H35: 174.7290432 | I35: 195.3240592 | J35: 195.7969276 | K35: 177.7276704 | L35: 178.8904 | M35: 176.9382136 | N35: 225.9393304 | O35: 206.6495816 | P35: 171.13781 | Q35: 225.88237 | R35: 246.9051436 | S35: 228.412408 | T35: 281.995358 | U35: 249.8342524 | V35: 163.554348 | W35: 201.7422944 | X35: 242.8149356 | Y35: 204.5595668 | Z35: 211.4712324 | AA35: 215.1157172 | AB35: 210.6362628 | AC35: 215.211556 | AD35: 210.035708 | AE35: 210.035708 | AF35: 210.035708 | AG35: 210.035708 | AH35: 210.035708 | AI35: 210.035708 | AJ35: 210.035708 | AK35: 210.035708 | AL35: 210.035708 | AM35: 210.035708 | AN35: 210.035708 | AO35: 210.035708 | AP35: 210.035708 | AQ35: 210.035708 | AR35: 210.035708 | AS35: 210.035708 | AT35: 210.035708 | AU35: 210.035708 | AV35: 210.035708 | AW35: 210.035708 | AX35: 210.035708 | AY35: 210.035708 | AZ35: 210.035708 | BA35: 210.035708
A36: 2G | B36: Other product manufacture and use | C36: 256.394363 | D36: 258.6214248 | E36: 276.0157684 | F36: 252.1232769 | G36: 260.7402867 | H36: 307.6381834 | I36: 299.3031634 | J36: 288.4008012 | K36: 331.2696354 | L36: 460.0196836 | M36: 394.0381424 | N36: 339.6712856 | O36: 392.0088008 | P36: 461.4226327 | Q36: 549.4812072 | R36: 339.7027188 | S36: 376.4700831 | T36: 357.0824322 | U36: 344.7474072 | V36: 385.0774649 | W36: 373.7659689 | X36: 332.0397342 | Y36: 305.0059658 | Z36: 345.2203086 | AA36: 291.2266518 | AB36: 388.019611 | AC36: 305.7113882 | AD36: 316.6461087 | AE36: 313.0452675 | AF36: 309.4410791 | AG36: 305.8349174 | AH36: 302.2274394 | AI36: 298.6193667 | AJ36: 295.0110863 | AK36: 291.4027578 | AL36: 287.7942599 | AM36: 284.1854274 | AN36: 280.5761255 | AO36: 276.966213 | AP36: 273.3555828 | AQ36: 269.7442049 | AR36: 266.1320559 | AS36: 262.5191585 | AT36: 258.9054893 | AU36: 255.2910918 | AV36: 251.6760321 | AW36: 248.0602202 | AX36: 244.4437205 | AY36: 240.8265743 | AZ36: 237.2088386 | BA36: 233.5905441
A37: 2H | B37: Other | C37: 21.017344 | D37: 21.017344 | E37: 21.017344 | F37: 21.017344 | G37: 21.017344 | H37: 21.017344 | I37: 21.017344 | J37: 21.017344 | K37: 21.017344 | L37: 21.017344 | M37: 21.017344 | N37: 21.017344 | O37: 21.017344 | P37: 21.017344 | Q37: 21.674136 | R37: 21.142044 | S37: 18.108255 | T37: 20.945309 | U37: 18.859806 | V37: 16.889321 | W37: 14.460479 | X37: 19.25805 | Y37: 20.9933 | Z37: 22.171898 | AA37: 24.813384 | AB37: 24.617824 | AC37: 24.664464 | AD37: 22.406416 | AE37: 22.406416 | AF37: 22.406416 | AG37: 22.406416 | AH37: 22.406416 | AI37: 22.406416 | AJ37: 22.406416 | AK37: 22.406416 | AL37: 22.406416 | AM37: 22.406416 | AN37: 22.406416 | AO37: 22.406416 | AP37: 22.406416 | AQ37: 22.406416 | AR37: 22.406416 | AS37: 22.406416 | AT37: 22.406416 | AU37: 22.406416 | AV37: 22.406416 | AW37: 22.406416 | AX37: 22.406416 | AY37: 22.406416 | AZ37: 22.406416 | BA37: 22.406416
A38: 2I | B38: Wood processing | C38: 359.26 | D38: 295.44 | E38: 323.68 | F38: 435.45 | G38: 457.71 | H38: 464.81 | I38: 495.45 | J38: 509.29 | K38: 472.27 | L38: 440.02 | M38: 481.31 | N38: 396.26 | O38: 349.25 | P38: 399.89 | Q38: 357.85 | R38: 368.31 | S38: 372.77 | T38: 377.23 | U38: 434.82 | V38: 438.86 | W38: 436.6 | X38: 405.03 | Y38: 386.88 | Z38: 392.46 | AA38: 435.02 | AB38: 453.43 | AC38: 464.23 | AD38: 426.404 | AE38: 426.404 | AF38: 426.404 | AG38: 426.404 | AH38: 426.404 | AI38: 426.404 | AJ38: 426.404 | AK38: 426.404 | AL38: 426.404 | AM38: 426.404 | AN38: 426.404 | AO38: 426.404 | AP38: 426.404 | AQ38: 426.404 | AR38: 426.404 | AS38: 426.404 | AT38: 426.404 | AU38: 426.404 | AV38: 426.404 | AW38: 426.404 | AX38: 426.404 | AY38: 426.404 | AZ38: 426.404 | BA38: 426.404
A39: 2L | B39: Other production
A41: 3B1a | B41: Manure Management - Dairy cattle | C41: 946.7507014 | D41: 936.1713347 | E41: 901.8146601 | F41: 907.744327 | G41: 892.657796 | H41: 899.8068393 | I41: 900.5725276 | J41: 855.6923081 | K41: 848.1050325 | L41: 811.519295 | M41: 859.1374423 | N41: 856.5209792 | O41: 851.1369142 | P41: 873.7822783 | Q41: 852.8982056 | R41: 870.3955908 | S41: 865.0490972 | T41: 875.5641577 | U41: 902.6897284 | V41: 916.7885556 | W41: 924.9498199 | X41: 926.9570769 | Y41: 964.9457046 | Z41: 956.3782188 | AA41: 924.5544565 | AB41: 921.3402736 | AC41: 937.3474965 | AD41: 962.7723739 | AE41: 976.9193712 | AF41: 992.9033929 | AG41: 1005.606958 | AH41: 1008.813164 | AI41: 1017.205456 | AJ41: 1023.888505 | AK41: 1032.318856 | AL41: 1040.769504 | AM41: 1047.503296 | AN41: 1055.992007 | AO41: 1064.501011 | AP41: 1073.030314 | AQ41: 1085.074521 | AR41: 1085.074521 | AS41: 1085.074521 | AT41: 1085.074521 | AU41: 1085.074521 | AV41: 1085.074521 | AW41: 1085.074521 | AX41: 1085.074521 | AY41: 1085.074521 | AZ41: 1085.074521 | BA41: 1085.074521
A42: 3B1b | B42: Manure Management - Non-dairy cattle | C42: 1072.118164 | D42: 1044.943927 | E42: 1026.13641 | F42: 997.9732239 | G42: 939.5342427 | H42: 914.5592045 | I42: 910.4024935 | J42: 873.0021845 | K42: 857.7854563 | L42: 811.767578 | M42: 794.0274094 | N42: 810.9636996 | O42: 762.1446956 | P42: 479.4559631 | Q42: 473.3884249 | R42: 452.1816445 | S42: 459.3957881 | T42: 491.6230522 | U42: 487.905506 | V42: 477.6570651 | W42: 480.4938723 | X42: 486.2455548 | Y42: 491.9055532 | Z42: 504.4027201 | AA42: 488.810017 | AB42: 485.4233875 | AC42: 483.5861813 | AD42: 482.2434738 | AE42: 484.5057364 | AF42: 486.3101854 | AG42: 488.3323387 | AH42: 491.9047901 | AI42: 495.2539995 | AJ42: 498.8530171 | AK42: 502.22879 | AL42: 505.854378 | AM42: 509.2567148 | AN42: 512.9088631 | AO42: 516.337773 | AP42: 519.779966 | AQ42: 523.4719669 | AR42: 523.4719669 | AS42: 523.4719669 | AT42: 523.4719669 | AU42: 523.4719669 | AV42: 523.4719669 | AW42: 523.4719669 | AX42: 523.4719669 | AY42: 523.4719669 | AZ42: 523.4719669 | BA42: 523.4719669
A43: 3B2 | B43: Manure Management - Sheep | C43: 3.525744658 | D43: 4.084931507 | E43: 3.928760548 | F43: 3.38563726 | G43: 3.067587945 | H43: 3.095572603 | I43: 3.607443288 | J43: 3.679660274 | K43: 3.870980822 | L43: 4.054630137 | M43: 4.282350685 | N43: 4.549271233 | O43: 4.504969863 | P43: 4.641517808 | Q43: 4.76379726 | R43: 4.84300274 | S43: 4.899539726 | T43: 4.747994521 | U43: 4.506427397 | V43: 4.430942466 | W43: 4.257610959 | X43: 3.587375342 | Y43: 3.464865753 | Z43: 3.390953425 | AA43: 3.373539726 | AB43: 3.225715068 | AC43: 3.164831178 | AD43: 3.254695299 | AE43: 3.254695299 | AF43: 3.254695299 | AG43: 3.254695299 | AH43: 3.254695299 | AI43: 3.254695299 | AJ43: 3.254695299 | AK43: 3.254695299 | AL43: 3.254695299 | AM43: 3.254695299 | AN43: 3.254695299 | AO43: 3.254695299 | AP43: 3.254695299 | AQ43: 3.254695299 | AR43: 3.254695299 | AS43: 3.254695299 | AT43: 3.254695299 | AU43: 3.254695299 | AV43: 3.254695299 | AW43: 3.254695299 | AX43: 3.254695299 | AY43: 3.254695299 | AZ43: 3.254695299 | BA43: 3.254695299
A44: 3B3 | B44: Manure Management - Swine | C44: 3008.77375 | D44: 3097.654672 | E44: 3313.008215 | F44: 3650.895296 | G44: 3441.44467 | H44: 3491.37824 | I44: 3417.712395 | J44: 3587.83039 | K44: 3835.298552 | L44: 3685.905791 | M44: 3777.763763 | N44: 3989.281567 | O44: 4029.591798 | P44: 4095.970992 | Q44: 4182.174106 | R44: 4267.036996 | S44: 4206.95556 | T44: 4322.817454 | U44: 4008.729689 | V44: 3904.487029 | W44: 4149.857892 | X44: 4067.111056 | Y44: 3870.526664 | Z44: 3786.004043 | AA44: 3873.722248 | AB44: 3929.54043 | AC44: 3875.681755 | AD44: 3870.086144 | AE44: 3884.593363 | AF44: 3892.276763 | AG44: 3909.173879 | AH44: 3917.241854 | AI44: 3915.937454 | AJ44: 3911.040502 | AK44: 3912.628834 | AL44: 3906.74275 | AM44: 3894.265737 | AN44: 3881.896216 | AO44: 3867.753111 | AP44: 3852.556098 | AQ44: 3835.499161 | AR44: 3835.499161 | AS44: 3835.499161 | AT44: 3835.499161 | AU44: 3835.499161 | AV44: 3835.499161 | AW44: 3835.499161 | AX44: 3835.499161 | AY44: 3835.499161 | AZ44: 3835.499161 | BA44: 3835.499161
A45: 3B4d | B45: Manure Management - Goats | C45: 0.2875753425 | D45: 0.2837205479 | E45: 0.2798657534 | F45: 0.2760109589 | G45: 0.2721561644 | H45: 0.2683013699 | I45: 0.2644465753 | J45: 0.2605917808 | K45: 0.2974520548 | L45: 0.3102630137 | M45: 0.3246082192 | N45: 0.3623506849 | O45: 0.3540273973 | P45: 0.3854027397 | Q45: 0.4132493151 | R45: 0.4387178082 | S45: 0.4660657534 | T45: 0.4863945205 | U45: 0.5425863014 | V45: 0.6013479452 | W45: 0.6132767123 | X45: 0.4816383562 | Y45: 0.4921479452 | Z45: 0.4972493151 | AA45: 0.4567835616 | AB45: 0.4312 | AC45: 0.3956948493 | AD45: 0.4278928548 | AE45: 0.4278928548 | AF45: 0.4278928548 | AG45: 0.4278928548 | AH45: 0.4278928548 | AI45: 0.4278928548 | AJ45: 0.4278928548 | AK45: 0.4278928548 | AL45: 0.4278928548 | AM45: 0.4278928548 | AN45: 0.4278928548 | AO45: 0.4278928548 | AP45: 0.4278928548 | AQ45: 0.4278928548 | AR45: 0.4278928548 | AS45: 0.4278928548 | AT45: 0.4278928548 | AU45: 0.4278928548 | AV45: 0.4278928548 | AW45: 0.4278928548 | AX45: 0.4278928548 | AY45: 0.4278928548 | AZ45: 0.4278928548 | BA45: 0.4278928548
A46: 3B4e | B46: Manure Management - Horses | C46: 32.2826087 | D46: 32.64130435 | E46: 33 | F46: 33.35869565 | G46: 33.7173913 | H46: 34.07608696 | I46: 34.43478261 | J46: 34.79347826 | K46: 35.15217391 | L46: 35.51086957 | M46: 35.86956522 | N46: 37.06521739 | O46: 38.26086957 | P46: 39.45652174 | Q46: 40.65217391 | R46: 41.84782609 | S46: 43.04347826 | T46: 44.23913043 | U46: 45.43478261 | V46: 42.44565217 | W46: 39.45652174 | X46: 37.06521739 | Y46: 37.06521739 | Z46: 35.86956522 | AA46: 35.86956522 | AB46: 37.06521739 | AC46: 37.06521739 | AD46: 37.06521739 | AE46: 37.06521739 | AF46: 37.06521739 | AG46: 37.06521739 | AH46: 37.06521739 | AI46: 37.06521739 | AJ46: 37.06521739 | AK46: 37.06521739 | AL46: 37.06521739 | AM46: 37.06521739 | AN46: 37.06521739 | AO46: 37.06521739 | AP46: 37.06521739 | AQ46: 37.06521739 | AR46: 37.06521739 | AS46: 37.06521739 | AT46: 37.06521739 | AU46: 37.06521739 | AV46: 37.06521739 | AW46: 37.06521739 | AX46: 37.06521739 | AY46: 37.06521739 | AZ46: 37.06521739 | BA46: 37.06521739
A47: 3B4g | B47: Manure Management - Poultry | C47: 1548.503753 | D47: 1449.166574 | E47: 1656.734453 | F47: 1686.552002 | G47: 1900.849576 | H47: 1767.681636 | I47: 1794.074407 | J47: 1669.243782 | K47: 1543.697454 | L47: 1641.437487 | M47: 1655.467384 | N47: 1608.660748 | O47: 1566.84509 | P47: 1493.635639 | Q47: 1453.090471 | R47: 1543.791269 | S47: 1327.137225 | T47: 1331.438169 | U47: 1400.428429 | V47: 1501.937272 | W47: 1576.993948 | X47: 1640.4547 | Y47: 1621.598013 | Z47: 1657.471558 | AA47: 1579.005245 | AB47: 1564.275614 | AC47: 1668.763008 | AD47: 1659.318456 | AE47: 1668.17493 | AF47: 1672.464199 | AG47: 1675.657037 | AH47: 1671.170048 | AI47: 1668.436987 | AJ47: 1663.498694 | AK47: 1657.783475 | AL47: 1650.495712 | AM47: 1641.635459 | AN47: 1632.938028 | AO47: 1622.668139 | AP47: 1613.663644 | AQ47: 1603.556545 | AR47: 1603.556545 | AS47: 1603.556545 | AT47: 1603.556545 | AU47: 1603.556545 | AV47: 1603.556545 | AW47: 1603.556545 | AX47: 1603.556545 | AY47: 1603.556545 | AZ47: 1603.556545 | BA47: 1603.556545
A48: 3B4h | B48: Manure Management - Other (mainly mink) | C48: 40.25297778 | D48: 37.53896889 | E48: 40.59368889 | F48: 27.33029333 | G48: 32.50375111 | H48: 32.88785778 | I48: 34.10592 | J48: 39.32997351 | K48: 41.68977778 | L48: 37.13607111 | M48: 39.09152 | N48: 40.96490667 | O48: 43.04938667 | P48: 41.97052444 | Q48: 43.92832 | R48: 45.37143111 | S48: 48.14092444 | T48: 50.42864 | U48: 49.95525333 | V48: 48.37368889 | W48: 47.98682667 | X48: 49.00759129 | Y48: 52.40787556 | Z48: 55.5190224 | AA48: 58.80378667 | AB48: 60.23763556 | AC48: 57.78938667 | AD48: 58.02905465 | AE48: 59.37696706 | AF48: 60.73512556 | AG48: 62.10353015 | AH48: 63.18206603 | AI48: 64.2606019 | AJ48: 65.33913778 | AK48: 66.41767364 | AL48: 67.49620953 | AM48: 68.57474539 | AN48: 69.65328126 | AO48: 70.73181714 | AP48: 71.81035301 | AQ48: 72.88888889 | AR48: 72.88888889 | AS48: 72.88888889 | AT48: 72.88888889 | AU48: 72.88888889 | AV48: 72.88888889 | AW48: 72.88888889 | AX48: 72.88888889 | AY48: 72.88888889 | AZ48: 72.88888889 | BA48: 72.88888889
A49: 3Da1 | B49: Inorganic N-fertilizers (includes also urea application)
A50: 3Da2a | B50: Animal manure applied to soils
A51: 3Da2b-c | B51: Sludge applied to soils
A52: 3Da3 | B52: Urine and dung deposited by grazing animals
A53: 3Dc | B53: Farm-level agricultural operations including storage, handling and transport of agricultural products | C53: 68392.404 | D53: 68271.661 | E53: 67769.046 | F53: 63289.476 | G53: 63720.838 | H53: 62496.397 | I53: 63406.048 | J53: 63747.438 | K53: 63079.268 | L53: 61979.219 | M53: 62381.512 | N53: 62858.635 | O53: 52459.32 | P53: 53163.44 | Q53: 53513.128 | R53: 54145.889 | S53: 54720.887 | T53: 54618.248 | U53: 55985.342 | V53: 55643.159 | W53: 56654.808 | X53: 56540.876 | Y53: 55586.609 | Z53: 55217.912 | AA53: 56365.403 | AB53: 55039.647 | AC53: 54843.145 | AD53: 54388.35156 | AE53: 54157.18005 | AF53: 53715.85262 | AG53: 53274.52519 | AH53: 52791.16658 | AI53: 52581.01066 | AJ53: 52412.88593 | AK53: 52223.7456 | AL53: 52055.62087 | AM53: 51887.49614 | AN53: 51719.3714 | AO53: 51551.24667 | AP53: 51383.12193 | AQ53: 51214.9972 | AR53: 51214.9972 | AS53: 51214.9972 | AT53: 51214.9972 | AU53: 51214.9972 | AV53: 51214.9972 | AW53: 51214.9972 | AX53: 51214.9972 | AY53: 51214.9972 | AZ53: 51214.9972 | BA53: 51214.9972
A54: 3De | B54: Cultivated crops
A55: 3F | B55: Field burning of agricultural residues | C55: 186.5470095 | D55: 193.9556903 | E55: 185.444415 | F55: 202.4858227 | G55: 195.2646052 | H55: 220.9870035 | I55: 219.746862 | J55: 232.9491555 | K55: 293.2624058 | L55: 278.5825913 | M55: 274.4173575 | N55: 288.3861428 | O55: 239.8941698 | P55: 288.391689 | Q55: 302.3571465 | R55: 306.8196592 | S55: 311.25555 | T55: 269.3192445 | U55: 249.4192995 | V55: 293.4254655 | W55: 213.969888 | X55: 211.786884 | Y55: 243.387198 | Z55: 263.029797 | AA55: 258.983253 | AB55: 227.6087823 | AC55: 224.534385 | AD55: 239.0071003 | AE55: 237.9912278 | AF55: 236.0518348 | AG55: 234.1124417 | AH55: 231.9883446 | AI55: 231.0648242 | AJ55: 230.3260078 | AK55: 229.4948393 | AL55: 228.756023 | AM55: 228.0172066 | AN55: 227.2783902 | AO55: 226.5395738 | AP55: 225.8007574 | AQ55: 225.061941 | AR55: 225.061941 | AS55: 225.061941 | AT55: 225.061941 | AU55: 225.061941 | AV55: 225.061941 | AW55: 225.061941 | AX55: 225.061941 | AY55: 225.061941 | AZ55: 225.061941 | BA55: 225.061941
A56: 3I | B56: Agriculture other
A58: 5A | B58: Solid waste disposal on land | C58: NE | D58: NE | E58: NE | F58: NE | G58: NE | H58: NE | I58: NE | J58: NE | K58: NE | L58: NE | M58: NE | N58: NE | O58: NE | P58: NE | Q58: NE | R58: NE | S58: NE | T58: NE | U58: NE | V58: NE | W58: NE | X58: NE | Y58: NE | Z58: NE | AA58: NE | AB58: NE | AC58: NE | AD58: NE | AE58: NE | AF58: NE | AG58: NE | AH58: NE | AI58: NE | AJ58: NE | AK58: NE | AL58: NE | AM58: NE | AN58: NE | AO58: NE | AP58: NE | AQ58: NE | AR58: NE | AS58: NE | AT58: NE | AU58: NE | AV58: NE | AW58: NE | AX58: NE | AY58: NE | AZ58: NE | BA58: NE
A59: 5B | B59: Biological treatment of waste | C59: NE | D59: NE | E59: NE | F59: NE | G59: NE | H59: NE | I59: NE | J59: NE | K59: NE | L59: NE | M59: NE | N59: NE | O59: NE | P59: NE | Q59: NE | R59: NE | S59: NE | T59: NE | U59: NE | V59: NE | W59: NE | X59: NE | Y59: NE | Z59: NE | AA59: NE | AB59: NE | AC59: NE | AD59: NE | AE59: NE | AF59: NE | AG59: NE | AH59: NE | AI59: NE | AJ59: NE | AK59: NE | AL59: NE | AM59: NE | AN59: NE | AO59: NE | AP59: NE | AQ59: NE | AR59: NE | AS59: NE | AT59: NE | AU59: NE | AV59: NE | AW59: NE | AX59: NE | AY59: NE | AZ59: NE | BA59: NE
A60: 5C | B60: Waste incineration | C60: 1.90761296 | D60: 1.91688096 | E60: 1.9691048 | F60: 2.05796064 | G60: 2.06310272 | H60: 2.12674032 | I60: 2.12598272 | J60: 2.13347696 | K60: 2.1179684 | L60: 2.43396524 | M60: 2.57271816 | N60: 2.59425772 | O60: 2.62396344 | P60: 2.62571412 | Q60: 2.8474024 | R60: 3.23355148 | S60: 4.02358748 | T60: 4.41007476 | U60: 4.52883928 | V60: 4.55401088 | W60: 4.7796576 | X60: 2.672513328 | Y60: 2.713758874 | Z60: 2.514801114 | AA60: 2.547011352 | AB60: 2.456109868 | AC60: 2.604563712 | AD60: 2.212670379 | AE60: 2.212670379 | AF60: 2.212670379 | AG60: 2.212670379 | AH60: 2.212670379 | AI60: 2.212670379 | AJ60: 2.212670379 | AK60: 2.212670379 | AL60: 2.212670379 | AM60: 2.212670379 | AN60: 2.212670379 | AO60: 2.212670379 | AP60: 2.212670379 | AQ60: 2.212670379 | AR60: 2.212670379 | AS60: 2.212670379 | AT60: 2.212670379 | AU60: 2.212670379 | AV60: 2.212670379 | AW60: 2.212670379 | AX60: 2.212670379 | AY60: 2.212670379 | AZ60: 2.212670379 | BA60: 2.212670379
A61: 5D | B61: Wastewater handling
A62: 5E | B62: Other | C62: 305.3554324 | D62: 312.8059786 | E62: 332.3002423 | F62: 306.619303 | G62: 306.2723677 | H62: 339.3888011 | I62: 343.1242805 | J62: 323.9167928 | K62: 301.0810455 | L62: 315.7986259 | M62: 311.8791998 | N62: 308.4746417 | O62: 301.7767982 | P62: 327.3482722 | Q62: 295.4192835 | R62: 304.5891616 | S62: 311.2919404 | T62: 319.8941287 | U62: 314.8972962 | V62: 309.1363235 | W62: 275.581426 | X62: 257.3931743 | Y62: 228.7124072 | Z62: 244.0703633 | AA62: 218.0377253 | AB62: 221.2463675 | AC62: 249.0888037 | AD62: 232.2311334 | AE62: 232.9348786 | AF62: 230.7077817 | AG62: 233.241793 | AH62: 235.6408781 | AI62: 232.951293 | AJ62: 233.0953249 | AK62: 233.1274141 | AL62: 233.6113406 | AM62: 233.6852501 | AN62: 233.2941246 | AO62: 233.3626909 | AP62: 233.4161641 | AQ62: 233.473914 | AR62: 233.4464287 | AS62: 233.3986645 | AT62: 233.4195724 | AU62: 233.4309487 | AV62: 233.4339057 | AW62: 233.425904 | AX62: 233.4217991 | AY62: 233.426426 | AZ62: 233.4277967 | BA62: 233.4271663
B63: Total | C63: =SUM(C3:C62) -> 110025.7907 | D63: 111673.1122 | E63: 110779.8191 | F63: 106769.2608 | G63: 106672.9041 | H63: 105777.1457 | I63: 107697.554 | J63: 107973.9175 | K63: 103899.4808 | L63: 102786.7259 | M63: 103785.3135 | N63: 104850.8827 | O63: 92955.04753 | P63: 95457.87557 | Q63: 96546.85919 | R63: 98240.32799 | S63: 100553.5169 | T63: 103562.6615 | U63: 101927.8508 | V63: 97535.99468 | W63: 98400.045 | X63: 94998.70312 | Y63: 93019.84921 | Z63: 91695.80952 | AA63: 91199.2389 | AB63: 91237.55343 | AC63: 90880.50827 | AD63: 90077.99092 | AE63: 89396.01435 | AF63: 88692.16377 | AG63: 87981.61243 | AH63: 87405.96128 | AI63: 87122.43274 | AJ63: 86962.59751 | AK63: 86570.72203 | AL63: 86180.87995 | AM63: 85741.15315 | AN63: 85396.39697 | AO63: 84983.94773 | AP63: 84539.65134 | AQ63: 84167.33284 | AR63: 83954.7419 | AS63: 83735.774 | AT63: 83538.98274 | AU63: 83310.64737 | AV63: 83165.59662 | AW63: =SUM(AW3:AW62) -> 83365.03048 | AX63: 83510.79631 | AY63: 83672.78843 | AZ63: 83865.13719 | BA63: 84128.59852
B66: Reduction since 2005 | S66: =($R$63-S63)/$R$63 -> -0.02354622517 | T66: -0.05417666624 | U66: -0.03753573365 | V66: 0.007169492683 | W66: -0.001625778413 | X66: 0.03299688566 | Y66: 0.05313987537 | Z66: 0.06661743308 | AA66: 0.07167208452 | AB66: 0.07128207643 | AC66: 0.07491648161 | AD66: 0.08308540129 | AE66: 0.09002732201 | AF66: 0.0971919009 | AG66: 0.1044246876 | AH66: 0.1102843093 | AI66: 0.1131703801 | AJ66: 0.1147973618 | AK66: 0.1187863091 | AL66: 0.122754558 | AM66: 0.1272305895 | AN66: 0.1307399037 | AO66: 0.1349382737 | AP66: 0.1394608195 | AQ66: 0.1432506939 | AR66: =($R$63-AR63)/$R$63 -> 0.1454146824 | AS66: =($R$63-AS63)/$R$63 -> 0.1476435827 | AT66: =($R$63-AT63)/$R$63 -> 0.1496467444 | AU66: =($R$63-AU63)/$R$63 -> 0.1519709974 | AV66: =($R$63-AV63)/$R$63 -> 0.1534474862 | AW66: =($R$63-AW63)/$R$63 -> 0.1514174252 | AX66: 0.1499336574 | AY66: 0.1482847204 | AZ66: 0.1463267794 | BA66: 0.1436449752
A68: 1A3a | B68: Civil Aviation (Domestic Cruise) | C68: 5.110733347 | D68: 4.812615268 | E68: 4.801877908 | F68: 4.467292136 | G68: 4.643226932 | H68: 4.715266295 | I68: 4.969195541 | J68: 4.80566326 | K68: 4.600410134 | L68: 4.557929018 | M68: 4.388164996 | N68: 4.51676842 | O68: 3.577803295 | P68: 3.26729176 | Q68: 3.000536754 | R68: 3.36459458 | S68: 3.694510691 | T68: 4.396171899 | U68: 4.642645 | V68: 4.202136378 | W68: 4.072109709 | X68: 3.773924685 | Y68: 3.6133027 | Z68: 3.582302402 | AA68: 3.552591382 | AB68: 3.16927376 | AC68: 3.743748502 | AD68: 3.346792753 | AE68: 3.376087677 | AF68: 3.404571784 | AG68: 3.419788161 | AH68: 3.441034748 | AI68: 3.463127523 | AJ68: 3.484406297 | AK68: 3.505923529 | AL68: 3.527396882 | AM68: 3.555657694 | AN68: 3.584748452 | AO68: 3.613294625 | AP68: 3.64183101 | AQ68: 3.67226939 | AR68: 3.671661111 | AS68: 3.671107904 | AT68: 3.66986149 | AU68: 3.668235747 | AV68: 3.668767471 | AW68: 3.667274005 | AX68: 3.666243575 | AY68: 3.664930585 | AZ68: 3.66338175 | BA68: 3.663409078
B69: Civil Aviation (International Cruise) | C69: 87.61375962 | D69: 79.52709242 | E69: 81.97264098 | F69: 79.84018039 | G69: 88.66374217 | H69: 90.24144607 | I69: 94.07568573 | J69: 95.85420593 | K69: 104.8343794 | L69: 111.5814282 | M69: 114.482891 | N69: 117.923782 | O69: 126.1585051 | P69: 136.1935883 | Q69: 158.9159801 | R69: 169.6076594 | S69: 171.845232 | T69: 174.2511427 | U69: 177.8087668 | V69: 153.3042738 | W69: 156.0281941 | X69: 156.7863911 | Y69: 161.4369993 | Z69: 164.8232551 | AA69: 186.4103807 | AB69: 177.5714092 | AC69: 187.6622189 | AD69: 187.3070745 | AE69: 188.3712849 | AF69: 189.3265843 | AG69: 190.1116059 | AH69: 191.1436979 | AI69: 192.3215511 | AJ69: 193.3298817 | AK69: 194.306678 | AL69: 195.2591394 | AM69: 196.5221679 | AN69: 197.9104701 | AO69: 199.1401904 | AP69: 200.3226454 | AQ69: 201.8743463 | AR69: 202.0450434 | AS69: 202.2477771 | AT69: 202.3138405 | AU69: 202.3084257 | AV69: 202.823134 | AW69: 202.8597614 | AX69: 203.050038 | AY69: 203.1893687 | AZ69: 203.2849339 | BA69: 203.7949105
A70: 1A3d | B70: Navigation, international | C70: 4962.535521 | D70: 4080.762901 | E70: 3773.005972 | F70: 6994.583569 | G70: 7266.478037 | H70: 7857.282459 | I70: 7368.772238 | J70: 6763.487476 | K70: 5838.049823 | L70: 6090.56299 | M70: 6818.983673 | N70: 5450.029911 | O70: 3833.386313 | P70: 4098.388974 | Q70: 3482.42572 | R70: 4309.33786 | S70: 6394.177916 | T70: 4735.915577 | U70: 3690.043894 | V70: 1500.177773 | W70: 2098.64969 | X70: 2268.042087 | Y70: 1374.929056 | Z70: 1896.075994 | AA70: 2340.272502 | AB70: 1481.869751 | AC70: 650.483918 | AD70: 1224.36034 | AE70: 1238.149449 | AF70: 1251.35902 | AG70: 1263.931836 | AH70: 1275.808744 | AI70: 1286.928873 | AJ70: 1297.229896 | AK70: 1306.648329 | AL70: 1315.11988 | AM70: 1322.579842 | AN70: 1328.963532 | AO70: 1334.206769 | AP70: 1338.246397 | AQ70: 1341.020843 | AR70: 1343.800465 | AS70: 1346.586988 | AT70: 1349.380439 | AU70: 1352.180843 | AV70: 1355.795263 | AW70: 1358.611561 | AX70: 1361.434897 | AY70: 1364.265296 | AZ70: 1367.102784 | BA70: 1369.94739

Sheet PM10
A1: PM10 (tons)
C2: 1990 | D2: 1991 | E2: 1992 | F2: 1993 | G2: 1994 | H2: 1995 | I2: 1996 | J2: 1997 | K2: 1998 | L2: 1999 | M2: 2000 | N2: 2001 | O2: 2002 | P2: 2003 | Q2: 2004 | R2: 2005 | S2: 2006 | T2: 2007 | U2: 2008 | V2: 2009 | W2: 2010 | X2: 2011 | Y2: 2012 | Z2: 2013 | AA2: 2014 | AB2: 2015 | AC2: 2016 | AD2: 2017 | AE2: 2018 | AF2: 2019 | AG2: 2020 | AH2: 2021 | AI2: 2022 | AJ2: 2023 | AK2: 2024 | AL2: 2025 | AM2: 2026 | AN2: 2027 | AO2: 2028 | AP2: 2029 | AQ2: 2030 | AR2: 2031 | AS2: 2032 | AT2: 2033 | AU2: 2034 | AV2: 2035 | AW2: 2036 | AX2: 2037 | AY2: 2038 | AZ2: 2039 | BA2: 2040
A3: 1A1a | B3: Public power and district heating plants | C3: 831.2179201 | D3: 1064.205895 | E3: 924.3370026 | F3: 953.481776 | G3: 1028.114221 | H3: 971.1311024 | I3: 1295.815204 | J3: 1017.878766 | K3: 911.5246239 | L3: 805.6775282 | M3: 829.8157058 | N3: 918.6059956 | O3: 973.9680204 | P3: 1057.211228 | Q3: 832.789514 | R3: 676.5385455 | S3: 770.8998252 | T3: 799.7314635 | U3: 677.2359416 | V3: 622.7392517 | W3: 604.3932555 | X3: 572.5060509 | Y3: 509.2595729 | Z3: 722.5573361 | AA3: 556.4446914 | AB3: 446.3384226 | AC3: 507.8122981 | AD3: 681.9188463 | AE3: 699.2710086 | AF3: 682.6124565 | AG3: 668.5128025 | AH3: 681.6389584 | AI3: 680.0578088 | AJ3: 738.9975177 | AK3: 730.5570287 | AL3: 713.6475824 | AM3: 706.6668672 | AN3: 742.5325018 | AO3: 742.1980063 | AP3: 738.076009 | AQ3: 738.8252385 | AR3: 733.9840682 | AS3: 731.2769387 | AT3: 736.5262153 | AU3: 734.0570631 | AV3: 739.3295242 | AW3: 754.1394377 | AX3: 759.3836204 | AY3: 765.4281047 | AZ3: 774.8090151 | BA3: 786.9456651
A4: !A1b | B4: Petroleum refining plants | C4: 122.258636 | D4: 153.7854275 | E4: 216.7835296 | F4: 216.2379961 | G4: 215.5168608 | H4: 186.2619053 | I4: 196.7316943 | J4: 149.4031983 | K4: 120.23652 | L4: 122.199112 | M4: 130.70114 | N4: 136.4943 | O4: 130.4906 | P4: 119.0712632 | Q4: 122.3656258 | R4: 104.3714294 | S4: 105.4015851 | T4: 112.5011849 | U4: 106.1042561 | V4: 103.9485113 | W4: 89.58358909 | X4: 88.78545745 | Y4: 106.6659171 | Z4: 100.1573607 | AA4: 92.28694554 | AB4: 105.814187 | AC4: 92.34017715 | AD4: 94.786196 | AE4: 94.786196 | AF4: 94.786196 | AG4: 94.786196 | AH4: 94.786196 | AI4: 94.786196 | AJ4: 94.786196 | AK4: 94.786196 | AL4: 94.786196 | AM4: 94.786196 | AN4: 94.786196 | AO4: 94.786196 | AP4: 94.786196 | AQ4: 94.786196 | AR4: 94.786196 | AS4: 94.786196 | AT4: 94.786196 | AU4: 94.786196 | AV4: 94.786196 | AW4: 94.786196 | AX4: 94.786196 | AY4: 94.786196 | AZ4: 94.786196 | BA4: 94.786196
A5: 1A1c | B5: Oil and gas extraction | C5: 0.5784193463 | D5: 0.5918871365 | E5: 0.6782405019 | F5: 0.6853642816 | G5: 0.7526947668 | H5: 0.7925768144 | I5: 0.9346952106 | J5: 1.217926187 | K5: 1.350769914 | L5: 1.468200869 | M5: 1.55135728 | N5: 1.515874017 | O5: 1.625520952 | P5: 1.62564466 | Q5: 1.678016654 | R5: 1.718883607 | S5: 1.759044802 | T5: 1.744029787 | U5: 1.787504583 | V5: 1.679686048 | W5: 1.656062584 | X5: 1.591424117 | Y5: 1.584987051 | Z5: 1.522658673 | AA5: 1.453501372 | AB5: 1.522174572 | AC5: 1.40462115 | AD5: 1.36106349 | AE5: 1.32795895 | AF5: 1.32795895 | AG5: 0.8465303665 | AH5: 0.9885383314 | AI5: 1.205109582 | AJ5: 1.232667414 | AK5: 1.227938195 | AL5: 1.23520396 | AM5: 1.27330565 | AN5: 1.290007124 | AO5: 1.316381643 | AP5: 1.354999651 | AQ5: 1.17947868 | AR5: 1.214704461 | AS5: 1.23376257 | AT5: 1.29340874 | AU5: 1.289562214 | AV5: 1.29664807 | AW5: 1.257370262 | AX5: 1.236627832 | AY5: 1.164619468 | AZ5: 1.140486592 | BA5: 1.097774537
A7: 1A2a-f i | B7: Combustion in manufacturing industry | C7: 492.9368388 | D7: 545.2272384 | E7: 535.1100331 | F7: 526.3873956 | G7: 498.5322376 | H7: 469.9135422 | I7: 489.8983648 | J7: 506.202558 | K7: 514.9615771 | L7: 472.8879594 | M7: 547.6296468 | N7: 552.8500633 | O7: 373.2618171 | P7: 342.5465345 | Q7: 341.8241009 | R7: 287.30854 | S7: 358.6947047 | T7: 330.6769704 | U7: 354.2956546 | V7: 250.532259 | W7: 235.0834019 | X7: 243.3972308 | Y7: 225.6906502 | Z7: 226.5464044 | AA7: 196.2327085 | AB7: 195.2299618 | AC7: 199.9708787 | AD7: 197.4848713 | AE7: 197.6923479 | AF7: 197.5652174 | AG7: 197.435849 | AH7: 204.9893676 | AI7: 212.5423601 | AJ7: 220.094516 | AK7: 227.5794116 | AL7: 235.0659692 | AM7: 242.1209305 | AN7: 249.1914381 | AO7: 256.0743255 | AP7: 262.9025347 | AQ7: 269.769641 | AR7: 276.626622 | AS7: 283.4885455 | AT7: 290.3362084 | AU7: 297.1537844 | AV7: 303.9901411 | AW7: 310.975655 | AX7: 317.9810884 | AY7: 324.9652565 | AZ7: 331.8178515 | BA7: 338.6441297
A8: 1A2f ii | B8: Industry - Other (mobile) | C8: 1276.516482 | D8: 1236.301056 | E8: 1184.162779 | F8: 1132.888134 | G8: 1086.579889 | H8: 1048.768943 | I8: 1011.516357 | J8: 981.3922131 | K8: 952.8893443 | L8: 915.5301991 | M8: 876.1827922 | N8: 847.8006737 | O8: 812.2286626 | P8: 778.5754567 | Q8: 738.3933046 | R8: 705.9725201 | S8: 679.3256091 | T8: 656.0444044 | U8: 623.6960782 | V8: 448.2888406 | W8: 545.1316181 | X8: 508.0944593 | Y8: 471.853888 | Z8: 435.6703194 | AA8: 377.161145 | AB8: 350.080914 | AC8: 317.5698264 | AD8: 279.8816712 | AE8: 245.3203203 | AF8: 211.8215203 | AG8: 182.2142984 | AH8: 160.7492001 | AI8: 142.222042 | AJ8: 124.7644133 | AK8: 109.2739217 | AL8: 98.27823569 | AM8: 86.58209838 | AN8: 75.07405423 | AO8: 65.55088156 | AP8: 58.98056432 | AQ8: 52.62677749 | AR8: 46.00360466 | AS8: 41.67196422 | AT8: 39.88412596 | AU8: 39.10958979 | AV8: 38.37631083 | AW8: 37.66749983 | AX8: 36.96998798 | AY8: 36.17939604 | AZ8: 35.61227378 | BA8: 35.07172177
A10: 1A3a | B10: Civil Aviation (Domestic LTO) | C10: 3.61497726 | D10: 4.248959138 | E10: 3.849103696 | F10: 3.458784344 | G10: 3.623698887 | H10: 3.889878623 | I10: 4.032386859 | J10: 3.950348993 | K10: 3.348241246 | L10: 3.157123992 | M10: 2.871200587 | N10: 2.613921926 | O10: 2.489070183 | P10: 2.273283293 | Q10: 2.599995916 | R10: 2.549925692 | S10: 2.253346137 | T10: 2.342924051 | U10: 2.024204651 | V10: 1.91309146 | W10: 1.85860068 | X10: 1.650083039 | Y10: 1.74131969 | Z10: 1.764417511 | AA10: 1.407435438 | AB10: 1.336913152 | AC10: 1.419892665 | AD10: 1.433380623 | AE10: 1.446539187 | AF10: 1.459418072 | AG10: 1.468485813 | AH10: 1.480258487 | AI10: 1.492320687 | AJ10: 1.504207987 | AK10: 1.516226909 | AL10: 1.528293839 | AM10: 1.543393752 | AN10: 1.558810363 | AO10: 1.574146696 | AP10: 1.589553516 | AQ10: 1.60557817 | AR10: 1.607750412 | AS10: 1.609924434 | AT10: 1.611885176 | AU10: 1.613723805 | AV10: 1.616168891 | AW10: 1.618019612 | AX10: 1.619990564 | AY10: 1.621869358 | AZ10: 1.623671025 | BA10: 1.625915461
A11: 1A3a | B11: Civil Aviation (International LTO) | C11: 7.886802359 | D11: 10.51664218 | E11: 10.44666271 | F11: 9.982953067 | G11: 10.10776417 | H11: 10.8559725 | I11: 11.69673991 | J11: 12.07467083 | K11: 11.81040333 | L11: 11.2710057 | M11: 11.37372337 | N11: 11.24071921 | O11: 10.28334842 | P11: 10.25844389 | Q11: 11.26043909 | R11: 11.13200102 | S11: 11.20365553 | T11: 11.26668375 | U11: 11.55764237 | V11: 9.83924065 | W11: 10.26132968 | X11: 9.860745176 | Y11: 10.09525615 | Z11: 10.86204373 | AA11: 11.69962975 | AB11: 11.86654388 | AC11: 12.60503501 | AD11: 12.67751325 | AE11: 12.74954226 | AF11: 12.81419983 | AG11: 12.86733248 | AH11: 12.93718761 | AI11: 13.0169083 | AJ11: 13.08515519 | AK11: 13.15126774 | AL11: 13.21573323 | AM11: 13.30121884 | AN11: 13.39518336 | AO11: 13.47841458 | AP11: 13.55844673 | AQ11: 13.66347058 | AR11: 13.67502388 | AS11: 13.68874551 | AT11: 13.69321688 | AU11: 13.69285039 | AV11: 13.72768742 | AW11: 13.73016647 | AX11: 13.74304497 | AY11: 13.7524753 | AZ11: 13.75894344 | BA11: 13.79346021
A12: 1A3b | B12: Road exhaust | C12: 3962.512021 | D12: 4193.489163 | E12: 4048.711652 | F12: 4086.574497 | G12: 4214.587853 | H12: 4096.328097 | I12: 3997.289141 | J12: 3671.509526 | K12: 3398.088674 | L12: 3171.925553 | M12: 2913.821947 | N12: 2731.133804 | O12: 2515.783194 | P12: 2482.953052 | Q12: 2371.375611 | R12: 2292.76292 | S12: 2252.396626 | T12: 2180.719511 | U12: 1916.143394 | V12: 1634.656744 | W12: 1529.5327 | X12: 1363.295255 | Y12: 1225.133973 | Z12: 1084.536551 | AA12: 949.3649541 | AB12: 846.3111582 | AC12: 728.6992313 | AD12: 615.4975222 | AE12: 529.0887902 | AF12: 459.6685181 | AG12: 399.6563322 | AH12: 348.1217853 | AI12: 304.5882072 | AJ12: 267.9447228 | AK12: 237.5705346 | AL12: 213.0222449 | AM12: 193.851548 | AN12: 179.2834836 | AO12: 168.2108546 | AP12: 160.1458026 | AQ12: 154.0751343 | AR12: 149.7775675 | AS12: 146.2424272 | AT12: 143.349335 | AU12: 140.5771393 | AV12: 138.0168744 | AW12: 135.6086402 | AX12: 133.3440231 | AY12: 131.1720259 | AZ12: 129.0249917 | BA12: 126.7320383
A13: 1A3b | B13: Road non-exhaust | C13: 1157.936539 | D13: 1205.069264 | E13: 1225.197671 | F13: 1236.441059 | G13: 1307.557697 | H13: 1330.470929 | I13: 1356.829406 | J13: 1397.470914 | K13: 1431.275479 | L13: 1461.108012 | M13: 1450.125476 | N13: 1455.38328 | O13: 1475.003706 | P13: 1534.679103 | Q13: 1584.242591 | R13: 1591.372583 | S13: 1646.146136 | T13: 1733.919981 | U13: 1697.261891 | V13: 1611.322068 | W13: 1614.577065 | X13: 1641.23361 | Y13: 1601.348859 | Z13: 1580.702567 | AA13: 1625.059351 | AB13: 1658.781373 | AC13: 1694.040838 | AD13: 1710.085948 | AE13: 1723.708134 | AF13: 1752.142814 | AG13: 1778.703923 | AH13: 1806.606495 | AI13: 1836.664035 | AJ13: 1869.071709 | AK13: 1898.927517 | AL13: 1925.392806 | AM13: 1951.526292 | AN13: 1977.538308 | AO13: 2003.359266 | AP13: 2029.113296 | AQ13: 2054.477223 | AR13: 2079.493546 | AS13: 2103.88911 | AT13: 2127.853805 | AU13: 2151.585248 | AV13: 2176.54712 | AW13: 2205.226513 | AX13: 2239.213808 | AY13: 2279.502087 | AZ13: 2326.969119 | BA13: 2381.71723
A14: 1A3c | B14: Railways | C14: 201.557233 | D14: 205.1707633 | E14: 216.916572 | F14: 225.1261111 | G14: 204.0041653 | H14: 205.781806 | I14: 204.2219741 | J14: 198.8178575 | K14: 167.750622 | L14: 146.2719477 | M14: 140.5712174 | N14: 125.3582558 | O14: 123.811099 | P14: 118.5964897 | Q14: 114.7678625 | R14: 123.7601514 | S14: 119.557145 | T14: 119.9923562 | U14: 101.1974495 | V14: 84.39545816 | W14: 94.91049414 | X14: 77.51031758 | Y14: 81.67987091 | Z14: 70.31873593 | AA14: 61.32821167 | AB14: 49.00474757 | AC14: 47.95680845 | AD14: 26.51672451 | AE14: 17.90566475 | AF14: 9.385263088 | AG14: 0.9555195169 | AH14: 0.950350461 | AI14: 0.9451814051 | AJ14: 0.9400123492 | AK14: 0.8319499267 | AL14: 0.7523520361 | AM14: 0.7467862852 | AN14: 0.3073826234 | AO14: 0.3008506384 | AP14: 0.2943186534 | AQ14: 0.2877866684 | AR14: 0.2877866684 | AS14: 0.2877866684 | AT14: 0.2877866684 | AU14: 0.2877866684 | AV14: 0.2877866684 | AW14: 0.2877866684 | AX14: 0.2877866684 | AY14: 0.2877866684 | AZ14: 0.2877866684 | BA14: 0.2877866684
A15: 1A3d | B15: Navigation | C15: 802.3336424 | D15: 852.4178797 | E15: 672.6069701 | F15: 641.8148778 | G15: 590.1859801 | H15: 641.3252947 | I15: 555.8110663 | J15: 497.7486173 | K15: 432.9976005 | L15: 418.1929328 | M15: 427.7507517 | N15: 434.1856874 | O15: 497.3652314 | P15: 550.7309865 | Q15: 543.1053564 | R15: 560.9603301 | S15: 556.0080567 | T15: 434.1463678 | U15: 474.5204601 | V15: 474.4700182 | W15: 429.1425231 | X15: 413.1771632 | Y15: 404.6177193 | Z15: 415.2273589 | AA15: 351.3956369 | AB15: 280.9047196 | AC15: 292.6026733 | AD15: 291.918632 | AE15: 293.0123194 | AF15: 294.0199046 | AG15: 294.9417829 | AH15: 295.7714886 | AI15: 296.5024273 | AJ15: 297.1279085 | AK15: 297.641184 | AL15: 298.0484521 | AM15: 298.4386648 | AN15: 298.5885288 | AO15: 299.4041197 | AP15: 299.2946857 | AQ15: 298.99689 | AR15: 297.5959268 | AS15: 296.1908109 | AT15: 294.7815275 | AU15: 293.3680619 | AV15: 292.6628702 | AW15: 291.2410187 | AX15: 289.8149403 | AY15: 288.3846198 | AZ15: 286.9500421 | BA15: 285.5111919
A17: 1A4a i | B17: Commercial and institutional plants | C17: 112.4358081 | D17: 104.7710797 | E17: 94.7611197 | F17: 94.06933864 | G17: 90.78379657 | H17: 93.54149885 | I17: 119.6418164 | J17: 120.5688419 | K17: 112.4910605 | L17: 138.0338711 | M17: 157.0020988 | N17: 131.8656913 | O17: 153.7905375 | P17: 147.2691396 | Q17: 130.2090478 | R17: 149.7128599 | S17: 158.4046811 | T17: 164.0976843 | U17: 173.8802548 | V17: 164.7807328 | W17: 157.7168438 | X17: 145.9818567 | Y17: 142.0396795 | Z17: 154.9273549 | AA17: 168.105093 | AB17: 193.0285714 | AC17: 245.4622277 | AD17: 213.7323678 | AE17: 209.1117838 | AF17: 204.4850639 | AG17: 199.8612555 | AH17: 208.5190022 | AI17: 217.1796386 | AJ17: 225.842978 | AK17: 234.4872565 | AL17: 243.133162 | AM17: 253.7204028 | AN17: 264.3079874 | AO17: 274.8946723 | AP17: 285.4808226 | AQ17: 296.0648075 | AR17: 311.2308856 | AS17: 326.396801 | AT17: 341.5621339 | AU17: 356.7270309 | AV17: 371.8915165 | AW17: 391.9356912 | AX17: 411.979319 | AY17: 432.0225066 | AZ17: 452.065395 | BA17: 472.1080072
A18: 1A4a ii | B18: Commercial and institutional (mobile) | C18: 44.64080954 | D18: 42.47749411 | E18: 40.3516562 | F18: 38.55638644 | G18: 36.78318483 | H18: 34.95197655 | I18: 33.04875655 | J18: 31.07213007 | K18: 29.02171499 | L18: 26.17767805 | M18: 23.22728177 | N18: 24.44770653 | O18: 25.10033208 | P18: 25.08319175 | Q18: 25.17363037 | R18: 25.16812075 | S18: 27.00403056 | T18: 26.78122651 | U18: 24.50030854 | V18: 23.10892366 | W18: 22.15153986 | X18: 22.10687435 | Y18: 19.637542 | Z18: 18.08865871 | AA18: 16.91468686 | AB18: 16.41193459 | AC18: 16.77717485 | AD18: 16.26512297 | AE18: 15.0898236 | AF18: 14.11136912 | AG18: 13.22464415 | AH18: 12.56972334 | AI18: 12.54429493 | AJ18: 12.5158089 | AK18: 12.4853462 | AL18: 12.45523187 | AM18: 12.41787062 | AN18: 12.37882353 | AO18: 12.338455 | AP18: 12.31405844 | AQ18: 12.31405844 | AR18: 12.31405844 | AS18: 12.31405844 | AT18: 12.31405844 | AU18: 12.31405844 | AV18: 12.31405844 | AW18: 12.31405844 | AX18: 12.31405844 | AY18: 12.31405844 | AZ18: 12.31405844 | BA18: 12.31405844
A19: 1A4b i | B19: Residential plants | C19: 11095.97912 | D19: 12340.69602 | E19: 12396.03305 | F19: 13152.70752 | G19: 12479.70599 | H19: 12243.81406 | I19: 12500.12299 | J19: 12175.34965 | K19: 10607.29473 | L19: 10143.44374 | M19: 11563.63934 | N19: 12155.53076 | O19: 11964.29739 | P19: 13420.069 | Q19: 14009.72324 | R19: 15501.9863 | S19: 16114.56757 | T19: 19379.7009 | U19: 17839.79725 | V19: 16473.95554 | W19: 16718.65877 | X19: 14709.87929 | Y19: 13871.53309 | Z19: 13659.57183 | AA19: 12306.33682 | AB19: 13871.35851 | AC19: 13869.4797 | AD19: 13577.74158 | AE19: 13114.56804 | AF19: 12662.29594 | AG19: 12224.61614 | AH19: 11809.58647 | AI19: 11457.57135 | AJ19: 11129.53738 | AK19: 10803.05054 | AL19: 10481.82246 | AM19: 10146.87351 | AN19: 9813.018106 | AO19: 9483.803519 | AP19: 9156.069209 | AQ19: 8830.105227 | AR19: 8511.561931 | AS19: 8196.587711 | AT19: 7882.560904 | AU19: 7567.154644 | AV19: 7259.118311 | AW19: 7218.677245 | AX19: 7178.236179 | AY19: 7137.795113 | AZ19: 7097.354046 | BA19: 7056.91298
A20: 1A4b ii | B20: Residential (mobile) | C20: 8.303528406 | D20: 8.464290924 | E20: 8.277359399 | F20: 8.153717363 | G20: 8.108657024 | H20: 8.133002885 | I20: 8.314942263 | J20: 8.606793333 | K20: 8.919246058 | L20: 9.241993658 | M20: 9.567177906 | N20: 9.785602577 | O20: 9.912927168 | P20: 10.06236419 | Q20: 10.25171299 | R20: 10.47444398 | S20: 10.90846433 | T20: 11.45546081 | U20: 11.84750069 | V20: 11.68462683 | W20: 11.33827431 | X20: 11.32189452 | Y20: 11.22427969 | Z20: 10.93739101 | AA20: 10.84973458 | AB20: 10.91067269 | AC20: 11.41519412 | AD20: 11.87891845 | AE20: 11.90349615 | AF20: 11.88643631 | AG20: 11.83035259 | AH20: 11.66085906 | AI20: 11.53791111 | AJ20: 11.51217761 | AK20: 11.4971403 | AL20: 11.4908574 | AM20: 11.48972027 | AN20: 11.4896765 | AO20: 11.48966545 | AP20: 11.48966274 | AQ20: 11.48966195 | AR20: 11.48966193 | AS20: 11.48966193 | AT20: 11.48966193 | AU20: 11.48966193 | AV20: 11.48966193 | AW20: 11.48966193 | AX20: 11.48966193 | AY20: 11.48966193 | AZ20: 11.48966193 | BA20: 11.48966193
A21: 1A4c i | B21: Plants in agriculture, forestry and aquaculture | C21: 1581.762536 | D21: 1571.066181 | E21: 1561.888137 | F21: 1460.452835 | G21: 1366.448034 | H21: 1262.700627 | I21: 1145.190252 | J21: 1214.8602 | K21: 1188.872286 | L21: 1087.431413 | M21: 973.5734336 | N21: 911.206732 | O21: 901.7441819 | P21: 896.4624108 | Q21: 893.4275657 | R21: 892.7459387 | S21: 892.518751 | T21: 886.723165 | U21: 889.78701 | V21: 883.5802863 | W21: 900.4530955 | X21: 891.3204872 | Y21: 882.5954809 | Z21: 887.1018059 | AA21: 877.6082088 | AB21: 889.1904169 | AC21: 896.1463042 | AD21: 929.5227311 | AE21: 933.0809832 | AF21: 936.6187116 | AG21: 940.1572164 | AH21: 953.7808271 | AI21: 967.4046696 | AJ21: 981.0286861 | AK21: 994.6476161 | AL21: 1008.266844 | AM21: 1025.512457 | AN21: 1042.804445 | AO21: 1059.755902 | AP21: 1076.613133 | AQ21: 1093.559773 | AR21: 1114.224066 | AS21: 1134.907762 | AT21: 1155.571647 | AU21: 1176.181362 | AV21: 1196.838443 | AW21: 1223.110838 | AX21: 1249.439777 | AY21: 1275.735875 | AZ21: 1301.74926 | BA21: 1327.70804
A22: 1A4c ii | B22: Agriculture & forestry (mobile) | C22: 2698.095584 | D22: 2597.276212 | E22: 2433.815224 | F22: 2386.421461 | G22: 2199.378373 | H22: 2183.073325 | I22: 1924.699999 | J22: 1850.973026 | K22: 1683.980965 | L22: 1600.983735 | M22: 1494.92232 | N22: 1427.500559 | O22: 1343.538763 | P22: 1265.874563 | Q22: 1193.970765 | R22: 1120.240675 | S22: 1051.633295 | T22: 978.2303886 | U22: 908.0481953 | V22: 837.5045896 | W22: 771.6865518 | X22: 710.9097638 | Y22: 643.1486744 | Z22: 575.3441005 | AA22: 491.4368985 | AB22: 448.1191966 | AC22: 403.83025 | AD22: 357.8104705 | AE22: 314.7259579 | AF22: 274.5729114 | AG22: 236.6579005 | AH22: 216.6715152 | AI22: 199.2524846 | AJ22: 185.5462969 | AK22: 172.3426065 | AL22: 157.2236646 | AM22: 140.0100626 | AN22: 124.8725343 | AO22: 114.2111093 | AP22: 103.4477313 | AQ22: 92.19300769 | AR22: 83.50946236 | AS22: 78.40728317 | AT22: 73.90803908 | AU22: 70.20903223 | AV22: 66.34101197 | AW22: 61.62725642 | AX22: 55.68861097 | AY22: 50.28209275 | AZ22: 47.54140801 | BA22: 45.17580986
A23: 1A4c iii | B23: Fishing (mobile) | C23: 180.6847705 | D23: 188.7634178 | E23: 174.4085476 | F23: 166.2769224 | G23: 169.6764797 | H23: 172.6093099 | I23: 162.8367434 | J23: 132.3974321 | K23: 139.3671411 | L23: 159.7233101 | M23: 202.9441873 | N23: 193.345605 | O23: 193.4873449 | P23: 182.691703 | Q23: 156.0053956 | R23: 157.3321462 | S23: 159.0012563 | T23: 147.2182448 | U23: 113.7629199 | V23: 110.3697935 | W23: 109.9667079 | X23: 103.8428695 | Y23: 80.42919614 | Z23: 92.61480645 | AA23: 85.17277376 | AB23: 93.31966446 | AC23: 93.47126299 | AD23: 93.91708117 | AE23: 94.32343457 | AF23: 94.68777832 | AG23: 95.00765958 | AH23: 97.69836149 | AI23: 100.4052638 | AJ23: 103.0773247 | AK23: 105.7104252 | AL23: 108.3005183 | AM23: 110.808698 | AN23: 113.322422 | AO23: 115.8417191 | AP23: 118.3666182 | AQ23: 120.8971485 | AR23: 123.6417432 | AS23: 126.3924815 | AT23: 129.1141116 | AU23: 131.8043219 | AV23: 134.4607928 | AW23: 137.3419561 | AX23: 140.2231194 | AY23: 143.1042826 | AZ23: 145.9854459 | BA23: 148.8666092
A25: 1A5b | B25: Other mobile (military and recreational crafts) | C25: 104.2190983 | D25: 209.9555385 | E25: 169.6049392 | F25: 171.5436662 | G25: 167.9790305 | H25: 233.3503481 | I25: 170.605606 | J25: 202.3024215 | K25: 210.8002319 | L25: 186.0416766 | M25: 160.9945749 | N25: 181.1789572 | O25: 166.0612458 | P25: 171.1422689 | Q25: 193.9068109 | R25: 181.5373493 | S25: 152.9432748 | T25: 143.8847887 | U25: 131.9553411 | V25: 130.9652578 | W25: 114.8830075 | X25: 113.8358675 | Y25: 104.3044887 | Z25: 98.80461931 | AA25: 93.12387128 | AB25: 87.02980175 | AC25: 84.8476848 | AD25: 78.11285618 | AE25: 71.72740319 | AF25: 65.44736552 | AG25: 59.23942631 | AH25: 55.57491073 | AI25: 51.96823822 | AJ25: 48.40998018 | AK25: 44.89910054 | AL25: 41.4309562 | AM25: 37.99848417 | AN25: 34.59628068 | AO25: 31.21712934 | AP25: 27.85789693 | AQ25: 24.51241333 | AR25: 21.17863935 | AS25: 21.15914243 | AT25: 21.14581008 | AU25: 21.13558848 | AV25: 21.12815285 | AW25: 21.12449969 | AX25: 21.13490754 | AY25: 21.11407402 | AZ25: 21.12013773 | BA25: 21.11797705
A27: 1B1 | B27: Fugitive emissions from solid fuels | C27: 615.30546 | D27: 768.61602 | E27: 716.51226 | F27: 628.00638 | G27: 706.34736 | H27: 780.52458 | I27: 788.0106 | J27: 808.44168 | K27: 484.26918 | L27: 427.02528 | M27: 384.90408 | N27: 415.45764 | O27: 375.74802 | P27: 570.87414 | Q27: 455.65536 | R27: 361.91052 | S27: 521.29008 | T27: 487.3926 | U27: 454.19688 | V27: 402.65028 | W27: 274.22208 | X27: 368.17164 | Y27: 238.67148 | Z27: 297.10692 | AA27: 271.97466 | AB27: 165.4461 | AC27: 174.54324 | AD27: 157.3150938 | AE27: 148.0549351 | AF27: 128.4131634 | AG27: 126.9284136 | AH27: 135.9471132 | AI27: 137.2098057 | AJ27: 194.7294292 | AK27: 188.070057 | AL27: 173.3916759 | AM27: 177.6177715 | AN27: 212.9715666 | AO27: 214.8953131 | AP27: 212.6963597 | AQ27: 215.4724201 | AR27: 214.4119329 | AS27: 215.7181604 | AT27: 223.8119793 | AU27: 224.8484558 | AV27: 229.6910722 | AW27: 249.1931568 | AX27: 254.5422528 | AY27: 258.9422192 | AZ27: 268.8339135 | BA27: 281.3290264
A28: 1B2a | B28: Fugitive emissions from oil | C28: 8.1078984e-05 | D28: 1.2750486e-05 | E28: 0.00013047615 | F28: 2.137926e-06 | G28: 4.4814e-07 | H28: 5.8857792e-05 | I28: 5.872965e-05 | J28: 1.17243e-06 | K28: 0.000127216362 | L28: 0.000129379866 | M28: 4.4814e-05 | N28: 0 | O28: 2.2713768e-05 | P28: 0 | Q28: 0 | R28: 7.8890448e-05 | S28: 0 | T28: 0 | U28: 0 | V28: 1.4723016e-05 | W28: 0 | X28: 0 | Y28: 0 | Z28: 5.2155432e-05 | AA28: 0 | AB28: 1.2936e-05 | AC28: 0 | AD28: 0 | AE28: 0 | AF28: 0 | AG28: 0 | AH28: 0 | AI28: 0 | AJ28: 0 | AK28: 0 | AL28: 0 | AM28: 0 | AN28: 0 | AO28: 0 | AP28: 0 | AQ28: 0 | AR28: 0 | AS28: 0 | AT28: 0 | AU28: 0 | AV28: 0 | AW28: 0 | AX28: 0 | AY28: 0 | AZ28: 0 | BA28: 0
A29: 1B2b | B29: Fugitive emissions from gas | C29: 0.121466184 | D29: 5.5146e-05 | E29: 0.00035364 | F29: 2.058e-06 | G29: 9.618e-06 | H29: 6.174e-06 | I29: 4.536e-06 | J29: 1.26e-07 | K29: 8.6604e-05 | L29: 2.8938e-05 | M29: 0.00235158 | N29: NA | O29: 0.376538988 | P29: NA | Q29: NA | R29: 0.02994894 | S29: NA | T29: NA | U29: NA | V29: 0.000257334 | W29: NA | X29: NA | Y29: NA | Z29: 4.284e-06 | AA29: NA | AB29: 0.00122724 | AC29: NA | AD29: 0 | AE29: 0 | AF29: 0 | AG29: 0 | AH29: 0 | AI29: 0 | AJ29: 0 | AK29: 0 | AL29: 0 | AM29: 0 | AN29: 0 | AO29: 0 | AP29: 0 | AQ29: 0 | AR29: 0 | AS29: 0 | AT29: 0 | AU29: 0 | AV29: 0 | AW29: 0 | AX29: 0 | AY29: 0 | AZ29: 0 | BA29: 0
A30: 1B2c | B30: Fugitive emissions from venting and flaring | C30: 4.942621087 | D30: 9.760995936 | E30: 10.06745628 | F30: 8.756503791 | G30: 8.69978464 | H30: 6.78033066 | I30: 7.441363085 | J30: 10.48094122 | K30: 7.752942395 | L30: 16.51167974 | M30: 10.83037912 | N30: 11.57731523 | O30: 9.730894552 | P30: 10.06371512 | Q30: 11.30474112 | R30: 8.14611553 | S30: 7.990112465 | T30: 8.18092042 | U30: 6.034728926 | V30: 3.887596806 | W30: 5.348139945 | X30: 3.586659923 | Y30: 3.394597507 | Z30: 3.939237072 | AA30: 3.938814935 | AB30: 3.983156647 | AC30: 4.339451755 | AD30: 3.67911977 | AE30: 3.637954356 | AF30: 3.699702477 | AG30: 2.344915181 | AH30: 2.643026117 | AI30: 3.267985159 | AJ30: 3.342968683 | AK30: 3.330619059 | AL30: 3.269313828 | AM30: 3.265197286 | AN30: 3.167025319 | AO30: 3.162908777 | AP30: 3.158792236 | AQ30: 2.22889678 | AR30: 2.224780238 | AS30: 2.220663697 | AT30: 2.339157617 | AU30: 2.273735845 | AV30: 2.273735845 | AW30: 2.204197531 | AX30: 2.204197531 | AY30: 2.20008099 | AZ30: 2.20008099 | BA30: 2.195964449
A32: 2A | B32: Mineral industry | C32: 2194.341433 | D32: 2058.275101 | E32: 2057.775622 | F32: 1951.795281 | G32: 2023.913814 | H32: 2231.989959 | I32: 2547.296129 | J32: 2887.940188 | K32: 2744.074629 | L32: 3314.57095 | M32: 2951.78103 | N32: 2924.137205 | O32: 2710.598693 | P32: 2649.932921 | Q32: 2886.850715 | R32: 3093.698024 | S32: 3481.670277 | T32: 3367.587569 | U32: 3104.853216 | V32: 2437.10592 | W32: 2361.360248 | X32: 2170.914752 | Y32: 2420.365622 | Z32: 2084.970248 | AA32: 2212.840858 | AB32: 2323.597598 | AC32: 2311.129454 | AD32: 2319.981469 | AE32: 2387.76986 | AF32: 2543.029835 | AG32: 2659.184888 | AH32: 2793.333675 | AI32: 2915.070824 | AJ32: 2968.94125 | AK32: 3027.095846 | AL32: 3089.947538 | AM32: 3117.700609 | AN32: 3125.350529 | AO32: 3153.420214 | AP32: 3169.915807 | AQ32: 3207.583205 | AR32: 3237.051049 | AS32: 3254.787455 | AT32: 3267.602514 | AU32: 3278.368567 | AV32: 3312.172119 | AW32: 3346.36098 | AX32: 3374.003809 | AY32: 3404.693596 | AZ32: 3434.789191 | BA32: 3485.335865
A33: 2B | B33: Chemical Industry | C33: 396.9 | D33: 364.644 | E33: 323.768 | F33: 306.266 | G33: 311.076 | H33: 347.78 | I33: 363 | J33: 332 | K33: 206 | L33: 404 | M33: 381 | N33: 365 | O33: 329 | P33: 334 | Q33: 204 | R33: 23 | S33: 12 | T33: 25 | U33: 26 | V33: 16 | W33: 26 | X33: 6.8 | Y33: 5.998 | Z33: 10 | AA33: 11 | AB33: 5.6 | AC33: 10 | AD33: 9.176168629 | AE33: 9.394140009 | AF33: 9.612111389 | AG33: 9.830082769 | AH33: 10.04805415 | AI33: 10.26602553 | AJ33: 10.48399691 | AK33: 10.70196829 | AL33: 10.91993967 | AM33: 11.13791105 | AN33: 11.35588243 | AO33: 11.57385381 | AP33: 11.79182519 | AQ33: 12.00979657 | AR33: 12.22776795 | AS33: 12.44573933 | AT33: 12.66371071 | AU33: 12.88168209 | AV33: 13.09965347 | AW33: 13.31762485 | AX33: 13.53559623 | AY33: 13.75356761 | AZ33: 13.97153899 | BA33: 14.18951037
A34: 2C | B34: Metal industry | C34: 137.48514 | D34: 126.23874 | E34: 125.25174 | F34: 125.27874 | G34: 140.69574 | H34: 146.11154 | I34: 129.923124 | J34: 140.86894 | K34: 118.059352 | L34: 113.093952 | M34: 101.510848 | N34: 102.936036 | O34: 69.159336 | P34: 71.52924749 | Q34: 77.11393826 | R34: 82.89256014 | S34: 61.48294583 | T34: 58.30541955 | U34: 57.93576292 | V34: 35.31938883 | W34: 56.17912859 | X34: 63.50073368 | Y34: 57.84188176 | Z34: 58.73995732 | AA34: 70.97189025 | AB34: 64.443395 | AC34: 64.28401379 | AD34: 63.73214854 | AE34: 62.61936662 | AF34: 65.44577869 | AG34: 67.96319284 | AH34: 69.36903925 | AI34: 71.17035552 | AJ34: 72.69949585 | AK34: 74.01415578 | AL34: 75.12004236 | AM34: 75.55236224 | AN34: 76.12539968 | AO34: 76.9713996 | AP34: 77.74078182 | AQ34: 79.18787782 | AR34: 80.36753683 | AS34: 81.4209076 | AT34: 82.39047001 | AU34: 83.25393645 | AV34: 84.75047522 | AW34: 86.18643222 | AX34: 87.31643133 | AY34: 88.57927919 | AZ34: 89.78010049 | BA34: 91.68225473
A35: 2D | B35: Non-energy products from fuels and solvent use | C35: 135.7088644 | D35: 140.1885508 | E35: 122.9130916 | F35: 135.1908324 | G35: 124.1474408 | H35: 167.8884696 | I35: 187.3008856 | J35: 188.4774808 | K35: 169.3353792 | L35: 162.82195 | M35: 168.5872168 | N35: 216.8585452 | O35: 199.5693008 | P35: 164.9072 | Q35: 218.148232 | R35: 238.2945148 | S35: 220.551862 | T35: 272.55848 | U35: 240.7868812 | V35: 158.32038 | W35: 195.7619072 | X35: 234.8416448 | Y35: 197.8090844 | Z35: 204.7432812 | AA35: 207.8925656 | AB35: 203.6328504 | AC35: 208.321948 | AD35: 202.996984 | AE35: 202.996984 | AF35: 202.996984 | AG35: 202.996984 | AH35: 202.996984 | AI35: 202.996984 | AJ35: 202.996984 | AK35: 202.996984 | AL35: 202.996984 | AM35: 202.996984 | AN35: 202.996984 | AO35: 202.996984 | AP35: 202.996984 | AQ35: 202.996984 | AR35: 202.996984 | AS35: 202.996984 | AT35: 202.996984 | AU35: 202.996984 | AV35: 202.996984 | AW35: 202.996984 | AX35: 202.996984 | AY35: 202.996984 | AZ35: 202.996984 | BA35: 202.996984
A36: 2G | B36: Other product manufacture and use | C36: 247.4700542 | D36: 248.0480473 | E36: 264.8874251 | F36: 241.8259842 | G36: 249.058618 | H36: 291.8367235 | I36: 284.4577586 | J36: 275.8600137 | K36: 313.322465 | L36: 429.5677965 | M36: 370.786332 | N36: 320.4650754 | O36: 369.1912307 | P36: 433.3793994 | Q36: 511.1588845 | R36: 321.0340556 | S36: 355.7036996 | T36: 335.2558924 | U36: 323.3148946 | V36: 359.6232158 | W36: 348.1093201 | X36: 309.1032617 | Y36: 287.0027175 | Z36: 323.4029123 | AA36: 272.0575387 | AB36: 360.8702626 | AC36: 283.5827602 | AD36: 294.9075869 | AE36: 291.2798747 | AF36: 287.6521625 | AG36: 284.0244503 | AH36: 280.3967381 | AI36: 276.7690259 | AJ36: 273.1413137 | AK36: 269.5136015 | AL36: 265.8858893 | AM36: 262.2581771 | AN36: 258.6304649 | AO36: 255.0027527 | AP36: 251.3750405 | AQ36: 247.7473283 | AR36: 244.1196161 | AS36: 240.4919039 | AT36: 236.8641917 | AU36: 233.2364795 | AV36: 229.6087673 | AW36: 225.9810551 | AX36: 222.3533429 | AY36: 218.7256307 | AZ36: 215.0979185 | BA36: 211.4702063
A37: 2H | B37: Other | C37: 21.017344 | D37: 21.017344 | E37: 21.017344 | F37: 21.017344 | G37: 21.017344 | H37: 21.017344 | I37: 21.017344 | J37: 21.017344 | K37: 21.017344 | L37: 21.017344 | M37: 21.017344 | N37: 21.017344 | O37: 21.017344 | P37: 21.017344 | Q37: 21.674136 | R37: 21.142044 | S37: 18.108255 | T37: 20.945309 | U37: 18.859806 | V37: 16.889321 | W37: 14.460479 | X37: 19.25805 | Y37: 20.9933 | Z37: 22.171898 | AA37: 24.813384 | AB37: 24.617824 | AC37: 24.664464 | AD37: 22.406416 | AE37: 22.406416 | AF37: 22.406416 | AG37: 22.406416 | AH37: 22.406416 | AI37: 22.406416 | AJ37: 22.406416 | AK37: 22.406416 | AL37: 22.406416 | AM37: 22.406416 | AN37: 22.406416 | AO37: 22.406416 | AP37: 22.406416 | AQ37: 22.406416 | AR37: 22.406416 | AS37: 22.406416 | AT37: 22.406416 | AU37: 22.406416 | AV37: 22.406416 | AW37: 22.406416 | AX37: 22.406416 | AY37: 22.406416 | AZ37: 22.406416 | BA37: 22.406416
A38: 2I | B38: Wood processing | C38: 143.704 | D38: 118.176 | E38: 129.472 | F38: 174.18 | G38: 183.084 | H38: 185.924 | I38: 198.18 | J38: 203.716 | K38: 188.908 | L38: 176.008 | M38: 192.524 | N38: 158.504 | O38: 139.7 | P38: 159.956 | Q38: 143.14 | R38: 147.324 | S38: 149.108 | T38: 150.892 | U38: 173.928 | V38: 175.544 | W38: 174.64 | X38: 162.012 | Y38: 154.752 | Z38: 156.984 | AA38: 174.008 | AB38: 181.372 | AC38: 185.692 | AD38: 170.5616 | AE38: 170.5616 | AF38: 170.5616 | AG38: 170.5616 | AH38: 170.5616 | AI38: 170.5616 | AJ38: 170.5616 | AK38: 170.5616 | AL38: 170.5616 | AM38: 170.5616 | AN38: 170.5616 | AO38: 170.5616 | AP38: 170.5616 | AQ38: 170.5616 | AR38: 170.5616 | AS38: 170.5616 | AT38: 170.5616 | AU38: 170.5616 | AV38: 170.5616 | AW38: 170.5616 | AX38: 170.5616 | AY38: 170.5616 | AZ38: 170.5616 | BA38: 170.5616
A39: 2L | B39: Other production
A41: 3B1a | B41: Manure Management - Dairy cattle | C41: 435.5053226 | D41: 430.638814 | E41: 414.8347437 | F41: 417.5623904 | G41: 410.6225862 | H41: 413.9111461 | I41: 414.2633627 | J41: 393.6184617 | K41: 390.128315 | L41: 373.2988757 | M41: 395.2032235 | N41: 393.9996504 | O41: 391.5229805 | P41: 401.939848 | Q41: 392.3331746 | R41: 400.3819718 | S41: 397.9225847 | T41: 402.7595125 | U41: 415.2372751 | V41: 421.7227356 | W41: 425.4769172 | X41: 426.4002554 | Y41: 443.8750241 | Z41: 439.9339806 | AA41: 425.29505 | AB41: 423.8165259 | AC41: 431.1798484 | AD41: 442.875292 | AE41: 449.3829107 | AF41: 456.7355608 | AG41: 462.5792008 | AH41: 464.0540556 | AI41: 467.9145096 | AJ41: 470.9887123 | AK41: 474.866674 | AL41: 478.7539718 | AM41: 481.8515162 | AN41: 485.7563233 | AO41: 489.6704649 | AP41: 493.5939444 | AQ41: 499.1342795 | AR41: 499.1342795 | AS41: 499.1342795 | AT41: 499.1342795 | AU41: 499.1342795 | AV41: 499.1342795 | AW41: 499.1342795 | AX41: 499.1342795 | AY41: 499.1342795 | AZ41: 499.1342795 | BA41: 499.1342795
A42: 3B1b | B42: Manure Management - Non-dairy cattle | C42: 493.1743554 | D42: 480.6742065 | E42: 472.0227485 | F42: 459.067683 | G42: 432.1857516 | H42: 420.6972341 | I42: 418.785147 | J42: 401.5810049 | K42: 394.5813099 | L42: 373.4130859 | M42: 365.2526083 | N42: 373.0433018 | O42: 350.58656 | P42: 220.549743 | Q42: 217.7586755 | R42: 208.0035565 | S42: 211.3220625 | T42: 226.146604 | U42: 224.4365328 | V42: 219.72225 | W42: 221.0271813 | X42: 223.6729552 | Y42: 226.2765545 | Z42: 232.0252512 | AA42: 224.8526078 | AB42: 223.2947583 | AC42: 222.4496434 | AD42: 221.8319979 | AE42: 222.8726388 | AF42: 223.7026853 | AG42: 224.6328758 | AH42: 226.2762035 | AI42: 227.8168398 | AJ42: 229.4723879 | AK42: 231.0252434 | AL42: 232.6930139 | AM42: 234.2580888 | AN42: 235.938077 | AO42: 237.5153756 | AP42: 239.0987844 | AQ42: 240.7971048 | AR42: 240.7971048 | AS42: 240.7971048 | AT42: 240.7971048 | AU42: 240.7971048 | AV42: 240.7971048 | AW42: 240.7971048 | AX42: 240.7971048 | AY42: 240.7971048 | AZ42: 240.7971048 | BA42: 240.7971048
A43: 3B2 | B43: Manure Management - Sheep | C43: 1.410297863 | D43: 1.633972603 | E43: 1.571504219 | F43: 1.354254904 | G43: 1.227035178 | H43: 1.238229041 | I43: 1.442977315 | J43: 1.47186411 | K43: 1.548392329 | L43: 1.621852055 | M43: 1.712940274 | N43: 1.819708493 | O43: 1.801987945 | P43: 1.856607123 | Q43: 1.905518904 | R43: 1.937201096 | S43: 1.95981589 | T43: 1.899197808 | U43: 1.802570959 | V43: 1.772376986 | W43: 1.703044384 | X43: 1.434950137 | Y43: 1.385946301 | Z43: 1.35638137 | AA43: 1.34941589 | AB43: 1.290286027 | AC43: 1.265932471 | AD43: 1.301878119 | AE43: 1.301878119 | AF43: 1.301878119 | AG43: 1.301878119 | AH43: 1.301878119 | AI43: 1.301878119 | AJ43: 1.301878119 | AK43: 1.301878119 | AL43: 1.301878119 | AM43: 1.301878119 | AN43: 1.301878119 | AO43: 1.301878119 | AP43: 1.301878119 | AQ43: 1.301878119 | AR43: 1.301878119 | AS43: 1.301878119 | AT43: 1.301878119 | AU43: 1.301878119 | AV43: 1.301878119 | AW43: 1.301878119 | AX43: 1.301878119 | AY43: 1.301878119 | AZ43: 1.301878119 | BA43: 1.301878119
A44: 3B3 | B44: Manure Management - Swine | C44: 917.5066682 | D44: 947.30228 | E44: 1015.242342 | F44: 1136.860843 | G44: 1060.473519 | H44: 1074.041431 | I44: 1048.692939 | J44: 1099.152908 | K44: 1239.258245 | L44: 1186.974294 | M44: 1216.22349 | N44: 1283.58702 | O44: 1293.149268 | P44: 1310.795134 | Q44: 1341.957579 | R44: 1370.487675 | S44: 1347.645774 | T44: 1388.427966 | U44: 1282.302735 | V44: 1232.727124 | W44: 1320.478503 | X44: 1295.787294 | Y44: 1228.405324 | Z44: 1201.817441 | AA44: 1216.755165 | AB44: 1227.770382 | AC44: 1216.069088 | AD44: 1185.720431 | AE44: 1189.105211 | AF44: 1191.05734 | AG44: 1197.416875 | AH44: 1200.759421 | AI44: 1200.459296 | AJ44: 1198.204794 | AK44: 1198.894693 | AL44: 1196.471507 | AM44: 1191.667507 | AN44: 1186.842884 | AO44: 1181.497108 | AP44: 1175.815908 | AQ44: 1169.574613 | AR44: 1169.574613 | AS44: 1169.574613 | AT44: 1169.574613 | AU44: 1169.574613 | AV44: 1169.574613 | AW44: 1169.574613 | AX44: 1169.574613 | AY44: 1169.574613 | AZ44: 1169.574613 | BA44: 1169.574613
A45: 3B4d | B45: Manure Management - Goats | C45: 0.115030137 | D45: 0.1134882192 | E45: 0.1119463014 | F45: 0.1104043836 | G45: 0.1088624658 | H45: 0.1073205479 | I45: 0.1057786301 | J45: 0.1042367123 | K45: 0.1189808219 | L45: 0.1241052055 | M45: 0.1298432877 | N45: 0.144940274 | O45: 0.1416109589 | P45: 0.1541610959 | Q45: 0.165299726 | R45: 0.1754871233 | S45: 0.1864263014 | T45: 0.1945578082 | U45: 0.2170345205 | V45: 0.2405391781 | W45: 0.2453106849 | X45: 0.1926553425 | Y45: 0.1968591781 | Z45: 0.198899726 | AA45: 0.1827134247 | AB45: 0.17248 | AC45: 0.1582779397 | AD45: 0.1711571419 | AE45: 0.1711571419 | AF45: 0.1711571419 | AG45: 0.1711571419 | AH45: 0.1711571419 | AI45: 0.1711571419 | AJ45: 0.1711571419 | AK45: 0.1711571419 | AL45: 0.1711571419 | AM45: 0.1711571419 | AN45: 0.1711571419 | AO45: 0.1711571419 | AP45: 0.1711571419 | AQ45: 0.1711571419 | AR45: 0.1711571419 | AS45: 0.1711571419 | AT45: 0.1711571419 | AU45: 0.1711571419 | AV45: 0.1711571419 | AW45: 0.1711571419 | AX45: 0.1711571419 | AY45: 0.1711571419 | AZ45: 0.1711571419 | BA45: 0.1711571419
A46: 3B4e | B46: Manure Management - Horses | C46: 14.85 | D46: 15.015 | E46: 15.18 | F46: 15.345 | G46: 15.51 | H46: 15.675 | I46: 15.84 | J46: 16.005 | K46: 16.17 | L46: 16.335 | M46: 16.5 | N46: 17.05 | O46: 17.6 | P46: 18.15 | Q46: 18.7 | R46: 19.25 | S46: 19.8 | T46: 20.35 | U46: 20.9 | V46: 19.525 | W46: 18.15 | X46: 17.05 | Y46: 17.05 | Z46: 16.5 | AA46: 16.5 | AB46: 17.05 | AC46: 17.05 | AD46: 17.05 | AE46: 17.05 | AF46: 17.05 | AG46: 17.05 | AH46: 17.05 | AI46: 17.05 | AJ46: 17.05 | AK46: 17.05 | AL46: 17.05 | AM46: 17.05 | AN46: 17.05 | AO46: 17.05 | AP46: 17.05 | AQ46: 17.05 | AR46: 17.05 | AS46: 17.05 | AT46: 17.05 | AU46: 17.05 | AV46: 17.05 | AW46: 17.05 | AX46: 17.05 | AY46: 17.05 | AZ46: 17.05 | BA46: 17.05
A47: 3B4g | B47: Manure Management - Poultry | C47: 495.4949664 | D47: 486.5243923 | E47: 556.6116527 | F47: 589.0563543 | G47: 618.2275696 | H47: 603.245279 | I47: 591.818014 | J47: 574.9030493 | K47: 549.3398227 | L47: 590.6253762 | M47: 599.4299916 | N47: 590.0661236 | O47: 579.0250701 | P47: 514.0476895 | Q47: 505.139099 | R47: 534.4166242 | S47: 487.2048251 | T47: 469.2000538 | U47: 463.740189 | V47: 544.7289998 | W47: 537.302068 | X47: 537.8724872 | Y47: 540.0698912 | Z47: 535.3983352 | AA47: 503.3935069 | AB47: 486.7611982 | AC47: 520.485377 | AD47: 528.5475164 | AE47: 533.950354 | AF47: 537.5764696 | AG47: 540.4272607 | AH47: 540.9839445 | AI47: 541.5001488 | AJ47: 541.2807183 | AK47: 540.4893278 | AL47: 539.0951661 | AM47: 537.0982445 | AN47: 534.9992447 | AO47: 532.2974974 | AP47: 529.8614805 | AQ47: 527.0576471 | AR47: 527.0576471 | AS47: 527.0576471 | AT47: 527.0576471 | AU47: 527.0576471 | AV47: 527.0576471 | AW47: 527.0576471 | AX47: 527.0576471 | AY47: 527.0576471 | AZ47: 527.0576471 | BA47: 527.0576471
A48: 3B4h | B48: Manure Management - Other (mainly mink) | C48: 18.11384 | D48: 16.892536 | E48: 18.26716 | F48: 12.298632 | G48: 14.626688 | H48: 14.799536 | I48: 15.347664 | J48: 17.69848808 | K48: 18.7604 | L48: 16.711232 | M48: 17.591184 | N48: 18.434208 | O48: 19.372224 | P48: 18.886736 | Q48: 19.767744 | R48: 20.417144 | S48: 21.663416 | T48: 22.692888 | U48: 22.479864 | V48: 21.76816 | W48: 21.594072 | X48: 22.05341608 | Y48: 23.583544 | Z48: 24.98356008 | AA48: 26.461704 | AB48: 27.106936 | AC48: 26.005224 | AD48: 26.11307459 | AE48: 26.71963518 | AF48: 27.3308065 | AG48: 27.94658857 | AH48: 28.43192971 | AI48: 28.91727086 | AJ48: 29.402612 | AK48: 29.88795314 | AL48: 30.37329429 | AM48: 30.85863542 | AN48: 31.34397657 | AO48: 31.82931771 | AP48: 32.31465886 | AQ48: 32.8 | AR48: 32.8 | AS48: 32.8 | AT48: 32.8 | AU48: 32.8 | AV48: 32.8 | AW48: 32.8 | AX48: 32.8 | AY48: 32.8 | AZ48: 32.8 | BA48: 32.8
A49: 3Da1 | B49: Inorganic N-fertilizers (includes also urea application)
A50: 3Da2a | B50: Animal manure applied to soils
A51: 3Da2b-c | B51: Sludge applied to soils
A52: 3Da3 | B52: Urine and dung deposited by grazing animals
A53: 3Dc | B53: Farm-level agricultural operations including storage, handling and transport of agricultural products | C53: 6839.24 | D53: 6827.166 | E53: 6776.905 | F53: 6328.948 | G53: 6372.084 | H53: 6249.64 | I53: 6340.605 | J53: 6374.744 | K53: 6307.927 | L53: 6197.922 | M53: 6238.151 | N53: 6285.863 | O53: 5245.932 | P53: 5316.344 | Q53: 5351.313 | R53: 5414.589 | S53: 5472.089 | T53: 5461.825 | U53: 5598.534 | V53: 5564.316 | W53: 5665.481 | X53: 5654.088 | Y53: 5558.661 | Z53: 5521.791 | AA53: 5636.54 | AB53: 5503.965 | AC53: 5484.315 | AD53: 5438.835156 | AE53: 5415.718005 | AF53: 5371.585262 | AG53: 5327.452519 | AH53: 5279.116658 | AI53: 5258.101066 | AJ53: 5241.288593 | AK53: 5222.37456 | AL53: 5205.562087 | AM53: 5188.749614 | AN53: 5171.93714 | AO53: 5155.124667 | AP53: 5138.312193 | AQ53: 5121.49972 | AR53: 5121.49972 | AS53: 5121.49972 | AT53: 5121.49972 | AU53: 5121.49972 | AV53: 5121.49972 | AW53: 5121.49972 | AX53: 5121.49972 | AY53: 5121.49972 | AZ53: 5121.49972 | BA53: 5121.49972
A54: 3De | B54: Cultivated crops
A55: 3F | B55: Field burning of agricultural residues | C55: 186.5470095 | D55: 193.9556903 | E55: 185.444415 | F55: 202.4858227 | G55: 195.2646052 | H55: 220.9870035 | I55: 219.746862 | J55: 232.9491555 | K55: 293.2624058 | L55: 278.5825913 | M55: 274.4173575 | N55: 288.3861428 | O55: 239.8941698 | P55: 288.391689 | Q55: 302.3571465 | R55: 306.8196592 | S55: 311.25555 | T55: 269.3192445 | U55: 249.4192995 | V55: 293.4254655 | W55: 213.969888 | X55: 211.786884 | Y55: 243.387198 | Z55: 263.029797 | AA55: 258.983253 | AB55: 227.6087823 | AC55: 224.534385 | AD55: 239.0071003 | AE55: 237.9912278 | AF55: 236.0518348 | AG55: 234.1124417 | AH55: 231.9883446 | AI55: 231.0648242 | AJ55: 230.3260078 | AK55: 229.4948393 | AL55: 228.756023 | AM55: 228.0172066 | AN55: 227.2783902 | AO55: 226.5395738 | AP55: 225.8007574 | AQ55: 225.061941 | AR55: 225.061941 | AS55: 225.061941 | AT55: 225.061941 | AU55: 225.061941 | AV55: 225.061941 | AW55: 225.061941 | AX55: 225.061941 | AY55: 225.061941 | AZ55: 225.061941 | BA55: 225.061941
A56: 3I | B56: Agriculture other
A58: 5A | B58: Solid waste disposal on land | C58: NE | D58: NE | E58: NE | F58: NE | G58: NE | H58: NE | I58: NE | J58: NE | K58: NE | L58: NE | M58: NE | N58: NE | O58: NE | P58: NE | Q58: NE | R58: NE | S58: NE | T58: NE | U58: NE | V58: NE | W58: NE | X58: NE | Y58: NE | Z58: NE | AA58: NE | AB58: NE | AC58: NE | AD58: NE | AE58: NE | AF58: NE | AG58: NE | AH58: NE | AI58: NE | AJ58: NE | AK58: NE | AL58: NE | AM58: NE | AN58: NE | AO58: NE | AP58: NE | AQ58: NE | AR58: NE | AS58: NE | AT58: NE | AU58: NE | AV58: NE | AW58: NE | AX58: NE | AY58: NE | AZ58: NE | BA58: NE
A59: 5B | B59: Biological treatment of waste | C59: NE | D59: NE | E59: NE | F59: NE | G59: NE | H59: NE | I59: NE | J59: NE | K59: NE | L59: NE | M59: NE | N59: NE | O59: NE | P59: NE | Q59: NE | R59: NE | S59: NE | T59: NE | U59: NE | V59: NE | W59: NE | X59: NE | Y59: NE | Z59: NE | AA59: NE | AB59: NE | AC59: NE | AD59: NE | AE59: NE | AF59: NE | AG59: NE | AH59: NE | AI59: NE | AJ59: NE | AK59: NE | AL59: NE | AM59: NE | AN59: NE | AO59: NE | AP59: NE | AQ59: NE | AR59: NE | AS59: NE | AT59: NE | AU59: NE | AV59: NE | AW59: NE | AX59: NE | AY59: NE | AZ59: NE | BA59: NE
A60: 5C | B60: Waste incineration | C60: 1.6518877 | D60: 1.6559102 | E60: 1.6985885 | F60: 1.7742318 | G60: 1.7745414 | H60: 1.8274909 | I60: 1.8224914 | J60: 1.8249177 | K60: 1.8046318 | L60: 2.0312896 | M60: 2.1237223 | N60: 2.1392672 | O60: 2.1664699 | P60: 2.1635592 | Q60: 2.3157721 | R60: 2.5806981 | S60: 3.1388006 | T60: 3.4141215 | U60: 3.4976426 | V60: 3.520044 | W60: 3.6756766 | X60: 1.878801656 | Y60: 1.907723423 | Z60: 1.768197503 | AA60: 1.790741604 | AB60: 1.727073586 | AC60: 1.831305824 | AD60: 2.534549157 | AE60: 2.534549157 | AF60: 2.534549157 | AG60: 2.534549157 | AH60: 2.534549157 | AI60: 2.534549157 | AJ60: 2.534549157 | AK60: 2.534549157 | AL60: 2.534549157 | AM60: 2.534549157 | AN60: 2.534549157 | AO60: 2.534549157 | AP60: 2.534549157 | AQ60: 2.534549157 | AR60: 2.534549157 | AS60: 2.534549157 | AT60: 2.534549157 | AU60: 2.534549157 | AV60: 2.534549157 | AW60: 2.534549157 | AX60: 2.534549157 | AY60: 2.534549157 | AZ60: 2.534549157 | BA60: 2.534549157
A61: 5D | B61: Wastewater handling
A62: 5E | B62: Other | C62: 305.3554324 | D62: 312.8059786 | E62: 332.3002423 | F62: 306.619303 | G62: 306.2723677 | H62: 339.3888011 | I62: 343.1242805 | J62: 323.9167928 | K62: 301.0810455 | L62: 315.7986259 | M62: 311.8791998 | N62: 308.4746417 | O62: 301.7767982 | P62: 327.3482722 | Q62: 295.4192835 | R62: 304.5891616 | S62: 311.2919404 | T62: 319.8941287 | U62: 314.8972962 | V62: 309.1363235 | W62: 275.581426 | X62: 257.3931743 | Y62: 228.7124072 | Z62: 244.0703633 | AA62: 218.0377253 | AB62: 221.2463675 | AC62: 249.0888037 | AD62: 232.2311334 | AE62: 232.9348786 | AF62: 230.7077817 | AG62: 233.241793 | AH62: 235.6408781 | AI62: 232.951293 | AJ62: 233.0953249 | AK62: 233.1274141 | AL62: 233.6113406 | AM62: 233.6852501 | AN62: 233.2941246 | AO62: 233.3626909 | AP62: 233.4161641 | AQ62: 233.473914 | AR62: 233.4464287 | AS62: 233.3986645 | AT62: 233.4195724 | AU62: 233.4309487 | AV62: 233.4339057 | AW62: 233.425904 | AX62: 233.4217991 | AY62: 233.426426 | AZ62: 233.4277967 | BA62: 233.4271663
B63: Total | C63: =SUM(C3:C62) -> 38291.43204 | D63: 40103.83755 | E63: 39479.79602 | F63: 39575.06078 | G63: 38874.84424 | H63: 38733.10568 | I63: 39127.45992 | J63: 38480.56957 | K63: 35693.70129 | L63: 35298.82243 | M63: =SUM(M3:M62) -> 35939.82356 | N63: =SUM(N3:N62) -> 36351.00535 | O63: 34341.30352 | P63: 35953.46353 | Q63: 36255.24889 | R63: 37278.76571 | S63: 38484.01249 | T63: 41433.4192 | U63: 39062.77787 | V63: 36117.68032 | W63: 36123.75182 | X63: 33618.10031 | Y63: 32294.9246 | Z63: 31792.18804 | AA63: 30053.02189 | AB63: =SUM(AB3:AB62) -> 31251.9341 | AC63: 31178.8423 | AD63: 30773.51937 | AE63: 30209.29332 | AF63: 29711.33212 | AG63: 29228.09173 | AH63: 28891.09316 | AI63: 28621.3883 | AJ63: 28441.43984 | AK63: 28142.09275 | AL63: 27839.97015 | AM63: 27520.40918 | AN63: 27262.34978 | AO63: 26969.69134 | AP63: 26663.65062 | AQ63: 26392.08084 | AR63: 26141.00025 | AS63: 25895.4525 | AT63: 25664.10956 | AU63: 25415.7784 | AV63: 25212.1969 | AW63: =SUM(AW3:AW62) -> 25313.77675 | AX63: 25389.21207 | AY63: 25474.37079 | AZ63: 25577.44822 | BA63: 25714.48414
B66: Reduction since 2005 | S66: =($R$63-S63)/$R$63 -> -0.0323306514 | T66: -0.1114482577 | U66: -0.04785598787 | V66: 0.0311460256 | W66: 0.03098315796 | X66: 0.09819706542 | Y66: 0.1336911514 | Z66: 0.1471770207 | AA66: 0.1938300177 | AB66: 0.1616692906 | AC66: 0.1636299726 | AD66: 0.1745027287 | AE66: 0.1896380487 | AF66: 0.2029958192 | AG66: 0.2159587053 | AH66: 0.2249986657 | AI66: 0.2322334778 | AJ66: 0.2370605812 | AK66: 0.2450905439 | AL66: 0.253194959 | AM66: 0.2617671572 | AN66: 0.2686895806 | AO66: 0.2765401208 | AP66: 0.2847496392 | AQ66: 0.2920344776 | AR66: =($R$63-AR63)/$R$63 -> 0.2987696951 | AS66: =($R$63-AS63)/$R$63 -> 0.3053564944 | AT66: =($R$63-AT63)/$R$63 -> 0.3115622507 | AU66: =($R$63-AU63)/$R$63 -> 0.3182237148 | AV66: =($R$63-AV63)/$R$63 -> 0.3236847729 | AW66: =($R$63-AW63)/$R$63 -> 0.3209599012 | AX66: 0.3189363547 | AY66: 0.3166519785 | AZ66: 0.3138869344 | BA66: 0.3102109566
A68: 1A3a | B68: Civil Aviation (Domestic Cruise) | C68: 5.110733347 | D68: 4.812615268 | E68: 4.801877908 | F68: 4.467292136 | G68: 4.643226932 | H68: 4.715266295 | I68: 4.969195541 | J68: 4.80566326 | K68: 4.600410134 | L68: 4.557929018 | M68: 4.388164996 | N68: 4.51676842 | O68: 3.577803295 | P68: 3.26729176 | Q68: 3.000536754 | R68: 3.36459458 | S68: 3.694510691 | T68: 4.396171899 | U68: 4.642645 | V68: 4.202136378 | W68: 4.072109709 | X68: 3.773924685 | Y68: 3.6133027 | Z68: 3.582302402 | AA68: 3.552591382 | AB68: 3.16927376 | AC68: 3.743748502 | AD68: 3.346792753 | AE68: 3.376087677 | AF68: 3.404571784 | AG68: 3.419788161 | AH68: 3.441034748 | AI68: 3.463127523 | AJ68: 3.484406297 | AK68: 3.505923529 | AL68: 3.527396882 | AM68: 3.555657694 | AN68: 3.584748452 | AO68: 3.613294625 | AP68: 3.64183101 | AQ68: 3.67226939 | AR68: 3.671661111 | AS68: 3.671107904 | AT68: 3.66986149 | AU68: 3.668235747 | AV68: 3.668767471 | AW68: 3.667274005 | AX68: 3.666243575 | AY68: 3.664930585 | AZ68: 3.66338175 | BA68: 3.663409078
B69: Civil Aviation (International Cruise) | C69: 87.61375962 | D69: 79.52709242 | E69: 81.97264098 | F69: 79.84018039 | G69: 88.66374217 | H69: 90.24144607 | I69: 94.07568573 | J69: 95.85420593 | K69: 104.8343794 | L69: 111.5814282 | M69: 114.482891 | N69: 117.923782 | O69: 126.1585051 | P69: 136.1935883 | Q69: 158.9159801 | R69: 169.6076594 | S69: 171.845232 | T69: 174.2511427 | U69: 177.8087668 | V69: 153.3042738 | W69: 156.0281941 | X69: 156.7863911 | Y69: 161.4369993 | Z69: 164.8232551 | AA69: 186.4103807 | AB69: 177.5714092 | AC69: 187.6622189 | AD69: 187.3070745 | AE69: 188.3712849 | AF69: 189.3265843 | AG69: 190.1116059 | AH69: 191.1436979 | AI69: 192.3215511 | AJ69: 193.3298817 | AK69: 194.306678 | AL69: 195.2591394 | AM69: 196.5221679 | AN69: 197.9104701 | AO69: 199.1401904 | AP69: 200.3226454 | AQ69: 201.8743463 | AR69: 202.0450434 | AS69: 202.2477771 | AT69: 202.3138405 | AU69: 202.3084257 | AV69: 202.823134 | AW69: 202.8597614 | AX69: 203.050038 | AY69: 203.1893687 | AZ69: 203.2849339 | BA69: 203.7949105
A70: 1A3d | B70: Navigation, international | C70: 4912.910166 | D70: 4039.955272 | E70: 3735.275912 | F70: 6924.637733 | G70: 7193.813256 | H70: 7778.709635 | I70: 7295.084515 | J70: 6695.852601 | K70: 5779.669325 | L70: 6029.65736 | M70: 6750.793837 | N70: 5395.529611 | O70: 3795.05245 | P70: 4057.405085 | Q70: 3447.601463 | R70: 4266.244481 | S70: 6330.236137 | T70: 4688.556421 | U70: 3653.143455 | V70: 1485.175995 | W70: 2077.663193 | X70: 2245.361666 | Y70: 1361.179765 | Z70: 1877.115234 | AA70: 2316.869777 | AB70: 1467.051053 | AC70: 643.9790788 | AD70: 1212.116736 | AE70: 1225.767954 | AF70: 1238.84543 | AG70: 1251.292518 | AH70: 1263.050657 | AI70: 1274.059585 | AJ70: 1284.257597 | AK70: 1293.581845 | AL70: 1301.968681 | AM70: 1309.354044 | AN70: 1315.673897 | AO70: 1320.864701 | AP70: 1324.863933 | AQ70: 1327.610634 | AR70: 1330.36246 | AS70: 1333.121118 | AT70: 1335.886635 | AU70: 1338.659035 | AV70: 1342.23731 | AW70: 1345.025446 | AX70: 1347.820548 | AY70: 1350.622643 | AZ70: 1353.431757 | BA70: 1356.247916

Sheet PM2_5
A1: PM2.5 (tons)
C2: 1990 | D2: 1991 | E2: 1992 | F2: 1993 | G2: 1994 | H2: 1995 | I2: 1996 | J2: 1997 | K2: 1998 | L2: 1999 | M2: 2000 | N2: 2001 | O2: 2002 | P2: 2003 | Q2: 2004 | R2: 2005 | S2: 2006 | T2: 2007 | U2: 2008 | V2: 2009 | W2: 2010 | X2: 2011 | Y2: 2012 | Z2: 2013 | AA2: 2014 | AB2: 2015 | AC2: 2016 | AD2: 2017 | AE2: 2018 | AF2: 2019 | AG2: 2020 | AH2: 2021 | AI2: 2022 | AJ2: 2023 | AK2: 2024 | AL2: 2025 | AM2: 2026 | AN2: 2027 | AO2: 2028 | AP2: 2029 | AQ2: 2030 | AR2: 2031 | AS2: 2032 | AT2: 2033 | AU2: 2034 | AV2: 2035 | AW2: 2036 | AX2: 2037 | AY2: 2038 | AZ2: 2039 | BA2: 2040
A3: 1A1a | B3: Public power and district heating plants | C3: 673.2987297 | D3: 860.7848829 | E3: 747.4969941 | F3: 767.5821595 | G3: 821.5810775 | H3: 789.742395 | I3: 1061.231037 | J3: 836.7747029 | K3: 747.7138516 | L3: 660.9592528 | M3: 693.3410729 | N3: 760.0007248 | O3: 798.6740531 | P3: 863.2700037 | Q3: 671.1250155 | R3: 542.0377375 | S3: 627.7374981 | T3: 653.176307 | U3: 554.7862756 | V3: 505.8807294 | W3: 482.658134 | X3: 456.2710328 | Y3: 402.6062026 | Z3: 573.5837226 | AA3: 434.1904193 | AB3: 345.2903399 | AC3: 390.6420943 | AD3: 533.0690745 | AE3: 545.6006435 | AF3: 532.9814419 | AG3: 524.0393326 | AH3: 533.7233628 | AI3: 532.5754204 | AJ3: 580.3570483 | AK3: 573.5304607 | AL3: 559.8679868 | AM3: 555.7822357 | AN3: 584.9069527 | AO3: 584.6863219 | AP3: 581.3867725 | AQ3: 582.050425 | AR3: 578.1215546 | AS3: 576.0408472 | AT3: 580.2161452 | AU3: 578.1268901 | AV3: 582.4036432 | AW3: 595.5970668 | AX3: 599.7849155 | AY3: 605.1227812 | AZ3: 612.6770472 | BA3: 622.5932733
A4: !A1b | B4: Petroleum refining plants | C4: 115.712624 | D4: 143.5947295 | E4: 198.9402636 | F4: 198.7868121 | G4: 198.8332768 | H4: 174.5929713 | I4: 185.5115973 | J4: 141.2912875 | K4: 114.7060875 | L4: 116.7516055 | M4: 124.086165 | N4: 129.279655 | O4: 123.6774 | P4: 114.5358532 | Q4: 117.0074508 | R4: 100.9184227 | S4: 102.3046649 | T4: 108.3914699 | U4: 101.6342711 | V4: 100.3170789 | W4: 87.30678259 | X4: 86.25400495 | Y4: 102.6092503 | Z4: 96.857597 | AA4: 90.35261529 | AB4: 102.6953752 | AC4: 89.81459265 | AD4: 92.2606115 | AE4: 92.2606115 | AF4: 92.2606115 | AG4: 92.2606115 | AH4: 92.2606115 | AI4: 92.2606115 | AJ4: 92.2606115 | AK4: 92.2606115 | AL4: 92.2606115 | AM4: 92.2606115 | AN4: 92.2606115 | AO4: 92.2606115 | AP4: 92.2606115 | AQ4: 92.2606115 | AR4: 92.2606115 | AS4: 92.2606115 | AT4: 92.2606115 | AU4: 92.2606115 | AV4: 92.2606115 | AW4: 92.2606115 | AX4: 92.2606115 | AY4: 92.2606115 | AZ4: 92.2606115 | BA4: 92.2606115
A5: 1A1c | B5: Oil and gas extraction | C5: 0.4835965026 | D5: 0.4948564584 | E5: 0.5670535344 | F5: 0.5730094813 | G5: 0.6293021821 | H5: 0.6626461891 | I5: 0.7814664876 | J5: 1.018266156 | K5: 1.129332223 | L5: 1.227512202 | M5: 1.297036414 | N5: 1.26737008 | O5: 1.359042107 | P5: 1.359145536 | Q5: 1.402931957 | R5: 1.437099409 | S5: 1.470676802 | T5: 1.458123265 | U5: 1.494471045 | V5: 1.404327679 | W5: 1.384576915 | X5: 1.330534917 | Y5: 1.325191918 | Z5: 1.273203317 | AA5: 1.215564901 | AB5: 1.272967055 | AC5: 1.174355387 | AD5: 1.137938328 | AE5: 1.110260762 | AF5: 1.110260762 | AG5: 0.7077548966 | AH5: 0.8264828672 | AI5: 1.007550634 | AJ5: 1.030590789 | AK5: 1.026636851 | AL5: 1.032711508 | AM5: 1.064567019 | AN5: 1.078530546 | AO5: 1.100581374 | AP5: 1.132868561 | AQ5: 0.9861215195 | AR5: 1.015572582 | AS5: 1.031506411 | AT5: 1.08137452 | AU5: 1.078158572 | AV5: 1.084082812 | AW5: 1.05124399 | AX5: 1.033901958 | AY5: 0.9736982439 | AZ5: 0.9535215769 | BA5: 0.9178114979
A7: 1A2a-f i | B7: Combustion in manufacturing industry | C7: 295.0708065 | D7: 322.7195007 | E7: 313.6420148 | F7: 305.2364446 | G7: 286.076056 | H7: 268.4627626 | I7: 280.163222 | J7: 283.6016691 | K7: 287.6400163 | L7: 266.9608595 | M7: 308.7747843 | N7: 306.7156441 | O7: 199.7072323 | P7: 190.7276102 | Q7: 188.6249902 | R7: 160.9849289 | S7: 197.0495295 | T7: 183.4565839 | U7: 211.6033212 | V7: 165.8491401 | W7: 162.3762962 | X7: 171.7521592 | Y7: 159.4577149 | Z7: 153.6914908 | AA7: 128.8506356 | AB7: 125.791834 | AC7: 125.718833 | AD7: 123.5259937 | AE7: 123.8933612 | AF7: 123.9261217 | AG7: 123.9566443 | AH7: 128.746891 | AI7: 133.5366117 | AJ7: 138.3254957 | AK7: 143.0471194 | AL7: 147.7704052 | AM7: 151.9313664 | AN7: 156.1078739 | AO7: 160.0967613 | AP7: 164.0309703 | AQ7: 168.0040766 | AR7: 172.3787987 | AS7: 176.7584633 | AT7: 181.1238674 | AU7: 185.4591845 | AV7: 189.8132823 | AW7: 194.3783735 | AX7: 198.963384 | AY7: 203.5271292 | AZ7: 207.9593015 | BA7: 212.3651568
A8: 1A2f ii | B8: Industry - Other (mobile) | C8: 1276.516482 | D8: 1236.301056 | E8: 1184.162779 | F8: 1132.888134 | G8: 1086.579889 | H8: 1048.768943 | I8: 1011.516357 | J8: 981.3922131 | K8: 952.8893443 | L8: 915.5301991 | M8: 876.1827922 | N8: 847.8006737 | O8: 812.2286626 | P8: 778.5754567 | Q8: 738.3933046 | R8: 705.9725201 | S8: 679.3256091 | T8: 656.0444044 | U8: 623.6960782 | V8: 448.2888406 | W8: 545.1316181 | X8: 508.0944593 | Y8: 471.853888 | Z8: 435.6703194 | AA8: 377.161145 | AB8: 350.080914 | AC8: 317.5698264 | AD8: 279.8816712 | AE8: 245.3203203 | AF8: 211.8215203 | AG8: 182.2142984 | AH8: 160.7492001 | AI8: 142.222042 | AJ8: 124.7644133 | AK8: 109.2739217 | AL8: 98.27823569 | AM8: 86.58209838 | AN8: 75.07405423 | AO8: 65.55088156 | AP8: 58.98056432 | AQ8: 52.62677749 | AR8: 46.00360466 | AS8: 41.67196422 | AT8: 39.88412596 | AU8: 39.10958979 | AV8: 38.37631083 | AW8: 37.66749983 | AX8: 36.96998798 | AY8: 36.17939604 | AZ8: 35.61227378 | BA8: 35.07172177
A10: 1A3a | B10: Civil Aviation (Domestic LTO) | C10: 3.61497726 | D10: 4.248959138 | E10: 3.849103696 | F10: 3.458784344 | G10: 3.623698887 | H10: 3.889878623 | I10: 4.032386859 | J10: 3.950348993 | K10: 3.348241246 | L10: 3.157123992 | M10: 2.871200587 | N10: 2.613921926 | O10: 2.489070183 | P10: 2.273283293 | Q10: 2.599995916 | R10: 2.549925692 | S10: 2.253346137 | T10: 2.342924051 | U10: 2.024204651 | V10: 1.91309146 | W10: 1.85860068 | X10: 1.650083039 | Y10: 1.74131969 | Z10: 1.764417511 | AA10: 1.407435438 | AB10: 1.336913152 | AC10: 1.419892665 | AD10: 1.433380623 | AE10: 1.446539187 | AF10: 1.459418072 | AG10: 1.468485813 | AH10: 1.480258487 | AI10: 1.492320687 | AJ10: 1.504207987 | AK10: 1.516226909 | AL10: 1.528293839 | AM10: 1.543393752 | AN10: 1.558810363 | AO10: 1.574146696 | AP10: 1.589553516 | AQ10: 1.60557817 | AR10: 1.607750412 | AS10: 1.609924434 | AT10: 1.611885176 | AU10: 1.613723805 | AV10: 1.616168891 | AW10: 1.618019612 | AX10: 1.619990564 | AY10: 1.621869358 | AZ10: 1.623671025 | BA10: 1.625915461
A11: 1A3a | B11: Civil Aviation (International LTO) | C11: 7.886802359 | D11: 10.51664218 | E11: 10.44666271 | F11: 9.982953067 | G11: 10.10776417 | H11: 10.8559725 | I11: 11.69673991 | J11: 12.07467083 | K11: 11.81040333 | L11: 11.2710057 | M11: 11.37372337 | N11: 11.24071921 | O11: 10.28334842 | P11: 10.25844389 | Q11: 11.26043909 | R11: 11.13200102 | S11: 11.20365553 | T11: 11.26668375 | U11: 11.55764237 | V11: 9.83924065 | W11: 10.26132968 | X11: 9.860745176 | Y11: 10.09525615 | Z11: 10.86204373 | AA11: 11.69962975 | AB11: 11.86654388 | AC11: 12.60503501 | AD11: 12.67751325 | AE11: 12.74954226 | AF11: 12.81419983 | AG11: 12.86733248 | AH11: 12.93718761 | AI11: 13.0169083 | AJ11: 13.08515519 | AK11: 13.15126774 | AL11: 13.21573323 | AM11: 13.30121884 | AN11: 13.39518336 | AO11: 13.47841458 | AP11: 13.55844673 | AQ11: 13.66347058 | AR11: 13.67502388 | AS11: 13.68874551 | AT11: 13.69321688 | AU11: 13.69285039 | AV11: 13.72768742 | AW11: 13.73016647 | AX11: 13.74304497 | AY11: 13.7524753 | AZ11: 13.75894344 | BA11: 13.79346021
A12: 1A3b | B12: Road exhaust | C12: 3962.512021 | D12: 4193.489163 | E12: 4048.711652 | F12: 4086.574497 | G12: 4214.587853 | H12: 4096.328097 | I12: 3997.289141 | J12: 3671.509526 | K12: 3398.088674 | L12: 3171.925553 | M12: 2913.821947 | N12: 2731.133804 | O12: 2515.783194 | P12: 2482.953052 | Q12: 2371.375611 | R12: 2292.76292 | S12: 2252.396626 | T12: 2180.719511 | U12: 1916.143394 | V12: 1634.656744 | W12: 1529.5327 | X12: 1363.295255 | Y12: 1225.133973 | Z12: 1084.536551 | AA12: 949.3649541 | AB12: 846.3111582 | AC12: 728.6992313 | AD12: 615.4975222 | AE12: 529.0887902 | AF12: 459.6685181 | AG12: 399.6563322 | AH12: 348.1217853 | AI12: 304.5882072 | AJ12: 267.9447228 | AK12: 237.5705346 | AL12: 213.0222449 | AM12: 193.851548 | AN12: 179.2834836 | AO12: 168.2108546 | AP12: 160.1458026 | AQ12: 154.0751343 | AR12: 149.7775675 | AS12: 146.2424272 | AT12: 143.349335 | AU12: 140.5771393 | AV12: 138.0168744 | AW12: 135.6086402 | AX12: 133.3440231 | AY12: 131.1720259 | AZ12: 129.0249917 | BA12: 126.7320383
A13: 1A3b | B13: Road non-exhaust | C13: 632.0428345 | D13: 657.70065 | E13: 668.8851611 | F13: 675.2707251 | G13: 714.4125149 | H13: 726.8839026 | I13: 741.67387 | J13: 764.222814 | K13: 782.8154635 | L13: 799.4605481 | M13: 793.5562062 | N13: 796.5165897 | O13: 807.5075169 | P13: 840.875134 | Q13: 868.1792504 | R13: 872.4679735 | S13: 902.9951446 | T13: 952.0427663 | U13: 932.3525182 | V13: 884.9405266 | W13: 887.4537667 | X13: 902.4841755 | Y13: 881.2661825 | Z13: 870.4429155 | AA13: 895.9438551 | AB13: 915.1411701 | AC13: 935.1019726 | AD13: 944.8588035 | AE13: 952.5528388 | AF13: 968.4424827 | AG13: 983.2655885 | AH13: 998.7804256 | AI13: 1015.468719 | AJ13: 1033.445442 | AK13: 1050.037113 | AL13: 1064.783938 | AM13: 1079.352659 | AN13: 1093.857847 | AO13: 1108.261319 | AP13: 1122.630775 | AQ13: 1136.788497 | AR13: 1150.75501 | AS13: 1164.382256 | AT13: 1177.773311 | AU13: 1191.03875 | AV13: 1204.99006 | AW13: 1220.991859 | AX13: 1239.921454 | AY13: 1262.327083 | AZ13: 1288.694315 | BA13: 1319.06648
A14: 1A3c | B14: Railways | C14: 201.5568298 | D14: 205.1580634 | E14: 216.9095166 | F14: 225.1200635 | G14: 204.0009399 | H14: 205.779387 | I14: 204.2197567 | J14: 198.8170512 | K14: 167.750622 | L14: 146.2719477 | M14: 140.5712174 | N14: 125.3582558 | O14: 123.811099 | P14: 118.5964897 | Q14: 114.7678625 | R14: 123.7601514 | S14: 119.557145 | T14: 119.9923562 | U14: 101.1974495 | V14: 84.39545816 | W14: 94.91049414 | X14: 77.51031758 | Y14: 81.67987091 | Z14: 70.31873593 | AA14: 61.32821167 | AB14: 49.00474757 | AC14: 47.95680845 | AD14: 26.51672451 | AE14: 17.90566475 | AF14: 9.385263088 | AG14: 0.9555195169 | AH14: 0.950350461 | AI14: 0.9451814051 | AJ14: 0.9400123492 | AK14: 0.8319499267 | AL14: 0.7523520361 | AM14: 0.7467862852 | AN14: 0.3073826234 | AO14: 0.3008506384 | AP14: 0.2943186534 | AQ14: 0.2877866684 | AR14: 0.2877866684 | AS14: 0.2877866684 | AT14: 0.2877866684 | AU14: 0.2877866684 | AV14: 0.2877866684 | AW14: 0.2877866684 | AX14: 0.2877866684 | AY14: 0.2877866684 | AZ14: 0.2877866684 | BA14: 0.2877866684
A15: 1A3d | B15: Navigation | C15: 798.2814523 | D15: 848.1127389 | E15: 669.2099652 | F15: 638.5733885 | G15: 587.2052428 | H15: 638.086278 | I15: 553.0039397 | J15: 495.2347354 | K15: 430.8107439 | L15: 416.0808473 | M15: 425.5903944 | N15: 431.9928304 | O15: 494.8532858 | P15: 547.9495169 | Q15: 540.3624001 | R15: 558.1271971 | S15: 553.1999352 | T15: 431.9537094 | U15: 472.1238921 | V15: 472.073705 | W15: 426.9751367 | X15: 411.0904099 | Y15: 402.5741955 | Z15: 413.130251 | AA15: 349.6209114 | AB15: 279.4860089 | AC15: 291.124882 | AD15: 290.4442954 | AE15: 291.5324592 | AF15: 292.5349556 | AG15: 293.4521779 | AH15: 294.2776932 | AI15: 295.0049402 | AJ15: 295.6272625 | AK15: 296.1379457 | AL15: 296.5431569 | AM15: 296.9313988 | AN15: 297.0805059 | AO15: 297.8919777 | AP15: 297.7830963 | AQ15: 297.4868047 | AR15: 296.0929171 | AS15: 294.6948977 | AT15: 293.2927319 | AU15: 291.886405 | AV15: 291.1847749 | AW15: 289.7701045 | AX15: 288.3512285 | AY15: 286.9281318 | AZ15: 285.5007994 | BA15: 284.0692162
A17: 1A4a i | B17: Commercial and institutional plants | C17: 103.7680568 | D17: 95.84355461 | E17: 86.66579462 | F17: 86.10311025 | G17: 81.68957958 | H17: 84.80326962 | I17: 109.2239526 | J17: 109.6913302 | K17: 104.1055071 | L17: 127.2055509 | M17: 146.3840072 | N17: 123.8650488 | O17: 141.1081434 | P17: 135.6464971 | Q17: 122.8601299 | R17: 139.3557948 | S17: 149.1879926 | T17: 154.2696978 | U17: 163.7254409 | V17: 155.9511764 | W17: 149.1745181 | X17: 137.973379 | Y17: 133.9076761 | Z17: 146.3435656 | AA17: 158.5726741 | AB17: 182.6769366 | AC17: 232.4525397 | AD17: 201.8713425 | AE17: 197.4877882 | AF17: 193.0980979 | AG17: 188.7113192 | AH17: 196.865848 | AI17: 205.0232665 | AJ17: 213.183388 | AK17: 221.3244486 | AL17: 229.4671362 | AM17: 239.4440576 | AN17: 249.421323 | AO17: 259.3976885 | AP17: 269.3735195 | AQ17: 279.3471851 | AR17: 293.6429843 | AS17: 307.9386209 | AT17: 322.233675 | AU17: 336.5282932 | AV17: 350.8225 | AW17: 369.7216386 | AX17: 388.6202303 | AY17: 407.5183818 | AZ17: 426.416234 | BA17: 445.31381
A18: 1A4a ii | B18: Commercial and institutional (mobile) | C18: 44.64080954 | D18: 42.47749411 | E18: 40.3516562 | F18: 38.55638644 | G18: 36.78318483 | H18: 34.95197655 | I18: 33.04875655 | J18: 31.07213007 | K18: 29.02171499 | L18: 26.17767805 | M18: 23.22728177 | N18: 24.44770653 | O18: 25.10033208 | P18: 25.08319175 | Q18: 25.17363037 | R18: 25.16812075 | S18: 27.00403056 | T18: 26.78122651 | U18: 24.50030854 | V18: 23.10892366 | W18: 22.15153986 | X18: 22.10687435 | Y18: 19.637542 | Z18: 18.08865871 | AA18: 16.91468686 | AB18: 16.41193459 | AC18: 16.77717485 | AD18: 16.26512297 | AE18: 15.0898236 | AF18: 14.11136912 | AG18: 13.22464415 | AH18: 12.56972334 | AI18: 12.54429493 | AJ18: 12.5158089 | AK18: 12.4853462 | AL18: 12.45523187 | AM18: 12.41787062 | AN18: 12.37882353 | AO18: 12.338455 | AP18: 12.31405844 | AQ18: 12.31405844 | AR18: 12.31405844 | AS18: 12.31405844 | AT18: 12.31405844 | AU18: 12.31405844 | AV18: 12.31405844 | AW18: 12.31405844 | AX18: 12.31405844 | AY18: 12.31405844 | AZ18: 12.31405844 | BA18: 12.31405844
A19: 1A4b i | B19: Residential plants | C19: 10798.42026 | D19: 12005.54797 | E19: 12068.49488 | F19: 12800.55438 | G19: 12148.87685 | H19: 11924.66386 | I19: 12166.84131 | J19: 11860.01022 | K19: 10342.53558 | L19: 9891.815484 | M19: 11275.6329 | N19: 11853.23232 | O19: 11671.02473 | P19: 13090.91261 | Q19: 13668.91917 | R19: 15125.35636 | S19: 15729.5164 | T19: 18916.6128 | U19: 17425.01328 | V19: 16105.6538 | W19: 16355.78157 | X19: 14393.38415 | Y19: 13573.81871 | Z19: 13367.44323 | AA19: 12047.0487 | AB19: 13575.09297 | AC19: 13573.91747 | AD19: 13289.24747 | AE19: 12837.06094 | AF19: 12391.73749 | AG19: 11968.56181 | AH19: 11560.96871 | AI19: 11216.28058 | AJ19: 10895.46406 | AK19: 10579.68717 | AL19: 10268.94993 | AM19: 9939.802001 | AN19: 9615.101528 | AO19: 9291.591281 | AP19: 8972.721853 | AQ19: 8655.429387 | AR19: 8344.077108 | AS19: 8036.146507 | AT19: 7731.858681 | AU19: 7425.896605 | AV19: 7124.314298 | AW19: 7084.697116 | AX19: 7045.079934 | AY19: 7005.462753 | AZ19: 6965.845571 | BA19: 6926.22839
A20: 1A4b ii | B20: Residential (mobile) | C20: 8.303528406 | D20: 8.464290924 | E20: 8.277359399 | F20: 8.153717363 | G20: 8.108657024 | H20: 8.133002885 | I20: 8.314942263 | J20: 8.606793333 | K20: 8.919246058 | L20: 9.241993658 | M20: 9.567177906 | N20: 9.785602577 | O20: 9.912927168 | P20: 10.06236419 | Q20: 10.25171299 | R20: 10.47444398 | S20: 10.90846433 | T20: 11.45546081 | U20: 11.84750069 | V20: 11.68462683 | W20: 11.33827431 | X20: 11.32189452 | Y20: 11.22427969 | Z20: 10.93739101 | AA20: 10.84973458 | AB20: 10.91067269 | AC20: 11.41519412 | AD20: 11.87891845 | AE20: 11.90349615 | AF20: 11.88643631 | AG20: 11.83035259 | AH20: 11.66085906 | AI20: 11.53791111 | AJ20: 11.51217761 | AK20: 11.4971403 | AL20: 11.4908574 | AM20: 11.48972027 | AN20: 11.4896765 | AO20: 11.48966545 | AP20: 11.48966274 | AQ20: 11.48966195 | AR20: 11.48966193 | AS20: 11.48966193 | AT20: 11.48966193 | AU20: 11.48966193 | AV20: 11.48966193 | AW20: 11.48966193 | AX20: 11.48966193 | AY20: 11.48966193 | AZ20: 11.48966193 | BA20: 11.48966193
A21: 1A4c i | B21: Plants in agriculture, forestry and aquaculture | C21: 1539.076583 | D21: 1535.822008 | E21: 1531.73414 | F21: 1430.308515 | G21: 1335.288939 | H21: 1236.717048 | I21: 1117.819623 | J21: 1189.340515 | K21: 1167.303272 | L21: 1070.690006 | M21: 960.2464155 | N21: 897.8462345 | O21: 891.3011905 | P21: 886.0682933 | Q21: 882.6492255 | R21: 880.1587221 | S21: 879.1456674 | T21: 873.2688124 | U21: 877.2598862 | V21: 877.8243823 | W21: 889.9031135 | X21: 881.9375832 | Y21: 875.7964842 | Z21: 877.2079493 | AA21: 870.5627365 | AB21: 883.9966998 | AC21: 891.3265984 | AD21: 923.5744334 | AE21: 926.863022 | AF21: 930.131087 | AG21: 933.3999284 | AH21: 946.1784837 | AI21: 958.9572708 | AJ21: 971.7362319 | AK21: 984.5101065 | AL21: 997.2842785 | AM21: 1013.525358 | AN21: 1029.812811 | AO21: 1045.759734 | AP21: 1061.612431 | AQ21: 1077.554536 | AR21: 1097.009564 | AS21: 1116.483997 | AT21: 1135.938617 | AU21: 1155.339067 | AV21: 1174.786884 | AW21: 1199.54572 | AX21: 1224.361101 | AY21: 1249.143641 | AZ21: 1273.643467 | BA21: 1298.088689
A22: 1A4c ii | B22: Agriculture & forestry (mobile) | C22: 2698.095584 | D22: 2597.276212 | E22: 2433.815224 | F22: 2386.421461 | G22: 2199.378373 | H22: 2183.073325 | I22: 1924.699999 | J22: 1850.973026 | K22: 1683.980965 | L22: 1600.983735 | M22: 1494.92232 | N22: 1427.500559 | O22: 1343.538763 | P22: 1265.874563 | Q22: 1193.970765 | R22: 1120.240675 | S22: 1051.633295 | T22: 978.2303886 | U22: 908.0481953 | V22: 837.5045896 | W22: 771.6865518 | X22: 710.9097638 | Y22: 643.1486744 | Z22: 575.3441005 | AA22: 491.4368985 | AB22: 448.1191966 | AC22: 403.83025 | AD22: 357.8104705 | AE22: 314.7259579 | AF22: 274.5729114 | AG22: 236.6579005 | AH22: 216.6715152 | AI22: 199.2524846 | AJ22: 185.5462969 | AK22: 172.3426065 | AL22: 157.2236646 | AM22: 140.0100626 | AN22: 124.8725343 | AO22: 114.2111093 | AP22: 103.4477313 | AQ22: 92.19300769 | AR22: 83.50946236 | AS22: 78.40728317 | AT22: 73.90803908 | AU22: 70.20903223 | AV22: 66.34101197 | AW22: 61.62725642 | AX22: 55.68861097 | AY22: 50.28209275 | AZ22: 47.54140801 | BA22: 45.17580986
A23: 1A4c iii | B23: Fishing (mobile) | C23: 179.7722211 | D23: 187.8100672 | E23: 173.5276963 | F23: 165.43714 | G23: 168.8195278 | H23: 171.7375457 | I23: 162.0143356 | J23: 131.7287582 | K23: 138.6632666 | L23: 158.9166267 | M23: 201.9192166 | N23: 192.369112 | O23: 192.5101361 | P23: 181.7690176 | Q23: 155.2174896 | R23: 156.5375394 | S23: 158.1982196 | T23: 146.4747183 | U23: 113.1883597 | V23: 109.8123703 | W23: 109.4113205 | X23: 103.3184106 | Y23: 80.02298808 | Z23: 92.1470549 | AA23: 84.74260823 | AB23: 92.84835302 | AC23: 92.99918591 | AD23: 93.44275247 | AE23: 93.84705358 | AF23: 94.20955722 | AG23: 94.52782292 | AH23: 97.20493542 | AI23: 99.89816655 | AJ23: 102.5567321 | AK23: 105.1765342 | AL23: 107.753546 | AM23: 110.2490581 | AN23: 112.7500865 | AO23: 115.2566599 | AP23: 117.768807 | AQ23: 120.2865568 | AR23: 123.01729 | AS23: 125.7541357 | AT23: 128.4620202 | AU23: 131.1386435 | AV23: 133.7816979 | AW23: 136.6483098 | AX23: 139.5149218 | AY23: 142.3815337 | AZ23: 145.2481457 | BA23: 148.1147576
A25: 1A5b | B25: Other mobile (military and recreational crafts) | C25: 104.2190983 | D25: 209.9555385 | E25: 169.6049392 | F25: 171.5436662 | G25: 167.9790305 | H25: 233.3503481 | I25: 170.605606 | J25: 202.3024215 | K25: 210.8002319 | L25: 186.0416766 | M25: 160.9945749 | N25: 181.1789572 | O25: 166.0612458 | P25: 171.1422689 | Q25: 193.9068109 | R25: 181.5373493 | S25: 152.9432748 | T25: 143.8847887 | U25: 131.9553411 | V25: 130.9652578 | W25: 114.8830075 | X25: 113.8358675 | Y25: 104.3044887 | Z25: 98.80461931 | AA25: 93.12387128 | AB25: 87.02980175 | AC25: 84.8476848 | AD25: 78.11285618 | AE25: 71.72740319 | AF25: 65.44736552 | AG25: 59.23942631 | AH25: 55.57491073 | AI25: 51.96823822 | AJ25: 48.40998018 | AK25: 44.89910054 | AL25: 41.4309562 | AM25: 37.99848417 | AN25: 34.59628068 | AO25: 31.21712934 | AP25: 27.85789693 | AQ25: 24.51241333 | AR25: 21.17863935 | AS25: 21.15914243 | AT25: 21.14581008 | AU25: 21.13558848 | AV25: 21.12815285 | AW25: 21.12449969 | AX25: 21.13490754 | AY25: 21.11407402 | AZ25: 21.12013773 | BA25: 21.11797705
A27: 1B1 | B27: Fugitive emissions from solid fuels | C27: 61.530546 | D27: 76.861602 | E27: 71.651226 | F27: 62.800638 | G27: 70.634736 | H27: 78.052458 | I27: 78.80106 | J27: 80.844168 | K27: 48.426918 | L27: 42.702528 | M27: 38.490408 | N27: 41.545764 | O27: 37.574802 | P27: 57.087414 | Q27: 45.565536 | R27: 36.191052 | S27: 52.129008 | T27: 48.73926 | U27: 45.419688 | V27: 40.265028 | W27: 27.422208 | X27: 36.817164 | Y27: 23.867148 | Z27: 29.710692 | AA27: 27.197466 | AB27: 16.54461 | AC27: 17.454324 | AD27: 15.73150938 | AE27: 14.80549351 | AF27: 12.84131634 | AG27: 12.69284136 | AH27: 13.59471132 | AI27: 13.72098057 | AJ27: 19.47294292 | AK27: 18.8070057 | AL27: 17.33916759 | AM27: 17.76177715 | AN27: 21.29715666 | AO27: 21.48953131 | AP27: 21.26963597 | AQ27: 21.54724201 | AR27: 21.44119329 | AS27: 21.57181604 | AT27: 22.38119793 | AU27: 22.48484558 | AV27: 22.96910722 | AW27: 24.91931568 | AX27: 25.45422528 | AY27: 25.89422192 | AZ27: 26.88339135 | BA27: 28.13290264
A28: 1B2a | B28: Fugitive emissions from oil | C28: 8.1078984e-05 | D28: 1.2750486e-05 | E28: 0.00013047615 | F28: 2.137926e-06 | G28: 4.4814e-07 | H28: 5.8857792e-05 | I28: 5.872965e-05 | J28: 1.17243e-06 | K28: 0.000127216362 | L28: 0.000129379866 | M28: 4.4814e-05 | N28: 0 | O28: 2.2713768e-05 | P28: 0 | Q28: 0 | R28: 7.8890448e-05 | S28: 0 | T28: 0 | U28: 0 | V28: 1.4723016e-05 | W28: 0 | X28: 0 | Y28: 0 | Z28: 5.2155432e-05 | AA28: 0 | AB28: 1.2936e-05 | AC28: 0 | AD28: 0 | AE28: 0 | AF28: 0 | AG28: 0 | AH28: 0 | AI28: 0 | AJ28: 0 | AK28: 0 | AL28: 0 | AM28: 0 | AN28: 0 | AO28: 0 | AP28: 0 | AQ28: 0 | AR28: 0 | AS28: 0 | AT28: 0 | AU28: 0 | AV28: 0 | AW28: 0 | AX28: 0 | AY28: 0 | AZ28: 0 | BA28: 0
A29: 1B2b | B29: Fugitive emissions from gas | C29: 0.121466184 | D29: 5.5146e-05 | E29: 0.00035364 | F29: 2.058e-06 | G29: 9.618e-06 | H29: 6.174e-06 | I29: 4.536e-06 | J29: 1.26e-07 | K29: 8.6604e-05 | L29: 2.8938e-05 | M29: 0.00235158 | N29: NA | O29: 0.376538988 | P29: NA | Q29: NA | R29: 0.02994894 | S29: NA | T29: NA | U29: NA | V29: 0.000257334 | W29: NA | X29: NA | Y29: NA | Z29: 4.284e-06 | AA29: NA | AB29: 0.00122724 | AC29: NA | AD29: 0 | AE29: 0 | AF29: 0 | AG29: 0 | AH29: 0 | AI29: 0 | AJ29: 0 | AK29: 0 | AL29: 0 | AM29: 0 | AN29: 0 | AO29: 0 | AP29: 0 | AQ29: 0 | AR29: 0 | AS29: 0 | AT29: 0 | AU29: 0 | AV29: 0 | AW29: 0 | AX29: 0 | AY29: 0 | AZ29: 0 | BA29: 0
A30: 1B2c | B30: Fugitive emissions from venting and flaring | C30: 4.942621087 | D30: 9.760995936 | E30: 10.06745628 | F30: 8.756503791 | G30: 8.69978464 | H30: 6.78033066 | I30: 7.441363085 | J30: 10.48094122 | K30: 7.752942395 | L30: 16.51167974 | M30: 10.83037912 | N30: 11.57731523 | O30: 9.730894552 | P30: 10.06371512 | Q30: 11.30474112 | R30: 8.14611553 | S30: 7.990112465 | T30: 8.18092042 | U30: 6.034728926 | V30: 3.887596806 | W30: 5.348139945 | X30: 3.586659923 | Y30: 3.394597507 | Z30: 3.939237072 | AA30: 3.938814935 | AB30: 3.983156647 | AC30: 4.339451755 | AD30: 3.67911977 | AE30: 3.637954356 | AF30: 3.699702477 | AG30: 2.344915181 | AH30: 2.643026117 | AI30: 3.267985159 | AJ30: 3.342968683 | AK30: 3.330619059 | AL30: 3.269313828 | AM30: 3.265197286 | AN30: 3.167025319 | AO30: 3.162908777 | AP30: 3.158792236 | AQ30: 2.22889678 | AR30: 2.224780238 | AS30: 2.220663697 | AT30: 2.339157617 | AU30: 2.273735845 | AV30: 2.273735845 | AW30: 2.204197531 | AX30: 2.204197531 | AY30: 2.20008099 | AZ30: 2.20008099 | BA30: 2.195964449
A32: 2A | B32: Mineral industry | C32: 443.7545022 | D32: 428.755769 | E32: 426.1543611 | F32: 414.7010083 | G32: 429.210304 | H32: 455.0850746 | I32: 469.2474006 | J32: 527.2593556 | K32: 470.8732106 | L32: 646.4162432 | M32: 524.0875348 | N32: 526.1349582 | O32: 496.6690658 | P32: 490.5729198 | Q32: 527.0533068 | R32: 544.9822918 | S32: 589.2545642 | T32: 548.9949398 | U32: 500.6641128 | V32: 383.1805908 | W32: 373.487146 | X32: 376.211624 | Y32: 401.1547844 | Z32: 349.304216 | AA32: 351.8630852 | AB32: 385.1216142 | AC32: 407.7014706 | AD32: 409.2395913 | AE32: 421.1247414 | AF32: 448.4886968 | AG32: 468.982126 | AH32: 492.6163827 | AI32: 514.0758071 | AJ32: 523.5884049 | AK32: 533.8499402 | AL32: 544.9331934 | AM32: 549.8259016 | AN32: 551.1847669 | AO32: 556.1425035 | AP32: 559.0621297 | AQ32: 565.7220648 | AR32: 570.933317 | AS32: 574.0776557 | AT32: 576.3542277 | AU32: 578.2679002 | AV32: 584.2491318 | AW32: 590.2967907 | AX32: 595.1858246 | AY32: 600.613944 | AZ32: 605.9361215 | BA32: 614.8723332
A33: 2B | B33: Chemical Industry | C33: 394.7 | D33: 362.244 | E33: 321.268 | F33: 303.666 | G33: 308.276 | H33: 344.88 | I33: 360.8 | J33: 330.3 | K33: 203.3 | L33: 401 | M33: 376.3 | N33: 360.3 | O33: 324.3 | P33: 331.3 | Q33: 201 | R33: 17.3 | S33: 9 | T33: 18.8 | U33: 19.5 | V33: 12 | W33: 19.5 | X33: 5.1 | Y33: 4.5 | Z33: 8 | AA33: 8 | AB33: 4 | AC33: 8 | AD33: 6.910632505 | AE33: 7.074788174 | AF33: 7.238943843 | AG33: 7.403099513 | AH33: 7.567255182 | AI33: 7.731410852 | AJ33: 7.895566521 | AK33: 8.05972219 | AL33: 8.22387786 | AM33: 8.388033529 | AN33: 8.552189199 | AO33: 8.716344868 | AP33: 8.880500537 | AQ33: 9.044656207 | AR33: 9.208811876 | AS33: 9.372967546 | AT33: 9.537123215 | AU33: 9.701278884 | AV33: 9.865434554 | AW33: 10.02959022 | AX33: 10.19374589 | AY33: 10.35790156 | AZ33: 10.52205723 | BA33: 10.6862129
A34: 2C | B34: Metal industry | C34: 60.949015 | D34: 59.262055 | E34: 59.114005 | F34: 62.313605 | G34: 67.726155 | H34: 67.688525 | I34: 61.259163 | J34: 65.438205 | K34: 48.641104 | L34: 46.954494 | M34: 34.306666 | N34: 38.026487 | O34: 11.333727 | P34: 12.64663046 | Q34: 13.64961304 | R34: 21.53236956 | S34: 11.89268282 | T34: 11.8324167 | U34: 11.65895368 | V34: 6.70031182 | W34: 10.36401786 | X34: 11.72293776 | Y34: 10.27439272 | Z34: 10.65992904 | AA34: 12.44414695 | AB34: 12.820453 | AC34: 11.99385495 | AD34: 11.99228949 | AE34: 11.78290061 | AF34: 12.31473819 | AG34: 12.78843255 | AH34: 13.0529665 | AI34: 13.39191485 | AJ34: 13.67964865 | AK34: 13.92702431 | AL34: 14.13511571 | AM34: 14.21646406 | AN34: 14.32429082 | AO34: 14.48348012 | AP34: 14.62825249 | AQ34: 14.90054826 | AR34: 15.12252119 | AS34: 15.32073085 | AT34: 15.50317053 | AU34: 15.66564646 | AV34: 15.94724572 | AW34: 16.21744549 | AX34: 16.43007408 | AY34: 16.66770041 | AZ34: 16.8936554 | BA34: 17.25157812
A35: 2D | B35: Non-energy products from fuels and solvent use | C35: 26.80763192 | D35: 28.78297544 | E35: 27.60275528 | F35: 28.88867112 | G35: 29.55411024 | H35: 33.01539968 | I35: 34.98047328 | J35: 35.28584024 | K35: 38.64032256 | L35: 40.8732528 | M35: 42.24401904 | N35: 47.98478256 | O35: 54.93442704 | P35: 50.43857 | Q35: 58.768178 | R35: 71.84905464 | S35: 63.442 | T35: 73.7192876 | U35: 63.37529336 | V35: 51.0984168 | W35: 66.99147456 | X35: 67.84987544 | Y35: 59.20269992 | Z35: 61.62295976 | AA35: 60.84717608 | AB35: 56.17359752 | AC35: 54.1377976 | AD35: 53.43405307 | AE35: 53.43405307 | AF35: 53.43405307 | AG35: 53.43405307 | AH35: 53.43405307 | AI35: 53.43405307 | AJ35: 53.43405307 | AK35: 53.43405307 | AL35: 53.43405307 | AM35: 53.43405307 | AN35: 53.43405307 | AO35: 53.43405307 | AP35: 53.43405307 | AQ35: 53.43405307 | AR35: 53.43405307 | AS35: 53.43405307 | AT35: 53.43405307 | AU35: 53.43405307 | AV35: 53.43405307 | AW35: 53.43405307 | AX35: 53.43405307 | AY35: 53.43405307 | AZ35: 53.43405307 | BA35: 53.43405307
A36: 2G | B36: Other product manufacture and use | C36: 227.1790464 | D36: 221.193944 | E36: 235.8604297 | F36: 216.1786554 | G36: 217.9218693 | H36: 244.2780379 | I36: 240.8292204 | J36: 241.5222271 | K36: 257.4183636 | L36: 323.7009789 | M36: 293.7691502 | N36: 259.6878704 | O36: 294.0260123 | P36: 337.356987 | Q36: 374.0625138 | R36: 262.5936178 | S36: 288.9205429 | T36: 264.2909853 | U36: 254.0122174 | V36: 274.3405728 | W36: 262.0869387 | X36: 234.0392556 | Y36: 231.7312724 | Z36: 252.9412113 | AA36: 212.2627913 | AB36: 269.2520139 | AC36: 212.190001 | AD36: 225.1998066 | AE36: 221.5720944 | AF36: 217.9443822 | AG36: 214.31667 | AH36: 210.6889578 | AI36: 207.0612456 | AJ36: 203.4335334 | AK36: 199.8058212 | AL36: 196.178109 | AM36: 192.5503968 | AN36: 188.9226846 | AO36: 185.2949724 | AP36: 181.6672602 | AQ36: 178.039548 | AR36: 174.4118358 | AS36: 170.7841236 | AT36: 167.1564114 | AU36: 163.5286992 | AV36: 159.900987 | AW36: 156.2732748 | AX36: 152.6455626 | AY36: 149.0178504 | AZ36: 145.3901382 | BA36: 141.762426
